Workbook

Sheet Overview

Sheet Select School
B3: =VLOOKUP(C3,SchList!$I$1:$J$499,2,FALSE) -> 9999 | C3: 1

Sheet Grade 3 Report
A2: Click here to return to the school and sheet selection interface
A3: ='Select School'!B3 -> 9999
A4: =TEXT(A3,"0000")&"-"&VLOOKUP(A3,SchList!$A$2:$B$504,2,FALSE) -> 9999-District
A5: Reading - Grade 3
A6: Level of Proficiency at 70% or above | B6: Total # of Students | C6: % of Students Tested | D6: ='G3-5 Matrix'!C2&" ["&'G3-5 Matrix'!C3&"]" -> Overall [31] | F6: ='G3-5 Matrix'!D2&" ["&'G3-5 Matrix'!D3&"]" -> Vocabulary [6] | H6: ='G3-5 Matrix'!E2&" ["&'G3-5 Matrix'!E3&"]" -> Reading Application [17] | J6: ='G3-5 Matrix'!F2&" ["&'G3-5 Matrix'!F3&"]" -> Literary Analysis Fiction/Nonfiction [6] | L6: ='G3-5 Matrix'!G2&" ["&'G3-5 Matrix'!G3&"]" -> Informational Text/ Research Process [2]
D7: Average Score | E7: % Proficient | F7: Average Score | G7: % Proficient | H7: Average Score | I7: % Proficient | J7: Average Score | K7: % Proficient | L7: Average Score | M7: % Proficient
A8: Total Students | B8: =IFERROR(VLOOKUP(TEXT($A$3,"0000"),Mem_All!$A$3:$O$501,7,FALSE),0) -> 26784 | C8: =IFERROR((IF(OR(B8=0,B8="",B8="NA"),"NA",((IF(VLOOKUP($A$3,'G3-RALL'!$A$6:$AM$501,3,FALSE)>=B8,"100% ("&VLOOKUP($A$3,'G3-RALL'!$A$6:$AM$501,3,FALSE)&")",(ROUND((VLOOKUP($A$3,'G3-RALL'!$A$6:$AM$501,3,FALSE)/B8*100),0))&"% ("&IF(VLOOKUP($A$3,'G3-RALL'!$A$6:$AM$501,3,FALSE)="",0,VLOOKUP($A$3,'G3-RALL'!$A$6:$AM$501,3,FALSE))&")"))))),"0% (0)") -> 95% (25549) | D8: =IFERROR((IF($C8="NA","NA",VLOOKUP($A$3,'G3-RALL'!$A$6:$AM$501,4,FALSE))),"NA") -> 17.19641082 | E8: =IFERROR((IF($C8="NA","NA",VLOOKUP($A$3,'G3-RALL'!$A$6:$AM$501,6,FALSE)&"% ("&IF(VLOOKUP($A$3,'G3-RALL'!$A$6:$AM$501,5,FALSE)="",0,VLOOKUP($A$3,'G3-RALL'!$A$6:$AM$501,5,FALSE))&")")),"NA") -> 30% (7623) | F8: =IFERROR((IF($C8="NA","NA",VLOOKUP($A$3,'G3-RALL'!$A$6:$AM$501,7,FALSE))),"NA") -> 3.751657599 | G8: =IFERROR((IF($C8="NA","NA",VLOOKUP($A$3,'G3-RALL'!$A$6:$AM$501,9,FALSE)&"% ("&IF(VLOOKUP($A$3,'G3-RALL'!$A$6:$AM$501,8,FALSE)="",0,VLOOKUP($A$3,'G3-RALL'!$A$6:$AM$501,8,FALSE))&")")),"NA") -> 39% (10068) | H8: =IFERROR((IF($C8="NA","NA",VLOOKUP($A$3,'G3-RALL'!$A$6:$AM$501,10,FALSE))),"NA") -> 9.372754315 | I8: =IFERROR((IF($C8="NA","NA",VLOOKUP($A$3,'G3-RALL'!$A$6:$AM$501,12,FALSE)&"% ("&IF(VLOOKUP($A$3,'G3-RALL'!$A$6:$AM$501,11,FALSE)="",0,VLOOKUP($A$3,'G3-RALL'!$A$6:$AM$501,11,FALSE))&")")),"NA") -> 31% (7859) | J8: =IFERROR((IF($C8="NA","NA",VLOOKUP($A$3,'G3-RALL'!$A$6:$AM$501,13,FALSE))),"NA") -> 3.266429214 | K8: =IFERROR((IF($C8="NA","NA",VLOOKUP($A$3,'G3-RALL'!$A$6:$AM$501,15,FALSE)&"% ("&IF(VLOOKUP($A$3,'G3-RALL'!$A$6:$AM$501,14,FALSE)="",0,VLOOKUP($A$3,'G3-RALL'!$A$6:$AM$501,14,FALSE))&")")),"NA") -> 27% (6820) | L8: =IFERROR((IF($C8="NA","NA",VLOOKUP($A$3,'G3-RALL'!$A$6:$AM$501,16,FALSE))),"NA") -> 0.8148381541 | M8: =IFERROR((IF($C8="NA","NA",VLOOKUP($A$3,'G3-RALL'!$A$6:$AM$501,18,FALSE)&"% ("&IF(VLOOKUP($A$3,'G3-RALL'!$A$6:$AM$501,17,FALSE)="",0,VLOOKUP($A$3,'G3-RALL'!$A$6:$AM$501,17,FALSE))&")")),"NA") -> 15% (3770)
A9: White | B9: =IFERROR(VLOOKUP(TEXT($A$3,"0000"),MEM_W!$A$3:$O$501,7,FALSE),0) -> 2024 | C9: =IFERROR((IF(OR(B9=0,B9="",B9="NA"),"NA",((IF(VLOOKUP($A$3,'G3-RW'!$A$6:$AM$500,3,FALSE)>=B9,"100% ("&VLOOKUP($A$3,'G3-RW'!$A$6:$AM$500,3,FALSE)&")",(ROUND((VLOOKUP($A$3,'G3-RW'!$A$6:$AM$500,3,FALSE)/B9*100),0))&"% ("&IF(VLOOKUP($A$3,'G3-RW'!$A$6:$AM$500,3,FALSE)="",0,VLOOKUP($A$3,'G3-RW'!$A$6:$AM$500,3,FALSE))&")"))))),"0% (0)") -> 95% (1926) | D9: =IFERROR((IF($C9="NA","NA",VLOOKUP($A$3,'G3-RW'!$A$6:$AM$501,4,FALSE))),"NA") -> 20.43245067 | E9: =IFERROR((IF($C9="NA","NA",VLOOKUP($A$3,'G3-RW'!$A$6:$AM$501,6,FALSE)&"% ("&IF(VLOOKUP($A$3,'G3-RW'!$A$6:$AM$501,5,FALSE)="",0,VLOOKUP($A$3,'G3-RW'!$A$6:$AM$501,5,FALSE))&")")),"NA") -> 51% (977) | F9: =IFERROR((IF($C9="NA","NA",VLOOKUP($A$3,'G3-RW'!$A$6:$AM$501,7,FALSE))),"NA") -> 4.452128764 | G9: =IFERROR((IF($C9="NA","NA",VLOOKUP($A$3,'G3-RW'!$A$6:$AM$501,9,FALSE)&"% ("&IF(VLOOKUP($A$3,'G3-RW'!$A$6:$AM$501,8,FALSE)="",0,VLOOKUP($A$3,'G3-RW'!$A$6:$AM$501,8,FALSE))&")")),"NA") -> 59% (1138) | H9: =IFERROR((IF($C9="NA","NA",VLOOKUP($A$3,'G3-RW'!$A$6:$AM$501,10,FALSE))),"NA") -> 10.99117342 | I9: =IFERROR((IF($C9="NA","NA",VLOOKUP($A$3,'G3-RW'!$A$6:$AM$501,12,FALSE)&"% ("&IF(VLOOKUP($A$3,'G3-RW'!$A$6:$AM$501,11,FALSE)="",0,VLOOKUP($A$3,'G3-RW'!$A$6:$AM$501,11,FALSE))&")")),"NA") -> 50% (954) | J9: =IFERROR((IF($C9="NA","NA",VLOOKUP($A$3,'G3-RW'!$A$6:$AM$501,13,FALSE))),"NA") -> 4.021547248 | K9: =IFERROR((IF($C9="NA","NA",VLOOKUP($A$3,'G3-RW'!$A$6:$AM$501,15,FALSE)&"% ("&IF(VLOOKUP($A$3,'G3-RW'!$A$6:$AM$501,14,FALSE)="",0,VLOOKUP($A$3,'G3-RW'!$A$6:$AM$501,14,FALSE))&")")),"NA") -> 46% (880) | L9: =IFERROR((IF($C9="NA","NA",VLOOKUP($A$3,'G3-RW'!$A$6:$AM$501,16,FALSE))),"NA") -> 0.968847352 | M9: =IFERROR((IF($C9="NA","NA",VLOOKUP($A$3,'G3-RW'!$A$6:$AM$501,18,FALSE)&"% ("&IF(VLOOKUP($A$3,'G3-RW'!$A$6:$AM$501,17,FALSE)="",0,VLOOKUP($A$3,'G3-RW'!$A$6:$AM$501,17,FALSE))&")")),"NA") -> 21% (406)
A10: Black | B10: =IFERROR(VLOOKUP(TEXT($A$3,"0000"),MEM_B!$A$3:$O$501,7,FALSE),0) -> 6132 | C10: =IFERROR((IF(OR(B10=0,B10="",B10="NA"),"NA",((IF(VLOOKUP($A$3,'G3-RB'!$A$6:$R$500,3,FALSE)>=B10,"100% ("&VLOOKUP($A$3,'G3-RB'!$A$6:$R$500,3,FALSE)&")",(ROUND((VLOOKUP($A$3,'G3-RB'!$A$6:$R$500,3,FALSE)/B10*100),0))&"% ("&IF(VLOOKUP($A$3,'G3-RB'!$A$6:$R$500,3,FALSE)="",0,VLOOKUP($A$3,'G3-RB'!$A$6:$R$500,3,FALSE))&")"))))),"0% (0)") -> 95% (5845) | D10: =IFERROR((IF($C10="NA","NA",VLOOKUP($A$3,'G3-RB'!$A$6:$AM$501,4,FALSE))),"NA") -> 15.52853721 | E10: =IFERROR((IF($C10="NA","NA",VLOOKUP($A$3,'G3-RB'!$A$6:$AM$501,6,FALSE)&"% ("&IF(VLOOKUP($A$3,'G3-RB'!$A$6:$AM$501,5,FALSE)="",0,VLOOKUP($A$3,'G3-RB'!$A$6:$AM$501,5,FALSE))&")")),"NA") -> 20% (1145) | F10: =IFERROR((IF($C10="NA","NA",VLOOKUP($A$3,'G3-RB'!$A$6:$AM$501,7,FALSE))),"NA") -> 3.413515825 | G10: =IFERROR((IF($C10="NA","NA",VLOOKUP($A$3,'G3-RB'!$A$6:$AM$501,9,FALSE)&"% ("&IF(VLOOKUP($A$3,'G3-RB'!$A$6:$AM$501,8,FALSE)="",0,VLOOKUP($A$3,'G3-RB'!$A$6:$AM$501,8,FALSE))&")")),"NA") -> 29% (1721) | H10: =IFERROR((IF($C10="NA","NA",VLOOKUP($A$3,'G3-RB'!$A$6:$AM$501,10,FALSE))),"NA") -> 8.527869974 | I10: =IFERROR((IF($C10="NA","NA",VLOOKUP($A$3,'G3-RB'!$A$6:$AM$501,12,FALSE)&"% ("&IF(VLOOKUP($A$3,'G3-RB'!$A$6:$AM$501,11,FALSE)="",0,VLOOKUP($A$3,'G3-RB'!$A$6:$AM$501,11,FALSE))&")")),"NA") -> 21% (1252) | J10: =IFERROR((IF($C10="NA","NA",VLOOKUP($A$3,'G3-RB'!$A$6:$AM$501,13,FALSE))),"NA") -> 2.852249786 | K10: =IFERROR((IF($C10="NA","NA",VLOOKUP($A$3,'G3-RB'!$A$6:$AM$501,15,FALSE)&"% ("&IF(VLOOKUP($A$3,'G3-RB'!$A$6:$AM$501,14,FALSE)="",0,VLOOKUP($A$3,'G3-RB'!$A$6:$AM$501,14,FALSE))&")")),"NA") -> 17% (1021) | L10: =IFERROR((IF($C10="NA","NA",VLOOKUP($A$3,'G3-RB'!$A$6:$AM$501,16,FALSE))),"NA") -> 0.7343370402 | M10: =IFERROR((IF($C10="NA","NA",VLOOKUP($A$3,'G3-RB'!$A$6:$AM$501,18,FALSE)&"% ("&IF(VLOOKUP($A$3,'G3-RB'!$A$6:$AM$501,17,FALSE)="",0,VLOOKUP($A$3,'G3-RB'!$A$6:$AM$501,17,FALSE))&")")),"NA") -> 12% (711)
A11: Hispanic | B11: =IFERROR(VLOOKUP(TEXT($A$3,"0000"),MEM_H!$A$3:$O$501,7,FALSE),0) -> 18017 | C11: =IFERROR((IF(OR(B11=0,B11="",B11="NA"),"NA",((IF(VLOOKUP($A$3,'G3-RH'!$A$6:$AM$500,3,FALSE)>=B11,"100% ("&VLOOKUP($A$3,'G3-RH'!$A$6:$AM$500,3,FALSE)&")",(ROUND((VLOOKUP($A$3,'G3-RH'!$A$6:$AM$500,3,FALSE)/B11*100),0))&"% ("&IF(VLOOKUP($A$3,'G3-RH'!$A$6:$AM$500,3,FALSE)="",0,VLOOKUP($A$3,'G3-RH'!$A$6:$AM$500,3,FALSE))&")"))))),"0% (0)") -> 95% (17192) | D11: =IFERROR((IF($C11="NA","NA",VLOOKUP($A$3,'G3-RH'!$A$6:$AM$501,4,FALSE))),"NA") -> 17.33288157 | E11: =IFERROR((IF($C11="NA","NA",VLOOKUP($A$3,'G3-RH'!$A$6:$AM$501,6,FALSE)&"% ("&IF(VLOOKUP($A$3,'G3-RH'!$A$6:$AM$501,5,FALSE)="",0,VLOOKUP($A$3,'G3-RH'!$A$6:$AM$501,5,FALSE))&")")),"NA") -> 30% (5233) | F11: =IFERROR((IF($C11="NA","NA",VLOOKUP($A$3,'G3-RH'!$A$6:$AM$501,7,FALSE))),"NA") -> 3.771335505 | G11: =IFERROR((IF($C11="NA","NA",VLOOKUP($A$3,'G3-RH'!$A$6:$AM$501,9,FALSE)&"% ("&IF(VLOOKUP($A$3,'G3-RH'!$A$6:$AM$501,8,FALSE)="",0,VLOOKUP($A$3,'G3-RH'!$A$6:$AM$501,8,FALSE))&")")),"NA") -> 40% (6901) | H11: =IFERROR((IF($C11="NA","NA",VLOOKUP($A$3,'G3-RH'!$A$6:$AM$501,10,FALSE))),"NA") -> 9.442851326 | I11: =IFERROR((IF($C11="NA","NA",VLOOKUP($A$3,'G3-RH'!$A$6:$AM$501,12,FALSE)&"% ("&IF(VLOOKUP($A$3,'G3-RH'!$A$6:$AM$501,11,FALSE)="",0,VLOOKUP($A$3,'G3-RH'!$A$6:$AM$501,11,FALSE))&")")),"NA") -> 31% (5404) | J11: =IFERROR((IF($C11="NA","NA",VLOOKUP($A$3,'G3-RH'!$A$6:$AM$501,13,FALSE))),"NA") -> 3.302303397 | K11: =IFERROR((IF($C11="NA","NA",VLOOKUP($A$3,'G3-RH'!$A$6:$AM$501,15,FALSE)&"% ("&IF(VLOOKUP($A$3,'G3-RH'!$A$6:$AM$501,14,FALSE)="",0,VLOOKUP($A$3,'G3-RH'!$A$6:$AM$501,14,FALSE))&")")),"NA") -> 27% (4681) | L11: =IFERROR((IF($C11="NA","NA",VLOOKUP($A$3,'G3-RH'!$A$6:$AM$501,16,FALSE))),"NA") -> 0.8183224756 | M11: =IFERROR((IF($C11="NA","NA",VLOOKUP($A$3,'G3-RH'!$A$6:$AM$501,18,FALSE)&"% ("&IF(VLOOKUP($A$3,'G3-RH'!$A$6:$AM$501,17,FALSE)="",0,VLOOKUP($A$3,'G3-RH'!$A$6:$AM$501,17,FALSE))&")")),"NA") -> 15% (2535)
A12: Asian | B12: =IFERROR(VLOOKUP(TEXT($A$3,"0000"),MEM_A!$A$3:$O$501,7,FALSE),0) -> 286 | C12: =IFERROR((IF(OR(B12=0,B12="",B12="NA"),"NA",((IF(VLOOKUP($A$3,'G3-RA'!$A$6:$AM$500,3,FALSE)>=B12,"100% ("&VLOOKUP($A$3,'G3-RA'!$A$6:$AM$500,3,FALSE)&")",(ROUND((VLOOKUP($A$3,'G3-RA'!$A$6:$AM$500,3,FALSE)/B12*100),0))&"% ("&IF(VLOOKUP($A$3,'G3-RA'!$A$6:$AM$500,3,FALSE)="",0,VLOOKUP($A$3,'G3-RA'!$A$6:$AM$500,3,FALSE))&")"))))),"0% (0)") -> 93% (265) | D12: =IFERROR((IF($C12="NA","NA",VLOOKUP($A$3,'G3-RA'!$A$6:$AM$501,4,FALSE))),"NA") -> 20.74943396 | E12: =IFERROR((IF($C12="NA","NA",VLOOKUP($A$3,'G3-RA'!$A$6:$AM$501,6,FALSE)&"% ("&IF(VLOOKUP($A$3,'G3-RA'!$A$6:$AM$501,5,FALSE)="",0,VLOOKUP($A$3,'G3-RA'!$A$6:$AM$501,5,FALSE))&")")),"NA") -> 54% (144) | F12: =IFERROR((IF($C12="NA","NA",VLOOKUP($A$3,'G3-RA'!$A$6:$AM$501,7,FALSE))),"NA") -> 4.509433962 | G12: =IFERROR((IF($C12="NA","NA",VLOOKUP($A$3,'G3-RA'!$A$6:$AM$501,9,FALSE)&"% ("&IF(VLOOKUP($A$3,'G3-RA'!$A$6:$AM$501,8,FALSE)="",0,VLOOKUP($A$3,'G3-RA'!$A$6:$AM$501,8,FALSE))&")")),"NA") -> 60% (158) | H12: =IFERROR((IF($C12="NA","NA",VLOOKUP($A$3,'G3-RA'!$A$6:$AM$501,10,FALSE))),"NA") -> 11.11207547 | I12: =IFERROR((IF($C12="NA","NA",VLOOKUP($A$3,'G3-RA'!$A$6:$AM$501,12,FALSE)&"% ("&IF(VLOOKUP($A$3,'G3-RA'!$A$6:$AM$501,11,FALSE)="",0,VLOOKUP($A$3,'G3-RA'!$A$6:$AM$501,11,FALSE))&")")),"NA") -> 51% (135) | J12: =IFERROR((IF($C12="NA","NA",VLOOKUP($A$3,'G3-RA'!$A$6:$AM$501,13,FALSE))),"NA") -> 4.080377358 | K12: =IFERROR((IF($C12="NA","NA",VLOOKUP($A$3,'G3-RA'!$A$6:$AM$501,15,FALSE)&"% ("&IF(VLOOKUP($A$3,'G3-RA'!$A$6:$AM$501,14,FALSE)="",0,VLOOKUP($A$3,'G3-RA'!$A$6:$AM$501,14,FALSE))&")")),"NA") -> 48% (126) | L12: =IFERROR((IF($C12="NA","NA",VLOOKUP($A$3,'G3-RA'!$A$6:$AM$501,16,FALSE))),"NA") -> 1.074716981 | M12: =IFERROR((IF($C12="NA","NA",VLOOKUP($A$3,'G3-RA'!$A$6:$AM$501,18,FALSE)&"% ("&IF(VLOOKUP($A$3,'G3-RA'!$A$6:$AM$501,17,FALSE)="",0,VLOOKUP($A$3,'G3-RA'!$A$6:$AM$501,17,FALSE))&")")),"NA") -> 28% (73)
A13: Am. Indian | B13: =IFERROR(VLOOKUP(TEXT($A$3,"0000"),MEM_I!$A$3:$O$501,7,FALSE),0) -> 10 | C13: =IFERROR((IF(OR(B13=0,B13="",B13="NA"),"NA",((IF(VLOOKUP($A$3,'G3-RI'!$A$6:$AM$500,3,FALSE)>=B13,"100% ("&VLOOKUP($A$3,'G3-RI'!$A$6:$AM$500,3,FALSE)&")",(ROUND((VLOOKUP($A$3,'G3-RI'!$A$6:$AM$500,3,FALSE)/B13*100),0))&"% ("&IF(VLOOKUP($A$3,'G3-RI'!$A$6:$AM$500,3,FALSE)="",0,VLOOKUP($A$3,'G3-RI'!$A$6:$AM$500,3,FALSE))&")"))))),"0% (0)") -> 100% (11) | D13: =IFERROR((IF($C13="NA","NA",VLOOKUP($A$3,'G3-RI'!$A$6:$AM$501,4,FALSE))),"NA") -> 19.27272727 | E13: =IFERROR((IF($C13="NA","NA",VLOOKUP($A$3,'G3-RI'!$A$6:$AM$501,6,FALSE)&"% ("&IF(VLOOKUP($A$3,'G3-RI'!$A$6:$AM$501,5,FALSE)="",0,VLOOKUP($A$3,'G3-RI'!$A$6:$AM$501,5,FALSE))&")")),"NA") -> 45% (5) | F13: =IFERROR((IF($C13="NA","NA",VLOOKUP($A$3,'G3-RI'!$A$6:$AM$501,7,FALSE))),"NA") -> 4.454545455 | G13: =IFERROR((IF($C13="NA","NA",VLOOKUP($A$3,'G3-RI'!$A$6:$AM$501,9,FALSE)&"% ("&IF(VLOOKUP($A$3,'G3-RI'!$A$6:$AM$501,8,FALSE)="",0,VLOOKUP($A$3,'G3-RI'!$A$6:$AM$501,8,FALSE))&")")),"NA") -> 55% (6) | H13: =IFERROR((IF($C13="NA","NA",VLOOKUP($A$3,'G3-RI'!$A$6:$AM$501,10,FALSE))),"NA") -> 10.18181818 | I13: =IFERROR((IF($C13="NA","NA",VLOOKUP($A$3,'G3-RI'!$A$6:$AM$501,12,FALSE)&"% ("&IF(VLOOKUP($A$3,'G3-RI'!$A$6:$AM$501,11,FALSE)="",0,VLOOKUP($A$3,'G3-RI'!$A$6:$AM$501,11,FALSE))&")")),"NA") -> 27% (3) | J13: =IFERROR((IF($C13="NA","NA",VLOOKUP($A$3,'G3-RI'!$A$6:$AM$501,13,FALSE))),"NA") -> 3.909090909 | K13: =IFERROR((IF($C13="NA","NA",VLOOKUP($A$3,'G3-RI'!$A$6:$AM$501,15,FALSE)&"% ("&IF(VLOOKUP($A$3,'G3-RI'!$A$6:$AM$501,14,FALSE)="",0,VLOOKUP($A$3,'G3-RI'!$A$6:$AM$501,14,FALSE))&")")),"NA") -> 45% (5) | L13: =IFERROR((IF($C13="NA","NA",VLOOKUP($A$3,'G3-RI'!$A$6:$AM$501,16,FALSE))),"NA") -> 0.7272727273 | M13: =IFERROR((IF($C13="NA","NA",VLOOKUP($A$3,'G3-RI'!$A$6:$AM$501,18,FALSE)&"% ("&IF(VLOOKUP($A$3,'G3-RI'!$A$6:$AM$501,17,FALSE)="",0,VLOOKUP($A$3,'G3-RI'!$A$6:$AM$501,17,FALSE))&")")),"NA") -> 9% (1)
A14: ED | B14: =IFERROR(VLOOKUP(TEXT($A$3,"0000"),MEM_ED!$A$3:$O$501,7,FALSE),0) -> 20956 | C14: =IFERROR((IF(OR(B14=0,B14="",B14="NA"),"NA",((IF(VLOOKUP($A$3,'G3-RED'!$A$6:$AM$500,3,FALSE)>=B14,"100% ("&VLOOKUP($A$3,'G3-RED'!$A$6:$AM$500,3,FALSE)&")",(ROUND((VLOOKUP($A$3,'G3-RED'!$A$6:$AM$500,3,FALSE)/B14*100),0))&"% ("&IF(VLOOKUP($A$3,'G3-RED'!$A$6:$AM$500,3,FALSE)="",0,VLOOKUP($A$3,'G3-RED'!$A$6:$AM$500,3,FALSE))&")"))))),"0% (0)") -> 97% (20263) | D14: =IFERROR((IF($C14="NA","NA",VLOOKUP($A$3,'G3-RED'!$A$6:$AM$501,4,FALSE))),"NA") -> 16.32166017 | E14: =IFERROR((IF($C14="NA","NA",VLOOKUP($A$3,'G3-RED'!$A$6:$AM$501,6,FALSE)&"% ("&IF(VLOOKUP($A$3,'G3-RED'!$A$6:$AM$501,5,FALSE)="",0,VLOOKUP($A$3,'G3-RED'!$A$6:$AM$501,5,FALSE))&")")),"NA") -> 24% (4908) | F14: =IFERROR((IF($C14="NA","NA",VLOOKUP($A$3,'G3-RED'!$A$6:$AM$501,7,FALSE))),"NA") -> 3.554226916 | G14: =IFERROR((IF($C14="NA","NA",VLOOKUP($A$3,'G3-RED'!$A$6:$AM$501,9,FALSE)&"% ("&IF(VLOOKUP($A$3,'G3-RED'!$A$6:$AM$501,8,FALSE)="",0,VLOOKUP($A$3,'G3-RED'!$A$6:$AM$501,8,FALSE))&")")),"NA") -> 34% (6940) | H14: =IFERROR((IF($C14="NA","NA",VLOOKUP($A$3,'G3-RED'!$A$6:$AM$501,10,FALSE))),"NA") -> 8.92265706 | I14: =IFERROR((IF($C14="NA","NA",VLOOKUP($A$3,'G3-RED'!$A$6:$AM$501,12,FALSE)&"% ("&IF(VLOOKUP($A$3,'G3-RED'!$A$6:$AM$501,11,FALSE)="",0,VLOOKUP($A$3,'G3-RED'!$A$6:$AM$501,11,FALSE))&")")),"NA") -> 26% (5172) | J14: =IFERROR((IF($C14="NA","NA",VLOOKUP($A$3,'G3-RED'!$A$6:$AM$501,13,FALSE))),"NA") -> 3.066229087 | K14: =IFERROR((IF($C14="NA","NA",VLOOKUP($A$3,'G3-RED'!$A$6:$AM$501,15,FALSE)&"% ("&IF(VLOOKUP($A$3,'G3-RED'!$A$6:$AM$501,14,FALSE)="",0,VLOOKUP($A$3,'G3-RED'!$A$6:$AM$501,14,FALSE))&")")),"NA") -> 22% (4455) | L14: =IFERROR((IF($C14="NA","NA",VLOOKUP($A$3,'G3-RED'!$A$6:$AM$501,16,FALSE))),"NA") -> 0.7749346099 | M14: =IFERROR((IF($C14="NA","NA",VLOOKUP($A$3,'G3-RED'!$A$6:$AM$501,18,FALSE)&"% ("&IF(VLOOKUP($A$3,'G3-RED'!$A$6:$AM$501,17,FALSE)="",0,VLOOKUP($A$3,'G3-RED'!$A$6:$AM$501,17,FALSE))&")")),"NA") -> 13% (2691)
A15: ELL | B15: =IFERROR(VLOOKUP(TEXT($A$3,"0000"),MEM_ELL!$A$3:$O$501,7,FALSE),0) -> 12419 | C15: =IFERROR((IF(OR(B15=0,B15="",B15="NA"),"NA",((IF(VLOOKUP($A$3,'G3-RELL'!$A$6:$AM$500,3,FALSE)>=B15,"100% ("&VLOOKUP($A$3,'G3-RELL'!$A$6:$AM$500,3,FALSE)&")",(ROUND((VLOOKUP($A$3,'G3-RELL'!$A$6:$AM$500,3,FALSE)/B15*100),0))&"% ("&IF(VLOOKUP($A$3,'G3-RELL'!$A$6:$AM$500,3,FALSE)="",0,VLOOKUP($A$3,'G3-RELL'!$A$6:$AM$500,3,FALSE))&")"))))),"0% (0)") -> 95% (11737) | D15: =IFERROR((IF($C15="NA","NA",VLOOKUP($A$3,'G3-RELL'!$A$6:$AM$501,4,FALSE))),"NA") -> 16.02538979 | E15: =IFERROR((IF($C15="NA","NA",VLOOKUP($A$3,'G3-RELL'!$A$6:$AM$501,6,FALSE)&"% ("&IF(VLOOKUP($A$3,'G3-RELL'!$A$6:$AM$501,5,FALSE)="",0,VLOOKUP($A$3,'G3-RELL'!$A$6:$AM$501,5,FALSE))&")")),"NA") -> 23% (2659) | F15: =IFERROR((IF($C15="NA","NA",VLOOKUP($A$3,'G3-RELL'!$A$6:$AM$501,7,FALSE))),"NA") -> 3.467495953 | G15: =IFERROR((IF($C15="NA","NA",VLOOKUP($A$3,'G3-RELL'!$A$6:$AM$501,9,FALSE)&"% ("&IF(VLOOKUP($A$3,'G3-RELL'!$A$6:$AM$501,8,FALSE)="",0,VLOOKUP($A$3,'G3-RELL'!$A$6:$AM$501,8,FALSE))&")")),"NA") -> 33% (3816) | H15: =IFERROR((IF($C15="NA","NA",VLOOKUP($A$3,'G3-RELL'!$A$6:$AM$501,10,FALSE))),"NA") -> 8.781289938 | I15: =IFERROR((IF($C15="NA","NA",VLOOKUP($A$3,'G3-RELL'!$A$6:$AM$501,12,FALSE)&"% ("&IF(VLOOKUP($A$3,'G3-RELL'!$A$6:$AM$501,11,FALSE)="",0,VLOOKUP($A$3,'G3-RELL'!$A$6:$AM$501,11,FALSE))&")")),"NA") -> 24% (2846) | J15: =IFERROR((IF($C15="NA","NA",VLOOKUP($A$3,'G3-RELL'!$A$6:$AM$501,13,FALSE))),"NA") -> 3.0132061 | K15: =IFERROR((IF($C15="NA","NA",VLOOKUP($A$3,'G3-RELL'!$A$6:$AM$501,15,FALSE)&"% ("&IF(VLOOKUP($A$3,'G3-RELL'!$A$6:$AM$501,14,FALSE)="",0,VLOOKUP($A$3,'G3-RELL'!$A$6:$AM$501,14,FALSE))&")")),"NA") -> 21% (2407) | L15: =IFERROR((IF($C15="NA","NA",VLOOKUP($A$3,'G3-RELL'!$A$6:$AM$501,16,FALSE))),"NA") -> 0.7633978018 | M15: =IFERROR((IF($C15="NA","NA",VLOOKUP($A$3,'G3-RELL'!$A$6:$AM$501,18,FALSE)&"% ("&IF(VLOOKUP($A$3,'G3-RELL'!$A$6:$AM$501,17,FALSE)="",0,VLOOKUP($A$3,'G3-RELL'!$A$6:$AM$501,17,FALSE))&")")),"NA") -> 13% (1494)
A16: SWD | B16: =IFERROR(VLOOKUP(TEXT($A$3,"0000"),MEM_SWD!$A$3:$O$501,7,FALSE),0) -> 2233 | C16: =IFERROR((IF(OR(B16=0,B16="",B16="NA"),"NA",((IF(VLOOKUP($A$3,'G3-RSWD'!$A$6:$AM$500,3,FALSE)>=B16,"100% ("&VLOOKUP($A$3,'G3-RSWD'!$A$6:$AM$500,3,FALSE)&")",(ROUND((VLOOKUP($A$3,'G3-RSWD'!$A$6:$AM$500,3,FALSE)/B16*100),0))&"% ("&IF(VLOOKUP($A$3,'G3-RSWD'!$A$6:$AM$500,3,FALSE)="",0,VLOOKUP($A$3,'G3-RSWD'!$A$6:$AM$500,3,FALSE))&")"))))),"0% (0)") -> 92% (2047) | D16: =IFERROR((IF($C16="NA","NA",VLOOKUP($A$3,'G3-RSWD'!$A$6:$AM$501,4,FALSE))),"NA") -> 12.26497313 | E16: =IFERROR((IF($C16="NA","NA",VLOOKUP($A$3,'G3-RSWD'!$A$6:$AM$501,6,FALSE)&"% ("&IF(VLOOKUP($A$3,'G3-RSWD'!$A$6:$AM$501,5,FALSE)="",0,VLOOKUP($A$3,'G3-RSWD'!$A$6:$AM$501,5,FALSE))&")")),"NA") -> 8% (166) | F16: =IFERROR((IF($C16="NA","NA",VLOOKUP($A$3,'G3-RSWD'!$A$6:$AM$501,7,FALSE))),"NA") -> 2.660576453 | G16: =IFERROR((IF($C16="NA","NA",VLOOKUP($A$3,'G3-RSWD'!$A$6:$AM$501,9,FALSE)&"% ("&IF(VLOOKUP($A$3,'G3-RSWD'!$A$6:$AM$501,8,FALSE)="",0,VLOOKUP($A$3,'G3-RSWD'!$A$6:$AM$501,8,FALSE))&")")),"NA") -> 14% (284) | H16: =IFERROR((IF($C16="NA","NA",VLOOKUP($A$3,'G3-RSWD'!$A$6:$AM$501,10,FALSE))),"NA") -> 6.723302394 | I16: =IFERROR((IF($C16="NA","NA",VLOOKUP($A$3,'G3-RSWD'!$A$6:$AM$501,12,FALSE)&"% ("&IF(VLOOKUP($A$3,'G3-RSWD'!$A$6:$AM$501,11,FALSE)="",0,VLOOKUP($A$3,'G3-RSWD'!$A$6:$AM$501,11,FALSE))&")")),"NA") -> 9% (185) | J16: =IFERROR((IF($C16="NA","NA",VLOOKUP($A$3,'G3-RSWD'!$A$6:$AM$501,13,FALSE))),"NA") -> 2.25828041 | K16: =IFERROR((IF($C16="NA","NA",VLOOKUP($A$3,'G3-RSWD'!$A$6:$AM$501,15,FALSE)&"% ("&IF(VLOOKUP($A$3,'G3-RSWD'!$A$6:$AM$501,14,FALSE)="",0,VLOOKUP($A$3,'G3-RSWD'!$A$6:$AM$501,14,FALSE))&")")),"NA") -> 9% (192) | L16: =IFERROR((IF($C16="NA","NA",VLOOKUP($A$3,'G3-RSWD'!$A$6:$AM$501,16,FALSE))),"NA") -> 0.6322911578 | M16: =IFERROR((IF($C16="NA","NA",VLOOKUP($A$3,'G3-RSWD'!$A$6:$AM$501,18,FALSE)&"% ("&IF(VLOOKUP($A$3,'G3-RSWD'!$A$6:$AM$501,17,FALSE)="",0,VLOOKUP($A$3,'G3-RSWD'!$A$6:$AM$501,17,FALSE))&")")),"NA") -> 9% (191)
A17: Math - Grade 3
A18: Level of Proficiency at 70% or above | B18: Total # of Students | C18: % of Students Tested | D18: ='G3-5 Matrix'!C10&" ["&'G3-5 Matrix'!C11&"]" -> Overall [34] | F18: ='G3-5 Matrix'!D10&" ["&'G3-5 Matrix'!D11&"]" -> Number: Operations, Problems, & Statistics [15] | H18: ='G3-5 Matrix'!E10&" ["&'G3-5 Matrix'!E11&"]" -> Number: Fractions [3] | J18: ='G3-5 Matrix'!F10&" ["&'G3-5 Matrix'!F11&"]" -> Geometry and Measurement [16]
D19: Average Score | E19: % Proficient | F19: Average Score | G19: % Proficient | H19: Average Score | I19: % Proficient | J19: Average Score | K19: % Proficient
A20: All students | B20: =IFERROR(VLOOKUP(TEXT($A$3,"0000"),Mem_All!$A$3:$O$501,7,FALSE),0) -> 26784 | C20: =IFERROR((IF(OR(B20=0,B20="",B20="NA"),"NA",((IF(VLOOKUP($A$3,'G3-MALL'!$A$6:$AG$500,3,FALSE)>=B20,"100% ("&VLOOKUP($A$3,'G3-MALL'!$A$6:$AG$500,3,FALSE)&")",(ROUND((VLOOKUP($A$3,'G3-MALL'!$A$6:$AG$500,3,FALSE)/B20*100),0))&"% ("&IF(VLOOKUP($A$3,'G3-MALL'!$A$6:$AG$500,3,FALSE)="",0,VLOOKUP($A$3,'G3-MALL'!$A$6:$AG$500,3,FALSE))&")"))))),"0% (0)") -> 95% (25329) | D20: =IFERROR((IF($C20="NA","NA",VLOOKUP($A$3,'G3-MALL'!$A$6:$AM$500,4,FALSE))),"NA") -> 13.50372301 | E20: =IF($C20="NA","NA",VLOOKUP($A$3,'G3-MALL'!$A$6:$AM$500,6,FALSE)&"% ("&IF(VLOOKUP($A$3,'G3-MALL'!$A$6:$AM$500,5,FALSE)="",0,VLOOKUP($A$3,'G3-MALL'!$A$6:$AM$500,5,FALSE))&")") -> 2% (462) | F20: =IFERROR((IF($C20="NA","NA",VLOOKUP($A$3,'G3-MALL'!$A$6:$AM$500,13,FALSE))),"NA") -> 5.183307671 | G20: =IFERROR((IF($C20="NA","NA",ROUND(VLOOKUP($A$3,'G3-MALL'!$A$6:$AM$500,15,FALSE),0)&"% ("&IF(VLOOKUP($A$3,'G3-MALL'!$A$6:$AM$500,14,FALSE)="",0,VLOOKUP($A$3,'G3-MALL'!$A$6:$AM$500,14,FALSE))&")")),"NA") -> 2% (544) | H20: =IFERROR((IF($C20="NA","NA",VLOOKUP($A$3,'G3-MALL'!$A$6:$AM$500,10,FALSE))),"NA") -> 1.421528683 | I20: =IFERROR((IF($C20="NA","NA",ROUND(VLOOKUP($A$3,'G3-MALL'!$A$6:$AM$500,12,FALSE),0)&"% ("&IF(VLOOKUP($A$3,'G3-MALL'!$A$6:$AM$500,11,FALSE)="",0,VLOOKUP($A$3,'G3-MALL'!$A$6:$AM$500,11,FALSE))&")")),"NA") -> 11% (2710) | J20: =IFERROR((IF($C20="NA","NA",VLOOKUP($A$3,'G3-MALL'!$A$6:$AM$500,7,FALSE))),"NA") -> 6.905918118 | K20: =IFERROR((IF($C20="NA","NA",ROUND(VLOOKUP($A$3,'G3-MALL'!$A$6:$AM$500,9,FALSE),0)&"% ("&IF(VLOOKUP($A$3,'G3-MALL'!$A$6:$AM$500,8,FALSE)="",0,VLOOKUP($A$3,'G3-MALL'!$A$6:$AM$500,8,FALSE))&")")),"NA") -> 3% (733)
A21: White | B21: =IFERROR(VLOOKUP(TEXT($A$3,"0000"),MEM_W!$A$3:$O$501,7,FALSE),0) -> 2024 | C21: =IFERROR((IF(OR(B21=0,B21="",B21="NA"),"NA",((IF(VLOOKUP($A$3,'G3-MW'!$A$6:$AG$500,3,FALSE)>=B21,"100% ("&VLOOKUP($A$3,'G3-MW'!$A$6:$AG$500,3,FALSE)&")",(ROUND((VLOOKUP($A$3,'G3-MW'!$A$6:$AG$500,3,FALSE)/B21*100),0))&"% ("&IF(VLOOKUP($A$3,'G3-MW'!$A$6:$AG$500,3,FALSE)="",0,VLOOKUP($A$3,'G3-MW'!$A$6:$AG$500,3,FALSE))&")"))))),"0% (0)") -> 94% (1903) | D21: =IFERROR((IF($C21="NA","NA",VLOOKUP($A$3,'G3-MW'!$A$6:$AM$500,4,FALSE))),"NA") -> 15.71755123 | E21: =IFERROR((IF($C21="NA","NA",ROUND(VLOOKUP($A$3,'G3-MW'!$A$6:$AM$500,6,FALSE),0)&"% ("&IF(VLOOKUP($A$3,'G3-MW'!$A$6:$AM$500,5,FALSE)="",0,VLOOKUP($A$3,'G3-MW'!$A$6:$AM$500,5,FALSE))&")")),"NA") -> 5% (103) | F21: =IFERROR((IF($C21="NA","NA",VLOOKUP($A$3,'G3-MW'!$A$6:$AM$500,13,FALSE))),"NA") -> 6.280714661 | G21: =IFERROR((IF($C21="NA","NA",ROUND(VLOOKUP($A$3,'G3-MW'!$A$6:$AM$500,15,FALSE),0)&"% ("&IF(VLOOKUP($A$3,'G3-MW'!$A$6:$AM$500,14,FALSE)="",0,VLOOKUP($A$3,'G3-MW'!$A$6:$AM$500,14,FALSE))&")")),"NA") -> 6% (119) | H21: =IFERROR((IF($C21="NA","NA",VLOOKUP($A$3,'G3-MW'!$A$6:$AM$500,10,FALSE))),"NA") -> 1.616868103 | I21: =IFERROR((IF($C21="NA","NA",ROUND(VLOOKUP($A$3,'G3-MW'!$A$6:$AM$500,12,FALSE),0)&"% ("&IF(VLOOKUP($A$3,'G3-MW'!$A$6:$AM$500,11,FALSE)="",0,VLOOKUP($A$3,'G3-MW'!$A$6:$AM$500,11,FALSE))&")")),"NA") -> 14% (272) | J21: =IFERROR((IF($C21="NA","NA",VLOOKUP($A$3,'G3-MW'!$A$6:$AM$500,7,FALSE))),"NA") -> 7.816395166 | K21: =IFERROR((IF($C21="NA","NA",ROUND(VLOOKUP($A$3,'G3-MW'!$A$6:$AM$500,9,FALSE),0)&"% ("&IF(VLOOKUP($A$3,'G3-MW'!$A$6:$AM$500,8,FALSE)="",0,VLOOKUP($A$3,'G3-MW'!$A$6:$AM$500,8,FALSE))&")")),"NA") -> 7% (125)
A22: Black | B22: =IFERROR(VLOOKUP(TEXT($A$3,"0000"),MEM_B!$A$3:$O$501,7,FALSE),0) -> 6132 | C22: =IFERROR((IF(OR(B22=0,B22="",B22="NA"),"NA",((IF(VLOOKUP($A$3,'G3-MB'!$A$6:$AG$500,3,FALSE)>=B22,"100% ("&VLOOKUP($A$3,'G3-MB'!$A$6:$AG$500,3,FALSE)&")",(ROUND((VLOOKUP($A$3,'G3-MB'!$A$6:$AG$500,3,FALSE)/B22*100),0))&"% ("&IF(VLOOKUP($A$3,'G3-MB'!$A$6:$AG$500,3,FALSE)="",0,VLOOKUP($A$3,'G3-MB'!$A$6:$AG$500,3,FALSE))&")"))))),"0% (0)") -> 94% (5773) | D22: =IFERROR((IF($C22="NA","NA",VLOOKUP($A$3,'G3-MB'!$A$6:$AM$500,4,FALSE))),"NA") -> 12.23641088 | E22: =IFERROR((IF($C22="NA","NA",ROUND(VLOOKUP($A$3,'G3-MB'!$A$6:$AM$500,6,FALSE),0)&"% ("&IF(VLOOKUP($A$3,'G3-MB'!$A$6:$AM$500,5,FALSE)="",0,VLOOKUP($A$3,'G3-MB'!$A$6:$AM$500,5,FALSE))&")")),"NA") -> 1% (52) | F22: =IFERROR((IF($C22="NA","NA",VLOOKUP($A$3,'G3-MB'!$A$6:$AM$500,13,FALSE))),"NA") -> 4.588411571 | G22: =IFERROR((IF($C22="NA","NA",ROUND(VLOOKUP($A$3,'G3-MB'!$A$6:$AM$500,15,FALSE),0)&"% ("&IF(VLOOKUP($A$3,'G3-MB'!$A$6:$AM$500,14,FALSE)="",0,VLOOKUP($A$3,'G3-MB'!$A$6:$AM$500,14,FALSE))&")")),"NA") -> 1% (66) | H22: =IFERROR((IF($C22="NA","NA",VLOOKUP($A$3,'G3-MB'!$A$6:$AM$500,10,FALSE))),"NA") -> 1.29097523 | I22: =IFERROR((IF($C22="NA","NA",ROUND(VLOOKUP($A$3,'G3-MB'!$A$6:$AM$500,12,FALSE),0)&"% ("&IF(VLOOKUP($A$3,'G3-MB'!$A$6:$AM$500,11,FALSE)="",0,VLOOKUP($A$3,'G3-MB'!$A$6:$AM$500,11,FALSE))&")")),"NA") -> 8% (470) | J22: =IFERROR((IF($C22="NA","NA",VLOOKUP($A$3,'G3-MB'!$A$6:$AM$500,7,FALSE))),"NA") -> 6.357543738 | K22: =IFERROR((IF($C22="NA","NA",ROUND(VLOOKUP($A$3,'G3-MB'!$A$6:$AM$500,9,FALSE),0)&"% ("&IF(VLOOKUP($A$3,'G3-MB'!$A$6:$AM$500,8,FALSE)="",0,VLOOKUP($A$3,'G3-MB'!$A$6:$AM$500,8,FALSE))&")")),"NA") -> 2% (110)
A23: Hispanic | B23: =IFERROR(VLOOKUP(TEXT($A$3,"0000"),MEM_H!$A$3:$O$501,7,FALSE),0) -> 18017 | C23: =IFERROR((IF(OR(B23=0,B23="",B23="NA"),"NA",((IF(VLOOKUP($A$3,'G3-MH'!$A$6:$AG$500,3,FALSE)>=B23,"100% ("&VLOOKUP($A$3,'G3-MH'!$A$6:$AG$500,3,FALSE)&")",(ROUND((VLOOKUP($A$3,'G3-MH'!$A$6:$AG$500,3,FALSE)/B23*100),0))&"% ("&IF(VLOOKUP($A$3,'G3-MH'!$A$6:$AG$500,3,FALSE)="",0,VLOOKUP($A$3,'G3-MH'!$A$6:$AG$500,3,FALSE))&")"))))),"0% (0)") -> 95% (17077) | D23: =IFERROR((IF($C23="NA","NA",VLOOKUP($A$3,'G3-MH'!$A$6:$AM$500,4,FALSE))),"NA") -> 13.64158225 | E23: =IFERROR((IF($C23="NA","NA",ROUND(VLOOKUP($A$3,'G3-MH'!$A$6:$AM$500,6,FALSE),0)&"% ("&IF(VLOOKUP($A$3,'G3-MH'!$A$6:$AM$500,5,FALSE)="",0,VLOOKUP($A$3,'G3-MH'!$A$6:$AM$500,5,FALSE))&")")),"NA") -> 2% (272) | F23: =IFERROR((IF($C23="NA","NA",VLOOKUP($A$3,'G3-MH'!$A$6:$AM$500,13,FALSE))),"NA") -> 5.231117878 | G23: =IFERROR((IF($C23="NA","NA",ROUND(VLOOKUP($A$3,'G3-MH'!$A$6:$AM$500,15,FALSE),0)&"% ("&IF(VLOOKUP($A$3,'G3-MH'!$A$6:$AM$500,14,FALSE)="",0,VLOOKUP($A$3,'G3-MH'!$A$6:$AM$500,14,FALSE))&")")),"NA") -> 2% (320) | H23: =IFERROR((IF($C23="NA","NA",VLOOKUP($A$3,'G3-MH'!$A$6:$AM$500,10,FALSE))),"NA") -> 1.443251157 | I23: =IFERROR((IF($C23="NA","NA",ROUND(VLOOKUP($A$3,'G3-MH'!$A$6:$AM$500,12,FALSE),0)&"% ("&IF(VLOOKUP($A$3,'G3-MH'!$A$6:$AM$500,11,FALSE)="",0,VLOOKUP($A$3,'G3-MH'!$A$6:$AM$500,11,FALSE))&")")),"NA") -> 11% (1895) | J23: =IFERROR((IF($C23="NA","NA",VLOOKUP($A$3,'G3-MH'!$A$6:$AM$500,7,FALSE))),"NA") -> 6.968519061 | K23: =IFERROR((IF($C23="NA","NA",ROUND(VLOOKUP($A$3,'G3-MH'!$A$6:$AM$500,9,FALSE),0)&"% ("&IF(VLOOKUP($A$3,'G3-MH'!$A$6:$AM$500,8,FALSE)="",0,VLOOKUP($A$3,'G3-MH'!$A$6:$AM$500,8,FALSE))&")")),"NA") -> 3% (462)
A24: Asian | B24: =IFERROR(VLOOKUP(TEXT($A$3,"0000"),MEM_A!$A$3:$O$501,7,FALSE),0) -> 286 | C24: =IFERROR((IF(OR(B24=0,B24="",B24="NA"),"NA",((IF(VLOOKUP($A$3,'G3-MA'!$A$6:$AG$500,3,FALSE)>=B24,"100% ("&VLOOKUP($A$3,'G3-MA'!$A$6:$AG$500,3,FALSE)&")",(ROUND((VLOOKUP($A$3,'G3-MA'!$A$6:$AG$500,3,FALSE)/B24*100),0))&"% ("&IF(VLOOKUP($A$3,'G3-MA'!$A$6:$AG$500,3,FALSE)="",0,VLOOKUP($A$3,'G3-MA'!$A$6:$AG$500,3,FALSE))&")"))))),"0% (0)") -> 91% (260) | D24: =IFERROR((IF($C24="NA","NA",VLOOKUP($A$3,'G3-MA'!$A$6:$AM$500,4,FALSE))),"NA") -> 16.37346154 | E24: =IFERROR((IF($C24="NA","NA",ROUND(VLOOKUP($A$3,'G3-MA'!$A$6:$AM$500,6,FALSE),0)&"% ("&IF(VLOOKUP($A$3,'G3-MA'!$A$6:$AM$500,5,FALSE)="",0,VLOOKUP($A$3,'G3-MA'!$A$6:$AM$500,5,FALSE))&")")),"NA") -> 11% (28) | F24: =IFERROR((IF($C24="NA","NA",VLOOKUP($A$3,'G3-MA'!$A$6:$AM$500,13,FALSE))),"NA") -> 6.769230769 | G24: =IFERROR((IF($C24="NA","NA",ROUND(VLOOKUP($A$3,'G3-MA'!$A$6:$AM$500,15,FALSE),0)&"% ("&IF(VLOOKUP($A$3,'G3-MA'!$A$6:$AM$500,14,FALSE)="",0,VLOOKUP($A$3,'G3-MA'!$A$6:$AM$500,14,FALSE))&")")),"NA") -> 10% (27) | H24: =IFERROR((IF($C24="NA","NA",VLOOKUP($A$3,'G3-MA'!$A$6:$AM$500,10,FALSE))),"NA") -> 1.581923077 | I24: =IFERROR((IF($C24="NA","NA",ROUND(VLOOKUP($A$3,'G3-MA'!$A$6:$AM$500,12,FALSE),0)&"% ("&IF(VLOOKUP($A$3,'G3-MA'!$A$6:$AM$500,11,FALSE)="",0,VLOOKUP($A$3,'G3-MA'!$A$6:$AM$500,11,FALSE))&")")),"NA") -> 17% (44) | J24: =IFERROR((IF($C24="NA","NA",VLOOKUP($A$3,'G3-MA'!$A$6:$AM$500,7,FALSE))),"NA") -> 8.029615385 | K24: =IFERROR((IF($C24="NA","NA",ROUND(VLOOKUP($A$3,'G3-MA'!$A$6:$AM$500,9,FALSE),0)&"% ("&IF(VLOOKUP($A$3,'G3-MA'!$A$6:$AM$500,8,FALSE)="",0,VLOOKUP($A$3,'G3-MA'!$A$6:$AM$500,8,FALSE))&")")),"NA") -> 9% (24)
A25: Am. Indian | B25: =IFERROR(VLOOKUP(TEXT($A$3,"0000"),MEM_I!$A$3:$O$501,7,FALSE),0) -> 10 | C25: =IFERROR((IF(OR(B25=0,B25="",B25="NA"),"NA",((IF(VLOOKUP($A$3,'G3-MI'!$A$6:$AG$500,3,FALSE)>=B25,"100% ("&VLOOKUP($A$3,'G3-MI'!$A$6:$AG$500,3,FALSE)&")",(ROUND((VLOOKUP($A$3,'G3-MI'!$A$6:$AG$500,3,FALSE)/B25*100),0))&"% ("&IF(VLOOKUP($A$3,'G3-MI'!$A$6:$AG$500,3,FALSE)="",0,VLOOKUP($A$3,'G3-MI'!$A$6:$AG$500,3,FALSE))&")"))))),"0% (0)") -> 100% (10) | D25: =IFERROR((IF($C25="NA","NA",VLOOKUP($A$3,'G3-MI'!$A$6:$AM$500,4,FALSE))),"NA") -> 15 | E25: =IFERROR((IF($C25="NA","NA",ROUND(VLOOKUP($A$3,'G3-MI'!$A$6:$AM$500,6,FALSE),0)&"% ("&IF(VLOOKUP($A$3,'G3-MI'!$A$6:$AM$500,5,FALSE)="",0,VLOOKUP($A$3,'G3-MI'!$A$6:$AM$500,5,FALSE))&")")),"NA") -> 0% (0) | F25: =IFERROR((IF($C25="NA","NA",VLOOKUP($A$3,'G3-MI'!$A$6:$AM$500,13,FALSE))),"NA") -> 5.7 | G25: =IFERROR((IF($C25="NA","NA",ROUND(VLOOKUP($A$3,'G3-MI'!$A$6:$AM$500,15,FALSE),0)&"% ("&IF(VLOOKUP($A$3,'G3-MI'!$A$6:$AM$500,14,FALSE)="",0,VLOOKUP($A$3,'G3-MI'!$A$6:$AM$500,14,FALSE))&")")),"NA") -> 0% (0) | H25: =IFERROR((IF($C25="NA","NA",VLOOKUP($A$3,'G3-MI'!$A$6:$AM$500,10,FALSE))),"NA") -> 1.8 | I25: =IFERROR((IF($C25="NA","NA",ROUND(VLOOKUP($A$3,'G3-MI'!$A$6:$AM$500,12,FALSE),0)&"% ("&IF(VLOOKUP($A$3,'G3-MI'!$A$6:$AM$500,11,FALSE)="",0,VLOOKUP($A$3,'G3-MI'!$A$6:$AM$500,11,FALSE))&")")),"NA") -> 20% (2) | J25: =IFERROR((IF($C25="NA","NA",VLOOKUP($A$3,'G3-MI'!$A$6:$AM$500,7,FALSE))),"NA") -> 7.5 | K25: =IFERROR((IF($C25="NA","NA",ROUND(VLOOKUP($A$3,'G3-MI'!$A$6:$AM$500,9,FALSE),0)&"% ("&IF(VLOOKUP($A$3,'G3-MI'!$A$6:$AM$500,8,FALSE)="",0,VLOOKUP($A$3,'G3-MI'!$A$6:$AM$500,8,FALSE))&")")),"NA") -> 0% (0)
A26: ED | B26: =IFERROR(VLOOKUP(TEXT($A$3,"0000"),MEM_ED!$A$3:$O$501,7,FALSE),0) -> 20956 | C26: =IFERROR((IF(OR(B26=0,B26="",B26="NA"),"NA",((IF(VLOOKUP($A$3,'G3-MED'!$A$6:$AG$500,3,FALSE)>=B26,"100% ("&VLOOKUP($A$3,'G3-MED'!$A$6:$AG$500,3,FALSE)&")",(ROUND((VLOOKUP($A$3,'G3-MED'!$A$6:$AG$500,3,FALSE)/B26*100),0))&"% ("&IF(VLOOKUP($A$3,'G3-MED'!$A$6:$AG$500,3,FALSE)="",0,VLOOKUP($A$3,'G3-MED'!$A$6:$AG$500,3,FALSE))&")"))))),"0% (0)") -> 96% (20107) | D26: =IFERROR((IF($C26="NA","NA",VLOOKUP($A$3,'G3-MED'!$A$6:$AM$500,4,FALSE))),"NA") -> 12.97314368 | E26: =IFERROR((IF($C26="NA","NA",ROUND(VLOOKUP($A$3,'G3-MED'!$A$6:$AM$500,6,FALSE),0)&"% ("&IF(VLOOKUP($A$3,'G3-MED'!$A$6:$AM$500,5,FALSE)="",0,VLOOKUP($A$3,'G3-MED'!$A$6:$AM$500,5,FALSE))&")")),"NA") -> 1% (205) | F26: =IFERROR((IF($C26="NA","NA",VLOOKUP($A$3,'G3-MED'!$A$6:$AM$500,13,FALSE))),"NA") -> 4.917496394 | G26: =IFERROR((IF($C26="NA","NA",ROUND(VLOOKUP($A$3,'G3-MED'!$A$6:$AM$500,15,FALSE),0)&"% ("&IF(VLOOKUP($A$3,'G3-MED'!$A$6:$AM$500,14,FALSE)="",0,VLOOKUP($A$3,'G3-MED'!$A$6:$AM$500,14,FALSE))&")")),"NA") -> 1% (251) | H26: =IFERROR((IF($C26="NA","NA",VLOOKUP($A$3,'G3-MED'!$A$6:$AM$500,10,FALSE))),"NA") -> 1.374053812 | I26: =IFERROR((IF($C26="NA","NA",ROUND(VLOOKUP($A$3,'G3-MED'!$A$6:$AM$500,12,FALSE),0)&"% ("&IF(VLOOKUP($A$3,'G3-MED'!$A$6:$AM$500,11,FALSE)="",0,VLOOKUP($A$3,'G3-MED'!$A$6:$AM$500,11,FALSE))&")")),"NA") -> 10% (1930) | J26: =IFERROR((IF($C26="NA","NA",VLOOKUP($A$3,'G3-MED'!$A$6:$AM$500,7,FALSE))),"NA") -> 6.690799224 | K26: =IFERROR((IF($C26="NA","NA",ROUND(VLOOKUP($A$3,'G3-MED'!$A$6:$AM$500,9,FALSE),0)&"% ("&IF(VLOOKUP($A$3,'G3-MED'!$A$6:$AM$500,8,FALSE)="",0,VLOOKUP($A$3,'G3-MED'!$A$6:$AM$500,8,FALSE))&")")),"NA") -> 2% (449)
A27: ELL | B27: =IFERROR(VLOOKUP(TEXT($A$3,"0000"),MEM_ELL!$A$3:$O$501,7,FALSE),0) -> 12419 | C27: =IFERROR((IF(OR(B27=0,B27="",B27="NA"),"NA",((IF(VLOOKUP($A$3,'G3-MELL'!$A$6:$AG$500,3,FALSE)>=B27,"100% ("&VLOOKUP($A$3,'G3-MELL'!$A$6:$AG$500,3,FALSE)&")",(ROUND((VLOOKUP($A$3,'G3-MELL'!$A$6:$AG$500,3,FALSE)/B27*100),0))&"% ("&IF(VLOOKUP($A$3,'G3-MELL'!$A$6:$AG$500,3,FALSE)="",0,VLOOKUP($A$3,'G3-MELL'!$A$6:$AG$500,3,FALSE))&")"))))),"0% (0)") -> 94% (11643) | D27: =IFERROR((IF($C27="NA","NA",VLOOKUP($A$3,'G3-MELL'!$A$6:$AM$500,4,FALSE))),"NA") -> 13.01314094 | E27: =IFERROR((IF($C27="NA","NA",ROUND(VLOOKUP($A$3,'G3-MELL'!$A$6:$AM$500,6,FALSE),0)&"% ("&IF(VLOOKUP($A$3,'G3-MELL'!$A$6:$AM$500,5,FALSE)="",0,VLOOKUP($A$3,'G3-MELL'!$A$6:$AM$500,5,FALSE))&")")),"NA") -> 1% (106) | F27: =IFERROR((IF($C27="NA","NA",VLOOKUP($A$3,'G3-MELL'!$A$6:$AM$500,13,FALSE))),"NA") -> 4.936700163 | G27: =IFERROR((IF($C27="NA","NA",ROUND(VLOOKUP($A$3,'G3-MELL'!$A$6:$AM$500,15,FALSE),0)&"% ("&IF(VLOOKUP($A$3,'G3-MELL'!$A$6:$AM$500,14,FALSE)="",0,VLOOKUP($A$3,'G3-MELL'!$A$6:$AM$500,14,FALSE))&")")),"NA") -> 1% (111) | H27: =IFERROR((IF($C27="NA","NA",VLOOKUP($A$3,'G3-MELL'!$A$6:$AM$500,10,FALSE))),"NA") -> 1.379197801 | I27: =IFERROR((IF($C27="NA","NA",ROUND(VLOOKUP($A$3,'G3-MELL'!$A$6:$AM$500,12,FALSE),0)&"% ("&IF(VLOOKUP($A$3,'G3-MELL'!$A$6:$AM$500,11,FALSE)="",0,VLOOKUP($A$3,'G3-MELL'!$A$6:$AM$500,11,FALSE))&")")),"NA") -> 10% (1164) | J27: =IFERROR((IF($C27="NA","NA",VLOOKUP($A$3,'G3-MELL'!$A$6:$AM$500,7,FALSE))),"NA") -> 6.697242979 | K27: =IFERROR((IF($C27="NA","NA",ROUND(VLOOKUP($A$3,'G3-MELL'!$A$6:$AM$500,9,FALSE),0)&"% ("&IF(VLOOKUP($A$3,'G3-MELL'!$A$6:$AM$500,8,FALSE)="",0,VLOOKUP($A$3,'G3-MELL'!$A$6:$AM$500,8,FALSE))&")")),"NA") -> 2% (259)
A28: SWD | B28: =IFERROR(VLOOKUP(TEXT($A$3,"0000"),MEM_SWD!$A$3:$O$501,7,FALSE),0) -> 2233 | C28: =IFERROR((IF(OR(B28=0,B28="",B28="NA"),"NA",((IF(VLOOKUP($A$3,'G3-MSWD'!$A$6:$AG$500,3,FALSE)>=B28,"100% ("&VLOOKUP($A$3,'G3-MSWD'!$A$6:$AG$500,3,FALSE)&")",(ROUND((VLOOKUP($A$3,'G3-MSWD'!$A$6:$AG$500,3,FALSE)/B28*100),0))&"% ("&IF(VLOOKUP($A$3,'G3-MSWD'!$A$6:$AG$500,3,FALSE)="",0,VLOOKUP($A$3,'G3-MSWD'!$A$6:$AG$500,3,FALSE))&")"))))),"0% (0)") -> 90% (2003) | D28: =IFERROR((IF($C28="NA","NA",VLOOKUP($A$3,'G3-MSWD'!$A$6:$AM$500,4,FALSE))),"NA") -> 11.679331 | E28: =IFERROR((IF($C28="NA","NA",ROUND(VLOOKUP($A$3,'G3-MSWD'!$A$6:$AM$500,6,FALSE),0)&"% ("&IF(VLOOKUP($A$3,'G3-MSWD'!$A$6:$AM$500,5,FALSE)="",0,VLOOKUP($A$3,'G3-MSWD'!$A$6:$AM$500,5,FALSE))&")")),"NA") -> 1% (18) | F28: =IFERROR((IF($C28="NA","NA",VLOOKUP($A$3,'G3-MSWD'!$A$6:$AM$500,13,FALSE))),"NA") -> 4.415327009 | G28: =IFERROR((IF($C28="NA","NA",ROUND(VLOOKUP($A$3,'G3-MSWD'!$A$6:$AM$500,15,FALSE),0)&"% ("&IF(VLOOKUP($A$3,'G3-MSWD'!$A$6:$AM$500,14,FALSE)="",0,VLOOKUP($A$3,'G3-MSWD'!$A$6:$AM$500,14,FALSE))&")")),"NA") -> 0% (10) | H28: =IFERROR((IF($C28="NA","NA",VLOOKUP($A$3,'G3-MSWD'!$A$6:$AM$500,10,FALSE))),"NA") -> 1.285371942 | I28: =IFERROR((IF($C28="NA","NA",ROUND(VLOOKUP($A$3,'G3-MSWD'!$A$6:$AM$500,12,FALSE),0)&"% ("&IF(VLOOKUP($A$3,'G3-MSWD'!$A$6:$AM$500,11,FALSE)="",0,VLOOKUP($A$3,'G3-MSWD'!$A$6:$AM$500,11,FALSE))&")")),"NA") -> 9% (185) | J28: =IFERROR((IF($C28="NA","NA",VLOOKUP($A$3,'G3-MSWD'!$A$6:$AM$500,7,FALSE))),"NA") -> 5.988467299 | K28: =IFERROR((IF($C28="NA","NA",ROUND(VLOOKUP($A$3,'G3-MSWD'!$A$6:$AM$500,9,FALSE),0)&"% ("&IF(VLOOKUP($A$3,'G3-MSWD'!$A$6:$AM$500,8,FALSE)="",0,VLOOKUP($A$3,'G3-MSWD'!$A$6:$AM$500,8,FALSE))&")")),"NA") -> 2% (37)

Sheet Grade 4 Report
A2: Click here to return to the school and sheet selection interface
A3: ='Select School'!B3 -> 9999
A4: =TEXT(A3,"0000")&"-"&VLOOKUP(A3,SchList!$A$2:$B$504,2,FALSE) -> 9999-District
A5: Reading - Grade 4
A6: Level of Proficiency at 70% or above | B6: Total # of Students | C6: % of Students Tested | D6: ='G3-5 Matrix'!C2&" ["&'G3-5 Matrix'!C5&"]" -> Overall [43] | F6: ='G3-5 Matrix'!D2&" ["&'G3-5 Matrix'!D5&"]" -> Vocabulary [7] | H6: ='G3-5 Matrix'!E2&" ["&'G3-5 Matrix'!E5&"]" -> Reading Application [25] | J6: ='G3-5 Matrix'!F2&" ["&'G3-5 Matrix'!F5&"]" -> Literary Analysis Fiction/Nonfiction [6] | L6: ='G3-5 Matrix'!G2&" ["&'G3-5 Matrix'!G5&"]" -> Informational Text/ Research Process [5]
D7: Average Score | E7: % Proficient | F7: Average Score | G7: % Proficient | H7: Average Score | I7: % Proficient | J7: Average Score | K7: % Proficient | L7: Average Score | M7: % Proficient
A8: All students | B8: =IFERROR(VLOOKUP(TEXT($A$3,"0000"),Mem_All!$A$3:$O$501,8,FALSE),0) -> 25315 | C8: =IFERROR((IF(OR(B8=0,B8="",B8="NA"),"NA",((IF(VLOOKUP($A$3,'G4-RALL'!$A$6:$AM$500,3,FALSE)>=B8,"100% ("&VLOOKUP($A$3,'G4-RALL'!$A$6:$AM$500,3,FALSE)&")",(ROUND((VLOOKUP($A$3,'G4-RALL'!$A$6:$AM$500,3,FALSE)/B8*100),0))&"% ("&IF(VLOOKUP($A$3,'G4-RALL'!$A$6:$AM$500,3,FALSE)="",0,VLOOKUP($A$3,'G4-RALL'!$A$6:$AM$500,3,FALSE))&")"))))),"NA") -> 96% (24229) | D8: =IFERROR((IF($C8="NA","NA",VLOOKUP($A$3,'G4-RALL'!$A$6:$AM$500,4,FALSE))),"NA") -> 25.4711544 | E8: =IFERROR((IF($C8="NA","NA",ROUND(VLOOKUP($A$3,'G4-RALL'!$A$6:$AM$500,6,FALSE),0)&"% ("&IF(VLOOKUP($A$3,'G4-RALL'!$A$6:$AM$500,5,FALSE)="",0,VLOOKUP($A$3,'G4-RALL'!$A$6:$AM$500,5,FALSE))&")")),"NA") -> 33% (7968) | F8: =IFERROR((IF($C8="NA","NA",VLOOKUP($A$3,'G4-RALL'!$A$6:$AM$500,7,FALSE))),"NA") -> 4.472714516 | G8: =IFERROR((IF($C8="NA","NA",ROUND(VLOOKUP($A$3,'G4-RALL'!$A$6:$AM$500,9,FALSE),0)&"% ("&IF(VLOOKUP($A$3,'G4-RALL'!$A$6:$AM$500,8,FALSE)="",0,VLOOKUP($A$3,'G4-RALL'!$A$6:$AM$500,8,FALSE))&")")),"NA") -> 53% (12953) | H8: =IFERROR((IF($C8="NA","NA",VLOOKUP($A$3,'G4-RALL'!$A$6:$AM$500,10,FALSE))),"NA") -> 13.94154113 | I8: =IFERROR((IF($C8="NA","NA",ROUND(VLOOKUP($A$3,'G4-RALL'!$A$6:$AM$500,12,FALSE),0)&"% ("&IF(VLOOKUP($A$3,'G4-RALL'!$A$6:$AM$500,11,FALSE)="",0,VLOOKUP($A$3,'G4-RALL'!$A$6:$AM$500,11,FALSE))&")")),"NA") -> 28% (6804) | J8: =IFERROR((IF($C8="NA","NA",VLOOKUP($A$3,'G4-RALL'!$A$6:$AM$500,13,FALSE))),"NA") -> 3.594077345 | K8: =IFERROR((IF($C8="NA","NA",ROUND(VLOOKUP($A$3,'G4-RALL'!$A$6:$AM$500,15,FALSE),0)&"% ("&IF(VLOOKUP($A$3,'G4-RALL'!$A$6:$AM$500,14,FALSE)="",0,VLOOKUP($A$3,'G4-RALL'!$A$6:$AM$500,14,FALSE))&")")),"NA") -> 33% (8016) | L8: =IFERROR((IF($C8="NA","NA",VLOOKUP($A$3,'G4-RALL'!$A$6:$AM$500,16,FALSE))),"NA") -> 3.451029758 | M8: =IFERROR((IF($C8="NA","NA",ROUND(VLOOKUP($A$3,'G4-RALL'!$A$6:$AM$500,18,FALSE),0)&"% ("&IF(VLOOKUP($A$3,'G4-RALL'!$A$6:$AM$500,17,FALSE)="",0,VLOOKUP($A$3,'G4-RALL'!$A$6:$AM$500,17,FALSE))&")")),"NA") -> 54% (13197)
A9: FCAT Level 1 | B9: =IFERROR(VLOOKUP(TEXT($A$3,"0000"),MEM_RL1!$A$3:$O$501,5,FALSE),0) -> 3573 | C9: =IFERROR((IF(OR(B9=0,B9="",B9="NA"),"NA",((IF(VLOOKUP($A$3,'G4-RL1'!$A$6:$AM$500,3,FALSE)>=B9,"100% ("&VLOOKUP($A$3,'G4-RL1'!$A$6:$AM$500,3,FALSE)&")",(ROUND((VLOOKUP($A$3,'G4-RL1'!$A$6:$AM$500,3,FALSE)/B9*100),0))&"% ("&IF(VLOOKUP($A$3,'G4-RL1'!$A$6:$AM$500,3,FALSE)="",0,VLOOKUP($A$3,'G4-RL1'!$A$6:$AM$500,3,FALSE))&")"))))),"NA") -> 96% (3432) | D9: =IFERROR((IF($C9="NA","NA",VLOOKUP($A$3,'G4-RL1'!$A$6:$AM$500,4,FALSE))),"NA") -> 15.35405012 | E9: =IFERROR((IF($C9="NA","NA",ROUND(VLOOKUP($A$3,'G4-RL1'!$A$6:$AM$500,6,FALSE),0)&"% ("&IF(VLOOKUP($A$3,'G4-RL1'!$A$6:$AM$500,5,FALSE)="",0,VLOOKUP($A$3,'G4-RL1'!$A$6:$AM$500,5,FALSE))&")")),"NA") -> 1% (18) | F9: =IFERROR((IF($C9="NA","NA",VLOOKUP($A$3,'G4-RL1'!$A$6:$AM$500,7,FALSE))),"NA") -> 2.713986014 | G9: =IFERROR((IF($C9="NA","NA",ROUND(VLOOKUP($A$3,'G4-RL1'!$A$6:$AM$500,9,FALSE),0)&"% ("&IF(VLOOKUP($A$3,'G4-RL1'!$A$6:$AM$500,8,FALSE)="",0,VLOOKUP($A$3,'G4-RL1'!$A$6:$AM$500,8,FALSE))&")")),"NA") -> 12% (419) | H9: =IFERROR((IF($C9="NA","NA",VLOOKUP($A$3,'G4-RL1'!$A$6:$AM$500,10,FALSE))),"NA") -> 8.473368298 | I9: =IFERROR((IF($C9="NA","NA",ROUND(VLOOKUP($A$3,'G4-RL1'!$A$6:$AM$500,12,FALSE),0)&"% ("&IF(VLOOKUP($A$3,'G4-RL1'!$A$6:$AM$500,11,FALSE)="",0,VLOOKUP($A$3,'G4-RL1'!$A$6:$AM$500,11,FALSE))&")")),"NA") -> 1% (20) | J9: =IFERROR((IF($C9="NA","NA",VLOOKUP($A$3,'G4-RL1'!$A$6:$AM$500,13,FALSE))),"NA") -> 2.063782051 | K9: =IFERROR((IF($C9="NA","NA",ROUND(VLOOKUP($A$3,'G4-RL1'!$A$6:$AM$500,15,FALSE),0)&"% ("&IF(VLOOKUP($A$3,'G4-RL1'!$A$6:$AM$500,14,FALSE)="",0,VLOOKUP($A$3,'G4-RL1'!$A$6:$AM$500,14,FALSE))&")")),"NA") -> 3% (109) | L9: =IFERROR((IF($C9="NA","NA",VLOOKUP($A$3,'G4-RL1'!$A$6:$AM$500,16,FALSE))),"NA") -> 2.109353147 | M9: =IFERROR((IF($C9="NA","NA",ROUND(VLOOKUP($A$3,'G4-RL1'!$A$6:$AM$500,18,FALSE),0)&"% ("&IF(VLOOKUP($A$3,'G4-RL1'!$A$6:$AM$500,17,FALSE)="",0,VLOOKUP($A$3,'G4-RL1'!$A$6:$AM$500,17,FALSE))&")")),"NA") -> 13% (456)
A10: FCAT Level 2 | B10: =IFERROR(VLOOKUP(TEXT($A$3,"0000"),MEM_RL2!$A$3:$O$501,5,FALSE),0) -> 6593 | C10: =IFERROR((IF(OR(B10=0,B10="",B10="NA"),"NA",((IF(VLOOKUP($A$3,'G4-RL2'!$A$6:$AM$500,3,FALSE)>=B10,"100% ("&VLOOKUP($A$3,'G4-RL2'!$A$6:$AM$500,3,FALSE)&")",(ROUND((VLOOKUP($A$3,'G4-RL2'!$A$6:$AM$500,3,FALSE)/B10*100),0))&"% ("&IF(VLOOKUP($A$3,'G4-RL2'!$A$6:$AM$500,3,FALSE)="",0,VLOOKUP($A$3,'G4-RL2'!$A$6:$AM$500,3,FALSE))&")"))))),"NA") -> 96% (6347) | D10: =IFERROR((IF($C10="NA","NA",VLOOKUP($A$3,'G4-RL2'!$A$6:$AM$500,4,FALSE))),"NA") -> 21.15637309 | E10: =IFERROR((IF($C10="NA","NA",ROUND(VLOOKUP($A$3,'G4-RL2'!$A$6:$AM$500,6,FALSE),0)&"% ("&IF(VLOOKUP($A$3,'G4-RL2'!$A$6:$AM$500,5,FALSE)="",0,VLOOKUP($A$3,'G4-RL2'!$A$6:$AM$500,5,FALSE))&")")),"NA") -> 5% (287) | F10: =IFERROR((IF($C10="NA","NA",VLOOKUP($A$3,'G4-RL2'!$A$6:$AM$500,7,FALSE))),"NA") -> 3.840097684 | G10: =IFERROR((IF($C10="NA","NA",ROUND(VLOOKUP($A$3,'G4-RL2'!$A$6:$AM$500,9,FALSE),0)&"% ("&IF(VLOOKUP($A$3,'G4-RL2'!$A$6:$AM$500,8,FALSE)="",0,VLOOKUP($A$3,'G4-RL2'!$A$6:$AM$500,8,FALSE))&")")),"NA") -> 34% (2183) | H10: =IFERROR((IF($C10="NA","NA",VLOOKUP($A$3,'G4-RL2'!$A$6:$AM$500,10,FALSE))),"NA") -> 11.38580432 | I10: =IFERROR((IF($C10="NA","NA",ROUND(VLOOKUP($A$3,'G4-RL2'!$A$6:$AM$500,12,FALSE),0)&"% ("&IF(VLOOKUP($A$3,'G4-RL2'!$A$6:$AM$500,11,FALSE)="",0,VLOOKUP($A$3,'G4-RL2'!$A$6:$AM$500,11,FALSE))&")")),"NA") -> 5% (295) | J10: =IFERROR((IF($C10="NA","NA",VLOOKUP($A$3,'G4-RL2'!$A$6:$AM$500,13,FALSE))),"NA") -> 2.853631637 | K10: =IFERROR((IF($C10="NA","NA",ROUND(VLOOKUP($A$3,'G4-RL2'!$A$6:$AM$500,15,FALSE),0)&"% ("&IF(VLOOKUP($A$3,'G4-RL2'!$A$6:$AM$500,14,FALSE)="",0,VLOOKUP($A$3,'G4-RL2'!$A$6:$AM$500,14,FALSE))&")")),"NA") -> 11% (679) | L10: =IFERROR((IF($C10="NA","NA",VLOOKUP($A$3,'G4-RL2'!$A$6:$AM$500,16,FALSE))),"NA") -> 3.086954467 | M10: =IFERROR((IF($C10="NA","NA",ROUND(VLOOKUP($A$3,'G4-RL2'!$A$6:$AM$500,18,FALSE),0)&"% ("&IF(VLOOKUP($A$3,'G4-RL2'!$A$6:$AM$500,17,FALSE)="",0,VLOOKUP($A$3,'G4-RL2'!$A$6:$AM$500,17,FALSE))&")")),"NA") -> 38% (2425)
A11: FCAT Level 3 | B11: =IFERROR(VLOOKUP(TEXT($A$3,"0000"),MEM_RL3!$A$3:$O$501,5,FALSE),0) -> 5826 | C11: =IFERROR((IF(OR(B11=0,B11="",B11="NA"),"NA",((IF(VLOOKUP($A$3,'G4-RL3'!$A$6:$AM$500,3,FALSE)>=B11,"100% ("&VLOOKUP($A$3,'G4-RL3'!$A$6:$AM$500,3,FALSE)&")",(ROUND((VLOOKUP($A$3,'G4-RL3'!$A$6:$AM$500,3,FALSE)/B11*100),0))&"% ("&IF(VLOOKUP($A$3,'G4-RL3'!$A$6:$AM$500,3,FALSE)="",0,VLOOKUP($A$3,'G4-RL3'!$A$6:$AM$500,3,FALSE))&")"))))),"NA") -> 97% (5644) | D11: =IFERROR((IF($C11="NA","NA",VLOOKUP($A$3,'G4-RL3'!$A$6:$AM$500,4,FALSE))),"NA") -> 26.64424167 | E11: =IFERROR((IF($C11="NA","NA",ROUND(VLOOKUP($A$3,'G4-RL3'!$A$6:$AM$500,6,FALSE),0)&"% ("&IF(VLOOKUP($A$3,'G4-RL3'!$A$6:$AM$500,5,FALSE)="",0,VLOOKUP($A$3,'G4-RL3'!$A$6:$AM$500,5,FALSE))&")")),"NA") -> 27% (1525) | F11: =IFERROR((IF($C11="NA","NA",VLOOKUP($A$3,'G4-RL3'!$A$6:$AM$500,7,FALSE))),"NA") -> 4.685400425 | G11: =IFERROR((IF($C11="NA","NA",ROUND(VLOOKUP($A$3,'G4-RL3'!$A$6:$AM$500,9,FALSE),0)&"% ("&IF(VLOOKUP($A$3,'G4-RL3'!$A$6:$AM$500,8,FALSE)="",0,VLOOKUP($A$3,'G4-RL3'!$A$6:$AM$500,8,FALSE))&")")),"NA") -> 59% (3314) | H11: =IFERROR((IF($C11="NA","NA",VLOOKUP($A$3,'G4-RL3'!$A$6:$AM$500,10,FALSE))),"NA") -> 14.46171155 | I11: =IFERROR((IF($C11="NA","NA",ROUND(VLOOKUP($A$3,'G4-RL3'!$A$6:$AM$500,12,FALSE),0)&"% ("&IF(VLOOKUP($A$3,'G4-RL3'!$A$6:$AM$500,11,FALSE)="",0,VLOOKUP($A$3,'G4-RL3'!$A$6:$AM$500,11,FALSE))&")")),"NA") -> 22% (1231) | J11: =IFERROR((IF($C11="NA","NA",VLOOKUP($A$3,'G4-RL3'!$A$6:$AM$500,13,FALSE))),"NA") -> 3.788678242 | K11: =IFERROR((IF($C11="NA","NA",ROUND(VLOOKUP($A$3,'G4-RL3'!$A$6:$AM$500,15,FALSE),0)&"% ("&IF(VLOOKUP($A$3,'G4-RL3'!$A$6:$AM$500,14,FALSE)="",0,VLOOKUP($A$3,'G4-RL3'!$A$6:$AM$500,14,FALSE))&")")),"NA") -> 32% (1799) | L11: =IFERROR((IF($C11="NA","NA",VLOOKUP($A$3,'G4-RL3'!$A$6:$AM$500,16,FALSE))),"NA") -> 3.704872431 | M11: =IFERROR((IF($C11="NA","NA",ROUND(VLOOKUP($A$3,'G4-RL3'!$A$6:$AM$500,18,FALSE),0)&"% ("&IF(VLOOKUP($A$3,'G4-RL3'!$A$6:$AM$500,17,FALSE)="",0,VLOOKUP($A$3,'G4-RL3'!$A$6:$AM$500,17,FALSE))&")")),"NA") -> 61% (3454)
A12: FCAT Level 4 | B12: =IFERROR(VLOOKUP(TEXT($A$3,"0000"),MEM_RL4!$A$3:$O$501,5,FALSE),0) -> 5467 | C12: =IFERROR((IF(OR(B12=0,B12="",B12="NA"),"NA",((IF(VLOOKUP($A$3,'G4-RL4'!$A$6:$AM$500,3,FALSE)>=B12,"100% ("&VLOOKUP($A$3,'G4-RL4'!$A$6:$AM$500,3,FALSE)&")",(ROUND((VLOOKUP($A$3,'G4-RL4'!$A$6:$AM$500,3,FALSE)/B12*100),0))&"% ("&IF(VLOOKUP($A$3,'G4-RL4'!$A$6:$AM$500,3,FALSE)="",0,VLOOKUP($A$3,'G4-RL4'!$A$6:$AM$500,3,FALSE))&")"))))),"NA") -> 96% (5261) | D12: =IFERROR((IF($C12="NA","NA",VLOOKUP($A$3,'G4-RL4'!$A$6:$AM$500,4,FALSE))),"NA") -> 31.93850979 | E12: =IFERROR((IF($C12="NA","NA",ROUND(VLOOKUP($A$3,'G4-RL4'!$A$6:$AM$500,6,FALSE),0)&"% ("&IF(VLOOKUP($A$3,'G4-RL4'!$A$6:$AM$500,5,FALSE)="",0,VLOOKUP($A$3,'G4-RL4'!$A$6:$AM$500,5,FALSE))&")")),"NA") -> 68% (3600) | F12: =IFERROR((IF($C12="NA","NA",VLOOKUP($A$3,'G4-RL4'!$A$6:$AM$500,7,FALSE))),"NA") -> 5.533472724 | G12: =IFERROR((IF($C12="NA","NA",ROUND(VLOOKUP($A$3,'G4-RL4'!$A$6:$AM$500,9,FALSE),0)&"% ("&IF(VLOOKUP($A$3,'G4-RL4'!$A$6:$AM$500,8,FALSE)="",0,VLOOKUP($A$3,'G4-RL4'!$A$6:$AM$500,8,FALSE))&")")),"NA") -> 82% (4297) | H12: =IFERROR((IF($C12="NA","NA",VLOOKUP($A$3,'G4-RL4'!$A$6:$AM$500,10,FALSE))),"NA") -> 17.59817525 | I12: =IFERROR((IF($C12="NA","NA",ROUND(VLOOKUP($A$3,'G4-RL4'!$A$6:$AM$500,12,FALSE),0)&"% ("&IF(VLOOKUP($A$3,'G4-RL4'!$A$6:$AM$500,11,FALSE)="",0,VLOOKUP($A$3,'G4-RL4'!$A$6:$AM$500,11,FALSE))&")")),"NA") -> 56% (2958) | J12: =IFERROR((IF($C12="NA","NA",VLOOKUP($A$3,'G4-RL4'!$A$6:$AM$500,13,FALSE))),"NA") -> 4.635886714 | K12: =IFERROR((IF($C12="NA","NA",ROUND(VLOOKUP($A$3,'G4-RL4'!$A$6:$AM$500,15,FALSE),0)&"% ("&IF(VLOOKUP($A$3,'G4-RL4'!$A$6:$AM$500,14,FALSE)="",0,VLOOKUP($A$3,'G4-RL4'!$A$6:$AM$500,14,FALSE))&")")),"NA") -> 59% (3114) | L12: =IFERROR((IF($C12="NA","NA",VLOOKUP($A$3,'G4-RL4'!$A$6:$AM$500,16,FALSE))),"NA") -> 4.176734461 | M12: =IFERROR((IF($C12="NA","NA",ROUND(VLOOKUP($A$3,'G4-RL4'!$A$6:$AM$500,18,FALSE),0)&"% ("&IF(VLOOKUP($A$3,'G4-RL4'!$A$6:$AM$500,17,FALSE)="",0,VLOOKUP($A$3,'G4-RL4'!$A$6:$AM$500,17,FALSE))&")")),"NA") -> 81% (4249)
A13: FCAT Level 5 | B13: =IFERROR(VLOOKUP(TEXT($A$3,"0000"),MEM_RL5!$A$3:$O$501,4,FALSE),0) -> 2646 | C13: =IFERROR((IF(OR(B13=0,B13="",B13="NA"),"NA",((IF(VLOOKUP($A$3,'G4-RL5'!$A$6:$AM$500,3,FALSE)>=B13,"100% ("&VLOOKUP($A$3,'G4-RL5'!$A$6:$AM$500,3,FALSE)&")",(ROUND((VLOOKUP($A$3,'G4-RL5'!$A$6:$AM$500,3,FALSE)/B13*100),0))&"% ("&IF(VLOOKUP($A$3,'G4-RL5'!$A$6:$AM$500,3,FALSE)="",0,VLOOKUP($A$3,'G4-RL5'!$A$6:$AM$500,3,FALSE))&")"))))),"NA") -> 97% (2564) | D13: =IFERROR((IF($C13="NA","NA",VLOOKUP($A$3,'G4-RL5'!$A$6:$AM$500,4,FALSE))),"NA") -> 35.80390016 | E13: =IFERROR((IF($C13="NA","NA",ROUND(VLOOKUP($A$3,'G4-RL5'!$A$6:$AM$500,6,FALSE),0)&"% ("&IF(VLOOKUP($A$3,'G4-RL5'!$A$6:$AM$500,5,FALSE)="",0,VLOOKUP($A$3,'G4-RL5'!$A$6:$AM$500,5,FALSE))&")")),"NA") -> 92% (2358) | F13: =IFERROR((IF($C13="NA","NA",VLOOKUP($A$3,'G4-RL5'!$A$6:$AM$500,7,FALSE))),"NA") -> 6.187051482 | G13: =IFERROR((IF($C13="NA","NA",ROUND(VLOOKUP($A$3,'G4-RL5'!$A$6:$AM$500,9,FALSE),0)&"% ("&IF(VLOOKUP($A$3,'G4-RL5'!$A$6:$AM$500,8,FALSE)="",0,VLOOKUP($A$3,'G4-RL5'!$A$6:$AM$500,8,FALSE))&")")),"NA") -> 94% (2421) | H13: =IFERROR((IF($C13="NA","NA",VLOOKUP($A$3,'G4-RL5'!$A$6:$AM$500,10,FALSE))),"NA") -> 19.95885335 | I13: =IFERROR((IF($C13="NA","NA",ROUND(VLOOKUP($A$3,'G4-RL5'!$A$6:$AM$500,12,FALSE),0)&"% ("&IF(VLOOKUP($A$3,'G4-RL5'!$A$6:$AM$500,11,FALSE)="",0,VLOOKUP($A$3,'G4-RL5'!$A$6:$AM$500,11,FALSE))&")")),"NA") -> 84% (2160) | J13: =IFERROR((IF($C13="NA","NA",VLOOKUP($A$3,'G4-RL5'!$A$6:$AM$500,13,FALSE))),"NA") -> 5.19949298 | K13: =IFERROR((IF($C13="NA","NA",ROUND(VLOOKUP($A$3,'G4-RL5'!$A$6:$AM$500,15,FALSE),0)&"% ("&IF(VLOOKUP($A$3,'G4-RL5'!$A$6:$AM$500,14,FALSE)="",0,VLOOKUP($A$3,'G4-RL5'!$A$6:$AM$500,14,FALSE))&")")),"NA") -> 82% (2106) | L13: =IFERROR((IF($C13="NA","NA",VLOOKUP($A$3,'G4-RL5'!$A$6:$AM$500,16,FALSE))),"NA") -> 4.458970359 | M13: =IFERROR((IF($C13="NA","NA",ROUND(VLOOKUP($A$3,'G4-RL5'!$A$6:$AM$500,18,FALSE),0)&"% ("&IF(VLOOKUP($A$3,'G4-RL5'!$A$6:$AM$500,17,FALSE)="",0,VLOOKUP($A$3,'G4-RL5'!$A$6:$AM$500,17,FALSE))&")")),"NA") -> 90% (2317)
A14: White | B14: =IFERROR(VLOOKUP(TEXT($A$3,"0000"),MEM_W!$A$3:$O$501,8,FALSE),0) -> 2170 | C14: =IFERROR((IF(OR(B14=0,B14="",B14="NA"),"NA",((IF(VLOOKUP($A$3,'G4-RW'!$A$6:$AM$500,3,FALSE)>=B14,"100% ("&VLOOKUP($A$3,'G4-RW'!$A$6:$AM$500,3,FALSE)&")",(ROUND((VLOOKUP($A$3,'G4-RW'!$A$6:$AM$500,3,FALSE)/B14*100),0))&"% ("&IF(VLOOKUP($A$3,'G4-RW'!$A$6:$AM$500,3,FALSE)="",0,VLOOKUP($A$3,'G4-RW'!$A$6:$AM$500,3,FALSE))&")"))))),"NA") -> 96% (2094) | D14: =IFERROR((IF($C14="NA","NA",VLOOKUP($A$3,'G4-RW'!$A$6:$AM$500,4,FALSE))),"NA") -> 29.35716332 | E14: =IFERROR((IF($C14="NA","NA",ROUND(VLOOKUP($A$3,'G4-RW'!$A$6:$AM$500,6,FALSE),0)&"% ("&IF(VLOOKUP($A$3,'G4-RW'!$A$6:$AM$500,5,FALSE)="",0,VLOOKUP($A$3,'G4-RW'!$A$6:$AM$500,5,FALSE))&")")),"NA") -> 53% (1117) | F14: =IFERROR((IF($C14="NA","NA",VLOOKUP($A$3,'G4-RW'!$A$6:$AM$500,7,FALSE))),"NA") -> 5.27913085 | G14: =IFERROR((IF($C14="NA","NA",ROUND(VLOOKUP($A$3,'G4-RW'!$A$6:$AM$500,9,FALSE),0)&"% ("&IF(VLOOKUP($A$3,'G4-RW'!$A$6:$AM$500,8,FALSE)="",0,VLOOKUP($A$3,'G4-RW'!$A$6:$AM$500,8,FALSE))&")")),"NA") -> 73% (1524) | H14: =IFERROR((IF($C14="NA","NA",VLOOKUP($A$3,'G4-RW'!$A$6:$AM$500,10,FALSE))),"NA") -> 16.04985673 | I14: =IFERROR((IF($C14="NA","NA",ROUND(VLOOKUP($A$3,'G4-RW'!$A$6:$AM$500,12,FALSE),0)&"% ("&IF(VLOOKUP($A$3,'G4-RW'!$A$6:$AM$500,11,FALSE)="",0,VLOOKUP($A$3,'G4-RW'!$A$6:$AM$500,11,FALSE))&")")),"NA") -> 45% (935) | J14: =IFERROR((IF($C14="NA","NA",VLOOKUP($A$3,'G4-RW'!$A$6:$AM$500,13,FALSE))),"NA") -> 4.214278892 | K14: =IFERROR((IF($C14="NA","NA",ROUND(VLOOKUP($A$3,'G4-RW'!$A$6:$AM$500,15,FALSE),0)&"% ("&IF(VLOOKUP($A$3,'G4-RW'!$A$6:$AM$500,14,FALSE)="",0,VLOOKUP($A$3,'G4-RW'!$A$6:$AM$500,14,FALSE))&")")),"NA") -> 50% (1054) | L14: =IFERROR((IF($C14="NA","NA",VLOOKUP($A$3,'G4-RW'!$A$6:$AM$500,16,FALSE))),"NA") -> 3.821060172 | M14: =IFERROR((IF($C14="NA","NA",ROUND(VLOOKUP($A$3,'G4-RW'!$A$6:$AM$500,18,FALSE),0)&"% ("&IF(VLOOKUP($A$3,'G4-RW'!$A$6:$AM$500,17,FALSE)="",0,VLOOKUP($A$3,'G4-RW'!$A$6:$AM$500,17,FALSE))&")")),"NA") -> 66% (1388)
A15: Black | B15: =IFERROR(VLOOKUP(TEXT($A$3,"0000"),MEM_B!$A$3:$O$501,8,FALSE),0) -> 5588 | C15: =IFERROR((IF(OR(B15=0,B15="",B15="NA"),"NA",((IF(VLOOKUP($A$3,'G4-RB'!$A$6:$AM$500,3,FALSE)>=B15,"100% ("&VLOOKUP($A$3,'G4-RB'!$A$6:$AM$500,3,FALSE)&")",(ROUND((VLOOKUP($A$3,'G4-RB'!$A$6:$AM$500,3,FALSE)/B15*100),0))&"% ("&IF(VLOOKUP($A$3,'G4-RB'!$A$6:$AM$500,3,FALSE)="",0,VLOOKUP($A$3,'G4-RB'!$A$6:$AM$500,3,FALSE))&")"))))),"NA") -> 95% (5289) | D15: =IFERROR((IF($C15="NA","NA",VLOOKUP($A$3,'G4-RB'!$A$6:$AM$500,4,FALSE))),"NA") -> 22.89635092 | E15: =IFERROR((IF($C15="NA","NA",ROUND(VLOOKUP($A$3,'G4-RB'!$A$6:$AM$500,6,FALSE),0)&"% ("&IF(VLOOKUP($A$3,'G4-RB'!$A$6:$AM$500,5,FALSE)="",0,VLOOKUP($A$3,'G4-RB'!$A$6:$AM$500,5,FALSE))&")")),"NA") -> 20% (1074) | F15: =IFERROR((IF($C15="NA","NA",VLOOKUP($A$3,'G4-RB'!$A$6:$AM$500,7,FALSE))),"NA") -> 4.121610891 | G15: =IFERROR((IF($C15="NA","NA",ROUND(VLOOKUP($A$3,'G4-RB'!$A$6:$AM$500,9,FALSE),0)&"% ("&IF(VLOOKUP($A$3,'G4-RB'!$A$6:$AM$500,8,FALSE)="",0,VLOOKUP($A$3,'G4-RB'!$A$6:$AM$500,8,FALSE))&")")),"NA") -> 45% (2354) | H15: =IFERROR((IF($C15="NA","NA",VLOOKUP($A$3,'G4-RB'!$A$6:$AM$500,10,FALSE))),"NA") -> 12.44291927 | I15: =IFERROR((IF($C15="NA","NA",ROUND(VLOOKUP($A$3,'G4-RB'!$A$6:$AM$500,12,FALSE),0)&"% ("&IF(VLOOKUP($A$3,'G4-RB'!$A$6:$AM$500,11,FALSE)="",0,VLOOKUP($A$3,'G4-RB'!$A$6:$AM$500,11,FALSE))&")")),"NA") -> 17% (895) | J15: =IFERROR((IF($C15="NA","NA",VLOOKUP($A$3,'G4-RB'!$A$6:$AM$500,13,FALSE))),"NA") -> 3.164019663 | K15: =IFERROR((IF($C15="NA","NA",ROUND(VLOOKUP($A$3,'G4-RB'!$A$6:$AM$500,15,FALSE),0)&"% ("&IF(VLOOKUP($A$3,'G4-RB'!$A$6:$AM$500,14,FALSE)="",0,VLOOKUP($A$3,'G4-RB'!$A$6:$AM$500,14,FALSE))&")")),"NA") -> 22% (1161) | L15: =IFERROR((IF($C15="NA","NA",VLOOKUP($A$3,'G4-RB'!$A$6:$AM$500,16,FALSE))),"NA") -> 3.164549064 | M15: =IFERROR((IF($C15="NA","NA",ROUND(VLOOKUP($A$3,'G4-RB'!$A$6:$AM$500,18,FALSE),0)&"% ("&IF(VLOOKUP($A$3,'G4-RB'!$A$6:$AM$500,17,FALSE)="",0,VLOOKUP($A$3,'G4-RB'!$A$6:$AM$500,17,FALSE))&")")),"NA") -> 44% (2348)
A16: Hispanic | B16: =IFERROR(VLOOKUP(TEXT($A$3,"0000"),MEM_H!$A$3:$O$501,8,FALSE),0) -> 17122 | C16: =IFERROR((IF(OR(B16=0,B16="",B16="NA"),"NA",((IF(VLOOKUP($A$3,'G4-RH'!$A$6:$AM$500,3,FALSE)>=B16,"100% ("&VLOOKUP($A$3,'G4-RH'!$A$6:$AM$500,3,FALSE)&")",(ROUND((VLOOKUP($A$3,'G4-RH'!$A$6:$AM$500,3,FALSE)/B16*100),0))&"% ("&IF(VLOOKUP($A$3,'G4-RH'!$A$6:$AM$500,3,FALSE)="",0,VLOOKUP($A$3,'G4-RH'!$A$6:$AM$500,3,FALSE))&")"))))),"NA") -> 96% (16435) | D16: =IFERROR((IF($C16="NA","NA",VLOOKUP($A$3,'G4-RH'!$A$6:$AM$500,4,FALSE))),"NA") -> 25.70104655 | E16: =IFERROR((IF($C16="NA","NA",ROUND(VLOOKUP($A$3,'G4-RH'!$A$6:$AM$500,6,FALSE),0)&"% ("&IF(VLOOKUP($A$3,'G4-RH'!$A$6:$AM$500,5,FALSE)="",0,VLOOKUP($A$3,'G4-RH'!$A$6:$AM$500,5,FALSE))&")")),"NA") -> 34% (5563) | F16: =IFERROR((IF($C16="NA","NA",VLOOKUP($A$3,'G4-RH'!$A$6:$AM$500,7,FALSE))),"NA") -> 4.466814725 | G16: =IFERROR((IF($C16="NA","NA",ROUND(VLOOKUP($A$3,'G4-RH'!$A$6:$AM$500,9,FALSE),0)&"% ("&IF(VLOOKUP($A$3,'G4-RH'!$A$6:$AM$500,8,FALSE)="",0,VLOOKUP($A$3,'G4-RH'!$A$6:$AM$500,8,FALSE))&")")),"NA") -> 53% (8783) | H16: =IFERROR((IF($C16="NA","NA",VLOOKUP($A$3,'G4-RH'!$A$6:$AM$500,10,FALSE))),"NA") -> 14.0994889 | I16: =IFERROR((IF($C16="NA","NA",ROUND(VLOOKUP($A$3,'G4-RH'!$A$6:$AM$500,12,FALSE),0)&"% ("&IF(VLOOKUP($A$3,'G4-RH'!$A$6:$AM$500,11,FALSE)="",0,VLOOKUP($A$3,'G4-RH'!$A$6:$AM$500,11,FALSE))&")")),"NA") -> 29% (4792) | J16: =IFERROR((IF($C16="NA","NA",VLOOKUP($A$3,'G4-RH'!$A$6:$AM$500,13,FALSE))),"NA") -> 3.641782781 | K16: =IFERROR((IF($C16="NA","NA",ROUND(VLOOKUP($A$3,'G4-RH'!$A$6:$AM$500,15,FALSE),0)&"% ("&IF(VLOOKUP($A$3,'G4-RH'!$A$6:$AM$500,14,FALSE)="",0,VLOOKUP($A$3,'G4-RH'!$A$6:$AM$500,14,FALSE))&")")),"NA") -> 34% (5596) | L16: =IFERROR((IF($C16="NA","NA",VLOOKUP($A$3,'G4-RH'!$A$6:$AM$500,16,FALSE))),"NA") -> 3.491067843 | M16: =IFERROR((IF($C16="NA","NA",ROUND(VLOOKUP($A$3,'G4-RH'!$A$6:$AM$500,18,FALSE),0)&"% ("&IF(VLOOKUP($A$3,'G4-RH'!$A$6:$AM$500,17,FALSE)="",0,VLOOKUP($A$3,'G4-RH'!$A$6:$AM$500,17,FALSE))&")")),"NA") -> 56% (9184)
A17: Asian | B17: =IFERROR(VLOOKUP(TEXT($A$3,"0000"),MEM_A!$A$3:$O$501,8,FALSE),0) -> 306 | C17: =IFERROR((IF(OR(B17=0,B17="",B17="NA"),"NA",((IF(VLOOKUP($A$3,'G4-RA'!$A$6:$AM$500,3,FALSE)>=B17,"100% ("&VLOOKUP($A$3,'G4-RA'!$A$6:$AM$500,3,FALSE)&")",(ROUND((VLOOKUP($A$3,'G4-RA'!$A$6:$AM$500,3,FALSE)/B17*100),0))&"% ("&IF(VLOOKUP($A$3,'G4-RA'!$A$6:$AM$500,3,FALSE)="",0,VLOOKUP($A$3,'G4-RA'!$A$6:$AM$500,3,FALSE))&")"))))),"NA") -> 93% (285) | D17: =IFERROR((IF($C17="NA","NA",VLOOKUP($A$3,'G4-RA'!$A$6:$AM$500,4,FALSE))),"NA") -> 30.4045614 | E17: =IFERROR((IF($C17="NA","NA",ROUND(VLOOKUP($A$3,'G4-RA'!$A$6:$AM$500,6,FALSE),0)&"% ("&IF(VLOOKUP($A$3,'G4-RA'!$A$6:$AM$500,5,FALSE)="",0,VLOOKUP($A$3,'G4-RA'!$A$6:$AM$500,5,FALSE))&")")),"NA") -> 55% (156) | F17: =IFERROR((IF($C17="NA","NA",VLOOKUP($A$3,'G4-RA'!$A$6:$AM$500,7,FALSE))),"NA") -> 5.338947368 | G17: =IFERROR((IF($C17="NA","NA",ROUND(VLOOKUP($A$3,'G4-RA'!$A$6:$AM$500,9,FALSE),0)&"% ("&IF(VLOOKUP($A$3,'G4-RA'!$A$6:$AM$500,8,FALSE)="",0,VLOOKUP($A$3,'G4-RA'!$A$6:$AM$500,8,FALSE))&")")),"NA") -> 74% (211) | H17: =IFERROR((IF($C17="NA","NA",VLOOKUP($A$3,'G4-RA'!$A$6:$AM$500,10,FALSE))),"NA") -> 16.81473684 | I17: =IFERROR((IF($C17="NA","NA",ROUND(VLOOKUP($A$3,'G4-RA'!$A$6:$AM$500,12,FALSE),0)&"% ("&IF(VLOOKUP($A$3,'G4-RA'!$A$6:$AM$500,11,FALSE)="",0,VLOOKUP($A$3,'G4-RA'!$A$6:$AM$500,11,FALSE))&")")),"NA") -> 49% (139) | J17: =IFERROR((IF($C17="NA","NA",VLOOKUP($A$3,'G4-RA'!$A$6:$AM$500,13,FALSE))),"NA") -> 4.356842105 | K17: =IFERROR((IF($C17="NA","NA",ROUND(VLOOKUP($A$3,'G4-RA'!$A$6:$AM$500,15,FALSE),0)&"% ("&IF(VLOOKUP($A$3,'G4-RA'!$A$6:$AM$500,14,FALSE)="",0,VLOOKUP($A$3,'G4-RA'!$A$6:$AM$500,14,FALSE))&")")),"NA") -> 53% (151) | L17: =IFERROR((IF($C17="NA","NA",VLOOKUP($A$3,'G4-RA'!$A$6:$AM$500,16,FALSE))),"NA") -> 3.906315789 | M17: =IFERROR((IF($C17="NA","NA",ROUND(VLOOKUP($A$3,'G4-RA'!$A$6:$AM$500,18,FALSE),0)&"% ("&IF(VLOOKUP($A$3,'G4-RA'!$A$6:$AM$500,17,FALSE)="",0,VLOOKUP($A$3,'G4-RA'!$A$6:$AM$500,17,FALSE))&")")),"NA") -> 67% (190)
A18: Am. Indian | B18: =IFERROR(VLOOKUP(TEXT($A$3,"0000"),MEM_I!$A$3:$O$501,8,FALSE),0) -> 16 | C18: =IFERROR((IF(OR(B18=0,B18="",B18="NA"),"NA",((IF(VLOOKUP($A$3,'G4-RI'!$A$6:$AM$500,3,FALSE)>=B18,"100% ("&VLOOKUP($A$3,'G4-RI'!$A$6:$AM$500,3,FALSE)&")",(ROUND((VLOOKUP($A$3,'G4-RI'!$A$6:$AM$500,3,FALSE)/B18*100),0))&"% ("&IF(VLOOKUP($A$3,'G4-RI'!$A$6:$AM$500,3,FALSE)="",0,VLOOKUP($A$3,'G4-RI'!$A$6:$AM$500,3,FALSE))&")"))))),"NA") -> 100% (16) | D18: =IFERROR((IF($C18="NA","NA",VLOOKUP($A$3,'G4-RI'!$A$6:$AM$500,4,FALSE))),"NA") -> 27.9375 | E18: =IFERROR((IF($C18="NA","NA",ROUND(VLOOKUP($A$3,'G4-RI'!$A$6:$AM$500,6,FALSE),0)&"% ("&IF(VLOOKUP($A$3,'G4-RI'!$A$6:$AM$500,5,FALSE)="",0,VLOOKUP($A$3,'G4-RI'!$A$6:$AM$500,5,FALSE))&")")),"NA") -> 38% (6) | F18: =IFERROR((IF($C18="NA","NA",VLOOKUP($A$3,'G4-RI'!$A$6:$AM$500,7,FALSE))),"NA") -> 5.0625 | G18: =IFERROR((IF($C18="NA","NA",ROUND(VLOOKUP($A$3,'G4-RI'!$A$6:$AM$500,9,FALSE),0)&"% ("&IF(VLOOKUP($A$3,'G4-RI'!$A$6:$AM$500,8,FALSE)="",0,VLOOKUP($A$3,'G4-RI'!$A$6:$AM$500,8,FALSE))&")")),"NA") -> 56% (9) | H18: =IFERROR((IF($C18="NA","NA",VLOOKUP($A$3,'G4-RI'!$A$6:$AM$500,10,FALSE))),"NA") -> 14.8125 | I18: =IFERROR((IF($C18="NA","NA",ROUND(VLOOKUP($A$3,'G4-RI'!$A$6:$AM$500,12,FALSE),0)&"% ("&IF(VLOOKUP($A$3,'G4-RI'!$A$6:$AM$500,11,FALSE)="",0,VLOOKUP($A$3,'G4-RI'!$A$6:$AM$500,11,FALSE))&")")),"NA") -> 25% (4) | J18: =IFERROR((IF($C18="NA","NA",VLOOKUP($A$3,'G4-RI'!$A$6:$AM$500,13,FALSE))),"NA") -> 4.0625 | K18: =IFERROR((IF($C18="NA","NA",ROUND(VLOOKUP($A$3,'G4-RI'!$A$6:$AM$500,15,FALSE),0)&"% ("&IF(VLOOKUP($A$3,'G4-RI'!$A$6:$AM$500,14,FALSE)="",0,VLOOKUP($A$3,'G4-RI'!$A$6:$AM$500,14,FALSE))&")")),"NA") -> 31% (5) | L18: =IFERROR((IF($C18="NA","NA",VLOOKUP($A$3,'G4-RI'!$A$6:$AM$500,16,FALSE))),"NA") -> 4 | M18: =IFERROR((IF($C18="NA","NA",ROUND(VLOOKUP($A$3,'G4-RI'!$A$6:$AM$500,18,FALSE),0)&"% ("&IF(VLOOKUP($A$3,'G4-RI'!$A$6:$AM$500,17,FALSE)="",0,VLOOKUP($A$3,'G4-RI'!$A$6:$AM$500,17,FALSE))&")")),"NA") -> 75% (12)
A19: ED | B19: =IFERROR(VLOOKUP(TEXT($A$3,"0000"),MEM_ED!$A$3:$O$501,8,FALSE),0) -> 19541 | C19: =IFERROR((IF(OR(B19=0,B19="",B19="NA"),"NA",((IF(VLOOKUP($A$3,'G4-RED'!$A$6:$AM$500,3,FALSE)>=B19,"100% ("&VLOOKUP($A$3,'G4-RED'!$A$6:$AM$500,3,FALSE)&")",(ROUND((VLOOKUP($A$3,'G4-RED'!$A$6:$AM$500,3,FALSE)/B19*100),0))&"% ("&IF(VLOOKUP($A$3,'G4-RED'!$A$6:$AM$500,3,FALSE)="",0,VLOOKUP($A$3,'G4-RED'!$A$6:$AM$500,3,FALSE))&")"))))),"NA") -> 97% (18968) | D19: =IFERROR((IF($C19="NA","NA",VLOOKUP($A$3,'G4-RED'!$A$6:$AM$500,4,FALSE))),"NA") -> 24.27212674 | E19: =IFERROR((IF($C19="NA","NA",ROUND(VLOOKUP($A$3,'G4-RED'!$A$6:$AM$500,6,FALSE),0)&"% ("&IF(VLOOKUP($A$3,'G4-RED'!$A$6:$AM$500,5,FALSE)="",0,VLOOKUP($A$3,'G4-RED'!$A$6:$AM$500,5,FALSE))&")")),"NA") -> 27% (5069) | F19: =IFERROR((IF($C19="NA","NA",VLOOKUP($A$3,'G4-RED'!$A$6:$AM$500,7,FALSE))),"NA") -> 4.257855335 | G19: =IFERROR((IF($C19="NA","NA",ROUND(VLOOKUP($A$3,'G4-RED'!$A$6:$AM$500,9,FALSE),0)&"% ("&IF(VLOOKUP($A$3,'G4-RED'!$A$6:$AM$500,8,FALSE)="",0,VLOOKUP($A$3,'G4-RED'!$A$6:$AM$500,8,FALSE))&")")),"NA") -> 48% (9133) | H19: =IFERROR((IF($C19="NA","NA",VLOOKUP($A$3,'G4-RED'!$A$6:$AM$500,10,FALSE))),"NA") -> 13.27245361 | I19: =IFERROR((IF($C19="NA","NA",ROUND(VLOOKUP($A$3,'G4-RED'!$A$6:$AM$500,12,FALSE),0)&"% ("&IF(VLOOKUP($A$3,'G4-RED'!$A$6:$AM$500,11,FALSE)="",0,VLOOKUP($A$3,'G4-RED'!$A$6:$AM$500,11,FALSE))&")")),"NA") -> 23% (4319) | J19: =IFERROR((IF($C19="NA","NA",VLOOKUP($A$3,'G4-RED'!$A$6:$AM$500,13,FALSE))),"NA") -> 3.408967735 | K19: =IFERROR((IF($C19="NA","NA",ROUND(VLOOKUP($A$3,'G4-RED'!$A$6:$AM$500,15,FALSE),0)&"% ("&IF(VLOOKUP($A$3,'G4-RED'!$A$6:$AM$500,14,FALSE)="",0,VLOOKUP($A$3,'G4-RED'!$A$6:$AM$500,14,FALSE))&")")),"NA") -> 28% (5286) | L19: =IFERROR((IF($C19="NA","NA",VLOOKUP($A$3,'G4-RED'!$A$6:$AM$500,16,FALSE))),"NA") -> 3.334547659 | M19: =IFERROR((IF($C19="NA","NA",ROUND(VLOOKUP($A$3,'G4-RED'!$A$6:$AM$500,18,FALSE),0)&"% ("&IF(VLOOKUP($A$3,'G4-RED'!$A$6:$AM$500,17,FALSE)="",0,VLOOKUP($A$3,'G4-RED'!$A$6:$AM$500,17,FALSE))&")")),"NA") -> 50% (9517)
A20: ELL | B20: =IFERROR(VLOOKUP(TEXT($A$3,"0000"),MEM_ELL!$A$3:$O$501,8,FALSE),0) -> 9739 | C20: =IFERROR((IF(OR(B20=0,B20="",B20="NA"),"NA",((IF(VLOOKUP($A$3,'G4-RELL'!$A$6:$AM$500,3,FALSE)>=B20,"100% ("&VLOOKUP($A$3,'G4-RELL'!$A$6:$AM$500,3,FALSE)&")",(ROUND((VLOOKUP($A$3,'G4-RELL'!$A$6:$AM$500,3,FALSE)/B20*100),0))&"% ("&IF(VLOOKUP($A$3,'G4-RELL'!$A$6:$AM$500,3,FALSE)="",0,VLOOKUP($A$3,'G4-RELL'!$A$6:$AM$500,3,FALSE))&")"))))),"NA") -> 95% (9211) | D20: =IFERROR((IF($C20="NA","NA",VLOOKUP($A$3,'G4-RELL'!$A$6:$AM$500,4,FALSE))),"NA") -> 22.41841277 | E20: =IFERROR((IF($C20="NA","NA",ROUND(VLOOKUP($A$3,'G4-RELL'!$A$6:$AM$500,6,FALSE),0)&"% ("&IF(VLOOKUP($A$3,'G4-RELL'!$A$6:$AM$500,5,FALSE)="",0,VLOOKUP($A$3,'G4-RELL'!$A$6:$AM$500,5,FALSE))&")")),"NA") -> 18% (1649) | F20: =IFERROR((IF($C20="NA","NA",VLOOKUP($A$3,'G4-RELL'!$A$6:$AM$500,7,FALSE))),"NA") -> 3.864184128 | G20: =IFERROR((IF($C20="NA","NA",ROUND(VLOOKUP($A$3,'G4-RELL'!$A$6:$AM$500,9,FALSE),0)&"% ("&IF(VLOOKUP($A$3,'G4-RELL'!$A$6:$AM$500,8,FALSE)="",0,VLOOKUP($A$3,'G4-RELL'!$A$6:$AM$500,8,FALSE))&")")),"NA") -> 38% (3485) | H20: =IFERROR((IF($C20="NA","NA",VLOOKUP($A$3,'G4-RELL'!$A$6:$AM$500,10,FALSE))),"NA") -> 12.3080013 | I20: =IFERROR((IF($C20="NA","NA",ROUND(VLOOKUP($A$3,'G4-RELL'!$A$6:$AM$500,12,FALSE),0)&"% ("&IF(VLOOKUP($A$3,'G4-RELL'!$A$6:$AM$500,11,FALSE)="",0,VLOOKUP($A$3,'G4-RELL'!$A$6:$AM$500,11,FALSE))&")")),"NA") -> 16% (1464) | J20: =IFERROR((IF($C20="NA","NA",VLOOKUP($A$3,'G4-RELL'!$A$6:$AM$500,13,FALSE))),"NA") -> 3.121702312 | K20: =IFERROR((IF($C20="NA","NA",ROUND(VLOOKUP($A$3,'G4-RELL'!$A$6:$AM$500,15,FALSE),0)&"% ("&IF(VLOOKUP($A$3,'G4-RELL'!$A$6:$AM$500,14,FALSE)="",0,VLOOKUP($A$3,'G4-RELL'!$A$6:$AM$500,14,FALSE))&")")),"NA") -> 21% (1944) | L20: =IFERROR((IF($C20="NA","NA",VLOOKUP($A$3,'G4-RELL'!$A$6:$AM$500,16,FALSE))),"NA") -> 3.124525024 | M20: =IFERROR((IF($C20="NA","NA",ROUND(VLOOKUP($A$3,'G4-RELL'!$A$6:$AM$500,18,FALSE),0)&"% ("&IF(VLOOKUP($A$3,'G4-RELL'!$A$6:$AM$500,17,FALSE)="",0,VLOOKUP($A$3,'G4-RELL'!$A$6:$AM$500,17,FALSE))&")")),"NA") -> 43% (3957)
A21: SWD | B21: =IFERROR(VLOOKUP(TEXT($A$3,"0000"),MEM_SWD!$A$3:$O$501,8,FALSE),0) -> 2335 | C21: =IFERROR((IF(OR(B21=0,B21="",B21="NA"),"NA",((IF(VLOOKUP($A$3,'G4-RSWD'!$A$6:$AM$500,3,FALSE)>=B21,"100% ("&VLOOKUP($A$3,'G4-RSWD'!$A$6:$AM$500,3,FALSE)&")",(ROUND((VLOOKUP($A$3,'G4-RSWD'!$A$6:$AM$500,3,FALSE)/B21*100),0))&"% ("&IF(VLOOKUP($A$3,'G4-RSWD'!$A$6:$AM$500,3,FALSE)="",0,VLOOKUP($A$3,'G4-RSWD'!$A$6:$AM$500,3,FALSE))&")"))))),"NA") -> 94% (2194) | D21: =IFERROR((IF($C21="NA","NA",VLOOKUP($A$3,'G4-RSWD'!$A$6:$AM$500,4,FALSE))),"NA") -> 18.45865998 | E21: =IFERROR((IF($C21="NA","NA",ROUND(VLOOKUP($A$3,'G4-RSWD'!$A$6:$AM$500,6,FALSE),0)&"% ("&IF(VLOOKUP($A$3,'G4-RSWD'!$A$6:$AM$500,5,FALSE)="",0,VLOOKUP($A$3,'G4-RSWD'!$A$6:$AM$500,5,FALSE))&")")),"NA") -> 8% (182) | F21: =IFERROR((IF($C21="NA","NA",VLOOKUP($A$3,'G4-RSWD'!$A$6:$AM$500,7,FALSE))),"NA") -> 3.195715588 | G21: =IFERROR((IF($C21="NA","NA",ROUND(VLOOKUP($A$3,'G4-RSWD'!$A$6:$AM$500,9,FALSE),0)&"% ("&IF(VLOOKUP($A$3,'G4-RSWD'!$A$6:$AM$500,8,FALSE)="",0,VLOOKUP($A$3,'G4-RSWD'!$A$6:$AM$500,8,FALSE))&")")),"NA") -> 23% (502) | H21: =IFERROR((IF($C21="NA","NA",VLOOKUP($A$3,'G4-RSWD'!$A$6:$AM$500,10,FALSE))),"NA") -> 10.10925251 | I21: =IFERROR((IF($C21="NA","NA",ROUND(VLOOKUP($A$3,'G4-RSWD'!$A$6:$AM$500,12,FALSE),0)&"% ("&IF(VLOOKUP($A$3,'G4-RSWD'!$A$6:$AM$500,11,FALSE)="",0,VLOOKUP($A$3,'G4-RSWD'!$A$6:$AM$500,11,FALSE))&")")),"NA") -> 7% (158) | J21: =IFERROR((IF($C21="NA","NA",VLOOKUP($A$3,'G4-RSWD'!$A$6:$AM$500,13,FALSE))),"NA") -> 2.617000912 | K21: =IFERROR((IF($C21="NA","NA",ROUND(VLOOKUP($A$3,'G4-RSWD'!$A$6:$AM$500,15,FALSE),0)&"% ("&IF(VLOOKUP($A$3,'G4-RSWD'!$A$6:$AM$500,14,FALSE)="",0,VLOOKUP($A$3,'G4-RSWD'!$A$6:$AM$500,14,FALSE))&")")),"NA") -> 13% (278) | L21: =IFERROR((IF($C21="NA","NA",VLOOKUP($A$3,'G4-RSWD'!$A$6:$AM$500,16,FALSE))),"NA") -> 2.549680948 | M21: =IFERROR((IF($C21="NA","NA",ROUND(VLOOKUP($A$3,'G4-RSWD'!$A$6:$AM$500,18,FALSE),0)&"% ("&IF(VLOOKUP($A$3,'G4-RSWD'!$A$6:$AM$500,17,FALSE)="",0,VLOOKUP($A$3,'G4-RSWD'!$A$6:$AM$500,17,FALSE))&")")),"NA") -> 27% (585)
A22: Math - Grade 4
A23: Level of Proficiency at 70% or above | B23: Total # of Students | C23: % of Students Tested | D23: ='G3-5 Matrix'!C13&" ["&'G3-5 Matrix'!C14&"]" -> Overall [34] | F23: ='G3-5 Matrix'!D13&" ["&'G3-5 Matrix'!D14&"]" -> Number: Operations & Problems [16] | H23: ='G3-5 Matrix'!E13&" ["&'G3-5 Matrix'!E14&"]" -> Number: Base Ten and Fractions [8] | J23: ='G3-5 Matrix'!F13&" ["&'G3-5 Matrix'!F14&"]" -> Geometry and Measurement [10]
D24: Average Score | E24: % Proficient | F24: Average Score | G24: % Proficient | H24: Average Score | I24: % Proficient | J24: Average Score | K24: % Proficient
A25: All students | B25: =IFERROR(VLOOKUP(TEXT($A$3,"0000"),Mem_All!$A$3:$O$501,8,FALSE),0) -> 25315 | C25: =IFERROR((IF(OR(B25=0,B25="",B25="NA"),"NA",((IF(VLOOKUP($A$3,'G4-MALL'!$A$6:$AM$500,3,FALSE)>=B25,"100% ("&VLOOKUP($A$3,'G4-MALL'!$A$6:$AM$500,3,FALSE)&")",(ROUND((VLOOKUP($A$3,'G4-MALL'!$A$6:$AM$500,3,FALSE)/B25*100),0))&"% ("&IF(VLOOKUP($A$3,'G4-MALL'!$A$6:$AM$500,3,FALSE)="",0,VLOOKUP($A$3,'G4-MALL'!$A$6:$AM$500,3,FALSE))&")"))))),"NA") -> 95% (24127) | D25: =IFERROR((IF($C25="NA","NA",VLOOKUP($A$3,'G4-MALL'!$A$6:$AM$500,4,FALSE))),"NA") -> 13.78580843 | E25: =IFERROR((IF($C25="NA","NA",ROUND(VLOOKUP($A$3,'G4-MALL'!$A$6:$AM$500,6,FALSE),0)&"% ("&IF(VLOOKUP($A$3,'G4-MALL'!$A$6:$AM$500,5,FALSE)="",0,VLOOKUP($A$3,'G4-MALL'!$A$6:$AM$500,5,FALSE))&")")),"NA") -> 4% (879) | F25: =IFERROR((IF($C25="NA","NA",VLOOKUP($A$3,'G4-MALL'!$A$6:$AM$500,10,FALSE))),"NA") -> 7.665897128 | G25: =IFERROR((IF($C25="NA","NA",ROUND(VLOOKUP($A$3,'G4-MALL'!$A$6:$AM$500,12,FALSE),0)&"% ("&IF(VLOOKUP($A$3,'G4-MALL'!$A$6:$AM$500,11,FALSE)="",0,VLOOKUP($A$3,'G4-MALL'!$A$6:$AM$500,11,FALSE))&")")),"NA") -> 12% (2836) | H25: =IFERROR((IF($C25="NA","NA",VLOOKUP($A$3,'G4-MALL'!$A$6:$AM$500,13,FALSE))),"NA") -> 2.431226427 | I25: =IFERROR((IF($C25="NA","NA",ROUND(VLOOKUP($A$3,'G4-MALL'!$A$6:$AM$500,15,FALSE),0)&"% ("&IF(VLOOKUP($A$3,'G4-MALL'!$A$6:$AM$500,14,FALSE)="",0,VLOOKUP($A$3,'G4-MALL'!$A$6:$AM$500,14,FALSE))&")")),"NA") -> 4% (951) | J25: =IFERROR((IF($C25="NA","NA",VLOOKUP($A$3,'G4-MALL'!$A$6:$AM$500,7,FALSE))),"NA") -> 3.685340075 | K25: =IFERROR((IF($C25="NA","NA",ROUND(VLOOKUP($A$3,'G4-MALL'!$A$6:$AM$500,9,FALSE),0)&"% ("&IF(VLOOKUP($A$3,'G4-MALL'!$A$6:$AM$500,8,FALSE)="",0,VLOOKUP($A$3,'G4-MALL'!$A$6:$AM$500,8,FALSE))&")")),"NA") -> 6% (1347)
A26: FCAT Level 1 | B26: =IFERROR(VLOOKUP(TEXT($A$3,"0000"),MEM_ML1!$A$3:$O$501,5,FALSE),0) -> 3313 | C26: =IFERROR((IF(OR(B26=0,B26="",B26="NA"),"NA",((IF(VLOOKUP($A$3,'G4-ML1'!$A$6:$AM$500,3,FALSE)>=B26,"100% ("&VLOOKUP($A$3,'G4-ML1'!$A$6:$AM$500,3,FALSE)&")",(ROUND((VLOOKUP($A$3,'G4-ML1'!$A$6:$AM$500,3,FALSE)/B26*100),0))&"% ("&IF(VLOOKUP($A$3,'G4-ML1'!$A$6:$AM$500,3,FALSE)="",0,VLOOKUP($A$3,'G4-ML1'!$A$6:$AM$500,3,FALSE))&")"))))),"NA") -> 95% (3148) | D26: =IFERROR((IF($C26="NA","NA",VLOOKUP($A$3,'G4-ML1'!$A$6:$AM$500,4,FALSE))),"NA") -> 9.427763659 | E26: =IFERROR((IF($C26="NA","NA",ROUND(VLOOKUP($A$3,'G4-ML1'!$A$6:$AM$500,6,FALSE),0)&"% ("&IF(VLOOKUP($A$3,'G4-ML1'!$A$6:$AM$500,5,FALSE)="",0,VLOOKUP($A$3,'G4-ML1'!$A$6:$AM$500,5,FALSE))&")")),"NA") -> 0% (1) | F26: =IFERROR((IF($C26="NA","NA",VLOOKUP($A$3,'G4-ML1'!$A$6:$AM$500,10,FALSE))),"NA") -> 4.787642948 | G26: =IFERROR((IF($C26="NA","NA",ROUND(VLOOKUP($A$3,'G4-ML1'!$A$6:$AM$500,12,FALSE),0)&"% ("&IF(VLOOKUP($A$3,'G4-ML1'!$A$6:$AM$500,11,FALSE)="",0,VLOOKUP($A$3,'G4-ML1'!$A$6:$AM$500,11,FALSE))&")")),"NA") -> 0% (7) | H26: =IFERROR((IF($C26="NA","NA",VLOOKUP($A$3,'G4-ML1'!$A$6:$AM$500,13,FALSE))),"NA") -> 1.915565438 | I26: =IFERROR((IF($C26="NA","NA",ROUND(VLOOKUP($A$3,'G4-ML1'!$A$6:$AM$500,15,FALSE),0)&"% ("&IF(VLOOKUP($A$3,'G4-ML1'!$A$6:$AM$500,14,FALSE)="",0,VLOOKUP($A$3,'G4-ML1'!$A$6:$AM$500,14,FALSE))&")")),"NA") -> 0% (8) | J26: =IFERROR((IF($C26="NA","NA",VLOOKUP($A$3,'G4-ML1'!$A$6:$AM$500,7,FALSE))),"NA") -> 2.732750953 | K26: =IFERROR((IF($C26="NA","NA",ROUND(VLOOKUP($A$3,'G4-ML1'!$A$6:$AM$500,9,FALSE),0)&"% ("&IF(VLOOKUP($A$3,'G4-ML1'!$A$6:$AM$500,8,FALSE)="",0,VLOOKUP($A$3,'G4-ML1'!$A$6:$AM$500,8,FALSE))&")")),"NA") -> 1% (23)
A27: FCAT Level 2 | B27: =IFERROR(VLOOKUP(TEXT($A$3,"0000"),MEM_ML2!$A$3:$O$501,5,FALSE),0) -> 5409 | C27: =IFERROR((IF(OR(B27=0,B27="",B27="NA"),"NA",((IF(VLOOKUP($A$3,'G4-ML2'!$A$6:$AM$500,3,FALSE)>=B27,"100% ("&VLOOKUP($A$3,'G4-ML2'!$A$6:$AM$500,3,FALSE)&")",(ROUND((VLOOKUP($A$3,'G4-ML2'!$A$6:$AM$500,3,FALSE)/B27*100),0))&"% ("&IF(VLOOKUP($A$3,'G4-ML2'!$A$6:$AM$500,3,FALSE)="",0,VLOOKUP($A$3,'G4-ML2'!$A$6:$AM$500,3,FALSE))&")"))))),"NA") -> 96% (5172) | D27: =IFERROR((IF($C27="NA","NA",VLOOKUP($A$3,'G4-ML2'!$A$6:$AM$500,4,FALSE))),"NA") -> 11.05344161 | E27: =IFERROR((IF($C27="NA","NA",ROUND(VLOOKUP($A$3,'G4-ML2'!$A$6:$AM$500,6,FALSE),0)&"% ("&IF(VLOOKUP($A$3,'G4-ML2'!$A$6:$AM$500,5,FALSE)="",0,VLOOKUP($A$3,'G4-ML2'!$A$6:$AM$500,5,FALSE))&")")),"NA") -> 0% (2) | F27: =IFERROR((IF($C27="NA","NA",VLOOKUP($A$3,'G4-ML2'!$A$6:$AM$500,10,FALSE))),"NA") -> 6.028016241 | G27: =IFERROR((IF($C27="NA","NA",ROUND(VLOOKUP($A$3,'G4-ML2'!$A$6:$AM$500,12,FALSE),0)&"% ("&IF(VLOOKUP($A$3,'G4-ML2'!$A$6:$AM$500,11,FALSE)="",0,VLOOKUP($A$3,'G4-ML2'!$A$6:$AM$500,11,FALSE))&")")),"NA") -> 1% (37) | H27: =IFERROR((IF($C27="NA","NA",VLOOKUP($A$3,'G4-ML2'!$A$6:$AM$500,13,FALSE))),"NA") -> 1.923047177 | I27: =IFERROR((IF($C27="NA","NA",ROUND(VLOOKUP($A$3,'G4-ML2'!$A$6:$AM$500,15,FALSE),0)&"% ("&IF(VLOOKUP($A$3,'G4-ML2'!$A$6:$AM$500,14,FALSE)="",0,VLOOKUP($A$3,'G4-ML2'!$A$6:$AM$500,14,FALSE))&")")),"NA") -> 0% (13) | J27: =IFERROR((IF($C27="NA","NA",VLOOKUP($A$3,'G4-ML2'!$A$6:$AM$500,7,FALSE))),"NA") -> 3.107559938 | K27: =IFERROR((IF($C27="NA","NA",ROUND(VLOOKUP($A$3,'G4-ML2'!$A$6:$AM$500,9,FALSE),0)&"% ("&IF(VLOOKUP($A$3,'G4-ML2'!$A$6:$AM$500,8,FALSE)="",0,VLOOKUP($A$3,'G4-ML2'!$A$6:$AM$500,8,FALSE))&")")),"NA") -> 1% (71)
A28: FCAT Level 3 | B28: =IFERROR(VLOOKUP(TEXT($A$3,"0000"),MEM_ML3!$A$3:$O$501,5,FALSE),0) -> 7725 | C28: =IFERROR((IF(OR(B28=0,B28="",B28="NA"),"NA",((IF(VLOOKUP($A$3,'G4-ML3'!$A$6:$AM$500,3,FALSE)>=B28,"100% ("&VLOOKUP($A$3,'G4-ML3'!$A$6:$AM$500,3,FALSE)&")",(ROUND((VLOOKUP($A$3,'G4-ML3'!$A$6:$AM$500,3,FALSE)/B28*100),0))&"% ("&IF(VLOOKUP($A$3,'G4-ML3'!$A$6:$AM$500,3,FALSE)="",0,VLOOKUP($A$3,'G4-ML3'!$A$6:$AM$500,3,FALSE))&")"))))),"NA") -> 96% (7423) | D28: =IFERROR((IF($C28="NA","NA",VLOOKUP($A$3,'G4-ML3'!$A$6:$AM$500,4,FALSE))),"NA") -> 13.54910414 | E28: =IFERROR((IF($C28="NA","NA",ROUND(VLOOKUP($A$3,'G4-ML3'!$A$6:$AM$500,6,FALSE),0)&"% ("&IF(VLOOKUP($A$3,'G4-ML3'!$A$6:$AM$500,5,FALSE)="",0,VLOOKUP($A$3,'G4-ML3'!$A$6:$AM$500,5,FALSE))&")")),"NA") -> 0% (35) | F28: =IFERROR((IF($C28="NA","NA",VLOOKUP($A$3,'G4-ML3'!$A$6:$AM$500,10,FALSE))),"NA") -> 7.689357403 | G28: =IFERROR((IF($C28="NA","NA",ROUND(VLOOKUP($A$3,'G4-ML3'!$A$6:$AM$500,12,FALSE),0)&"% ("&IF(VLOOKUP($A$3,'G4-ML3'!$A$6:$AM$500,11,FALSE)="",0,VLOOKUP($A$3,'G4-ML3'!$A$6:$AM$500,11,FALSE))&")")),"NA") -> 5% (384) | H28: =IFERROR((IF($C28="NA","NA",VLOOKUP($A$3,'G4-ML3'!$A$6:$AM$500,13,FALSE))),"NA") -> 2.231631416 | I28: =IFERROR((IF($C28="NA","NA",ROUND(VLOOKUP($A$3,'G4-ML3'!$A$6:$AM$500,15,FALSE),0)&"% ("&IF(VLOOKUP($A$3,'G4-ML3'!$A$6:$AM$500,14,FALSE)="",0,VLOOKUP($A$3,'G4-ML3'!$A$6:$AM$500,14,FALSE))&")")),"NA") -> 1% (83) | J28: =IFERROR((IF($C28="NA","NA",VLOOKUP($A$3,'G4-ML3'!$A$6:$AM$500,7,FALSE))),"NA") -> 3.628721541 | K28: =IFERROR((IF($C28="NA","NA",ROUND(VLOOKUP($A$3,'G4-ML3'!$A$6:$AM$500,9,FALSE),0)&"% ("&IF(VLOOKUP($A$3,'G4-ML3'!$A$6:$AM$500,8,FALSE)="",0,VLOOKUP($A$3,'G4-ML3'!$A$6:$AM$500,8,FALSE))&")")),"NA") -> 4% (268)
A29: FCAT Level 4 | B29: =IFERROR(VLOOKUP(TEXT($A$3,"0000"),MEM_ML4!$A$3:$O$501,5,FALSE),0) -> 4958 | C29: =IFERROR((IF(OR(B29=0,B29="",B29="NA"),"NA",((IF(VLOOKUP($A$3,'G4-ML4'!$A$6:$AM$500,3,FALSE)>=B29,"100% ("&VLOOKUP($A$3,'G4-ML4'!$A$6:$AM$500,3,FALSE)&")",(ROUND((VLOOKUP($A$3,'G4-ML4'!$A$6:$AM$500,3,FALSE)/B29*100),0))&"% ("&IF(VLOOKUP($A$3,'G4-ML4'!$A$6:$AM$500,3,FALSE)="",0,VLOOKUP($A$3,'G4-ML4'!$A$6:$AM$500,3,FALSE))&")"))))),"NA") -> 96% (4774) | D29: =IFERROR((IF($C29="NA","NA",VLOOKUP($A$3,'G4-ML4'!$A$6:$AM$500,4,FALSE))),"NA") -> 16.85984499 | E29: =IFERROR((IF($C29="NA","NA",ROUND(VLOOKUP($A$3,'G4-ML4'!$A$6:$AM$500,6,FALSE),0)&"% ("&IF(VLOOKUP($A$3,'G4-ML4'!$A$6:$AM$500,5,FALSE)="",0,VLOOKUP($A$3,'G4-ML4'!$A$6:$AM$500,5,FALSE))&")")),"NA") -> 4% (207) | F29: =IFERROR((IF($C29="NA","NA",VLOOKUP($A$3,'G4-ML4'!$A$6:$AM$500,10,FALSE))),"NA") -> 9.65215752 | G29: =IFERROR((IF($C29="NA","NA",ROUND(VLOOKUP($A$3,'G4-ML4'!$A$6:$AM$500,12,FALSE),0)&"% ("&IF(VLOOKUP($A$3,'G4-ML4'!$A$6:$AM$500,11,FALSE)="",0,VLOOKUP($A$3,'G4-ML4'!$A$6:$AM$500,11,FALSE))&")")),"NA") -> 22% (1041) | H29: =IFERROR((IF($C29="NA","NA",VLOOKUP($A$3,'G4-ML4'!$A$6:$AM$500,13,FALSE))),"NA") -> 2.884981148 | I29: =IFERROR((IF($C29="NA","NA",ROUND(VLOOKUP($A$3,'G4-ML4'!$A$6:$AM$500,15,FALSE),0)&"% ("&IF(VLOOKUP($A$3,'G4-ML4'!$A$6:$AM$500,14,FALSE)="",0,VLOOKUP($A$3,'G4-ML4'!$A$6:$AM$500,14,FALSE))&")")),"NA") -> 6% (275) | J29: =IFERROR((IF($C29="NA","NA",VLOOKUP($A$3,'G4-ML4'!$A$6:$AM$500,7,FALSE))),"NA") -> 4.332195224 | K29: =IFERROR((IF($C29="NA","NA",ROUND(VLOOKUP($A$3,'G4-ML4'!$A$6:$AM$500,9,FALSE),0)&"% ("&IF(VLOOKUP($A$3,'G4-ML4'!$A$6:$AM$500,8,FALSE)="",0,VLOOKUP($A$3,'G4-ML4'!$A$6:$AM$500,8,FALSE))&")")),"NA") -> 9% (427)
A30: FCAT Level 5 | B30: =IFERROR(VLOOKUP(TEXT($A$3,"0000"),MEM_ML5!$A$3:$M$501,5,FALSE),0) -> 2695 | C30: =IFERROR((IF(OR(B30=0,B30="",B30="NA"),"NA",((IF(VLOOKUP($A$3,'G4-ML5'!$A$6:$AM$500,3,FALSE)>=B30,"100% ("&VLOOKUP($A$3,'G4-ML5'!$A$6:$AM$500,3,FALSE)&")",(ROUND((VLOOKUP($A$3,'G4-ML5'!$A$6:$AM$500,3,FALSE)/B30*100),0))&"% ("&IF(VLOOKUP($A$3,'G4-ML5'!$A$6:$AM$500,3,FALSE)="",0,VLOOKUP($A$3,'G4-ML5'!$A$6:$AM$500,3,FALSE))&")"))))),"NA") -> 97% (2609) | D30: =IFERROR((IF($C30="NA","NA",VLOOKUP($A$3,'G4-ML5'!$A$6:$AM$500,4,FALSE))),"NA") -> 20.40134151 | E30: =IFERROR((IF($C30="NA","NA",ROUND(VLOOKUP($A$3,'G4-ML5'!$A$6:$AM$500,6,FALSE),0)&"% ("&IF(VLOOKUP($A$3,'G4-ML5'!$A$6:$AM$500,5,FALSE)="",0,VLOOKUP($A$3,'G4-ML5'!$A$6:$AM$500,5,FALSE))&")")),"NA") -> 24% (620) | F30: =IFERROR((IF($C30="NA","NA",VLOOKUP($A$3,'G4-ML5'!$A$6:$AM$500,10,FALSE))),"NA") -> 11.25281717 | G30: =IFERROR((IF($C30="NA","NA",ROUND(VLOOKUP($A$3,'G4-ML5'!$A$6:$AM$500,12,FALSE),0)&"% ("&IF(VLOOKUP($A$3,'G4-ML5'!$A$6:$AM$500,11,FALSE)="",0,VLOOKUP($A$3,'G4-ML5'!$A$6:$AM$500,11,FALSE))&")")),"NA") -> 50% (1297) | H30: =IFERROR((IF($C30="NA","NA",VLOOKUP($A$3,'G4-ML5'!$A$6:$AM$500,13,FALSE))),"NA") -> 4.000881564 | I30: =IFERROR((IF($C30="NA","NA",ROUND(VLOOKUP($A$3,'G4-ML5'!$A$6:$AM$500,15,FALSE),0)&"% ("&IF(VLOOKUP($A$3,'G4-ML5'!$A$6:$AM$500,14,FALSE)="",0,VLOOKUP($A$3,'G4-ML5'!$A$6:$AM$500,14,FALSE))&")")),"NA") -> 21% (557) | J30: =IFERROR((IF($C30="NA","NA",VLOOKUP($A$3,'G4-ML5'!$A$6:$AM$500,7,FALSE))),"NA") -> 5.16094289 | K30: =IFERROR((IF($C30="NA","NA",ROUND(VLOOKUP($A$3,'G4-ML5'!$A$6:$AM$500,9,FALSE),0)&"% ("&IF(VLOOKUP($A$3,'G4-ML5'!$A$6:$AM$500,8,FALSE)="",0,VLOOKUP($A$3,'G4-ML5'!$A$6:$AM$500,8,FALSE))&")")),"NA") -> 21% (537)
A31: White | B31: =IFERROR(VLOOKUP(TEXT($A$3,"0000"),MEM_W!$A$3:$O$501,8,FALSE),0) -> 2170 | C31: =IFERROR((IF(OR(B31=0,B31="",B31="NA"),"NA",((IF(VLOOKUP($A$3,'G4-MW'!$A$6:$AM$500,3,FALSE)>=B31,"100% ("&VLOOKUP($A$3,'G4-MW'!$A$6:$AM$500,3,FALSE)&")",(ROUND((VLOOKUP($A$3,'G4-MW'!$A$6:$AM$500,3,FALSE)/B31*100),0))&"% ("&IF(VLOOKUP($A$3,'G4-MW'!$A$6:$AM$500,3,FALSE)="",0,VLOOKUP($A$3,'G4-MW'!$A$6:$AM$500,3,FALSE))&")"))))),"NA") -> 96% (2093) | D31: =IFERROR((IF($C31="NA","NA",VLOOKUP($A$3,'G4-MW'!$A$6:$AM$500,4,FALSE))),"NA") -> 15.97439083 | E31: =IFERROR((IF($C31="NA","NA",ROUND(VLOOKUP($A$3,'G4-MW'!$A$6:$AM$500,6,FALSE),0)&"% ("&IF(VLOOKUP($A$3,'G4-MW'!$A$6:$AM$500,5,FALSE)="",0,VLOOKUP($A$3,'G4-MW'!$A$6:$AM$500,5,FALSE))&")")),"NA") -> 10% (211) | F31: =IFERROR((IF($C31="NA","NA",VLOOKUP($A$3,'G4-MW'!$A$6:$AM$500,10,FALSE))),"NA") -> 8.873530817 | G31: =IFERROR((IF($C31="NA","NA",ROUND(VLOOKUP($A$3,'G4-MW'!$A$6:$AM$500,12,FALSE),0)&"% ("&IF(VLOOKUP($A$3,'G4-MW'!$A$6:$AM$500,11,FALSE)="",0,VLOOKUP($A$3,'G4-MW'!$A$6:$AM$500,11,FALSE))&")")),"NA") -> 23% (478) | H31: =IFERROR((IF($C31="NA","NA",VLOOKUP($A$3,'G4-MW'!$A$6:$AM$500,13,FALSE))),"NA") -> 2.850119446 | I31: =IFERROR((IF($C31="NA","NA",ROUND(VLOOKUP($A$3,'G4-MW'!$A$6:$AM$500,15,FALSE),0)&"% ("&IF(VLOOKUP($A$3,'G4-MW'!$A$6:$AM$500,14,FALSE)="",0,VLOOKUP($A$3,'G4-MW'!$A$6:$AM$500,14,FALSE))&")")),"NA") -> 9% (192) | J31: =IFERROR((IF($C31="NA","NA",VLOOKUP($A$3,'G4-MW'!$A$6:$AM$500,7,FALSE))),"NA") -> 4.264739608 | K31: =IFERROR((IF($C31="NA","NA",ROUND(VLOOKUP($A$3,'G4-MW'!$A$6:$AM$500,9,FALSE),0)&"% ("&IF(VLOOKUP($A$3,'G4-MW'!$A$6:$AM$500,8,FALSE)="",0,VLOOKUP($A$3,'G4-MW'!$A$6:$AM$500,8,FALSE))&")")),"NA") -> 12% (251)
A32: Black | B32: =IFERROR(VLOOKUP(TEXT($A$3,"0000"),MEM_B!$A$3:$O$501,8,FALSE),0) -> 5588 | C32: =IFERROR((IF(OR(B32=0,B32="",B32="NA"),"NA",((IF(VLOOKUP($A$3,'G4-MB'!$A$6:$AM$500,3,FALSE)>=B32,"100% ("&VLOOKUP($A$3,'G4-MB'!$A$6:$AM$500,3,FALSE)&")",(ROUND((VLOOKUP($A$3,'G4-MB'!$A$6:$AM$500,3,FALSE)/B32*100),0))&"% ("&IF(VLOOKUP($A$3,'G4-MB'!$A$6:$AM$500,3,FALSE)="",0,VLOOKUP($A$3,'G4-MB'!$A$6:$AM$500,3,FALSE))&")"))))),"NA") -> 94% (5252) | D32: =IFERROR((IF($C32="NA","NA",VLOOKUP($A$3,'G4-MB'!$A$6:$AM$500,4,FALSE))),"NA") -> 12.48629094 | E32: =IFERROR((IF($C32="NA","NA",ROUND(VLOOKUP($A$3,'G4-MB'!$A$6:$AM$500,6,FALSE),0)&"% ("&IF(VLOOKUP($A$3,'G4-MB'!$A$6:$AM$500,5,FALSE)="",0,VLOOKUP($A$3,'G4-MB'!$A$6:$AM$500,5,FALSE))&")")),"NA") -> 2% (83) | F32: =IFERROR((IF($C32="NA","NA",VLOOKUP($A$3,'G4-MB'!$A$6:$AM$500,10,FALSE))),"NA") -> 6.882654227 | G32: =IFERROR((IF($C32="NA","NA",ROUND(VLOOKUP($A$3,'G4-MB'!$A$6:$AM$500,12,FALSE),0)&"% ("&IF(VLOOKUP($A$3,'G4-MB'!$A$6:$AM$500,11,FALSE)="",0,VLOOKUP($A$3,'G4-MB'!$A$6:$AM$500,11,FALSE))&")")),"NA") -> 7% (345) | H32: =IFERROR((IF($C32="NA","NA",VLOOKUP($A$3,'G4-MB'!$A$6:$AM$500,13,FALSE))),"NA") -> 2.365194212 | I32: =IFERROR((IF($C32="NA","NA",ROUND(VLOOKUP($A$3,'G4-MB'!$A$6:$AM$500,15,FALSE),0)&"% ("&IF(VLOOKUP($A$3,'G4-MB'!$A$6:$AM$500,14,FALSE)="",0,VLOOKUP($A$3,'G4-MB'!$A$6:$AM$500,14,FALSE))&")")),"NA") -> 2% (127) | J32: =IFERROR((IF($C32="NA","NA",VLOOKUP($A$3,'G4-MB'!$A$6:$AM$500,7,FALSE))),"NA") -> 3.241431835 | K32: =IFERROR((IF($C32="NA","NA",ROUND(VLOOKUP($A$3,'G4-MB'!$A$6:$AM$500,9,FALSE),0)&"% ("&IF(VLOOKUP($A$3,'G4-MB'!$A$6:$AM$500,8,FALSE)="",0,VLOOKUP($A$3,'G4-MB'!$A$6:$AM$500,8,FALSE))&")")),"NA") -> 2% (131)
A33: Hispanic | B33: =IFERROR(VLOOKUP(TEXT($A$3,"0000"),MEM_H!$A$3:$O$501,8,FALSE),0) -> 17122 | C33: =IFERROR((IF(OR(B33=0,B33="",B33="NA"),"NA",((IF(VLOOKUP($A$3,'G4-MH'!$A$6:$AM$500,3,FALSE)>=B33,"100% ("&VLOOKUP($A$3,'G4-MH'!$A$6:$AM$500,3,FALSE)&")",(ROUND((VLOOKUP($A$3,'G4-MH'!$A$6:$AM$500,3,FALSE)/B33*100),0))&"% ("&IF(VLOOKUP($A$3,'G4-MH'!$A$6:$AM$500,3,FALSE)="",0,VLOOKUP($A$3,'G4-MH'!$A$6:$AM$500,3,FALSE))&")"))))),"NA") -> 96% (16379) | D33: =IFERROR((IF($C33="NA","NA",VLOOKUP($A$3,'G4-MH'!$A$6:$AM$500,4,FALSE))),"NA") -> 13.84773796 | E33: =IFERROR((IF($C33="NA","NA",ROUND(VLOOKUP($A$3,'G4-MH'!$A$6:$AM$500,6,FALSE),0)&"% ("&IF(VLOOKUP($A$3,'G4-MH'!$A$6:$AM$500,5,FALSE)="",0,VLOOKUP($A$3,'G4-MH'!$A$6:$AM$500,5,FALSE))&")")),"NA") -> 3% (536) | F33: =IFERROR((IF($C33="NA","NA",VLOOKUP($A$3,'G4-MH'!$A$6:$AM$500,10,FALSE))),"NA") -> 7.731247329 | G33: =IFERROR((IF($C33="NA","NA",ROUND(VLOOKUP($A$3,'G4-MH'!$A$6:$AM$500,12,FALSE),0)&"% ("&IF(VLOOKUP($A$3,'G4-MH'!$A$6:$AM$500,11,FALSE)="",0,VLOOKUP($A$3,'G4-MH'!$A$6:$AM$500,11,FALSE))&")")),"NA") -> 12% (1910) | H33: =IFERROR((IF($C33="NA","NA",VLOOKUP($A$3,'G4-MH'!$A$6:$AM$500,13,FALSE))),"NA") -> 2.380804689 | I33: =IFERROR((IF($C33="NA","NA",ROUND(VLOOKUP($A$3,'G4-MH'!$A$6:$AM$500,15,FALSE),0)&"% ("&IF(VLOOKUP($A$3,'G4-MH'!$A$6:$AM$500,14,FALSE)="",0,VLOOKUP($A$3,'G4-MH'!$A$6:$AM$500,14,FALSE))&")")),"NA") -> 4% (575) | J33: =IFERROR((IF($C33="NA","NA",VLOOKUP($A$3,'G4-MH'!$A$6:$AM$500,7,FALSE))),"NA") -> 3.738451676 | K33: =IFERROR((IF($C33="NA","NA",ROUND(VLOOKUP($A$3,'G4-MH'!$A$6:$AM$500,9,FALSE),0)&"% ("&IF(VLOOKUP($A$3,'G4-MH'!$A$6:$AM$500,8,FALSE)="",0,VLOOKUP($A$3,'G4-MH'!$A$6:$AM$500,8,FALSE))&")")),"NA") -> 6% (913)
A34: Asian | B34: =IFERROR(VLOOKUP(TEXT($A$3,"0000"),MEM_A!$A$3:$O$501,8,FALSE),0) -> 306 | C34: =IFERROR((IF(OR(B34=0,B34="",B34="NA"),"NA",((IF(VLOOKUP($A$3,'G4-MA'!$A$6:$AM$500,3,FALSE)>=B34,"100% ("&VLOOKUP($A$3,'G4-MA'!$A$6:$AM$500,3,FALSE)&")",(ROUND((VLOOKUP($A$3,'G4-MA'!$A$6:$AM$500,3,FALSE)/B34*100),0))&"% ("&IF(VLOOKUP($A$3,'G4-MA'!$A$6:$AM$500,3,FALSE)="",0,VLOOKUP($A$3,'G4-MA'!$A$6:$AM$500,3,FALSE))&")"))))),"NA") -> 92% (283) | D34: =IFERROR((IF($C34="NA","NA",VLOOKUP($A$3,'G4-MA'!$A$6:$AM$500,4,FALSE))),"NA") -> 17.66466431 | E34: =IFERROR((IF($C34="NA","NA",ROUND(VLOOKUP($A$3,'G4-MA'!$A$6:$AM$500,6,FALSE),0)&"% ("&IF(VLOOKUP($A$3,'G4-MA'!$A$6:$AM$500,5,FALSE)="",0,VLOOKUP($A$3,'G4-MA'!$A$6:$AM$500,5,FALSE))&")")),"NA") -> 15% (43) | F34: =IFERROR((IF($C34="NA","NA",VLOOKUP($A$3,'G4-MA'!$A$6:$AM$500,10,FALSE))),"NA") -> 9.661837456 | G34: =IFERROR((IF($C34="NA","NA",ROUND(VLOOKUP($A$3,'G4-MA'!$A$6:$AM$500,12,FALSE),0)&"% ("&IF(VLOOKUP($A$3,'G4-MA'!$A$6:$AM$500,11,FALSE)="",0,VLOOKUP($A$3,'G4-MA'!$A$6:$AM$500,11,FALSE))&")")),"NA") -> 30% (84) | H34: =IFERROR((IF($C34="NA","NA",VLOOKUP($A$3,'G4-MA'!$A$6:$AM$500,13,FALSE))),"NA") -> 3.475971731 | I34: =IFERROR((IF($C34="NA","NA",ROUND(VLOOKUP($A$3,'G4-MA'!$A$6:$AM$500,15,FALSE),0)&"% ("&IF(VLOOKUP($A$3,'G4-MA'!$A$6:$AM$500,14,FALSE)="",0,VLOOKUP($A$3,'G4-MA'!$A$6:$AM$500,14,FALSE))&")")),"NA") -> 19% (55) | J34: =IFERROR((IF($C34="NA","NA",VLOOKUP($A$3,'G4-MA'!$A$6:$AM$500,7,FALSE))),"NA") -> 4.528268551 | K34: =IFERROR((IF($C34="NA","NA",ROUND(VLOOKUP($A$3,'G4-MA'!$A$6:$AM$500,9,FALSE),0)&"% ("&IF(VLOOKUP($A$3,'G4-MA'!$A$6:$AM$500,8,FALSE)="",0,VLOOKUP($A$3,'G4-MA'!$A$6:$AM$500,8,FALSE))&")")),"NA") -> 14% (41)
A35: Am. Indian | B35: =IFERROR(VLOOKUP(TEXT($A$3,"0000"),MEM_I!$A$3:$O$501,8,FALSE),0) -> 16 | C35: =IFERROR((IF(OR(B35=0,B35="",B35="NA"),"NA",((IF(VLOOKUP($A$3,'G4-MI'!$A$6:$AM$500,3,FALSE)>=B35,"100% ("&VLOOKUP($A$3,'G4-MI'!$A$6:$AM$500,3,FALSE)&")",(ROUND((VLOOKUP($A$3,'G4-MI'!$A$6:$AM$500,3,FALSE)/B35*100),0))&"% ("&IF(VLOOKUP($A$3,'G4-MI'!$A$6:$AM$500,3,FALSE)="",0,VLOOKUP($A$3,'G4-MI'!$A$6:$AM$500,3,FALSE))&")"))))),"NA") -> 100% (16) | D35: =IFERROR((IF($C35="NA","NA",VLOOKUP($A$3,'G4-MI'!$A$6:$AM$500,4,FALSE))),"NA") -> 16.5 | E35: =IFERROR((IF($C35="NA","NA",ROUND(VLOOKUP($A$3,'G4-MI'!$A$6:$AM$500,6,FALSE),0)&"% ("&IF(VLOOKUP($A$3,'G4-MI'!$A$6:$AM$500,5,FALSE)="",0,VLOOKUP($A$3,'G4-MI'!$A$6:$AM$500,5,FALSE))&")")),"NA") -> 13% (2) | F35: =IFERROR((IF($C35="NA","NA",VLOOKUP($A$3,'G4-MI'!$A$6:$AM$500,10,FALSE))),"NA") -> 9.1875 | G35: =IFERROR((IF($C35="NA","NA",ROUND(VLOOKUP($A$3,'G4-MI'!$A$6:$AM$500,12,FALSE),0)&"% ("&IF(VLOOKUP($A$3,'G4-MI'!$A$6:$AM$500,11,FALSE)="",0,VLOOKUP($A$3,'G4-MI'!$A$6:$AM$500,11,FALSE))&")")),"NA") -> 13% (2) | H35: =IFERROR((IF($C35="NA","NA",VLOOKUP($A$3,'G4-MI'!$A$6:$AM$500,13,FALSE))),"NA") -> 2.625 | I35: =IFERROR((IF($C35="NA","NA",ROUND(VLOOKUP($A$3,'G4-MI'!$A$6:$AM$500,15,FALSE),0)&"% ("&IF(VLOOKUP($A$3,'G4-MI'!$A$6:$AM$500,14,FALSE)="",0,VLOOKUP($A$3,'G4-MI'!$A$6:$AM$500,14,FALSE))&")")),"NA") -> 6% (1) | J35: =IFERROR((IF($C35="NA","NA",VLOOKUP($A$3,'G4-MI'!$A$6:$AM$500,7,FALSE))),"NA") -> 4.6875 | K35: =IFERROR((IF($C35="NA","NA",ROUND(VLOOKUP($A$3,'G4-MI'!$A$6:$AM$500,9,FALSE),0)&"% ("&IF(VLOOKUP($A$3,'G4-MI'!$A$6:$AM$500,8,FALSE)="",0,VLOOKUP($A$3,'G4-MI'!$A$6:$AM$500,8,FALSE))&")")),"NA") -> 6% (1)
A36: ED | B36: =IFERROR(VLOOKUP(TEXT($A$3,"0000"),MEM_ED!$A$3:$O$501,8,FALSE),0) -> 19541 | C36: =IFERROR((IF(OR(B36=0,B36="",B36="NA"),"NA",((IF(VLOOKUP($A$3,'G4-MED'!$A$6:$AM$500,3,FALSE)>=B36,"100% ("&VLOOKUP($A$3,'G4-MED'!$A$6:$AM$500,3,FALSE)&")",(ROUND((VLOOKUP($A$3,'G4-MED'!$A$6:$AM$500,3,FALSE)/B36*100),0))&"% ("&IF(VLOOKUP($A$3,'G4-MED'!$A$6:$AM$500,3,FALSE)="",0,VLOOKUP($A$3,'G4-MED'!$A$6:$AM$500,3,FALSE))&")"))))),"NA") -> 97% (18975) | D36: =IFERROR((IF($C36="NA","NA",VLOOKUP($A$3,'G4-MED'!$A$6:$AM$500,4,FALSE))),"NA") -> 13.15743874 | E36: =IFERROR((IF($C36="NA","NA",ROUND(VLOOKUP($A$3,'G4-MED'!$A$6:$AM$500,6,FALSE),0)&"% ("&IF(VLOOKUP($A$3,'G4-MED'!$A$6:$AM$500,5,FALSE)="",0,VLOOKUP($A$3,'G4-MED'!$A$6:$AM$500,5,FALSE))&")")),"NA") -> 2% (421) | F36: =IFERROR((IF($C36="NA","NA",VLOOKUP($A$3,'G4-MED'!$A$6:$AM$500,10,FALSE))),"NA") -> 7.312463768 | G36: =IFERROR((IF($C36="NA","NA",ROUND(VLOOKUP($A$3,'G4-MED'!$A$6:$AM$500,12,FALSE),0)&"% ("&IF(VLOOKUP($A$3,'G4-MED'!$A$6:$AM$500,11,FALSE)="",0,VLOOKUP($A$3,'G4-MED'!$A$6:$AM$500,11,FALSE))&")")),"NA") -> 9% (1681) | H36: =IFERROR((IF($C36="NA","NA",VLOOKUP($A$3,'G4-MED'!$A$6:$AM$500,13,FALSE))),"NA") -> 2.32002635 | I36: =IFERROR((IF($C36="NA","NA",ROUND(VLOOKUP($A$3,'G4-MED'!$A$6:$AM$500,15,FALSE),0)&"% ("&IF(VLOOKUP($A$3,'G4-MED'!$A$6:$AM$500,14,FALSE)="",0,VLOOKUP($A$3,'G4-MED'!$A$6:$AM$500,14,FALSE))&")")),"NA") -> 3% (500) | J36: =IFERROR((IF($C36="NA","NA",VLOOKUP($A$3,'G4-MED'!$A$6:$AM$500,7,FALSE))),"NA") -> 3.527509881 | K36: =IFERROR((IF($C36="NA","NA",ROUND(VLOOKUP($A$3,'G4-MED'!$A$6:$AM$500,9,FALSE),0)&"% ("&IF(VLOOKUP($A$3,'G4-MED'!$A$6:$AM$500,8,FALSE)="",0,VLOOKUP($A$3,'G4-MED'!$A$6:$AM$500,8,FALSE))&")")),"NA") -> 4% (799)
A37: ELL | B37: =IFERROR(VLOOKUP(TEXT($A$3,"0000"),MEM_ELL!$A$3:$O$501,8,FALSE),0) -> 9739 | C37: =IFERROR((IF(OR(B37=0,B37="",B37="NA"),"NA",((IF(VLOOKUP($A$3,'G4-MELL'!$A$6:$AM$500,3,FALSE)>=B37,"100% ("&VLOOKUP($A$3,'G4-MELL'!$A$6:$AM$500,3,FALSE)&")",(ROUND((VLOOKUP($A$3,'G4-MELL'!$A$6:$AM$500,3,FALSE)/B37*100),0))&"% ("&IF(VLOOKUP($A$3,'G4-MELL'!$A$6:$AM$500,3,FALSE)="",0,VLOOKUP($A$3,'G4-MELL'!$A$6:$AM$500,3,FALSE))&")"))))),"NA") -> 95% (9300) | D37: =IFERROR((IF($C37="NA","NA",VLOOKUP($A$3,'G4-MELL'!$A$6:$AM$500,4,FALSE))),"NA") -> 12.48064516 | E37: =IFERROR((IF($C37="NA","NA",ROUND(VLOOKUP($A$3,'G4-MELL'!$A$6:$AM$500,6,FALSE),0)&"% ("&IF(VLOOKUP($A$3,'G4-MELL'!$A$6:$AM$500,5,FALSE)="",0,VLOOKUP($A$3,'G4-MELL'!$A$6:$AM$500,5,FALSE))&")")),"NA") -> 1% (105) | F37: =IFERROR((IF($C37="NA","NA",VLOOKUP($A$3,'G4-MELL'!$A$6:$AM$500,10,FALSE))),"NA") -> 6.905913978 | G37: =IFERROR((IF($C37="NA","NA",ROUND(VLOOKUP($A$3,'G4-MELL'!$A$6:$AM$500,12,FALSE),0)&"% ("&IF(VLOOKUP($A$3,'G4-MELL'!$A$6:$AM$500,11,FALSE)="",0,VLOOKUP($A$3,'G4-MELL'!$A$6:$AM$500,11,FALSE))&")")),"NA") -> 6% (544) | H37: =IFERROR((IF($C37="NA","NA",VLOOKUP($A$3,'G4-MELL'!$A$6:$AM$500,13,FALSE))),"NA") -> 2.176666667 | I37: =IFERROR((IF($C37="NA","NA",ROUND(VLOOKUP($A$3,'G4-MELL'!$A$6:$AM$500,15,FALSE),0)&"% ("&IF(VLOOKUP($A$3,'G4-MELL'!$A$6:$AM$500,14,FALSE)="",0,VLOOKUP($A$3,'G4-MELL'!$A$6:$AM$500,14,FALSE))&")")),"NA") -> 1% (137) | J37: =IFERROR((IF($C37="NA","NA",VLOOKUP($A$3,'G4-MELL'!$A$6:$AM$500,7,FALSE))),"NA") -> 3.398064516 | K37: =IFERROR((IF($C37="NA","NA",ROUND(VLOOKUP($A$3,'G4-MELL'!$A$6:$AM$500,9,FALSE),0)&"% ("&IF(VLOOKUP($A$3,'G4-MELL'!$A$6:$AM$500,8,FALSE)="",0,VLOOKUP($A$3,'G4-MELL'!$A$6:$AM$500,8,FALSE))&")")),"NA") -> 3% (291)
A38: SWD | B38: =IFERROR(VLOOKUP(TEXT($A$3,"0000"),MEM_SWD!$A$3:$O$501,8,FALSE),0) -> 2335 | C38: =IFERROR((IF(OR(B38=0,B38="",B38="NA"),"NA",((IF(VLOOKUP($A$3,'G4-MSWD'!$A$6:$AM$500,3,FALSE)>=B38,"100% ("&VLOOKUP($A$3,'G4-MSWD'!$A$6:$AM$500,3,FALSE)&")",(ROUND((VLOOKUP($A$3,'G4-MSWD'!$A$6:$AM$500,3,FALSE)/B38*100),0))&"% ("&IF(VLOOKUP($A$3,'G4-MSWD'!$A$6:$AM$500,3,FALSE)="",0,VLOOKUP($A$3,'G4-MSWD'!$A$6:$AM$500,3,FALSE))&")"))))),"NA") -> 93% (2162) | D38: =IFERROR((IF($C38="NA","NA",VLOOKUP($A$3,'G4-MSWD'!$A$6:$AM$500,4,FALSE))),"NA") -> 11.15952821 | E38: =IFERROR((IF($C38="NA","NA",ROUND(VLOOKUP($A$3,'G4-MSWD'!$A$6:$AM$500,6,FALSE),0)&"% ("&IF(VLOOKUP($A$3,'G4-MSWD'!$A$6:$AM$500,5,FALSE)="",0,VLOOKUP($A$3,'G4-MSWD'!$A$6:$AM$500,5,FALSE))&")")),"NA") -> 1% (16) | F38: =IFERROR((IF($C38="NA","NA",VLOOKUP($A$3,'G4-MSWD'!$A$6:$AM$500,10,FALSE))),"NA") -> 5.888020352 | G38: =IFERROR((IF($C38="NA","NA",ROUND(VLOOKUP($A$3,'G4-MSWD'!$A$6:$AM$500,12,FALSE),0)&"% ("&IF(VLOOKUP($A$3,'G4-MSWD'!$A$6:$AM$500,11,FALSE)="",0,VLOOKUP($A$3,'G4-MSWD'!$A$6:$AM$500,11,FALSE))&")")),"NA") -> 4% (82) | H38: =IFERROR((IF($C38="NA","NA",VLOOKUP($A$3,'G4-MSWD'!$A$6:$AM$500,13,FALSE))),"NA") -> 2.15559667 | I38: =IFERROR((IF($C38="NA","NA",ROUND(VLOOKUP($A$3,'G4-MSWD'!$A$6:$AM$500,15,FALSE),0)&"% ("&IF(VLOOKUP($A$3,'G4-MSWD'!$A$6:$AM$500,14,FALSE)="",0,VLOOKUP($A$3,'G4-MSWD'!$A$6:$AM$500,14,FALSE))&")")),"NA") -> 2% (35) | J38: =IFERROR((IF($C38="NA","NA",VLOOKUP($A$3,'G4-MSWD'!$A$6:$AM$500,7,FALSE))),"NA") -> 3.119657724 | K38: =IFERROR((IF($C38="NA","NA",ROUND(VLOOKUP($A$3,'G4-MSWD'!$A$6:$AM$500,9,FALSE),0)&"% ("&IF(VLOOKUP($A$3,'G4-MSWD'!$A$6:$AM$500,8,FALSE)="",0,VLOOKUP($A$3,'G4-MSWD'!$A$6:$AM$500,8,FALSE))&")")),"NA") -> 2% (39)
A39: District Writing Pre-Test, Grade 4 | P39: Writing Grade 4
A40: Level of Proficiency at 3 or above | B40: Total # of Students | C40: % of Students Tested (Max. of the two prompts) | D40: Combined Prompts (Weighted Values) | H40: Expository | J40: Narrative | P40: =H40 -> Expository | Q40: =J40 -> Narrative
D41: Average Score | E41: % at 3.0 | F41: % at or above 4.0 | H41: Average Score | I41: % Proficient | J41: Average Score | K41: % Proficient | P41: Number Tested | Q41: Number Tested
A42: All students | B42: =IFERROR(VLOOKUP(TEXT($A$3,"0000"),Mem_All!$A$2:$O$500,8,FALSE),0) -> 25315 | C42: =IF(OR(B42=0,B42="",B42="NA"),"NA",IF(VLOOKUP($A$3,'G4-WALL'!$A$6:$Z$500,3,FALSE)>B42,"100% ("&VLOOKUP($A$3,'G4-WALL'!$A$6:$Z$500,3,FALSE)&")",ROUND(VLOOKUP($A$3,'G4-WALL'!$A$6:$Z$500,3,FALSE)/B42*100,0)&"%("&VLOOKUP($A$3,'G4-WALL'!$A$6:$Z$500,3,FALSE)&")")) -> 71%(18014) | D42: =IFERROR((IF($C42="NA","NA",VLOOKUP($A$3,'G4-WALL'!$A$6:$Z$500,4,FALSE))),"NA") -> 1.440758823 | E42: =IF($D42="NA","NA",ROUND(VLOOKUP($A$3,'G4-WALL'!$A$6:$Z$500,6,FALSE),0)&"% ("&VLOOKUP($A$3,'G4-WALL'!$A$6:$Z$500,5,FALSE)&")") -> 11% (1989) | F42: =IF($D42="NA","NA",ROUND(VLOOKUP($A$3,'G4-WALL'!$A$6:$Z$500,8,FALSE),0)&"% ("&VLOOKUP($A$3,'G4-WALL'!$A$6:$Z$500,7,FALSE)&")") -> 2% (310) | H42: =IFERROR(IF(VLOOKUP($A$3,'G4-WALL'!$A$6:$Z$500,9,FALSE)=0,"NA",VLOOKUP($A$3,'G4-WALL'!$A$6:$Z$500,10,FALSE)),"NA") -> 1.415865438 | I42: =IFERROR(IF(H42="NA","NA",VLOOKUP($A$3,'G4-WALL'!$A$6:$Z$500,16,FALSE)&"% ("&VLOOKUP($A$3,'G4-WALL'!$A$6:$Z$500,12,FALSE)&")"),"") -> 11% (2070) | J42: =IFERROR(IF(VLOOKUP($A$3,'G4-WALL'!$A$6:$Z$500,17,FALSE)=0,"NA",VLOOKUP($A$3,'G4-WALL'!$A$6:$Z$500,18,FALSE)),"NA") -> 1.465907689 | K42: =IFERROR(IF(J42="NA","NA",VLOOKUP($A$3,'G4-WALL'!$A$6:$Z$500,24,FALSE)&"% ("&VLOOKUP($A$3,'G4-WALL'!$A$6:$Z$500,20,FALSE)&")"),"") -> 14% (2504) | P42: =IFERROR(IF(VLOOKUP($A$3,'G4-WALL'!$A$6:$Z$500,9,FALSE)="","0",VLOOKUP($A$3,'G4-WALL'!$A$6:$Z$500,9,FALSE)),"Not Test") -> 18014 | Q42: =IFERROR(IF(VLOOKUP($A$3,'G4-WALL'!$A$6:$Z$500,17,FALSE)="","0",VLOOKUP($A$3,'G4-WALL'!$A$6:$Z$500,17,FALSE)),"Not Test") -> 17831
A43: White | B43: =IFERROR(VLOOKUP(TEXT($A$3,"0000"),MEM_W!$A$2:$O$500,8,FALSE),0) -> 2170 | C43: =IF(OR(B43=0,B43="",B43="NA"),"NA",IF(VLOOKUP($A$3,'G4-WW'!$A$6:$Z$500,3,FALSE)>B43,"100% ("&VLOOKUP($A$3,'G4-WW'!$A$6:$Z$500,3,FALSE)&")",ROUND(VLOOKUP($A$3,'G4-WW'!$A$6:$Z$500,3,FALSE)/B43*100,0)&"%("&VLOOKUP($A$3,'G4-WW'!$A$6:$Z$500,3,FALSE)&")")) -> 71%(1536) | D43: =IFERROR((IF($C43="NA","NA",VLOOKUP($A$3,'G4-WW'!$A$6:$Z$500,4,FALSE))),"NA") -> 1.606207122 | E43: =IF($D43="NA","NA",ROUND(VLOOKUP($A$3,'G4-WW'!$A$6:$Z$500,6,FALSE),0)&"% ("&VLOOKUP($A$3,'G4-WW'!$A$6:$Z$500,5,FALSE)&")") -> 14% (221) | F43: =IF($D43="NA","NA",ROUND(VLOOKUP($A$3,'G4-WW'!$A$6:$Z$500,8,FALSE),0)&"% ("&VLOOKUP($A$3,'G4-WW'!$A$6:$Z$500,7,FALSE)&")") -> 3% (44) | H43: =IFERROR(IF(VLOOKUP($A$3,'G4-WW'!$A$6:$Z$500,9,FALSE)=0,"NA",VLOOKUP($A$3,'G4-WW'!$A$6:$Z$500,10,FALSE)),"NA") -> 1.574804688 | I43: =IFERROR(IF(H43="NA","NA",VLOOKUP($A$3,'G4-WW'!$A$6:$Z$500,16,FALSE)&"% ("&VLOOKUP($A$3,'G4-WW'!$A$6:$Z$500,12,FALSE)&")"),"") -> 16% (245) | J43: =IFERROR(IF(VLOOKUP($A$3,'G4-WW'!$A$6:$Z$500,17,FALSE)=0,"NA",VLOOKUP($A$3,'G4-WW'!$A$6:$Z$500,18,FALSE)),"NA") -> 1.637836066 | K43: =IFERROR(IF(J43="NA","NA",VLOOKUP($A$3,'G4-WW'!$A$6:$Z$500,24,FALSE)&"% ("&VLOOKUP($A$3,'G4-WW'!$A$6:$Z$500,20,FALSE)&")"),"") -> 19% (283) | P43: =IFERROR(IF(VLOOKUP($A$3,'G4-WW'!$A$6:$Z$500,9,FALSE)="","0",VLOOKUP($A$3,'G4-WW'!$A$6:$Z$500,9,FALSE)),"Not Test") -> 1536 | Q43: =IFERROR(IF(VLOOKUP($A$3,'G4-WW'!$A$6:$Z$500,17,FALSE)="","0",VLOOKUP($A$3,'G4-WW'!$A$6:$Z$500,17,FALSE)),"Not Test") -> 1525
A44: Black | B44: =IFERROR(VLOOKUP(TEXT($A$3,"0000"),MEM_B!$A$2:$O$500,8,FALSE),0) -> 5588 | C44: =IF(OR(B44=0,B44="",B44="NA"),"NA",IF(VLOOKUP($A$3,'G4-WB'!$A$6:$Z$500,3,FALSE)>B44,"100% ("&VLOOKUP($A$3,'G4-WB'!$A$6:$Z$500,3,FALSE)&")",ROUND(VLOOKUP($A$3,'G4-WB'!$A$6:$Z$500,3,FALSE)/B44*100,0)&"%("&VLOOKUP($A$3,'G4-WB'!$A$6:$Z$500,3,FALSE)&")")) -> 60%(3338) | D44: =IFERROR((IF($C44="NA","NA",VLOOKUP($A$3,'G4-WB'!$A$6:$Z$500,4,FALSE))),"NA") -> 1.350591088 | E44: =IF($D44="NA","NA",ROUND(VLOOKUP($A$3,'G4-WB'!$A$6:$Z$500,6,FALSE),0)&"% ("&VLOOKUP($A$3,'G4-WB'!$A$6:$Z$500,5,FALSE)&")") -> 9% (287) | F44: =IF($D44="NA","NA",ROUND(VLOOKUP($A$3,'G4-WB'!$A$6:$Z$500,8,FALSE),0)&"% ("&VLOOKUP($A$3,'G4-WB'!$A$6:$Z$500,7,FALSE)&")") -> 2% (52) | H44: =IFERROR(IF(VLOOKUP($A$3,'G4-WB'!$A$6:$Z$500,9,FALSE)=0,"NA",VLOOKUP($A$3,'G4-WB'!$A$6:$Z$500,10,FALSE)),"NA") -> 1.316836429 | I44: =IFERROR(IF(H44="NA","NA",VLOOKUP($A$3,'G4-WB'!$A$6:$Z$500,16,FALSE)&"% ("&VLOOKUP($A$3,'G4-WB'!$A$6:$Z$500,12,FALSE)&")"),"") -> 9% (292) | J44: =IFERROR(IF(VLOOKUP($A$3,'G4-WB'!$A$6:$Z$500,17,FALSE)=0,"NA",VLOOKUP($A$3,'G4-WB'!$A$6:$Z$500,18,FALSE)),"NA") -> 1.385153374 | K44: =IFERROR(IF(J44="NA","NA",VLOOKUP($A$3,'G4-WB'!$A$6:$Z$500,24,FALSE)&"% ("&VLOOKUP($A$3,'G4-WB'!$A$6:$Z$500,20,FALSE)&")"),"") -> 12% (378) | P44: =IFERROR(IF(VLOOKUP($A$3,'G4-WB'!$A$6:$Z$500,9,FALSE)="","0",VLOOKUP($A$3,'G4-WB'!$A$6:$Z$500,9,FALSE)),"Not Test") -> 3338 | Q44: =IFERROR(IF(VLOOKUP($A$3,'G4-WB'!$A$6:$Z$500,17,FALSE)="","0",VLOOKUP($A$3,'G4-WB'!$A$6:$Z$500,17,FALSE)),"Not Test") -> 3260
A45: Hispanic | B45: =IFERROR(VLOOKUP(TEXT($A$3,"0000"),MEM_H!$A$2:$O$500,8,FALSE),0) -> 17122 | C45: =IF(OR(B45=0,B45="",B45="NA"),"NA",IF(VLOOKUP($A$3,'G4-WH'!$A$6:$Z$500,3,FALSE)>B45,"100% ("&VLOOKUP($A$3,'G4-WH'!$A$6:$Z$500,3,FALSE)&")",ROUND(VLOOKUP($A$3,'G4-WH'!$A$6:$Z$500,3,FALSE)/B45*100,0)&"%("&VLOOKUP($A$3,'G4-WH'!$A$6:$Z$500,3,FALSE)&")")) -> 75%(12828) | D45: =IFERROR((IF($C45="NA","NA",VLOOKUP($A$3,'G4-WH'!$A$6:$Z$500,4,FALSE))),"NA") -> 1.437019795 | E45: =IF($D45="NA","NA",ROUND(VLOOKUP($A$3,'G4-WH'!$A$6:$Z$500,6,FALSE),0)&"% ("&VLOOKUP($A$3,'G4-WH'!$A$6:$Z$500,5,FALSE)&")") -> 11% (1426) | F45: =IF($D45="NA","NA",ROUND(VLOOKUP($A$3,'G4-WH'!$A$6:$Z$500,8,FALSE),0)&"% ("&VLOOKUP($A$3,'G4-WH'!$A$6:$Z$500,7,FALSE)&")") -> 2% (204) | H45: =IFERROR(IF(VLOOKUP($A$3,'G4-WH'!$A$6:$Z$500,9,FALSE)=0,"NA",VLOOKUP($A$3,'G4-WH'!$A$6:$Z$500,10,FALSE)),"NA") -> 1.415294668 | I45: =IFERROR(IF(H45="NA","NA",VLOOKUP($A$3,'G4-WH'!$A$6:$Z$500,16,FALSE)&"% ("&VLOOKUP($A$3,'G4-WH'!$A$6:$Z$500,12,FALSE)&")"),"") -> 11% (1475) | J45: =IFERROR(IF(VLOOKUP($A$3,'G4-WH'!$A$6:$Z$500,17,FALSE)=0,"NA",VLOOKUP($A$3,'G4-WH'!$A$6:$Z$500,18,FALSE)),"NA") -> 1.458905293 | K45: =IFERROR(IF(J45="NA","NA",VLOOKUP($A$3,'G4-WH'!$A$6:$Z$500,24,FALSE)&"% ("&VLOOKUP($A$3,'G4-WH'!$A$6:$Z$500,20,FALSE)&")"),"") -> 14% (1772) | P45: =IFERROR(IF(VLOOKUP($A$3,'G4-WH'!$A$6:$Z$500,9,FALSE)="","0",VLOOKUP($A$3,'G4-WH'!$A$6:$Z$500,9,FALSE)),"Not Test") -> 12828 | Q45: =IFERROR(IF(VLOOKUP($A$3,'G4-WH'!$A$6:$Z$500,17,FALSE)="","0",VLOOKUP($A$3,'G4-WH'!$A$6:$Z$500,17,FALSE)),"Not Test") -> 12734
A46: Asian | B46: =IFERROR(VLOOKUP(TEXT($A$3,"0000"),MEM_A!$A$2:$O$500,8,FALSE),0) -> 306 | C46: =IF(OR(B46=0,B46="",B46="NA"),"NA",IF(VLOOKUP($A$3,'G4-WA'!$A$6:$Z$500,3,FALSE)>B46,"100% ("&VLOOKUP($A$3,'G4-WA'!$A$6:$Z$500,3,FALSE)&")",ROUND(VLOOKUP($A$3,'G4-WA'!$A$6:$Z$500,3,FALSE)/B46*100,0)&"%("&VLOOKUP($A$3,'G4-WA'!$A$6:$Z$500,3,FALSE)&")")) -> 73%(224) | D46: =IFERROR((IF($C46="NA","NA",VLOOKUP($A$3,'G4-WA'!$A$6:$Z$500,4,FALSE))),"NA") -> 1.780357143 | E46: =IF($D46="NA","NA",ROUND(VLOOKUP($A$3,'G4-WA'!$A$6:$Z$500,6,FALSE),0)&"% ("&VLOOKUP($A$3,'G4-WA'!$A$6:$Z$500,5,FALSE)&")") -> 19% (42) | F46: =IF($D46="NA","NA",ROUND(VLOOKUP($A$3,'G4-WA'!$A$6:$Z$500,8,FALSE),0)&"% ("&VLOOKUP($A$3,'G4-WA'!$A$6:$Z$500,7,FALSE)&")") -> 3% (8) | H46: =IFERROR(IF(VLOOKUP($A$3,'G4-WA'!$A$6:$Z$500,9,FALSE)=0,"NA",VLOOKUP($A$3,'G4-WA'!$A$6:$Z$500,10,FALSE)),"NA") -> 1.754910714 | I46: =IFERROR(IF(H46="NA","NA",VLOOKUP($A$3,'G4-WA'!$A$6:$Z$500,16,FALSE)&"% ("&VLOOKUP($A$3,'G4-WA'!$A$6:$Z$500,12,FALSE)&")"),"") -> 21% (47) | J46: =IFERROR(IF(VLOOKUP($A$3,'G4-WA'!$A$6:$Z$500,17,FALSE)=0,"NA",VLOOKUP($A$3,'G4-WA'!$A$6:$Z$500,18,FALSE)),"NA") -> 1.805803571 | K46: =IFERROR(IF(J46="NA","NA",VLOOKUP($A$3,'G4-WA'!$A$6:$Z$500,24,FALSE)&"% ("&VLOOKUP($A$3,'G4-WA'!$A$6:$Z$500,20,FALSE)&")"),"") -> 23% (51) | P46: =IFERROR(IF(VLOOKUP($A$3,'G4-WA'!$A$6:$Z$500,9,FALSE)="","0",VLOOKUP($A$3,'G4-WA'!$A$6:$Z$500,9,FALSE)),"Not Test") -> 224 | Q46: =IFERROR(IF(VLOOKUP($A$3,'G4-WA'!$A$6:$Z$500,17,FALSE)="","0",VLOOKUP($A$3,'G4-WA'!$A$6:$Z$500,17,FALSE)),"Not Test") -> 224
A47: Am. Indian | B47: =IFERROR(VLOOKUP(TEXT($A$3,"0000"),MEM_I!$A$2:$O$500,8,FALSE),0) -> 16 | C47: =IF(OR(B47=0,B47="",B47="NA"),"NA",IF(VLOOKUP($A$3,'G4-WI'!$A$6:$Z$500,3,FALSE)>B47,"100% ("&VLOOKUP($A$3,'G4-WI'!$A$6:$Z$500,3,FALSE)&")",ROUND(VLOOKUP($A$3,'G4-WI'!$A$6:$Z$500,3,FALSE)/B47*100,0)&"%("&VLOOKUP($A$3,'G4-WI'!$A$6:$Z$500,3,FALSE)&")")) -> 81%(13) | D47: =IFERROR((IF($C47="NA","NA",VLOOKUP($A$3,'G4-WI'!$A$6:$Z$500,4,FALSE))),"NA") -> 1.64 | E47: =IF($D47="NA","NA",ROUND(VLOOKUP($A$3,'G4-WI'!$A$6:$Z$500,6,FALSE),0)&"% ("&VLOOKUP($A$3,'G4-WI'!$A$6:$Z$500,5,FALSE)&")") -> 8% (1) | F47: =IF($D47="NA","NA",ROUND(VLOOKUP($A$3,'G4-WI'!$A$6:$Z$500,8,FALSE),0)&"% ("&VLOOKUP($A$3,'G4-WI'!$A$6:$Z$500,7,FALSE)&")") -> 8% (1) | H47: =IFERROR(IF(VLOOKUP($A$3,'G4-WI'!$A$6:$Z$500,9,FALSE)=0,"NA",VLOOKUP($A$3,'G4-WI'!$A$6:$Z$500,10,FALSE)),"NA") -> 1.461538462 | I47: =IFERROR(IF(H47="NA","NA",VLOOKUP($A$3,'G4-WI'!$A$6:$Z$500,16,FALSE)&"% ("&VLOOKUP($A$3,'G4-WI'!$A$6:$Z$500,12,FALSE)&")"),"") -> 8% (1) | J47: =IFERROR(IF(VLOOKUP($A$3,'G4-WI'!$A$6:$Z$500,17,FALSE)=0,"NA",VLOOKUP($A$3,'G4-WI'!$A$6:$Z$500,18,FALSE)),"NA") -> 1.833333333 | K47: =IFERROR(IF(J47="NA","NA",VLOOKUP($A$3,'G4-WI'!$A$6:$Z$500,24,FALSE)&"% ("&VLOOKUP($A$3,'G4-WI'!$A$6:$Z$500,20,FALSE)&")"),"") -> 25% (3) | P47: =IFERROR(IF(VLOOKUP($A$3,'G4-WI'!$A$6:$Z$500,9,FALSE)="","0",VLOOKUP($A$3,'G4-WI'!$A$6:$Z$500,9,FALSE)),"Not Test") -> 13 | Q47: =IFERROR(IF(VLOOKUP($A$3,'G4-WI'!$A$6:$Z$500,17,FALSE)="","0",VLOOKUP($A$3,'G4-WI'!$A$6:$Z$500,17,FALSE)),"Not Test") -> 12
A48: ED | B48: =IFERROR(VLOOKUP(TEXT($A$3,"0000"),MEM_ED!$A$2:$O$500,8,FALSE),0) -> 19541 | C48: =IF(OR(B48=0,B48="",B48="NA"),"NA",IF(VLOOKUP($A$3,'G4-WED'!$A$6:$Z$500,3,FALSE)>B48,"100% ("&VLOOKUP($A$3,'G4-WED'!$A$6:$Z$500,3,FALSE)&")",ROUND(VLOOKUP($A$3,'G4-WED'!$A$6:$Z$500,3,FALSE)/B48*100,0)&"%("&VLOOKUP($A$3,'G4-WED'!$A$6:$Z$500,3,FALSE)&")")) -> 72%(14070) | D48: =IFERROR((IF($C48="NA","NA",VLOOKUP($A$3,'G4-WED'!$A$6:$Z$500,4,FALSE))),"NA") -> 1.367246564 | E48: =IF($D48="NA","NA",ROUND(VLOOKUP($A$3,'G4-WED'!$A$6:$Z$500,6,FALSE),0)&"% ("&VLOOKUP($A$3,'G4-WED'!$A$6:$Z$500,5,FALSE)&")") -> 9% (1305) | F48: =IF($D48="NA","NA",ROUND(VLOOKUP($A$3,'G4-WED'!$A$6:$Z$500,8,FALSE),0)&"% ("&VLOOKUP($A$3,'G4-WED'!$A$6:$Z$500,7,FALSE)&")") -> 1% (192) | H48: =IFERROR(IF(VLOOKUP($A$3,'G4-WED'!$A$6:$Z$500,9,FALSE)=0,"NA",VLOOKUP($A$3,'G4-WED'!$A$6:$Z$500,10,FALSE)),"NA") -> 1.348315565 | I48: =IFERROR(IF(H48="NA","NA",VLOOKUP($A$3,'G4-WED'!$A$6:$Z$500,16,FALSE)&"% ("&VLOOKUP($A$3,'G4-WED'!$A$6:$Z$500,12,FALSE)&")"),"") -> 10% (1348) | J48: =IFERROR(IF(VLOOKUP($A$3,'G4-WED'!$A$6:$Z$500,17,FALSE)=0,"NA",VLOOKUP($A$3,'G4-WED'!$A$6:$Z$500,18,FALSE)),"NA") -> 1.38645608 | K48: =IFERROR(IF(J48="NA","NA",VLOOKUP($A$3,'G4-WED'!$A$6:$Z$500,24,FALSE)&"% ("&VLOOKUP($A$3,'G4-WED'!$A$6:$Z$500,20,FALSE)&")"),"") -> 12% (1626) | P48: =IFERROR(IF(VLOOKUP($A$3,'G4-WED'!$A$6:$Z$500,9,FALSE)="","0",VLOOKUP($A$3,'G4-WED'!$A$6:$Z$500,9,FALSE)),"Not Test") -> 14070 | Q48: =IFERROR(IF(VLOOKUP($A$3,'G4-WED'!$A$6:$Z$500,17,FALSE)="","0",VLOOKUP($A$3,'G4-WED'!$A$6:$Z$500,17,FALSE)),"Not Test") -> 13866
A49: ELL | B49: =IFERROR(VLOOKUP(TEXT($A$3,"0000"),MEM_ELL!$A$2:$O$500,8,FALSE),0) -> 9739 | C49: =IF(OR(B49=0,B49="",B49="NA"),"NA",IF(VLOOKUP($A$3,'G4-WELL'!$A$6:$Z$500,3,FALSE)>B49,"100% ("&VLOOKUP($A$3,'G4-WELL'!$A$6:$Z$500,3,FALSE)&")",ROUND(VLOOKUP($A$3,'G4-WELL'!$A$6:$Z$500,3,FALSE)/B49*100,0)&"%("&VLOOKUP($A$3,'G4-WELL'!$A$6:$Z$500,3,FALSE)&")")) -> 74%(7234) | D49: =IFERROR((IF($C49="NA","NA",VLOOKUP($A$3,'G4-WELL'!$A$6:$Z$500,4,FALSE))),"NA") -> 0.8971852468 | E49: =IF($D49="NA","NA",ROUND(VLOOKUP($A$3,'G4-WELL'!$A$6:$Z$500,6,FALSE),0)&"% ("&VLOOKUP($A$3,'G4-WELL'!$A$6:$Z$500,5,FALSE)&")") -> 1% (53) | F49: =IF($D49="NA","NA",ROUND(VLOOKUP($A$3,'G4-WELL'!$A$6:$Z$500,8,FALSE),0)&"% ("&VLOOKUP($A$3,'G4-WELL'!$A$6:$Z$500,7,FALSE)&")") -> 0% (7) | H49: =IFERROR(IF(VLOOKUP($A$3,'G4-WELL'!$A$6:$Z$500,9,FALSE)=0,"NA",VLOOKUP($A$3,'G4-WELL'!$A$6:$Z$500,10,FALSE)),"NA") -> 1.205841446 | I49: =IFERROR(IF(H49="NA","NA",VLOOKUP($A$3,'G4-WELL'!$A$6:$Z$500,16,FALSE)&"% ("&VLOOKUP($A$3,'G4-WELL'!$A$6:$Z$500,12,FALSE)&")"),"") -> 1% (52) | J49: =IFERROR(IF(VLOOKUP($A$3,'G4-WELL'!$A$6:$Z$500,17,FALSE)=0,"NA",VLOOKUP($A$3,'G4-WELL'!$A$6:$Z$500,18,FALSE)),"NA") -> 0.5904064142 | K49: =IFERROR(IF(J49="NA","NA",VLOOKUP($A$3,'G4-WELL'!$A$6:$Z$500,24,FALSE)&"% ("&VLOOKUP($A$3,'G4-WELL'!$A$6:$Z$500,20,FALSE)&")"),"") -> 1% (68) | P49: =IFERROR(IF(VLOOKUP($A$3,'G4-WELL'!$A$6:$Z$500,9,FALSE)="","0",VLOOKUP($A$3,'G4-WELL'!$A$6:$Z$500,9,FALSE)),"Not Test") -> 7190 | Q49: =IFERROR(IF(VLOOKUP($A$3,'G4-WELL'!$A$6:$Z$500,17,FALSE)="","0",VLOOKUP($A$3,'G4-WELL'!$A$6:$Z$500,17,FALSE)),"Not Test") -> 7234
A50: SWD | B50: =IFERROR(VLOOKUP(TEXT($A$3,"0000"),MEM_SWD!$A$2:$O$500,8,FALSE),0) -> 2335 | C50: =IF(OR(B50=0,B50="",B50="NA"),"NA",IF(VLOOKUP($A$3,'G4-WSWD'!$A$6:$Z$500,3,FALSE)>B50,"100% ("&VLOOKUP($A$3,'G4-WSWD'!$A$6:$Z$500,3,FALSE)&")",ROUND(VLOOKUP($A$3,'G4-WSWD'!$A$6:$Z$500,3,FALSE)/B50*100,0)&"%("&VLOOKUP($A$3,'G4-WSWD'!$A$6:$Z$500,3,FALSE)&")")) -> 64%(1492) | D50: =IFERROR((IF($C50="NA","NA",VLOOKUP($A$3,'G4-WSWD'!$A$6:$Z$500,4,FALSE))),"NA") -> 0.9934797297 | E50: =IF($D50="NA","NA",ROUND(VLOOKUP($A$3,'G4-WSWD'!$A$6:$Z$500,6,FALSE),0)&"% ("&VLOOKUP($A$3,'G4-WSWD'!$A$6:$Z$500,5,FALSE)&")") -> 4% (53) | F50: =IF($D50="NA","NA",ROUND(VLOOKUP($A$3,'G4-WSWD'!$A$6:$Z$500,8,FALSE),0)&"% ("&VLOOKUP($A$3,'G4-WSWD'!$A$6:$Z$500,7,FALSE)&")") -> 0% (7) | H50: =IFERROR(IF(VLOOKUP($A$3,'G4-WSWD'!$A$6:$Z$500,9,FALSE)=0,"NA",VLOOKUP($A$3,'G4-WSWD'!$A$6:$Z$500,10,FALSE)),"NA") -> 0.9650134048 | I50: =IFERROR(IF(H50="NA","NA",VLOOKUP($A$3,'G4-WSWD'!$A$6:$Z$500,16,FALSE)&"% ("&VLOOKUP($A$3,'G4-WSWD'!$A$6:$Z$500,12,FALSE)&")"),"") -> 3% (51) | J50: =IFERROR(IF(VLOOKUP($A$3,'G4-WSWD'!$A$6:$Z$500,17,FALSE)=0,"NA",VLOOKUP($A$3,'G4-WSWD'!$A$6:$Z$500,18,FALSE)),"NA") -> 1.022411444 | K50: =IFERROR(IF(J50="NA","NA",VLOOKUP($A$3,'G4-WSWD'!$A$6:$Z$500,24,FALSE)&"% ("&VLOOKUP($A$3,'G4-WSWD'!$A$6:$Z$500,20,FALSE)&")"),"") -> 5% (68) | P50: =IFERROR(IF(VLOOKUP($A$3,'G4-WSWD'!$A$6:$Z$500,9,FALSE)="","0",VLOOKUP($A$3,'G4-WSWD'!$A$6:$Z$500,9,FALSE)),"Not Test") -> 1492 | Q50: =IFERROR(IF(VLOOKUP($A$3,'G4-WSWD'!$A$6:$Z$500,17,FALSE)="","0",VLOOKUP($A$3,'G4-WSWD'!$A$6:$Z$500,17,FALSE)),"Not Test") -> 1468

Sheet Grade 5 Report
A2: Click here to return to the school and sheet selection interface
A3: ='Select School'!B3 -> 9999
A4: =TEXT(A3,"0000")&"-"&VLOOKUP(A3,SchList!$A$2:$B$504,2,FALSE) -> 9999-District
A5: Reading - Grade 5
A6: Level of Proficiency at 70% or above | B6: Total # of Students | C6: % of Students Tested | D6: ='G3-5 Matrix'!C2&" ["&'G3-5 Matrix'!C7&"]" -> Overall [43] | F6: ='G3-5 Matrix'!D2&" ["&'G3-5 Matrix'!D7&"]" -> Vocabulary [7] | H6: ='G3-5 Matrix'!E2&" ["&'G3-5 Matrix'!E7&"]" -> Reading Application [23] | J6: ='G3-5 Matrix'!F2&" ["&'G3-5 Matrix'!F7&"]" -> Literary Analysis Fiction/Nonfiction [8] | L6: ='G3-5 Matrix'!G2&" ["&'G3-5 Matrix'!G7&"]" -> Informational Text/ Research Process [5]
D7: Average Score | E7: % Proficient | F7: Average Score | G7: % Proficient | H7: Average Score | I7: % Proficient | J7: Average Score | K7: % Proficient | L7: Average Score | M7: % Proficient
A8: All students | B8: =IFERROR(VLOOKUP(TEXT($A$3,"0000"),Mem_All!$A$3:$O$501,9,FALSE),0) -> 25424 | C8: =IFERROR((IF(OR(B8=0,B8="",B8="NA"),"NA",((IF(VLOOKUP($A$3,'G5-RALL'!$A$6:$AM$500,3,FALSE)>=B8,"100% ("&VLOOKUP($A$3,'G5-RALL'!$A$6:$AM$500,3,FALSE)&")",(ROUND((VLOOKUP($A$3,'G5-RALL'!$A$6:$AM$500,3,FALSE)/B8*100),0))&"% ("&IF(VLOOKUP($A$3,'G5-RALL'!$A$6:$AM$500,3,FALSE)="",0,VLOOKUP($A$3,'G5-RALL'!$A$6:$AM$500,3,FALSE))&")"))))),"0% (0)") -> 95% (24192) | D8: =IFERROR((IF($C8="NA","NA",VLOOKUP($A$3,'G5-RALL'!$A$6:$AM$500,4,FALSE))),"NA") -> 26.77624421 | E8: =IFERROR((IF($C8="NA","NA",ROUND(VLOOKUP($A$3,'G5-RALL'!$A$6:$AM$500,6,FALSE),0)&"% ("&IF(VLOOKUP($A$3,'G5-RALL'!$A$6:$AM$500,5,FALSE)="",0,VLOOKUP($A$3,'G5-RALL'!$A$6:$AM$500,5,FALSE))&")")),"NA") -> 38% (9290) | F8: =IFERROR((IF($C8="NA","NA",VLOOKUP($A$3,'G5-RALL'!$A$6:$AM$500,7,FALSE))),"NA") -> 4.638115906 | G8: =IFERROR((IF($C8="NA","NA",ROUND(VLOOKUP($A$3,'G5-RALL'!$A$6:$AM$500,9,FALSE),0)&"% ("&IF(VLOOKUP($A$3,'G5-RALL'!$A$6:$AM$500,8,FALSE)="",0,VLOOKUP($A$3,'G5-RALL'!$A$6:$AM$500,8,FALSE))&")")),"NA") -> 57% (13878) | H8: =IFERROR((IF($C8="NA","NA",VLOOKUP($A$3,'G5-RALL'!$A$6:$AM$500,10,FALSE))),"NA") -> 14.52320602 | I8: =IFERROR((IF($C8="NA","NA",ROUND(VLOOKUP($A$3,'G5-RALL'!$A$6:$AM$500,12,FALSE),0)&"% ("&IF(VLOOKUP($A$3,'G5-RALL'!$A$6:$AM$500,11,FALSE)="",0,VLOOKUP($A$3,'G5-RALL'!$A$6:$AM$500,11,FALSE))&")")),"NA") -> 40% (9752) | J8: =IFERROR((IF($C8="NA","NA",VLOOKUP($A$3,'G5-RALL'!$A$6:$AM$500,13,FALSE))),"NA") -> 4.472457837 | K8: =IFERROR((IF($C8="NA","NA",ROUND(VLOOKUP($A$3,'G5-RALL'!$A$6:$AM$500,15,FALSE),0)&"% ("&IF(VLOOKUP($A$3,'G5-RALL'!$A$6:$AM$500,14,FALSE)="",0,VLOOKUP($A$3,'G5-RALL'!$A$6:$AM$500,14,FALSE))&")")),"NA") -> 34% (8128) | L8: =IFERROR((IF($C8="NA","NA",VLOOKUP($A$3,'G5-RALL'!$A$6:$AM$500,16,FALSE))),"NA") -> 3.152686839 | M8: =IFERROR((IF($C8="NA","NA",ROUND(VLOOKUP($A$3,'G5-RALL'!$A$6:$AM$500,18,FALSE),0)&"% ("&IF(VLOOKUP($A$3,'G5-RALL'!$A$6:$AM$500,17,FALSE)="",0,VLOOKUP($A$3,'G5-RALL'!$A$6:$AM$500,17,FALSE))&")")),"NA") -> 43% (10334)
A9: FCAT Level 1 | B9: =IFERROR(VLOOKUP(TEXT($A$3,"0000"),MEM_RL1!$A$3:$O$501,6,FALSE),0) -> 3687 | C9: =IFERROR((IF(OR(B9=0,B9="",B9="NA"),"NA",((IF(VLOOKUP($A$3,'G5-RL1'!$A$6:$AM$500,3,FALSE)>=B9,"100% ("&VLOOKUP($A$3,'G5-RL1'!$A$6:$AM$500,3,FALSE)&")",(ROUND((VLOOKUP($A$3,'G5-RL1'!$A$6:$AM$500,3,FALSE)/B9*100),0))&"% ("&IF(VLOOKUP($A$3,'G5-RL1'!$A$6:$AM$500,3,FALSE)="",0,VLOOKUP($A$3,'G5-RL1'!$A$6:$AM$500,3,FALSE))&")"))))),"0% (0)") -> 96% (3549) | D9: =IFERROR((IF($C9="NA","NA",VLOOKUP($A$3,'G5-RL1'!$A$6:$AM$500,4,FALSE))),"NA") -> 15.986306 | E9: =IFERROR((IF($C9="NA","NA",ROUND(VLOOKUP($A$3,'G5-RL1'!$A$6:$AM$500,6,FALSE),0)&"% ("&IF(VLOOKUP($A$3,'G5-RL1'!$A$6:$AM$500,5,FALSE)="",0,VLOOKUP($A$3,'G5-RL1'!$A$6:$AM$500,5,FALSE))&")")),"NA") -> 1% (18) | F9: =IFERROR((IF($C9="NA","NA",VLOOKUP($A$3,'G5-RL1'!$A$6:$AM$500,7,FALSE))),"NA") -> 2.900873485 | G9: =IFERROR((IF($C9="NA","NA",ROUND(VLOOKUP($A$3,'G5-RL1'!$A$6:$AM$500,9,FALSE),0)&"% ("&IF(VLOOKUP($A$3,'G5-RL1'!$A$6:$AM$500,8,FALSE)="",0,VLOOKUP($A$3,'G5-RL1'!$A$6:$AM$500,8,FALSE))&")")),"NA") -> 14% (503) | H9: =IFERROR((IF($C9="NA","NA",VLOOKUP($A$3,'G5-RL1'!$A$6:$AM$500,10,FALSE))),"NA") -> 8.537644407 | I9: =IFERROR((IF($C9="NA","NA",ROUND(VLOOKUP($A$3,'G5-RL1'!$A$6:$AM$500,12,FALSE),0)&"% ("&IF(VLOOKUP($A$3,'G5-RL1'!$A$6:$AM$500,11,FALSE)="",0,VLOOKUP($A$3,'G5-RL1'!$A$6:$AM$500,11,FALSE))&")")),"NA") -> 1% (36) | J9: =IFERROR((IF($C9="NA","NA",VLOOKUP($A$3,'G5-RL1'!$A$6:$AM$500,13,FALSE))),"NA") -> 2.488391096 | K9: =IFERROR((IF($C9="NA","NA",ROUND(VLOOKUP($A$3,'G5-RL1'!$A$6:$AM$500,15,FALSE),0)&"% ("&IF(VLOOKUP($A$3,'G5-RL1'!$A$6:$AM$500,14,FALSE)="",0,VLOOKUP($A$3,'G5-RL1'!$A$6:$AM$500,14,FALSE))&")")),"NA") -> 2% (73) | L9: =IFERROR((IF($C9="NA","NA",VLOOKUP($A$3,'G5-RL1'!$A$6:$AM$500,16,FALSE))),"NA") -> 2.070216963 | M9: =IFERROR((IF($C9="NA","NA",ROUND(VLOOKUP($A$3,'G5-RL1'!$A$6:$AM$500,18,FALSE),0)&"% ("&IF(VLOOKUP($A$3,'G5-RL1'!$A$6:$AM$500,17,FALSE)="",0,VLOOKUP($A$3,'G5-RL1'!$A$6:$AM$500,17,FALSE))&")")),"NA") -> 11% (390)
A10: FCAT Level 2 | B10: =IFERROR(VLOOKUP(TEXT($A$3,"0000"),MEM_RL2!$A$3:$O$501,6,FALSE),0) -> 5982 | C10: =IFERROR((IF(OR(B10=0,B10="",B10="NA"),"NA",((IF(VLOOKUP($A$3,'G5-RL2'!$A$6:$AM$500,3,FALSE)>=B10,"100% ("&VLOOKUP($A$3,'G5-RL2'!$A$6:$AM$500,3,FALSE)&")",(ROUND((VLOOKUP($A$3,'G5-RL2'!$A$6:$AM$500,3,FALSE)/B10*100),0))&"% ("&IF(VLOOKUP($A$3,'G5-RL2'!$A$6:$AM$500,3,FALSE)="",0,VLOOKUP($A$3,'G5-RL2'!$A$6:$AM$500,3,FALSE))&")"))))),"0% (0)") -> 97% (5795) | D10: =IFERROR((IF($C10="NA","NA",VLOOKUP($A$3,'G5-RL2'!$A$6:$AM$500,4,FALSE))),"NA") -> 22.55188956 | E10: =IFERROR((IF($C10="NA","NA",ROUND(VLOOKUP($A$3,'G5-RL2'!$A$6:$AM$500,6,FALSE),0)&"% ("&IF(VLOOKUP($A$3,'G5-RL2'!$A$6:$AM$500,5,FALSE)="",0,VLOOKUP($A$3,'G5-RL2'!$A$6:$AM$500,5,FALSE))&")")),"NA") -> 7% (395) | F10: =IFERROR((IF($C10="NA","NA",VLOOKUP($A$3,'G5-RL2'!$A$6:$AM$500,7,FALSE))),"NA") -> 4.134909405 | G10: =IFERROR((IF($C10="NA","NA",ROUND(VLOOKUP($A$3,'G5-RL2'!$A$6:$AM$500,9,FALSE),0)&"% ("&IF(VLOOKUP($A$3,'G5-RL2'!$A$6:$AM$500,8,FALSE)="",0,VLOOKUP($A$3,'G5-RL2'!$A$6:$AM$500,8,FALSE))&")")),"NA") -> 40% (2328) | H10: =IFERROR((IF($C10="NA","NA",VLOOKUP($A$3,'G5-RL2'!$A$6:$AM$500,10,FALSE))),"NA") -> 12.13409836 | I10: =IFERROR((IF($C10="NA","NA",ROUND(VLOOKUP($A$3,'G5-RL2'!$A$6:$AM$500,12,FALSE),0)&"% ("&IF(VLOOKUP($A$3,'G5-RL2'!$A$6:$AM$500,11,FALSE)="",0,VLOOKUP($A$3,'G5-RL2'!$A$6:$AM$500,11,FALSE))&")")),"NA") -> 11% (629) | J10: =IFERROR((IF($C10="NA","NA",VLOOKUP($A$3,'G5-RL2'!$A$6:$AM$500,13,FALSE))),"NA") -> 3.604797239 | K10: =IFERROR((IF($C10="NA","NA",ROUND(VLOOKUP($A$3,'G5-RL2'!$A$6:$AM$500,15,FALSE),0)&"% ("&IF(VLOOKUP($A$3,'G5-RL2'!$A$6:$AM$500,14,FALSE)="",0,VLOOKUP($A$3,'G5-RL2'!$A$6:$AM$500,14,FALSE))&")")),"NA") -> 11% (654) | L10: =IFERROR((IF($C10="NA","NA",VLOOKUP($A$3,'G5-RL2'!$A$6:$AM$500,16,FALSE))),"NA") -> 2.690060397 | M10: =IFERROR((IF($C10="NA","NA",ROUND(VLOOKUP($A$3,'G5-RL2'!$A$6:$AM$500,18,FALSE),0)&"% ("&IF(VLOOKUP($A$3,'G5-RL2'!$A$6:$AM$500,17,FALSE)="",0,VLOOKUP($A$3,'G5-RL2'!$A$6:$AM$500,17,FALSE))&")")),"NA") -> 25% (1440)
A11: FCAT Level 3 | B11: =IFERROR(VLOOKUP(TEXT($A$3,"0000"),MEM_RL3!$A$3:$O$501,6,FALSE),0) -> 6191 | C11: =IFERROR((IF(OR(B11=0,B11="",B11="NA"),"NA",((IF(VLOOKUP($A$3,'G5-RL3'!$A$6:$AM$500,3,FALSE)>=B11,"100% ("&VLOOKUP($A$3,'G5-RL3'!$A$6:$AM$500,3,FALSE)&")",(ROUND((VLOOKUP($A$3,'G5-RL3'!$A$6:$AM$500,3,FALSE)/B11*100),0))&"% ("&IF(VLOOKUP($A$3,'G5-RL3'!$A$6:$AM$500,3,FALSE)="",0,VLOOKUP($A$3,'G5-RL3'!$A$6:$AM$500,3,FALSE))&")"))))),"0% (0)") -> 96% (5959) | D11: =IFERROR((IF($C11="NA","NA",VLOOKUP($A$3,'G5-RL3'!$A$6:$AM$500,4,FALSE))),"NA") -> 28.02955194 | E11: =IFERROR((IF($C11="NA","NA",ROUND(VLOOKUP($A$3,'G5-RL3'!$A$6:$AM$500,6,FALSE),0)&"% ("&IF(VLOOKUP($A$3,'G5-RL3'!$A$6:$AM$500,5,FALSE)="",0,VLOOKUP($A$3,'G5-RL3'!$A$6:$AM$500,5,FALSE))&")")),"NA") -> 36% (2127) | F11: =IFERROR((IF($C11="NA","NA",VLOOKUP($A$3,'G5-RL3'!$A$6:$AM$500,7,FALSE))),"NA") -> 4.816898809 | G11: =IFERROR((IF($C11="NA","NA",ROUND(VLOOKUP($A$3,'G5-RL3'!$A$6:$AM$500,9,FALSE),0)&"% ("&IF(VLOOKUP($A$3,'G5-RL3'!$A$6:$AM$500,8,FALSE)="",0,VLOOKUP($A$3,'G5-RL3'!$A$6:$AM$500,8,FALSE))&")")),"NA") -> 62% (3687) | H11: =IFERROR((IF($C11="NA","NA",VLOOKUP($A$3,'G5-RL3'!$A$6:$AM$500,10,FALSE))),"NA") -> 15.24549421 | I11: =IFERROR((IF($C11="NA","NA",ROUND(VLOOKUP($A$3,'G5-RL3'!$A$6:$AM$500,12,FALSE),0)&"% ("&IF(VLOOKUP($A$3,'G5-RL3'!$A$6:$AM$500,11,FALSE)="",0,VLOOKUP($A$3,'G5-RL3'!$A$6:$AM$500,11,FALSE))&")")),"NA") -> 40% (2358) | J11: =IFERROR((IF($C11="NA","NA",VLOOKUP($A$3,'G5-RL3'!$A$6:$AM$500,13,FALSE))),"NA") -> 4.677513006 | K11: =IFERROR((IF($C11="NA","NA",ROUND(VLOOKUP($A$3,'G5-RL3'!$A$6:$AM$500,15,FALSE),0)&"% ("&IF(VLOOKUP($A$3,'G5-RL3'!$A$6:$AM$500,14,FALSE)="",0,VLOOKUP($A$3,'G5-RL3'!$A$6:$AM$500,14,FALSE))&")")),"NA") -> 32% (1894) | L11: =IFERROR((IF($C11="NA","NA",VLOOKUP($A$3,'G5-RL3'!$A$6:$AM$500,16,FALSE))),"NA") -> 3.292867931 | M11: =IFERROR((IF($C11="NA","NA",ROUND(VLOOKUP($A$3,'G5-RL3'!$A$6:$AM$500,18,FALSE),0)&"% ("&IF(VLOOKUP($A$3,'G5-RL3'!$A$6:$AM$500,17,FALSE)="",0,VLOOKUP($A$3,'G5-RL3'!$A$6:$AM$500,17,FALSE))&")")),"NA") -> 45% (2667)
A12: FCAT Level 4 | B12: =IFERROR(VLOOKUP(TEXT($A$3,"0000"),MEM_RL4!$A$3:$O$501,6,FALSE),0) -> 6005 | C12: =IFERROR((IF(OR(B12=0,B12="",B12="NA"),"NA",((IF(VLOOKUP($A$3,'G5-RL4'!$A$6:$AM$500,3,FALSE)>=B12,"100% ("&VLOOKUP($A$3,'G5-RL4'!$A$6:$AM$500,3,FALSE)&")",(ROUND((VLOOKUP($A$3,'G5-RL4'!$A$6:$AM$500,3,FALSE)/B12*100),0))&"% ("&IF(VLOOKUP($A$3,'G5-RL4'!$A$6:$AM$500,3,FALSE)="",0,VLOOKUP($A$3,'G5-RL4'!$A$6:$AM$500,3,FALSE))&")"))))),"0% (0)") -> 96% (5776) | D12: =IFERROR((IF($C12="NA","NA",VLOOKUP($A$3,'G5-RL4'!$A$6:$AM$500,4,FALSE))),"NA") -> 33.17086219 | E12: =IFERROR((IF($C12="NA","NA",ROUND(VLOOKUP($A$3,'G5-RL4'!$A$6:$AM$500,6,FALSE),0)&"% ("&IF(VLOOKUP($A$3,'G5-RL4'!$A$6:$AM$500,5,FALSE)="",0,VLOOKUP($A$3,'G5-RL4'!$A$6:$AM$500,5,FALSE))&")")),"NA") -> 76% (4397) | F12: =IFERROR((IF($C12="NA","NA",VLOOKUP($A$3,'G5-RL4'!$A$6:$AM$500,7,FALSE))),"NA") -> 5.551679363 | G12: =IFERROR((IF($C12="NA","NA",ROUND(VLOOKUP($A$3,'G5-RL4'!$A$6:$AM$500,9,FALSE),0)&"% ("&IF(VLOOKUP($A$3,'G5-RL4'!$A$6:$AM$500,8,FALSE)="",0,VLOOKUP($A$3,'G5-RL4'!$A$6:$AM$500,8,FALSE))&")")),"NA") -> 84% (4873) | H12: =IFERROR((IF($C12="NA","NA",VLOOKUP($A$3,'G5-RL4'!$A$6:$AM$500,10,FALSE))),"NA") -> 18.12164127 | I12: =IFERROR((IF($C12="NA","NA",ROUND(VLOOKUP($A$3,'G5-RL4'!$A$6:$AM$500,12,FALSE),0)&"% ("&IF(VLOOKUP($A$3,'G5-RL4'!$A$6:$AM$500,11,FALSE)="",0,VLOOKUP($A$3,'G5-RL4'!$A$6:$AM$500,11,FALSE))&")")),"NA") -> 76% (4400) | J12: =IFERROR((IF($C12="NA","NA",VLOOKUP($A$3,'G5-RL4'!$A$6:$AM$500,13,FALSE))),"NA") -> 5.689525623 | K12: =IFERROR((IF($C12="NA","NA",ROUND(VLOOKUP($A$3,'G5-RL4'!$A$6:$AM$500,15,FALSE),0)&"% ("&IF(VLOOKUP($A$3,'G5-RL4'!$A$6:$AM$500,14,FALSE)="",0,VLOOKUP($A$3,'G5-RL4'!$A$6:$AM$500,14,FALSE))&")")),"NA") -> 60% (3460) | L12: =IFERROR((IF($C12="NA","NA",VLOOKUP($A$3,'G5-RL4'!$A$6:$AM$500,16,FALSE))),"NA") -> 3.811945983 | M12: =IFERROR((IF($C12="NA","NA",ROUND(VLOOKUP($A$3,'G5-RL4'!$A$6:$AM$500,18,FALSE),0)&"% ("&IF(VLOOKUP($A$3,'G5-RL4'!$A$6:$AM$500,17,FALSE)="",0,VLOOKUP($A$3,'G5-RL4'!$A$6:$AM$500,17,FALSE))&")")),"NA") -> 65% (3780)
A13: FCAT Level 5 | B13: =IFERROR(VLOOKUP(TEXT($A$3,"0000"),MEM_RL5!$A$3:$O$501,5,FALSE),0) -> 2381 | C13: =IFERROR((IF(OR(B13=0,B13="",B13="NA"),"NA",((IF(VLOOKUP($A$3,'G5-RL5'!$A$6:$AM$500,3,FALSE)>=B13,"100% ("&VLOOKUP($A$3,'G5-RL5'!$A$6:$AM$500,3,FALSE)&")",(ROUND((VLOOKUP($A$3,'G5-RL5'!$A$6:$AM$500,3,FALSE)/B13*100),0))&"% ("&IF(VLOOKUP($A$3,'G5-RL5'!$A$6:$AM$500,3,FALSE)="",0,VLOOKUP($A$3,'G5-RL5'!$A$6:$AM$500,3,FALSE))&")"))))),"0% (0)") -> 96% (2297) | D13: =IFERROR((IF($C13="NA","NA",VLOOKUP($A$3,'G5-RL5'!$A$6:$AM$500,4,FALSE))),"NA") -> 36.96543317 | E13: =IFERROR((IF($C13="NA","NA",ROUND(VLOOKUP($A$3,'G5-RL5'!$A$6:$AM$500,6,FALSE),0)&"% ("&IF(VLOOKUP($A$3,'G5-RL5'!$A$6:$AM$500,5,FALSE)="",0,VLOOKUP($A$3,'G5-RL5'!$A$6:$AM$500,5,FALSE))&")")),"NA") -> 96% (2194) | F13: =IFERROR((IF($C13="NA","NA",VLOOKUP($A$3,'G5-RL5'!$A$6:$AM$500,7,FALSE))),"NA") -> 6.201959077 | G13: =IFERROR((IF($C13="NA","NA",ROUND(VLOOKUP($A$3,'G5-RL5'!$A$6:$AM$500,9,FALSE),0)&"% ("&IF(VLOOKUP($A$3,'G5-RL5'!$A$6:$AM$500,8,FALSE)="",0,VLOOKUP($A$3,'G5-RL5'!$A$6:$AM$500,8,FALSE))&")")),"NA") -> 96% (2203) | H13: =IFERROR((IF($C13="NA","NA",VLOOKUP($A$3,'G5-RL5'!$A$6:$AM$500,10,FALSE))),"NA") -> 20.12951676 | I13: =IFERROR((IF($C13="NA","NA",ROUND(VLOOKUP($A$3,'G5-RL5'!$A$6:$AM$500,12,FALSE),0)&"% ("&IF(VLOOKUP($A$3,'G5-RL5'!$A$6:$AM$500,11,FALSE)="",0,VLOOKUP($A$3,'G5-RL5'!$A$6:$AM$500,11,FALSE))&")")),"NA") -> 94% (2169) | J13: =IFERROR((IF($C13="NA","NA",VLOOKUP($A$3,'G5-RL5'!$A$6:$AM$500,13,FALSE))),"NA") -> 6.451371354 | K13: =IFERROR((IF($C13="NA","NA",ROUND(VLOOKUP($A$3,'G5-RL5'!$A$6:$AM$500,15,FALSE),0)&"% ("&IF(VLOOKUP($A$3,'G5-RL5'!$A$6:$AM$500,14,FALSE)="",0,VLOOKUP($A$3,'G5-RL5'!$A$6:$AM$500,14,FALSE))&")")),"NA") -> 82% (1876) | L13: =IFERROR((IF($C13="NA","NA",VLOOKUP($A$3,'G5-RL5'!$A$6:$AM$500,16,FALSE))),"NA") -> 4.201218981 | M13: =IFERROR((IF($C13="NA","NA",ROUND(VLOOKUP($A$3,'G5-RL5'!$A$6:$AM$500,18,FALSE),0)&"% ("&IF(VLOOKUP($A$3,'G5-RL5'!$A$6:$AM$500,17,FALSE)="",0,VLOOKUP($A$3,'G5-RL5'!$A$6:$AM$500,17,FALSE))&")")),"NA") -> 80% (1848)
A14: White | B14: =IFERROR(VLOOKUP(TEXT($A$3,"0000"),MEM_W!$A$3:$O$501,9,FALSE),0) -> 2134 | C14: =IFERROR((IF(OR(B14=0,B14="",B14="NA"),"NA",((IF(VLOOKUP($A$3,'G5-RW'!$A$6:$AM$500,3,FALSE)>=B14,"100% ("&VLOOKUP($A$3,'G5-RW'!$A$6:$AM$500,3,FALSE)&")",(ROUND((VLOOKUP($A$3,'G5-RW'!$A$6:$AM$500,3,FALSE)/B14*100),0))&"% ("&IF(VLOOKUP($A$3,'G5-RW'!$A$6:$AM$500,3,FALSE)="",0,VLOOKUP($A$3,'G5-RW'!$A$6:$AM$500,3,FALSE))&")"))))),"0% (0)") -> 94% (2001) | D14: =IFERROR((IF($C14="NA","NA",VLOOKUP($A$3,'G5-RW'!$A$6:$AM$500,4,FALSE))),"NA") -> 30.84757621 | E14: =IFERROR((IF($C14="NA","NA",ROUND(VLOOKUP($A$3,'G5-RW'!$A$6:$AM$500,6,FALSE),0)&"% ("&IF(VLOOKUP($A$3,'G5-RW'!$A$6:$AM$500,5,FALSE)="",0,VLOOKUP($A$3,'G5-RW'!$A$6:$AM$500,5,FALSE))&")")),"NA") -> 60% (1194) | F14: =IFERROR((IF($C14="NA","NA",VLOOKUP($A$3,'G5-RW'!$A$6:$AM$500,7,FALSE))),"NA") -> 5.322488756 | G14: =IFERROR((IF($C14="NA","NA",ROUND(VLOOKUP($A$3,'G5-RW'!$A$6:$AM$500,9,FALSE),0)&"% ("&IF(VLOOKUP($A$3,'G5-RW'!$A$6:$AM$500,8,FALSE)="",0,VLOOKUP($A$3,'G5-RW'!$A$6:$AM$500,8,FALSE))&")")),"NA") -> 75% (1510) | H14: =IFERROR((IF($C14="NA","NA",VLOOKUP($A$3,'G5-RW'!$A$6:$AM$500,10,FALSE))),"NA") -> 16.67356322 | I14: =IFERROR((IF($C14="NA","NA",ROUND(VLOOKUP($A$3,'G5-RW'!$A$6:$AM$500,12,FALSE),0)&"% ("&IF(VLOOKUP($A$3,'G5-RW'!$A$6:$AM$500,11,FALSE)="",0,VLOOKUP($A$3,'G5-RW'!$A$6:$AM$500,11,FALSE))&")")),"NA") -> 61% (1225) | J14: =IFERROR((IF($C14="NA","NA",VLOOKUP($A$3,'G5-RW'!$A$6:$AM$500,13,FALSE))),"NA") -> 5.279010495 | K14: =IFERROR((IF($C14="NA","NA",ROUND(VLOOKUP($A$3,'G5-RW'!$A$6:$AM$500,15,FALSE),0)&"% ("&IF(VLOOKUP($A$3,'G5-RW'!$A$6:$AM$500,14,FALSE)="",0,VLOOKUP($A$3,'G5-RW'!$A$6:$AM$500,14,FALSE))&")")),"NA") -> 51% (1024) | L14: =IFERROR((IF($C14="NA","NA",VLOOKUP($A$3,'G5-RW'!$A$6:$AM$500,16,FALSE))),"NA") -> 3.568265867 | M14: =IFERROR((IF($C14="NA","NA",ROUND(VLOOKUP($A$3,'G5-RW'!$A$6:$AM$500,18,FALSE),0)&"% ("&IF(VLOOKUP($A$3,'G5-RW'!$A$6:$AM$500,17,FALSE)="",0,VLOOKUP($A$3,'G5-RW'!$A$6:$AM$500,17,FALSE))&")")),"NA") -> 58% (1159)
A15: Black | B15: =IFERROR(VLOOKUP(TEXT($A$3,"0000"),MEM_B!$A$3:$O$501,9,FALSE),0) -> 5756 | C15: =IFERROR((IF(OR(B15=0,B15="",B15="NA"),"NA",((IF(VLOOKUP($A$3,'G5-RB'!$A$6:$AM$500,3,FALSE)>=B15,"100% ("&VLOOKUP($A$3,'G5-RB'!$A$6:$AM$500,3,FALSE)&")",(ROUND((VLOOKUP($A$3,'G5-RB'!$A$6:$AM$500,3,FALSE)/B15*100),0))&"% ("&IF(VLOOKUP($A$3,'G5-RB'!$A$6:$AM$500,3,FALSE)="",0,VLOOKUP($A$3,'G5-RB'!$A$6:$AM$500,3,FALSE))&")"))))),"0% (0)") -> 96% (5522) | D15: =IFERROR((IF($C15="NA","NA",VLOOKUP($A$3,'G5-RB'!$A$6:$AM$500,4,FALSE))),"NA") -> 24.34655922 | E15: =IFERROR((IF($C15="NA","NA",ROUND(VLOOKUP($A$3,'G5-RB'!$A$6:$AM$500,6,FALSE),0)&"% ("&IF(VLOOKUP($A$3,'G5-RB'!$A$6:$AM$500,5,FALSE)="",0,VLOOKUP($A$3,'G5-RB'!$A$6:$AM$500,5,FALSE))&")")),"NA") -> 25% (1357) | F15: =IFERROR((IF($C15="NA","NA",VLOOKUP($A$3,'G5-RB'!$A$6:$AM$500,7,FALSE))),"NA") -> 4.330550525 | G15: =IFERROR((IF($C15="NA","NA",ROUND(VLOOKUP($A$3,'G5-RB'!$A$6:$AM$500,9,FALSE),0)&"% ("&IF(VLOOKUP($A$3,'G5-RB'!$A$6:$AM$500,8,FALSE)="",0,VLOOKUP($A$3,'G5-RB'!$A$6:$AM$500,8,FALSE))&")")),"NA") -> 48% (2661) | H15: =IFERROR((IF($C15="NA","NA",VLOOKUP($A$3,'G5-RB'!$A$6:$AM$500,10,FALSE))),"NA") -> 13.07593263 | I15: =IFERROR((IF($C15="NA","NA",ROUND(VLOOKUP($A$3,'G5-RB'!$A$6:$AM$500,12,FALSE),0)&"% ("&IF(VLOOKUP($A$3,'G5-RB'!$A$6:$AM$500,11,FALSE)="",0,VLOOKUP($A$3,'G5-RB'!$A$6:$AM$500,11,FALSE))&")")),"NA") -> 26% (1444) | J15: =IFERROR((IF($C15="NA","NA",VLOOKUP($A$3,'G5-RB'!$A$6:$AM$500,13,FALSE))),"NA") -> 4.023180007 | K15: =IFERROR((IF($C15="NA","NA",ROUND(VLOOKUP($A$3,'G5-RB'!$A$6:$AM$500,15,FALSE),0)&"% ("&IF(VLOOKUP($A$3,'G5-RB'!$A$6:$AM$500,14,FALSE)="",0,VLOOKUP($A$3,'G5-RB'!$A$6:$AM$500,14,FALSE))&")")),"NA") -> 24% (1305) | L15: =IFERROR((IF($C15="NA","NA",VLOOKUP($A$3,'G5-RB'!$A$6:$AM$500,16,FALSE))),"NA") -> 2.932126041 | M15: =IFERROR((IF($C15="NA","NA",ROUND(VLOOKUP($A$3,'G5-RB'!$A$6:$AM$500,18,FALSE),0)&"% ("&IF(VLOOKUP($A$3,'G5-RB'!$A$6:$AM$500,17,FALSE)="",0,VLOOKUP($A$3,'G5-RB'!$A$6:$AM$500,17,FALSE))&")")),"NA") -> 34% (1880)
A16: Hispanic | B16: =IFERROR(VLOOKUP(TEXT($A$3,"0000"),MEM_H!$A$3:$O$501,9,FALSE),0) -> 17090 | C16: =IFERROR((IF(OR(B16=0,B16="",B16="NA"),"NA",((IF(VLOOKUP($A$3,'G5-RH'!$A$6:$AM$500,3,FALSE)>=B16,"100% ("&VLOOKUP($A$3,'G5-RH'!$A$6:$AM$500,3,FALSE)&")",(ROUND((VLOOKUP($A$3,'G5-RH'!$A$6:$AM$500,3,FALSE)/B16*100),0))&"% ("&IF(VLOOKUP($A$3,'G5-RH'!$A$6:$AM$500,3,FALSE)="",0,VLOOKUP($A$3,'G5-RH'!$A$6:$AM$500,3,FALSE))&")"))))),"0% (0)") -> 95% (16254) | D16: =IFERROR((IF($C16="NA","NA",VLOOKUP($A$3,'G5-RH'!$A$6:$AM$500,4,FALSE))),"NA") -> 27.0031746 | E16: =IFERROR((IF($C16="NA","NA",ROUND(VLOOKUP($A$3,'G5-RH'!$A$6:$AM$500,6,FALSE),0)&"% ("&IF(VLOOKUP($A$3,'G5-RH'!$A$6:$AM$500,5,FALSE)="",0,VLOOKUP($A$3,'G5-RH'!$A$6:$AM$500,5,FALSE))&")")),"NA") -> 40% (6493) | F16: =IFERROR((IF($C16="NA","NA",VLOOKUP($A$3,'G5-RH'!$A$6:$AM$500,7,FALSE))),"NA") -> 4.638033715 | G16: =IFERROR((IF($C16="NA","NA",ROUND(VLOOKUP($A$3,'G5-RH'!$A$6:$AM$500,9,FALSE),0)&"% ("&IF(VLOOKUP($A$3,'G5-RH'!$A$6:$AM$500,8,FALSE)="",0,VLOOKUP($A$3,'G5-RH'!$A$6:$AM$500,8,FALSE))&")")),"NA") -> 58% (9415) | H16: =IFERROR((IF($C16="NA","NA",VLOOKUP($A$3,'G5-RH'!$A$6:$AM$500,10,FALSE))),"NA") -> 14.69241417 | I16: =IFERROR((IF($C16="NA","NA",ROUND(VLOOKUP($A$3,'G5-RH'!$A$6:$AM$500,12,FALSE),0)&"% ("&IF(VLOOKUP($A$3,'G5-RH'!$A$6:$AM$500,11,FALSE)="",0,VLOOKUP($A$3,'G5-RH'!$A$6:$AM$500,11,FALSE))&")")),"NA") -> 42% (6831) | J16: =IFERROR((IF($C16="NA","NA",VLOOKUP($A$3,'G5-RH'!$A$6:$AM$500,13,FALSE))),"NA") -> 4.506650671 | K16: =IFERROR((IF($C16="NA","NA",ROUND(VLOOKUP($A$3,'G5-RH'!$A$6:$AM$500,15,FALSE),0)&"% ("&IF(VLOOKUP($A$3,'G5-RH'!$A$6:$AM$500,14,FALSE)="",0,VLOOKUP($A$3,'G5-RH'!$A$6:$AM$500,14,FALSE))&")")),"NA") -> 34% (5602) | L16: =IFERROR((IF($C16="NA","NA",VLOOKUP($A$3,'G5-RH'!$A$6:$AM$500,16,FALSE))),"NA") -> 3.170167343 | M16: =IFERROR((IF($C16="NA","NA",ROUND(VLOOKUP($A$3,'G5-RH'!$A$6:$AM$500,18,FALSE),0)&"% ("&IF(VLOOKUP($A$3,'G5-RH'!$A$6:$AM$500,17,FALSE)="",0,VLOOKUP($A$3,'G5-RH'!$A$6:$AM$500,17,FALSE))&")")),"NA") -> 43% (7061)
A17: Asian | B17: =IFERROR(VLOOKUP(TEXT($A$3,"0000"),MEM_A!$A$3:$O$501,9,FALSE),0) -> 321 | C17: =IFERROR((IF(OR(B17=0,B17="",B17="NA"),"NA",((IF(VLOOKUP($A$3,'G5-RA'!$A$6:$AM$500,3,FALSE)>=B17,"100% ("&VLOOKUP($A$3,'G5-RA'!$A$6:$AM$500,3,FALSE)&")",(ROUND((VLOOKUP($A$3,'G5-RA'!$A$6:$AM$500,3,FALSE)/B17*100),0))&"% ("&IF(VLOOKUP($A$3,'G5-RA'!$A$6:$AM$500,3,FALSE)="",0,VLOOKUP($A$3,'G5-RA'!$A$6:$AM$500,3,FALSE))&")"))))),"0% (0)") -> 92% (295) | D17: =IFERROR((IF($C17="NA","NA",VLOOKUP($A$3,'G5-RA'!$A$6:$AM$500,4,FALSE))),"NA") -> 31.24779661 | E17: =IFERROR((IF($C17="NA","NA",ROUND(VLOOKUP($A$3,'G5-RA'!$A$6:$AM$500,6,FALSE),0)&"% ("&IF(VLOOKUP($A$3,'G5-RA'!$A$6:$AM$500,5,FALSE)="",0,VLOOKUP($A$3,'G5-RA'!$A$6:$AM$500,5,FALSE))&")")),"NA") -> 62% (184) | F17: =IFERROR((IF($C17="NA","NA",VLOOKUP($A$3,'G5-RA'!$A$6:$AM$500,7,FALSE))),"NA") -> 5.256271186 | G17: =IFERROR((IF($C17="NA","NA",ROUND(VLOOKUP($A$3,'G5-RA'!$A$6:$AM$500,9,FALSE),0)&"% ("&IF(VLOOKUP($A$3,'G5-RA'!$A$6:$AM$500,8,FALSE)="",0,VLOOKUP($A$3,'G5-RA'!$A$6:$AM$500,8,FALSE))&")")),"NA") -> 73% (214) | H17: =IFERROR((IF($C17="NA","NA",VLOOKUP($A$3,'G5-RA'!$A$6:$AM$500,10,FALSE))),"NA") -> 17.04067797 | I17: =IFERROR((IF($C17="NA","NA",ROUND(VLOOKUP($A$3,'G5-RA'!$A$6:$AM$500,12,FALSE),0)&"% ("&IF(VLOOKUP($A$3,'G5-RA'!$A$6:$AM$500,11,FALSE)="",0,VLOOKUP($A$3,'G5-RA'!$A$6:$AM$500,11,FALSE))&")")),"NA") -> 65% (192) | J17: =IFERROR((IF($C17="NA","NA",VLOOKUP($A$3,'G5-RA'!$A$6:$AM$500,13,FALSE))),"NA") -> 5.345762712 | K17: =IFERROR((IF($C17="NA","NA",ROUND(VLOOKUP($A$3,'G5-RA'!$A$6:$AM$500,15,FALSE),0)&"% ("&IF(VLOOKUP($A$3,'G5-RA'!$A$6:$AM$500,14,FALSE)="",0,VLOOKUP($A$3,'G5-RA'!$A$6:$AM$500,14,FALSE))&")")),"NA") -> 50% (148) | L17: =IFERROR((IF($C17="NA","NA",VLOOKUP($A$3,'G5-RA'!$A$6:$AM$500,16,FALSE))),"NA") -> 3.618305085 | M17: =IFERROR((IF($C17="NA","NA",ROUND(VLOOKUP($A$3,'G5-RA'!$A$6:$AM$500,18,FALSE),0)&"% ("&IF(VLOOKUP($A$3,'G5-RA'!$A$6:$AM$500,17,FALSE)="",0,VLOOKUP($A$3,'G5-RA'!$A$6:$AM$500,17,FALSE))&")")),"NA") -> 60% (178)
A18: Am. Indian | B18: =IFERROR(VLOOKUP(TEXT($A$3,"0000"),MEM_I!$A$3:$O$501,9,FALSE),0) -> 25 | C18: =IFERROR((IF(OR(B18=0,B18="",B18="NA"),"NA",((IF(VLOOKUP($A$3,'G5-RI'!$A$6:$AM$500,3,FALSE)>=B18,"100% ("&VLOOKUP($A$3,'G5-RI'!$A$6:$AM$500,3,FALSE)&")",(ROUND((VLOOKUP($A$3,'G5-RI'!$A$6:$AM$500,3,FALSE)/B18*100),0))&"% ("&IF(VLOOKUP($A$3,'G5-RI'!$A$6:$AM$500,3,FALSE)="",0,VLOOKUP($A$3,'G5-RI'!$A$6:$AM$500,3,FALSE))&")"))))),"0% (0)") -> 96% (24) | D18: =IFERROR((IF($C18="NA","NA",VLOOKUP($A$3,'G5-RI'!$A$6:$AM$500,4,FALSE))),"NA") -> 26.83333333 | E18: =IFERROR((IF($C18="NA","NA",ROUND(VLOOKUP($A$3,'G5-RI'!$A$6:$AM$500,6,FALSE),0)&"% ("&IF(VLOOKUP($A$3,'G5-RI'!$A$6:$AM$500,5,FALSE)="",0,VLOOKUP($A$3,'G5-RI'!$A$6:$AM$500,5,FALSE))&")")),"NA") -> 38% (9) | F18: =IFERROR((IF($C18="NA","NA",VLOOKUP($A$3,'G5-RI'!$A$6:$AM$500,7,FALSE))),"NA") -> 4.791666667 | G18: =IFERROR((IF($C18="NA","NA",ROUND(VLOOKUP($A$3,'G5-RI'!$A$6:$AM$500,9,FALSE),0)&"% ("&IF(VLOOKUP($A$3,'G5-RI'!$A$6:$AM$500,8,FALSE)="",0,VLOOKUP($A$3,'G5-RI'!$A$6:$AM$500,8,FALSE))&")")),"NA") -> 54% (13) | H18: =IFERROR((IF($C18="NA","NA",VLOOKUP($A$3,'G5-RI'!$A$6:$AM$500,10,FALSE))),"NA") -> 14.5 | I18: =IFERROR((IF($C18="NA","NA",ROUND(VLOOKUP($A$3,'G5-RI'!$A$6:$AM$500,12,FALSE),0)&"% ("&IF(VLOOKUP($A$3,'G5-RI'!$A$6:$AM$500,11,FALSE)="",0,VLOOKUP($A$3,'G5-RI'!$A$6:$AM$500,11,FALSE))&")")),"NA") -> 42% (10) | J18: =IFERROR((IF($C18="NA","NA",VLOOKUP($A$3,'G5-RI'!$A$6:$AM$500,13,FALSE))),"NA") -> 4.5 | K18: =IFERROR((IF($C18="NA","NA",ROUND(VLOOKUP($A$3,'G5-RI'!$A$6:$AM$500,15,FALSE),0)&"% ("&IF(VLOOKUP($A$3,'G5-RI'!$A$6:$AM$500,14,FALSE)="",0,VLOOKUP($A$3,'G5-RI'!$A$6:$AM$500,14,FALSE))&")")),"NA") -> 21% (5) | L18: =IFERROR((IF($C18="NA","NA",VLOOKUP($A$3,'G5-RI'!$A$6:$AM$500,16,FALSE))),"NA") -> 3.041666667 | M18: =IFERROR((IF($C18="NA","NA",ROUND(VLOOKUP($A$3,'G5-RI'!$A$6:$AM$500,18,FALSE),0)&"% ("&IF(VLOOKUP($A$3,'G5-RI'!$A$6:$AM$500,17,FALSE)="",0,VLOOKUP($A$3,'G5-RI'!$A$6:$AM$500,17,FALSE))&")")),"NA") -> 33% (8)
A19: ED | B19: =IFERROR(VLOOKUP(TEXT($A$3,"0000"),MEM_ED!$A$3:$O$501,9,FALSE),0) -> 19693 | C19: =IFERROR((IF(OR(B19=0,B19="",B19="NA"),"NA",((IF(VLOOKUP($A$3,'G5-RED'!$A$6:$AM$500,3,FALSE)>=B19,"100% ("&VLOOKUP($A$3,'G5-RED'!$A$6:$AM$500,3,FALSE)&")",(ROUND((VLOOKUP($A$3,'G5-RED'!$A$6:$AM$500,3,FALSE)/B19*100),0))&"% ("&IF(VLOOKUP($A$3,'G5-RED'!$A$6:$AM$500,3,FALSE)="",0,VLOOKUP($A$3,'G5-RED'!$A$6:$AM$500,3,FALSE))&")"))))),"0% (0)") -> 97% (19056) | D19: =IFERROR((IF($C19="NA","NA",VLOOKUP($A$3,'G5-RED'!$A$6:$AM$500,4,FALSE))),"NA") -> 25.67930311 | E19: =IFERROR((IF($C19="NA","NA",ROUND(VLOOKUP($A$3,'G5-RED'!$A$6:$AM$500,6,FALSE),0)&"% ("&IF(VLOOKUP($A$3,'G5-RED'!$A$6:$AM$500,5,FALSE)="",0,VLOOKUP($A$3,'G5-RED'!$A$6:$AM$500,5,FALSE))&")")),"NA") -> 33% (6214) | F19: =IFERROR((IF($C19="NA","NA",VLOOKUP($A$3,'G5-RED'!$A$6:$AM$500,7,FALSE))),"NA") -> 4.466902813 | G19: =IFERROR((IF($C19="NA","NA",ROUND(VLOOKUP($A$3,'G5-RED'!$A$6:$AM$500,9,FALSE),0)&"% ("&IF(VLOOKUP($A$3,'G5-RED'!$A$6:$AM$500,8,FALSE)="",0,VLOOKUP($A$3,'G5-RED'!$A$6:$AM$500,8,FALSE))&")")),"NA") -> 53% (10102) | H19: =IFERROR((IF($C19="NA","NA",VLOOKUP($A$3,'G5-RED'!$A$6:$AM$500,10,FALSE))),"NA") -> 13.92283795 | I19: =IFERROR((IF($C19="NA","NA",ROUND(VLOOKUP($A$3,'G5-RED'!$A$6:$AM$500,12,FALSE),0)&"% ("&IF(VLOOKUP($A$3,'G5-RED'!$A$6:$AM$500,11,FALSE)="",0,VLOOKUP($A$3,'G5-RED'!$A$6:$AM$500,11,FALSE))&")")),"NA") -> 35% (6645) | J19: =IFERROR((IF($C19="NA","NA",VLOOKUP($A$3,'G5-RED'!$A$6:$AM$500,13,FALSE))),"NA") -> 4.256333963 | K19: =IFERROR((IF($C19="NA","NA",ROUND(VLOOKUP($A$3,'G5-RED'!$A$6:$AM$500,15,FALSE),0)&"% ("&IF(VLOOKUP($A$3,'G5-RED'!$A$6:$AM$500,14,FALSE)="",0,VLOOKUP($A$3,'G5-RED'!$A$6:$AM$500,14,FALSE))&")")),"NA") -> 29% (5466) | L19: =IFERROR((IF($C19="NA","NA",VLOOKUP($A$3,'G5-RED'!$A$6:$AM$500,16,FALSE))),"NA") -> 3.034225441 | M19: =IFERROR((IF($C19="NA","NA",ROUND(VLOOKUP($A$3,'G5-RED'!$A$6:$AM$500,18,FALSE),0)&"% ("&IF(VLOOKUP($A$3,'G5-RED'!$A$6:$AM$500,17,FALSE)="",0,VLOOKUP($A$3,'G5-RED'!$A$6:$AM$500,17,FALSE))&")")),"NA") -> 39% (7351)
A20: ELL | B20: =IFERROR(VLOOKUP(TEXT($A$3,"0000"),MEM_ELL!$A$3:$O$501,9,FALSE),0) -> 6189 | C20: =IFERROR((IF(OR(B20=0,B20="",B20="NA"),"NA",((IF(VLOOKUP($A$3,'G5-RELL'!$A$6:$AM$500,3,FALSE)>=B20,"100% ("&VLOOKUP($A$3,'G5-RELL'!$A$6:$AM$500,3,FALSE)&")",(ROUND((VLOOKUP($A$3,'G5-RELL'!$A$6:$AM$500,3,FALSE)/B20*100),0))&"% ("&IF(VLOOKUP($A$3,'G5-RELL'!$A$6:$AM$500,3,FALSE)="",0,VLOOKUP($A$3,'G5-RELL'!$A$6:$AM$500,3,FALSE))&")"))))),"0% (0)") -> 92% (5709) | D20: =IFERROR((IF($C20="NA","NA",VLOOKUP($A$3,'G5-RELL'!$A$6:$AM$500,4,FALSE))),"NA") -> 21.17884043 | E20: =IFERROR((IF($C20="NA","NA",ROUND(VLOOKUP($A$3,'G5-RELL'!$A$6:$AM$500,6,FALSE),0)&"% ("&IF(VLOOKUP($A$3,'G5-RELL'!$A$6:$AM$500,5,FALSE)="",0,VLOOKUP($A$3,'G5-RELL'!$A$6:$AM$500,5,FALSE))&")")),"NA") -> 13% (720) | F20: =IFERROR((IF($C20="NA","NA",VLOOKUP($A$3,'G5-RELL'!$A$6:$AM$500,7,FALSE))),"NA") -> 3.711332983 | G20: =IFERROR((IF($C20="NA","NA",ROUND(VLOOKUP($A$3,'G5-RELL'!$A$6:$AM$500,9,FALSE),0)&"% ("&IF(VLOOKUP($A$3,'G5-RELL'!$A$6:$AM$500,8,FALSE)="",0,VLOOKUP($A$3,'G5-RELL'!$A$6:$AM$500,8,FALSE))&")")),"NA") -> 34% (1957) | H20: =IFERROR((IF($C20="NA","NA",VLOOKUP($A$3,'G5-RELL'!$A$6:$AM$500,10,FALSE))),"NA") -> 11.4967595 | I20: =IFERROR((IF($C20="NA","NA",ROUND(VLOOKUP($A$3,'G5-RELL'!$A$6:$AM$500,12,FALSE),0)&"% ("&IF(VLOOKUP($A$3,'G5-RELL'!$A$6:$AM$500,11,FALSE)="",0,VLOOKUP($A$3,'G5-RELL'!$A$6:$AM$500,11,FALSE))&")")),"NA") -> 17% (945) | J20: =IFERROR((IF($C20="NA","NA",VLOOKUP($A$3,'G5-RELL'!$A$6:$AM$500,13,FALSE))),"NA") -> 3.390085829 | K20: =IFERROR((IF($C20="NA","NA",ROUND(VLOOKUP($A$3,'G5-RELL'!$A$6:$AM$500,15,FALSE),0)&"% ("&IF(VLOOKUP($A$3,'G5-RELL'!$A$6:$AM$500,14,FALSE)="",0,VLOOKUP($A$3,'G5-RELL'!$A$6:$AM$500,14,FALSE))&")")),"NA") -> 13% (733) | L20: =IFERROR((IF($C20="NA","NA",VLOOKUP($A$3,'G5-RELL'!$A$6:$AM$500,16,FALSE))),"NA") -> 2.580662112 | M20: =IFERROR((IF($C20="NA","NA",ROUND(VLOOKUP($A$3,'G5-RELL'!$A$6:$AM$500,18,FALSE),0)&"% ("&IF(VLOOKUP($A$3,'G5-RELL'!$A$6:$AM$500,17,FALSE)="",0,VLOOKUP($A$3,'G5-RELL'!$A$6:$AM$500,17,FALSE))&")")),"NA") -> 25% (1414)
A21: SWD | B21: =IFERROR(VLOOKUP(TEXT($A$3,"0000"),MEM_SWD!$A$3:$O$501,9,FALSE),0) -> 2470 | C21: =IFERROR((IF(OR(B21=0,B21="",B21="NA"),"NA",((IF(VLOOKUP($A$3,'G5-RSWD'!$A$6:$AM$500,3,FALSE)>=B21,"100% ("&VLOOKUP($A$3,'G5-RSWD'!$A$6:$AM$500,3,FALSE)&")",(ROUND((VLOOKUP($A$3,'G5-RSWD'!$A$6:$AM$500,3,FALSE)/B21*100),0))&"% ("&IF(VLOOKUP($A$3,'G5-RSWD'!$A$6:$AM$500,3,FALSE)="",0,VLOOKUP($A$3,'G5-RSWD'!$A$6:$AM$500,3,FALSE))&")"))))),"0% (0)") -> 94% (2314) | D21: =IFERROR((IF($C21="NA","NA",VLOOKUP($A$3,'G5-RSWD'!$A$6:$AM$500,4,FALSE))),"NA") -> 19.98725151 | E21: =IFERROR((IF($C21="NA","NA",ROUND(VLOOKUP($A$3,'G5-RSWD'!$A$6:$AM$500,6,FALSE),0)&"% ("&IF(VLOOKUP($A$3,'G5-RSWD'!$A$6:$AM$500,5,FALSE)="",0,VLOOKUP($A$3,'G5-RSWD'!$A$6:$AM$500,5,FALSE))&")")),"NA") -> 12% (278) | F21: =IFERROR((IF($C21="NA","NA",VLOOKUP($A$3,'G5-RSWD'!$A$6:$AM$500,7,FALSE))),"NA") -> 3.551815039 | G21: =IFERROR((IF($C21="NA","NA",ROUND(VLOOKUP($A$3,'G5-RSWD'!$A$6:$AM$500,9,FALSE),0)&"% ("&IF(VLOOKUP($A$3,'G5-RSWD'!$A$6:$AM$500,8,FALSE)="",0,VLOOKUP($A$3,'G5-RSWD'!$A$6:$AM$500,8,FALSE))&")")),"NA") -> 31% (706) | H21: =IFERROR((IF($C21="NA","NA",VLOOKUP($A$3,'G5-RSWD'!$A$6:$AM$500,10,FALSE))),"NA") -> 10.72687986 | I21: =IFERROR((IF($C21="NA","NA",ROUND(VLOOKUP($A$3,'G5-RSWD'!$A$6:$AM$500,12,FALSE),0)&"% ("&IF(VLOOKUP($A$3,'G5-RSWD'!$A$6:$AM$500,11,FALSE)="",0,VLOOKUP($A$3,'G5-RSWD'!$A$6:$AM$500,11,FALSE))&")")),"NA") -> 13% (307) | J21: =IFERROR((IF($C21="NA","NA",VLOOKUP($A$3,'G5-RSWD'!$A$6:$AM$500,13,FALSE))),"NA") -> 3.229429559 | K21: =IFERROR((IF($C21="NA","NA",ROUND(VLOOKUP($A$3,'G5-RSWD'!$A$6:$AM$500,15,FALSE),0)&"% ("&IF(VLOOKUP($A$3,'G5-RSWD'!$A$6:$AM$500,14,FALSE)="",0,VLOOKUP($A$3,'G5-RSWD'!$A$6:$AM$500,14,FALSE))&")")),"NA") -> 12% (281) | L21: =IFERROR((IF($C21="NA","NA",VLOOKUP($A$3,'G5-RSWD'!$A$6:$AM$500,16,FALSE))),"NA") -> 2.492610199 | M21: =IFERROR((IF($C21="NA","NA",ROUND(VLOOKUP($A$3,'G5-RSWD'!$A$6:$AM$500,18,FALSE),0)&"% ("&IF(VLOOKUP($A$3,'G5-RSWD'!$A$6:$AM$500,17,FALSE)="",0,VLOOKUP($A$3,'G5-RSWD'!$A$6:$AM$500,17,FALSE))&")")),"NA") -> 22% (509)
A22: Math - Grade 5
A23: Level of Proficiency at 70% or above | B23: Total # of Students | C23: % of Students Tested | D23: ='G3-5 Matrix'!C16&" ["&'G3-5 Matrix'!C17&"]" -> Overall [39] | F23: ='G3-5 Matrix'!D16&" ["&'G3-5 Matrix'!D17&"]" -> Number: Base Ten & Fractions [16] | H23: ='G3-5 Matrix'!E16&" ["&'G3-5 Matrix'!E17&"]" -> Expressions, Equations, & Statistics [9] | J23: ='G3-5 Matrix'!F16&" ["&'G3-5 Matrix'!F17&"]" -> Geometry and Measurement [14]
D24: Average Score | E24: % Proficient | F24: Average Score | G24: % Proficient | H24: Average Score | I24: % Proficient | J24: Average Score | K24: % Proficient
A25: All students | B25: =IFERROR(VLOOKUP(TEXT($A$3,"0000"),Mem_All!$A$3:$O$501,9,FALSE),0) -> 25424 | C25: =IFERROR((IF(OR(B25=0,B25="",B25="NA"),"NA",((IF(VLOOKUP($A$3,'G5-MALL'!$A$6:$AA$500,3,FALSE)>=B25,"100% ("&VLOOKUP($A$3,'G5-MALL'!$A$6:$AA$500,3,FALSE)&")",(ROUND((VLOOKUP($A$3,'G5-MALL'!$A$6:$AA$500,3,FALSE)/B25*100),0))&"% ("&IF(VLOOKUP($A$3,'G5-MALL'!$A$6:$AA$500,3,FALSE)="",0,VLOOKUP($A$3,'G5-MALL'!$A$6:$AA$500,3,FALSE))&")"))))),"0% (0)") -> 95% (24057) | D25: =IFERROR((IF($C25="NA","NA",VLOOKUP($A$3,'G5-MALL'!$A$6:$AM$500,4,FALSE))),"NA") -> 16.64503471 | E25: =IFERROR((IF($C25="NA","NA",ROUND(VLOOKUP($A$3,'G5-MALL'!$A$6:$AM$500,6,FALSE),0)&"% ("&IF(VLOOKUP($A$3,'G5-MALL'!$A$6:$AM$500,5,FALSE)="",0,VLOOKUP($A$3,'G5-MALL'!$A$6:$AM$500,5,FALSE))&")")),"NA") -> 5% (1139) | F25: =IFERROR((IF($C25="NA","NA",VLOOKUP($A$3,'G5-MALL'!$A$6:$AM$500,13,FALSE))),"NA") -> 7.663507503 | G25: =IFERROR((IF($C25="NA","NA",ROUND(VLOOKUP($A$3,'G5-MALL'!$A$6:$AM$500,15,FALSE),0)&"% ("&IF(VLOOKUP($A$3,'G5-MALL'!$A$6:$AM$500,14,FALSE)="",0,VLOOKUP($A$3,'G5-MALL'!$A$6:$AM$500,14,FALSE))&")")),"NA") -> 13% (3181) | H25: =IFERROR((IF($C25="NA","NA",VLOOKUP($A$3,'G5-MALL'!$A$6:$AM$500,7,FALSE))),"NA") -> 3.611289853 | I25: =IFERROR((IF($C25="NA","NA",ROUND(VLOOKUP($A$3,'G5-MALL'!$A$6:$AM$500,9,FALSE),0)&"% ("&IF(VLOOKUP($A$3,'G5-MALL'!$A$6:$AM$500,8,FALSE)="",0,VLOOKUP($A$3,'G5-MALL'!$A$6:$AM$500,8,FALSE))&")")),"NA") -> 3% (709) | J25: =IFERROR((IF($C25="NA","NA",VLOOKUP($A$3,'G5-MALL'!$A$6:$AM$500,10,FALSE))),"NA") -> 5.372772997 | K25: =IFERROR((IF($C25="NA","NA",ROUND(VLOOKUP($A$3,'G5-MALL'!$A$6:$AM$500,12,FALSE),0)&"% ("&IF(VLOOKUP($A$3,'G5-MALL'!$A$6:$AM$500,11,FALSE)="",0,VLOOKUP($A$3,'G5-MALL'!$A$6:$AM$500,11,FALSE))&")")),"NA") -> 6% (1497)
A26: FCAT Level 1 | B26: =IFERROR(VLOOKUP(TEXT($A$3,"0000"),MEM_ML1!$A$3:$O$501,6,FALSE),0) -> 4158 | C26: =IFERROR((IF(OR(B26=0,B26="",B26="NA"),"NA",((IF(VLOOKUP($A$3,'G5-ML1'!$A$6:$AG$500,3,FALSE)>=B26,"100% ("&VLOOKUP($A$3,'G5-ML1'!$A$6:$AG$500,3,FALSE)&")",(ROUND((VLOOKUP($A$3,'G5-ML1'!$A$6:$AG$500,3,FALSE)/B26*100),0))&"% ("&IF(VLOOKUP($A$3,'G5-ML1'!$A$6:$AG$500,3,FALSE)="",0,VLOOKUP($A$3,'G5-ML1'!$A$6:$AG$500,3,FALSE))&")"))))),"0% (0)") -> 94% (3895) | D26: =IFERROR((IF($C26="NA","NA",VLOOKUP($A$3,'G5-ML1'!$A$6:$AM$500,4,FALSE))),"NA") -> 11.07774069 | E26: =IFERROR((IF($C26="NA","NA",ROUND(VLOOKUP($A$3,'G5-ML1'!$A$6:$AM$500,6,FALSE),0)&"% ("&IF(VLOOKUP($A$3,'G5-ML1'!$A$6:$AM$500,5,FALSE)="",0,VLOOKUP($A$3,'G5-ML1'!$A$6:$AM$500,5,FALSE))&")")),"NA") -> 0% (0) | F26: =IFERROR((IF($C26="NA","NA",VLOOKUP($A$3,'G5-ML1'!$A$6:$AM$500,13,FALSE))),"NA") -> 4.625391528 | G26: =IFERROR((IF($C26="NA","NA",ROUND(VLOOKUP($A$3,'G5-ML1'!$A$6:$AM$500,15,FALSE),0)&"% ("&IF(VLOOKUP($A$3,'G5-ML1'!$A$6:$AM$500,14,FALSE)="",0,VLOOKUP($A$3,'G5-ML1'!$A$6:$AM$500,14,FALSE))&")")),"NA") -> 0% (3) | H26: =IFERROR((IF($C26="NA","NA",VLOOKUP($A$3,'G5-ML1'!$A$6:$AM$500,7,FALSE))),"NA") -> 2.847702182 | I26: =IFERROR((IF($C26="NA","NA",ROUND(VLOOKUP($A$3,'G5-ML1'!$A$6:$AM$500,9,FALSE),0)&"% ("&IF(VLOOKUP($A$3,'G5-ML1'!$A$6:$AM$500,8,FALSE)="",0,VLOOKUP($A$3,'G5-ML1'!$A$6:$AM$500,8,FALSE))&")")),"NA") -> 0% (15) | J26: =IFERROR((IF($C26="NA","NA",VLOOKUP($A$3,'G5-ML1'!$A$6:$AM$500,10,FALSE))),"NA") -> 3.608189987 | K26: =IFERROR((IF($C26="NA","NA",ROUND(VLOOKUP($A$3,'G5-ML1'!$A$6:$AM$500,12,FALSE),0)&"% ("&IF(VLOOKUP($A$3,'G5-ML1'!$A$6:$AM$500,11,FALSE)="",0,VLOOKUP($A$3,'G5-ML1'!$A$6:$AM$500,11,FALSE))&")")),"NA") -> 0% (3)
A27: FCAT Level 2 | B27: =IFERROR(VLOOKUP(TEXT($A$3,"0000"),MEM_ML2!$A$3:$O$501,6,FALSE),0) -> 4850 | C27: =IFERROR((IF(OR(B27=0,B27="",B27="NA"),"NA",((IF(VLOOKUP($A$3,'G5-ML2'!$A$6:$AG$500,3,FALSE)>=B27,"100% ("&VLOOKUP($A$3,'G5-ML2'!$A$6:$AG$500,3,FALSE)&")",(ROUND((VLOOKUP($A$3,'G5-ML2'!$A$6:$AG$500,3,FALSE)/B27*100),0))&"% ("&IF(VLOOKUP($A$3,'G5-ML2'!$A$6:$AG$500,3,FALSE)="",0,VLOOKUP($A$3,'G5-ML2'!$A$6:$AG$500,3,FALSE))&")"))))),"0% (0)") -> 96% (4633) | D27: =IFERROR((IF($C27="NA","NA",VLOOKUP($A$3,'G5-ML2'!$A$6:$AM$500,4,FALSE))),"NA") -> 13.33533348 | E27: =IFERROR((IF($C27="NA","NA",ROUND(VLOOKUP($A$3,'G5-ML2'!$A$6:$AM$500,6,FALSE),0)&"% ("&IF(VLOOKUP($A$3,'G5-ML2'!$A$6:$AM$500,5,FALSE)="",0,VLOOKUP($A$3,'G5-ML2'!$A$6:$AM$500,5,FALSE))&")")),"NA") -> 0% (3) | F27: =IFERROR((IF($C27="NA","NA",VLOOKUP($A$3,'G5-ML2'!$A$6:$AM$500,13,FALSE))),"NA") -> 5.941463415 | G27: =IFERROR((IF($C27="NA","NA",ROUND(VLOOKUP($A$3,'G5-ML2'!$A$6:$AM$500,15,FALSE),0)&"% ("&IF(VLOOKUP($A$3,'G5-ML2'!$A$6:$AM$500,14,FALSE)="",0,VLOOKUP($A$3,'G5-ML2'!$A$6:$AM$500,14,FALSE))&")")),"NA") -> 1% (52) | H27: =IFERROR((IF($C27="NA","NA",VLOOKUP($A$3,'G5-ML2'!$A$6:$AM$500,7,FALSE))),"NA") -> 3.154759335 | I27: =IFERROR((IF($C27="NA","NA",ROUND(VLOOKUP($A$3,'G5-ML2'!$A$6:$AM$500,9,FALSE),0)&"% ("&IF(VLOOKUP($A$3,'G5-ML2'!$A$6:$AM$500,8,FALSE)="",0,VLOOKUP($A$3,'G5-ML2'!$A$6:$AM$500,8,FALSE))&")")),"NA") -> 0% (22) | J27: =IFERROR((IF($C27="NA","NA",VLOOKUP($A$3,'G5-ML2'!$A$6:$AM$500,10,FALSE))),"NA") -> 4.236542197 | K27: =IFERROR((IF($C27="NA","NA",ROUND(VLOOKUP($A$3,'G5-ML2'!$A$6:$AM$500,12,FALSE),0)&"% ("&IF(VLOOKUP($A$3,'G5-ML2'!$A$6:$AM$500,11,FALSE)="",0,VLOOKUP($A$3,'G5-ML2'!$A$6:$AM$500,11,FALSE))&")")),"NA") -> 0% (8)
A28: FCAT Level 3 | B28: =IFERROR(VLOOKUP(TEXT($A$3,"0000"),MEM_ML3!$A$3:$O$501,6,FALSE),0) -> 6780 | C28: =IFERROR((IF(OR(B28=0,B28="",B28="NA"),"NA",((IF(VLOOKUP($A$3,'G5-ML3'!$A$6:$AG$500,3,FALSE)>=B28,"100% ("&VLOOKUP($A$3,'G5-ML3'!$A$6:$AG$500,3,FALSE)&")",(ROUND((VLOOKUP($A$3,'G5-ML3'!$A$6:$AG$500,3,FALSE)/B28*100),0))&"% ("&IF(VLOOKUP($A$3,'G5-ML3'!$A$6:$AG$500,3,FALSE)="",0,VLOOKUP($A$3,'G5-ML3'!$A$6:$AG$500,3,FALSE))&")"))))),"0% (0)") -> 96% (6515) | D28: =IFERROR((IF($C28="NA","NA",VLOOKUP($A$3,'G5-ML3'!$A$6:$AM$500,4,FALSE))),"NA") -> 16.29729854 | E28: =IFERROR((IF($C28="NA","NA",ROUND(VLOOKUP($A$3,'G5-ML3'!$A$6:$AM$500,6,FALSE),0)&"% ("&IF(VLOOKUP($A$3,'G5-ML3'!$A$6:$AM$500,5,FALSE)="",0,VLOOKUP($A$3,'G5-ML3'!$A$6:$AM$500,5,FALSE))&")")),"NA") -> 0% (24) | F28: =IFERROR((IF($C28="NA","NA",VLOOKUP($A$3,'G5-ML3'!$A$6:$AM$500,13,FALSE))),"NA") -> 7.640920952 | G28: =IFERROR((IF($C28="NA","NA",ROUND(VLOOKUP($A$3,'G5-ML3'!$A$6:$AM$500,15,FALSE),0)&"% ("&IF(VLOOKUP($A$3,'G5-ML3'!$A$6:$AM$500,14,FALSE)="",0,VLOOKUP($A$3,'G5-ML3'!$A$6:$AM$500,14,FALSE))&")")),"NA") -> 5% (351) | H28: =IFERROR((IF($C28="NA","NA",VLOOKUP($A$3,'G5-ML3'!$A$6:$AM$500,7,FALSE))),"NA") -> 3.49390637 | I28: =IFERROR((IF($C28="NA","NA",ROUND(VLOOKUP($A$3,'G5-ML3'!$A$6:$AM$500,9,FALSE),0)&"% ("&IF(VLOOKUP($A$3,'G5-ML3'!$A$6:$AM$500,8,FALSE)="",0,VLOOKUP($A$3,'G5-ML3'!$A$6:$AM$500,8,FALSE))&")")),"NA") -> 1% (91) | J28: =IFERROR((IF($C28="NA","NA",VLOOKUP($A$3,'G5-ML3'!$A$6:$AM$500,10,FALSE))),"NA") -> 5.161105142 | K28: =IFERROR((IF($C28="NA","NA",ROUND(VLOOKUP($A$3,'G5-ML3'!$A$6:$AM$500,12,FALSE),0)&"% ("&IF(VLOOKUP($A$3,'G5-ML3'!$A$6:$AM$500,11,FALSE)="",0,VLOOKUP($A$3,'G5-ML3'!$A$6:$AM$500,11,FALSE))&")")),"NA") -> 1% (93)
A29: FCAT Level 4 | B29: =IFERROR(VLOOKUP(TEXT($A$3,"0000"),MEM_ML4!$A$3:$O$501,6,FALSE),0) -> 5213 | C29: =IFERROR((IF(OR(B29=0,B29="",B29="NA"),"NA",((IF(VLOOKUP($A$3,'G5-ML4'!$A$6:$AG$500,3,FALSE)>=B29,"100% ("&VLOOKUP($A$3,'G5-ML4'!$A$6:$AG$500,3,FALSE)&")",(ROUND((VLOOKUP($A$3,'G5-ML4'!$A$6:$AG$500,3,FALSE)/B29*100),0))&"% ("&IF(VLOOKUP($A$3,'G5-ML4'!$A$6:$AG$500,3,FALSE)="",0,VLOOKUP($A$3,'G5-ML4'!$A$6:$AG$500,3,FALSE))&")"))))),"0% (0)") -> 97% (5037) | D29: =IFERROR((IF($C29="NA","NA",VLOOKUP($A$3,'G5-ML4'!$A$6:$AM$500,4,FALSE))),"NA") -> 20.08397856 | E29: =IFERROR((IF($C29="NA","NA",ROUND(VLOOKUP($A$3,'G5-ML4'!$A$6:$AM$500,6,FALSE),0)&"% ("&IF(VLOOKUP($A$3,'G5-ML4'!$A$6:$AM$500,5,FALSE)="",0,VLOOKUP($A$3,'G5-ML4'!$A$6:$AM$500,5,FALSE))&")")),"NA") -> 5% (242) | F29: =IFERROR((IF($C29="NA","NA",VLOOKUP($A$3,'G5-ML4'!$A$6:$AM$500,13,FALSE))),"NA") -> 9.547290054 | G29: =IFERROR((IF($C29="NA","NA",ROUND(VLOOKUP($A$3,'G5-ML4'!$A$6:$AM$500,15,FALSE),0)&"% ("&IF(VLOOKUP($A$3,'G5-ML4'!$A$6:$AM$500,14,FALSE)="",0,VLOOKUP($A$3,'G5-ML4'!$A$6:$AM$500,14,FALSE))&")")),"NA") -> 22% (1109) | H29: =IFERROR((IF($C29="NA","NA",VLOOKUP($A$3,'G5-ML4'!$A$6:$AM$500,7,FALSE))),"NA") -> 4.085110185 | I29: =IFERROR((IF($C29="NA","NA",ROUND(VLOOKUP($A$3,'G5-ML4'!$A$6:$AM$500,9,FALSE),0)&"% ("&IF(VLOOKUP($A$3,'G5-ML4'!$A$6:$AM$500,8,FALSE)="",0,VLOOKUP($A$3,'G5-ML4'!$A$6:$AM$500,8,FALSE))&")")),"NA") -> 4% (222) | J29: =IFERROR((IF($C29="NA","NA",VLOOKUP($A$3,'G5-ML4'!$A$6:$AM$500,10,FALSE))),"NA") -> 6.451697439 | K29: =IFERROR((IF($C29="NA","NA",ROUND(VLOOKUP($A$3,'G5-ML4'!$A$6:$AM$500,12,FALSE),0)&"% ("&IF(VLOOKUP($A$3,'G5-ML4'!$A$6:$AM$500,11,FALSE)="",0,VLOOKUP($A$3,'G5-ML4'!$A$6:$AM$500,11,FALSE))&")")),"NA") -> 8% (427)
A30: FCAT Level 5 | B30: =IFERROR(VLOOKUP(TEXT($A$3,"0000"),MEM_ML5!$A$3:$M$501,6,FALSE),0) -> 3245 | C30: =IFERROR((IF(OR(B30=0,B30="",B30="NA"),"NA",((IF(VLOOKUP($A$3,'G5-ML5'!$A$6:$AG$500,3,FALSE)>=B30,"100% ("&VLOOKUP($A$3,'G5-ML5'!$A$6:$AG$500,3,FALSE)&")",(ROUND((VLOOKUP($A$3,'G5-ML5'!$A$6:$AG$500,3,FALSE)/B30*100),0))&"% ("&IF(VLOOKUP($A$3,'G5-ML5'!$A$6:$AG$500,3,FALSE)="",0,VLOOKUP($A$3,'G5-ML5'!$A$6:$AG$500,3,FALSE))&")"))))),"0% (0)") -> 97% (3148) | D30: =IFERROR((IF($C30="NA","NA",VLOOKUP($A$3,'G5-ML5'!$A$6:$AM$500,4,FALSE))),"NA") -> 24.3567662 | E30: =IFERROR((IF($C30="NA","NA",ROUND(VLOOKUP($A$3,'G5-ML5'!$A$6:$AM$500,6,FALSE),0)&"% ("&IF(VLOOKUP($A$3,'G5-ML5'!$A$6:$AM$500,5,FALSE)="",0,VLOOKUP($A$3,'G5-ML5'!$A$6:$AM$500,5,FALSE))&")")),"NA") -> 27% (844) | F30: =IFERROR((IF($C30="NA","NA",VLOOKUP($A$3,'G5-ML5'!$A$6:$AM$500,13,FALSE))),"NA") -> 11.308831 | G30: =IFERROR((IF($C30="NA","NA",ROUND(VLOOKUP($A$3,'G5-ML5'!$A$6:$AM$500,15,FALSE),0)&"% ("&IF(VLOOKUP($A$3,'G5-ML5'!$A$6:$AM$500,14,FALSE)="",0,VLOOKUP($A$3,'G5-ML5'!$A$6:$AM$500,14,FALSE))&")")),"NA") -> 51% (1604) | H30: =IFERROR((IF($C30="NA","NA",VLOOKUP($A$3,'G5-ML5'!$A$6:$AM$500,7,FALSE))),"NA") -> 4.839199492 | I30: =IFERROR((IF($C30="NA","NA",ROUND(VLOOKUP($A$3,'G5-ML5'!$A$6:$AM$500,9,FALSE),0)&"% ("&IF(VLOOKUP($A$3,'G5-ML5'!$A$6:$AM$500,8,FALSE)="",0,VLOOKUP($A$3,'G5-ML5'!$A$6:$AM$500,8,FALSE))&")")),"NA") -> 11% (344) | J30: =IFERROR((IF($C30="NA","NA",VLOOKUP($A$3,'G5-ML5'!$A$6:$AM$500,10,FALSE))),"NA") -> 8.216168996 | K30: =IFERROR((IF($C30="NA","NA",ROUND(VLOOKUP($A$3,'G5-ML5'!$A$6:$AM$500,12,FALSE),0)&"% ("&IF(VLOOKUP($A$3,'G5-ML5'!$A$6:$AM$500,11,FALSE)="",0,VLOOKUP($A$3,'G5-ML5'!$A$6:$AM$500,11,FALSE))&")")),"NA") -> 30% (933)
A31: White | B31: =IFERROR(VLOOKUP(TEXT($A$3,"0000"),MEM_W!$A$3:$O$501,9,FALSE),0) -> 2134 | C31: =IFERROR((IF(OR(B31=0,B31="",B31="NA"),"NA",((IF(VLOOKUP($A$3,'G5-MW'!$A$6:$AG$500,3,FALSE)>=B31,"100% ("&VLOOKUP($A$3,'G5-MW'!$A$6:$AG$500,3,FALSE)&")",(ROUND((VLOOKUP($A$3,'G5-MW'!$A$6:$AG$500,3,FALSE)/B31*100),0))&"% ("&IF(VLOOKUP($A$3,'G5-MW'!$A$6:$AG$500,3,FALSE)="",0,VLOOKUP($A$3,'G5-MW'!$A$6:$AG$500,3,FALSE))&")"))))),"0% (0)") -> 95% (2021) | D31: =IFERROR((IF($C31="NA","NA",VLOOKUP($A$3,'G5-MW'!$A$6:$AM$500,4,FALSE))),"NA") -> 19.50826324 | E31: =IFERROR((IF($C31="NA","NA",ROUND(VLOOKUP($A$3,'G5-MW'!$A$6:$AM$500,6,FALSE),0)&"% ("&IF(VLOOKUP($A$3,'G5-MW'!$A$6:$AM$500,5,FALSE)="",0,VLOOKUP($A$3,'G5-MW'!$A$6:$AM$500,5,FALSE))&")")),"NA") -> 12% (234) | F31: =IFERROR((IF($C31="NA","NA",VLOOKUP($A$3,'G5-MW'!$A$6:$AM$500,13,FALSE))),"NA") -> 9.024096982 | G31: =IFERROR((IF($C31="NA","NA",ROUND(VLOOKUP($A$3,'G5-MW'!$A$6:$AM$500,15,FALSE),0)&"% ("&IF(VLOOKUP($A$3,'G5-MW'!$A$6:$AM$500,14,FALSE)="",0,VLOOKUP($A$3,'G5-MW'!$A$6:$AM$500,14,FALSE))&")")),"NA") -> 25% (500) | H31: =IFERROR((IF($C31="NA","NA",VLOOKUP($A$3,'G5-MW'!$A$6:$AM$500,7,FALSE))),"NA") -> 4.157001484 | I31: =IFERROR((IF($C31="NA","NA",ROUND(VLOOKUP($A$3,'G5-MW'!$A$6:$AM$500,9,FALSE),0)&"% ("&IF(VLOOKUP($A$3,'G5-MW'!$A$6:$AM$500,8,FALSE)="",0,VLOOKUP($A$3,'G5-MW'!$A$6:$AM$500,8,FALSE))&")")),"NA") -> 6% (119) | J31: =IFERROR((IF($C31="NA","NA",VLOOKUP($A$3,'G5-MW'!$A$6:$AM$500,10,FALSE))),"NA") -> 6.330183078 | K31: =IFERROR((IF($C31="NA","NA",ROUND(VLOOKUP($A$3,'G5-MW'!$A$6:$AM$500,12,FALSE),0)&"% ("&IF(VLOOKUP($A$3,'G5-MW'!$A$6:$AM$500,11,FALSE)="",0,VLOOKUP($A$3,'G5-MW'!$A$6:$AM$500,11,FALSE))&")")),"NA") -> 13% (254)
A32: Black | B32: =IFERROR(VLOOKUP(TEXT($A$3,"0000"),MEM_B!$A$3:$O$501,9,FALSE),0) -> 5756 | C32: =IFERROR((IF(OR(B32=0,B32="",B32="NA"),"NA",((IF(VLOOKUP($A$3,'G5-MB'!$A$6:$AG$500,3,FALSE)>=B32,"100% ("&VLOOKUP($A$3,'G5-MB'!$A$6:$AG$500,3,FALSE)&")",(ROUND((VLOOKUP($A$3,'G5-MB'!$A$6:$AG$500,3,FALSE)/B32*100),0))&"% ("&IF(VLOOKUP($A$3,'G5-MB'!$A$6:$AG$500,3,FALSE)="",0,VLOOKUP($A$3,'G5-MB'!$A$6:$AG$500,3,FALSE))&")"))))),"0% (0)") -> 94% (5399) | D32: =IFERROR((IF($C32="NA","NA",VLOOKUP($A$3,'G5-MB'!$A$6:$AM$500,4,FALSE))),"NA") -> 14.93734025 | E32: =IFERROR((IF($C32="NA","NA",ROUND(VLOOKUP($A$3,'G5-MB'!$A$6:$AM$500,6,FALSE),0)&"% ("&IF(VLOOKUP($A$3,'G5-MB'!$A$6:$AM$500,5,FALSE)="",0,VLOOKUP($A$3,'G5-MB'!$A$6:$AM$500,5,FALSE))&")")),"NA") -> 2% (109) | F32: =IFERROR((IF($C32="NA","NA",VLOOKUP($A$3,'G5-MB'!$A$6:$AM$500,13,FALSE))),"NA") -> 6.790905723 | G32: =IFERROR((IF($C32="NA","NA",ROUND(VLOOKUP($A$3,'G5-MB'!$A$6:$AM$500,15,FALSE),0)&"% ("&IF(VLOOKUP($A$3,'G5-MB'!$A$6:$AM$500,14,FALSE)="",0,VLOOKUP($A$3,'G5-MB'!$A$6:$AM$500,14,FALSE))&")")),"NA") -> 8% (415) | H32: =IFERROR((IF($C32="NA","NA",VLOOKUP($A$3,'G5-MB'!$A$6:$AM$500,7,FALSE))),"NA") -> 3.330727913 | I32: =IFERROR((IF($C32="NA","NA",ROUND(VLOOKUP($A$3,'G5-MB'!$A$6:$AM$500,9,FALSE),0)&"% ("&IF(VLOOKUP($A$3,'G5-MB'!$A$6:$AM$500,8,FALSE)="",0,VLOOKUP($A$3,'G5-MB'!$A$6:$AM$500,8,FALSE))&")")),"NA") -> 2% (86) | J32: =IFERROR((IF($C32="NA","NA",VLOOKUP($A$3,'G5-MB'!$A$6:$AM$500,10,FALSE))),"NA") -> 4.814965734 | K32: =IFERROR((IF($C32="NA","NA",ROUND(VLOOKUP($A$3,'G5-MB'!$A$6:$AM$500,12,FALSE),0)&"% ("&IF(VLOOKUP($A$3,'G5-MB'!$A$6:$AM$500,11,FALSE)="",0,VLOOKUP($A$3,'G5-MB'!$A$6:$AM$500,11,FALSE))&")")),"NA") -> 3% (178)
A33: Hispanic | B33: =IFERROR(VLOOKUP(TEXT($A$3,"0000"),MEM_H!$A$3:$O$501,9,FALSE),0) -> 17090 | C33: =IFERROR((IF(OR(B33=0,B33="",B33="NA"),"NA",((IF(VLOOKUP($A$3,'G5-MH'!$A$6:$AG$500,3,FALSE)>=B33,"100% ("&VLOOKUP($A$3,'G5-MH'!$A$6:$AG$500,3,FALSE)&")",(ROUND((VLOOKUP($A$3,'G5-MH'!$A$6:$AG$500,3,FALSE)/B33*100),0))&"% ("&IF(VLOOKUP($A$3,'G5-MH'!$A$6:$AG$500,3,FALSE)="",0,VLOOKUP($A$3,'G5-MH'!$A$6:$AG$500,3,FALSE))&")"))))),"0% (0)") -> 95% (16224) | D33: =IFERROR((IF($C33="NA","NA",VLOOKUP($A$3,'G5-MH'!$A$6:$AM$500,4,FALSE))),"NA") -> 16.75809911 | E33: =IFERROR((IF($C33="NA","NA",ROUND(VLOOKUP($A$3,'G5-MH'!$A$6:$AM$500,6,FALSE),0)&"% ("&IF(VLOOKUP($A$3,'G5-MH'!$A$6:$AM$500,5,FALSE)="",0,VLOOKUP($A$3,'G5-MH'!$A$6:$AM$500,5,FALSE))&")")),"NA") -> 4% (718) | F33: =IFERROR((IF($C33="NA","NA",VLOOKUP($A$3,'G5-MH'!$A$6:$AM$500,13,FALSE))),"NA") -> 7.745636095 | G33: =IFERROR((IF($C33="NA","NA",ROUND(VLOOKUP($A$3,'G5-MH'!$A$6:$AM$500,15,FALSE),0)&"% ("&IF(VLOOKUP($A$3,'G5-MH'!$A$6:$AM$500,14,FALSE)="",0,VLOOKUP($A$3,'G5-MH'!$A$6:$AM$500,14,FALSE))&")")),"NA") -> 13% (2128) | H33: =IFERROR((IF($C33="NA","NA",VLOOKUP($A$3,'G5-MH'!$A$6:$AM$500,7,FALSE))),"NA") -> 3.61507643 | I33: =IFERROR((IF($C33="NA","NA",ROUND(VLOOKUP($A$3,'G5-MH'!$A$6:$AM$500,9,FALSE),0)&"% ("&IF(VLOOKUP($A$3,'G5-MH'!$A$6:$AM$500,8,FALSE)="",0,VLOOKUP($A$3,'G5-MH'!$A$6:$AM$500,8,FALSE))&")")),"NA") -> 3% (462) | J33: =IFERROR((IF($C33="NA","NA",VLOOKUP($A$3,'G5-MH'!$A$6:$AM$500,10,FALSE))),"NA") -> 5.399303501 | K33: =IFERROR((IF($C33="NA","NA",ROUND(VLOOKUP($A$3,'G5-MH'!$A$6:$AM$500,12,FALSE),0)&"% ("&IF(VLOOKUP($A$3,'G5-MH'!$A$6:$AM$500,11,FALSE)="",0,VLOOKUP($A$3,'G5-MH'!$A$6:$AM$500,11,FALSE))&")")),"NA") -> 6% (983)
A34: Asian | B34: =IFERROR(VLOOKUP(TEXT($A$3,"0000"),MEM_A!$A$3:$O$501,9,FALSE),0) -> 321 | C34: =IFERROR((IF(OR(B34=0,B34="",B34="NA"),"NA",((IF(VLOOKUP($A$3,'G5-MA'!$A$6:$AG$500,3,FALSE)>=B34,"100% ("&VLOOKUP($A$3,'G5-MA'!$A$6:$AG$500,3,FALSE)&")",(ROUND((VLOOKUP($A$3,'G5-MA'!$A$6:$AG$500,3,FALSE)/B34*100),0))&"% ("&IF(VLOOKUP($A$3,'G5-MA'!$A$6:$AG$500,3,FALSE)="",0,VLOOKUP($A$3,'G5-MA'!$A$6:$AG$500,3,FALSE))&")"))))),"0% (0)") -> 92% (295) | D34: =IFERROR((IF($C34="NA","NA",VLOOKUP($A$3,'G5-MA'!$A$6:$AM$500,4,FALSE))),"NA") -> 21.59559322 | E34: =IFERROR((IF($C34="NA","NA",ROUND(VLOOKUP($A$3,'G5-MA'!$A$6:$AM$500,6,FALSE),0)&"% ("&IF(VLOOKUP($A$3,'G5-MA'!$A$6:$AM$500,5,FALSE)="",0,VLOOKUP($A$3,'G5-MA'!$A$6:$AM$500,5,FALSE))&")")),"NA") -> 23% (68) | F34: =IFERROR((IF($C34="NA","NA",VLOOKUP($A$3,'G5-MA'!$A$6:$AM$500,13,FALSE))),"NA") -> 9.947118644 | G34: =IFERROR((IF($C34="NA","NA",ROUND(VLOOKUP($A$3,'G5-MA'!$A$6:$AM$500,15,FALSE),0)&"% ("&IF(VLOOKUP($A$3,'G5-MA'!$A$6:$AM$500,14,FALSE)="",0,VLOOKUP($A$3,'G5-MA'!$A$6:$AM$500,14,FALSE))&")")),"NA") -> 38% (113) | H34: =IFERROR((IF($C34="NA","NA",VLOOKUP($A$3,'G5-MA'!$A$6:$AM$500,7,FALSE))),"NA") -> 4.37559322 | I34: =IFERROR((IF($C34="NA","NA",ROUND(VLOOKUP($A$3,'G5-MA'!$A$6:$AM$500,9,FALSE),0)&"% ("&IF(VLOOKUP($A$3,'G5-MA'!$A$6:$AM$500,8,FALSE)="",0,VLOOKUP($A$3,'G5-MA'!$A$6:$AM$500,8,FALSE))&")")),"NA") -> 11% (33) | J34: =IFERROR((IF($C34="NA","NA",VLOOKUP($A$3,'G5-MA'!$A$6:$AM$500,10,FALSE))),"NA") -> 7.277966102 | K34: =IFERROR((IF($C34="NA","NA",ROUND(VLOOKUP($A$3,'G5-MA'!$A$6:$AM$500,12,FALSE),0)&"% ("&IF(VLOOKUP($A$3,'G5-MA'!$A$6:$AM$500,11,FALSE)="",0,VLOOKUP($A$3,'G5-MA'!$A$6:$AM$500,11,FALSE))&")")),"NA") -> 24% (71)
A35: Am. Indian | B35: =IFERROR(VLOOKUP(TEXT($A$3,"0000"),MEM_I!$A$3:$O$501,9,FALSE),0) -> 25 | C35: =IFERROR((IF(OR(B35=0,B35="",B35="NA"),"NA",((IF(VLOOKUP($A$3,'G5-MI'!$A$6:$AG$500,3,FALSE)>=B35,"100% ("&VLOOKUP($A$3,'G5-MI'!$A$6:$AG$500,3,FALSE)&")",(ROUND((VLOOKUP($A$3,'G5-MI'!$A$6:$AG$500,3,FALSE)/B35*100),0))&"% ("&IF(VLOOKUP($A$3,'G5-MI'!$A$6:$AG$500,3,FALSE)="",0,VLOOKUP($A$3,'G5-MI'!$A$6:$AG$500,3,FALSE))&")"))))),"0% (0)") -> 96% (24) | D35: =IFERROR((IF($C35="NA","NA",VLOOKUP($A$3,'G5-MI'!$A$6:$AM$500,4,FALSE))),"NA") -> 16.66666667 | E35: =IFERROR((IF($C35="NA","NA",ROUND(VLOOKUP($A$3,'G5-MI'!$A$6:$AM$500,6,FALSE),0)&"% ("&IF(VLOOKUP($A$3,'G5-MI'!$A$6:$AM$500,5,FALSE)="",0,VLOOKUP($A$3,'G5-MI'!$A$6:$AM$500,5,FALSE))&")")),"NA") -> 0% (0) | F35: =IFERROR((IF($C35="NA","NA",VLOOKUP($A$3,'G5-MI'!$A$6:$AM$500,13,FALSE))),"NA") -> 7.583333333 | G35: =IFERROR((IF($C35="NA","NA",ROUND(VLOOKUP($A$3,'G5-MI'!$A$6:$AM$500,15,FALSE),0)&"% ("&IF(VLOOKUP($A$3,'G5-MI'!$A$6:$AM$500,14,FALSE)="",0,VLOOKUP($A$3,'G5-MI'!$A$6:$AM$500,14,FALSE))&")")),"NA") -> 17% (4) | H35: =IFERROR((IF($C35="NA","NA",VLOOKUP($A$3,'G5-MI'!$A$6:$AM$500,7,FALSE))),"NA") -> 3.875 | I35: =IFERROR((IF($C35="NA","NA",ROUND(VLOOKUP($A$3,'G5-MI'!$A$6:$AM$500,9,FALSE),0)&"% ("&IF(VLOOKUP($A$3,'G5-MI'!$A$6:$AM$500,8,FALSE)="",0,VLOOKUP($A$3,'G5-MI'!$A$6:$AM$500,8,FALSE))&")")),"NA") -> 4% (1) | J35: =IFERROR((IF($C35="NA","NA",VLOOKUP($A$3,'G5-MI'!$A$6:$AM$500,10,FALSE))),"NA") -> 5.208333333 | K35: =IFERROR((IF($C35="NA","NA",ROUND(VLOOKUP($A$3,'G5-MI'!$A$6:$AM$500,12,FALSE),0)&"% ("&IF(VLOOKUP($A$3,'G5-MI'!$A$6:$AM$500,11,FALSE)="",0,VLOOKUP($A$3,'G5-MI'!$A$6:$AM$500,11,FALSE))&")")),"NA") -> 8% (2)
A36: ED | B36: =IFERROR(VLOOKUP(TEXT($A$3,"0000"),MEM_ED!$A$3:$O$501,9,FALSE),0) -> 19693 | C36: =IFERROR((IF(OR(B36=0,B36="",B36="NA"),"NA",((IF(VLOOKUP($A$3,'G5-MED'!$A$6:$AG$500,3,FALSE)>=B36,"100% ("&VLOOKUP($A$3,'G5-MED'!$A$6:$AG$500,3,FALSE)&")",(ROUND((VLOOKUP($A$3,'G5-MED'!$A$6:$AG$500,3,FALSE)/B36*100),0))&"% ("&IF(VLOOKUP($A$3,'G5-MED'!$A$6:$AG$500,3,FALSE)="",0,VLOOKUP($A$3,'G5-MED'!$A$6:$AG$500,3,FALSE))&")"))))),"0% (0)") -> 96% (18848) | D36: =IFERROR((IF($C36="NA","NA",VLOOKUP($A$3,'G5-MED'!$A$6:$AM$500,4,FALSE))),"NA") -> 15.84586694 | E36: =IFERROR((IF($C36="NA","NA",ROUND(VLOOKUP($A$3,'G5-MED'!$A$6:$AM$500,6,FALSE),0)&"% ("&IF(VLOOKUP($A$3,'G5-MED'!$A$6:$AM$500,5,FALSE)="",0,VLOOKUP($A$3,'G5-MED'!$A$6:$AM$500,5,FALSE))&")")),"NA") -> 3% (568) | F36: =IFERROR((IF($C36="NA","NA",VLOOKUP($A$3,'G5-MED'!$A$6:$AM$500,13,FALSE))),"NA") -> 7.275870119 | G36: =IFERROR((IF($C36="NA","NA",ROUND(VLOOKUP($A$3,'G5-MED'!$A$6:$AM$500,15,FALSE),0)&"% ("&IF(VLOOKUP($A$3,'G5-MED'!$A$6:$AM$500,14,FALSE)="",0,VLOOKUP($A$3,'G5-MED'!$A$6:$AM$500,14,FALSE))&")")),"NA") -> 10% (1899) | H36: =IFERROR((IF($C36="NA","NA",VLOOKUP($A$3,'G5-MED'!$A$6:$AM$500,7,FALSE))),"NA") -> 3.468500637 | I36: =IFERROR((IF($C36="NA","NA",ROUND(VLOOKUP($A$3,'G5-MED'!$A$6:$AM$500,9,FALSE),0)&"% ("&IF(VLOOKUP($A$3,'G5-MED'!$A$6:$AM$500,8,FALSE)="",0,VLOOKUP($A$3,'G5-MED'!$A$6:$AM$500,8,FALSE))&")")),"NA") -> 2% (415) | J36: =IFERROR((IF($C36="NA","NA",VLOOKUP($A$3,'G5-MED'!$A$6:$AM$500,10,FALSE))),"NA") -> 5.105247241 | K36: =IFERROR((IF($C36="NA","NA",ROUND(VLOOKUP($A$3,'G5-MED'!$A$6:$AM$500,12,FALSE),0)&"% ("&IF(VLOOKUP($A$3,'G5-MED'!$A$6:$AM$500,11,FALSE)="",0,VLOOKUP($A$3,'G5-MED'!$A$6:$AM$500,11,FALSE))&")")),"NA") -> 4% (836)
A37: ELL | B37: =IFERROR(VLOOKUP(TEXT($A$3,"0000"),MEM_ELL!$A$3:$O$501,9,FALSE),0) -> 6189 | C37: =IFERROR((IF(OR(B37=0,B37="",B37="NA"),"NA",((IF(VLOOKUP($A$3,'G5-MELL'!$A$6:$AG$500,3,FALSE)>=B37,"100% ("&VLOOKUP($A$3,'G5-MELL'!$A$6:$AG$500,3,FALSE)&")",(ROUND((VLOOKUP($A$3,'G5-MELL'!$A$6:$AG$500,3,FALSE)/B37*100),0))&"% ("&IF(VLOOKUP($A$3,'G5-MELL'!$A$6:$AG$500,3,FALSE)="",0,VLOOKUP($A$3,'G5-MELL'!$A$6:$AG$500,3,FALSE))&")"))))),"0% (0)") -> 91% (5650) | D37: =IFERROR((IF($C37="NA","NA",VLOOKUP($A$3,'G5-MELL'!$A$6:$AM$500,4,FALSE))),"NA") -> 13.55628319 | E37: =IFERROR((IF($C37="NA","NA",ROUND(VLOOKUP($A$3,'G5-MELL'!$A$6:$AM$500,6,FALSE),0)&"% ("&IF(VLOOKUP($A$3,'G5-MELL'!$A$6:$AM$500,5,FALSE)="",0,VLOOKUP($A$3,'G5-MELL'!$A$6:$AM$500,5,FALSE))&")")),"NA") -> 1% (33) | F37: =IFERROR((IF($C37="NA","NA",VLOOKUP($A$3,'G5-MELL'!$A$6:$AM$500,13,FALSE))),"NA") -> 6.136637168 | G37: =IFERROR((IF($C37="NA","NA",ROUND(VLOOKUP($A$3,'G5-MELL'!$A$6:$AM$500,15,FALSE),0)&"% ("&IF(VLOOKUP($A$3,'G5-MELL'!$A$6:$AM$500,14,FALSE)="",0,VLOOKUP($A$3,'G5-MELL'!$A$6:$AM$500,14,FALSE))&")")),"NA") -> 4% (203) | H37: =IFERROR((IF($C37="NA","NA",VLOOKUP($A$3,'G5-MELL'!$A$6:$AM$500,7,FALSE))),"NA") -> 3.077168142 | I37: =IFERROR((IF($C37="NA","NA",ROUND(VLOOKUP($A$3,'G5-MELL'!$A$6:$AM$500,9,FALSE),0)&"% ("&IF(VLOOKUP($A$3,'G5-MELL'!$A$6:$AM$500,8,FALSE)="",0,VLOOKUP($A$3,'G5-MELL'!$A$6:$AM$500,8,FALSE))&")")),"NA") -> 1% (43) | J37: =IFERROR((IF($C37="NA","NA",VLOOKUP($A$3,'G5-MELL'!$A$6:$AM$500,10,FALSE))),"NA") -> 4.342477876 | K37: =IFERROR((IF($C37="NA","NA",ROUND(VLOOKUP($A$3,'G5-MELL'!$A$6:$AM$500,12,FALSE),0)&"% ("&IF(VLOOKUP($A$3,'G5-MELL'!$A$6:$AM$500,11,FALSE)="",0,VLOOKUP($A$3,'G5-MELL'!$A$6:$AM$500,11,FALSE))&")")),"NA") -> 1% (79)
A38: SWD | B38: =IFERROR(VLOOKUP(TEXT($A$3,"0000"),MEM_SWD!$A$3:$O$501,9,FALSE),0) -> 2470 | C38: =IFERROR((IF(OR(B38=0,B38="",B38="NA"),"NA",((IF(VLOOKUP($A$3,'G5-MSWD'!$A$6:$AG$500,3,FALSE)>=B38,"100% ("&VLOOKUP($A$3,'G5-MSWD'!$A$6:$AG$500,3,FALSE)&")",(ROUND((VLOOKUP($A$3,'G5-MSWD'!$A$6:$AG$500,3,FALSE)/B38*100),0))&"% ("&IF(VLOOKUP($A$3,'G5-MSWD'!$A$6:$AG$500,3,FALSE)="",0,VLOOKUP($A$3,'G5-MSWD'!$A$6:$AG$500,3,FALSE))&")"))))),"0% (0)") -> 92% (2271) | D38: =IFERROR((IF($C38="NA","NA",VLOOKUP($A$3,'G5-MSWD'!$A$6:$AM$500,4,FALSE))),"NA") -> 13.15843241 | E38: =IFERROR((IF($C38="NA","NA",ROUND(VLOOKUP($A$3,'G5-MSWD'!$A$6:$AM$500,6,FALSE),0)&"% ("&IF(VLOOKUP($A$3,'G5-MSWD'!$A$6:$AM$500,5,FALSE)="",0,VLOOKUP($A$3,'G5-MSWD'!$A$6:$AM$500,5,FALSE))&")")),"NA") -> 1% (24) | F38: =IFERROR((IF($C38="NA","NA",VLOOKUP($A$3,'G5-MSWD'!$A$6:$AM$500,13,FALSE))),"NA") -> 5.81003963 | G38: =IFERROR((IF($C38="NA","NA",ROUND(VLOOKUP($A$3,'G5-MSWD'!$A$6:$AM$500,15,FALSE),0)&"% ("&IF(VLOOKUP($A$3,'G5-MSWD'!$A$6:$AM$500,14,FALSE)="",0,VLOOKUP($A$3,'G5-MSWD'!$A$6:$AM$500,14,FALSE))&")")),"NA") -> 4% (87) | H38: =IFERROR((IF($C38="NA","NA",VLOOKUP($A$3,'G5-MSWD'!$A$6:$AM$500,7,FALSE))),"NA") -> 3.080537208 | I38: =IFERROR((IF($C38="NA","NA",ROUND(VLOOKUP($A$3,'G5-MSWD'!$A$6:$AM$500,9,FALSE),0)&"% ("&IF(VLOOKUP($A$3,'G5-MSWD'!$A$6:$AM$500,8,FALSE)="",0,VLOOKUP($A$3,'G5-MSWD'!$A$6:$AM$500,8,FALSE))&")")),"NA") -> 1% (27) | J38: =IFERROR((IF($C38="NA","NA",VLOOKUP($A$3,'G5-MSWD'!$A$6:$AM$500,10,FALSE))),"NA") -> 4.268912373 | K38: =IFERROR((IF($C38="NA","NA",ROUND(VLOOKUP($A$3,'G5-MSWD'!$A$6:$AM$500,12,FALSE),0)&"% ("&IF(VLOOKUP($A$3,'G5-MSWD'!$A$6:$AM$500,11,FALSE)="",0,VLOOKUP($A$3,'G5-MSWD'!$A$6:$AM$500,11,FALSE))&")")),"NA") -> 2% (41)
A39: Science - Grade 5
A40: Level of Proficiency at 70% or above | B40: Total # of Students | C40: % of Students Tested | D40: ='G3-5 Matrix'!C19&" ["&'G3-5 Matrix'!C20&"]" -> Overall [66] | F40: ='G3-5 Matrix'!D19&" ["&'G3-5 Matrix'!D20&"]" -> Nature of Science [8] | H40: ='G3-5 Matrix'!E19&" ["&'G3-5 Matrix'!E20&"]" -> Earth & Space Science [19] | J40: ='G3-5 Matrix'!F19&" ["&'G3-5 Matrix'!F20&"]" -> Physical Science [24] | L40: ='G3-5 Matrix'!G19&" ["&'G3-5 Matrix'!G20&"]" -> Life Science [15]
D41: Average Score | E41: % Proficient | F41: Average Score | G41: % Proficient | H41: Average Score | I41: % Proficient | J41: Average Score | K41: % Proficient | L41: Average Score | M41: % Proficient
A42: All students | B42: =IFERROR(VLOOKUP(TEXT($A$3,"0000"),Mem_All!$A$3:$O$501,9,FALSE),0) -> 25424 | C42: =IFERROR((IF(OR(B42=0,B42="",B42="NA"),"NA",((IF(VLOOKUP($A$3,'G5-SALL'!$A$6:$AG$500,3,FALSE)>=B42,"100% ("&VLOOKUP($A$3,'G5-SALL'!$A$6:$AG$500,3,FALSE)&")",(ROUND((VLOOKUP($A$3,'G5-SALL'!$A$6:$AG$500,3,FALSE)/B42*100),0))&"% ("&VLOOKUP($A$3,'G5-SALL'!$A$6:$AG$500,3,FALSE)&")"))))),"NA") -> 95% (24259) | D42: =IFERROR((IF($C42="NA","NA",VLOOKUP($A$3,'G5-SALL'!$A$6:$AG$500,4,FALSE))),"NA") -> 31.29999924 | E42: =IFERROR((IF($C42="NA","NA",ROUND(VLOOKUP($A$3,'G5-SALL'!$A$6:$AG$500,9,FALSE)*100,0)&"% ("&IF(VLOOKUP($A$3,'G5-SALL'!$A$6:$AG$500,7,FALSE)="",0,VLOOKUP($A$3,'G5-SALL'!$A$6:$AG$500,7,FALSE))&")")),"NA") -> 6% (1537) | F42: =IFERROR((IF($C42="NA","NA",VLOOKUP($A$3,'G5-SALL'!$A$6:$AG$500,22,FALSE))),"NA") -> 3 | G42: =IFERROR((IF($C42="NA","NA",ROUND(VLOOKUP($A$3,'G5-SALL'!$A$6:$AG$500,27,FALSE)*100,0)&"% ("&IF(VLOOKUP($A$3,'G5-SALL'!$A$6:$AG$500,25,FALSE)="",0,VLOOKUP($A$3,'G5-SALL'!$A$6:$AG$500,25,FALSE))&")")),"NA") -> 8% (1929) | H42: =IFERROR((IF($C42="NA","NA",VLOOKUP($A$3,'G5-SALL'!$A$6:$AG$500,10,FALSE))),"NA") -> 8.5 | I42: =IFERROR((IF($C42="NA","NA",ROUND(VLOOKUP($A$3,'G5-SALL'!$A$6:$AA$500,15,FALSE)*100,0)&"% ("&IF(VLOOKUP($A$3,'G5-SALL'!$A$6:$AA$500,13,FALSE)="",0,VLOOKUP($A$3,'G5-SALL'!$A$6:$AA$500,13,FALSE))&")")),"NA") -> 5% (1215) | J42: =IFERROR((IF($C42="NA","NA",VLOOKUP($A$3,'G5-SALL'!$A$6:$AG$500,28,FALSE))),"NA") -> 12.69999981 | K42: =IFERROR((IF($C42="NA","NA",ROUND(VLOOKUP($A$3,'G5-SALL'!$A$6:$AG$500,33,FALSE)*100,0)&"% ("&IF(VLOOKUP($A$3,'G5-SALL'!$A$6:$AG$500,31,FALSE)="",0,VLOOKUP($A$3,'G5-SALL'!$A$6:$AG$500,31,FALSE))&")")),"NA") -> 20% (4759) | L42: =IFERROR((IF($C42="NA","NA",VLOOKUP($A$3,'G5-SALL'!$A$6:$AG$500,16,FALSE))),"NA") -> 7.099999905 | M42: =IFERROR((IF($C42="NA","NA",ROUND(VLOOKUP($A$3,'G5-SALL'!$A$6:$AG$500,21,FALSE)*100,0)&"% ("&IF(VLOOKUP($A$3,'G5-SALL'!$A$6:$AG$500,19,FALSE)="",0,VLOOKUP($A$3,'G5-SALL'!$A$6:$AG$500,19,FALSE))&")")),"NA") -> 13% (3091)

Sheet G3-5 Matrix (hidden)
A2: Grade | B2: Reading | C2: Overall | D2: Vocabulary | E2: Reading Application | F2: Literary Analysis Fiction/Nonfiction | G2: Informational Text/ Research Process
A3: 3 | B3: N of Items | C3: =SUM(D3:G3) -> 31 | D3: 6 | E3: 17 | F3: 6 | G3: 2
A4: 3 | B4: 51% Cut | C4: =ROUND(0.505*C3,2) -> 15.66 | D4: =ROUND(0.505*D3,2) -> 3.03 | E4: 8.59 | F4: 3.03 | G4: 1.01
A5: 4 | B5: N of Items | C5: =SUM(D5:G5) -> 43 | D5: 7 | E5: 25 | F5: 6 | G5: 5
A6: 4 | B6: 51% Cut | C6: =ROUND(0.505*C5,2) -> 21.72 | D6: =ROUND(0.505*D5,2) -> 3.54 | E6: 12.63 | F6: 3.03 | G6: 2.53
A7: 5 | B7: N of Items | C7: =SUM(D7:G7) -> 43 | D7: 7 | E7: 23 | F7: 8 | G7: 5
A8: 5 | B8: 51% Cut | C8: =ROUND(0.505*C7,2) -> 21.72 | D8: =ROUND(0.505*D7,2) -> 3.54 | E8: 11.62 | F8: 4.04 | G8: 2.53
A10: 3 | B10: Math | C10: Overall | D10: Number: Operations, Problems, & Statistics | E10: Number: Fractions | F10: Geometry and Measurement
A11: 3 | B11: N of Items | C11: =SUM(D11:F11) -> 34 | D11: 15 | E11: 3 | F11: 16
A12: 3 | B12: 51% Cut | C12: =ROUND(0.505*C11,2) -> 17.17 | D12: =ROUND(0.505*D11,2) -> 7.58 | E12: 1.52 | F12: 8.08
A13: 4 | B13: Math | C13: Overall | D13: Number: Operations & Problems | E13: Number: Base Ten and Fractions | F13: Geometry and Measurement
A14: 4 | B14: N of Items | C14: =SUM(D14:G14) -> 34 | D14: 16 | E14: 8 | F14: 10
A15: 4 | B15: 51% Cut | C15: =ROUND(0.505*C14,2) -> 17.17 | D15: =ROUND(0.505*D14,2) -> 8.08 | E15: 4.04 | F15: 5.05
A16: 5 | B16: Math | C16: Overall | D16: Number: Base Ten & Fractions | E16: Expressions, Equations, & Statistics | F16: Geometry and Measurement
A17: 5 | B17: N of Items | C17: =SUM(D17:F17) -> 39 | D17: 16 | E17: 9 | F17: 14
A18: 5 | B18: 51% Cut | C18: =ROUND(0.505*C17,2) -> 19.7 | D18: =ROUND(0.505*D17,2) -> 8.08 | E18: 4.55 | F18: 7.07
A19: 5 | B19: Science | C19: Overall | D19: Nature of Science | E19: Earth & Space Science | F19: Physical Science | G19: Life Science
A20: 5 | B20: N of Items | C20: =SUM(D20:G20) -> 66 | D20: 8 | E20: 19 | F20: 24 | G20: 15
A21: 5 | B21: 51% Cut | C21: =ROUND(0.505*C20,2) -> 33.33 | D21: =ROUND(0.505*D20,2) -> 4.04 | E21: 9.6 | F21: 12.12 | G21: 7.58

Sheet Mem_All (hidden)
A1: 1 | B1: 2 | C1: 3 | D1: 4 | E1: 5 | F1: 6 | G1: 7 | H1: 8 | I1: 9 | J1: 10 | K1: 11 | L1: 12 | M1: 13 | N1: 14 | O1: 15 | P1: 16 | Q1: 17
A2: SCHOOL_NUMBER | B2: S_SCHL_NAME | C2: Total Of STUDENT_ID | D2: 00 | E2: 01 | F2: 02 | G2: 03 | H2: 04 | I2: 05 | J2: 06 | K2: 07 | L2: 08 | M2: 09 | N2: 10 | O2: 11 | P2: 12 | Q2: PK
A3: 0041 | B3: AIR BASE ELEMENTARY | C3: 741 | D3: 99 | E3: 107 | F3: 117 | G3: 113 | H3: 115 | I3: 119 | Q3: 71
A4: 0070 | B4: CORAL REEF MONTESSORI ACAD CH | C4: 413 | D4: 71 | E4: 54 | F4: 58 | G4: 56 | H4: 43 | I4: 41 | J4: 28 | K4: 31 | L4: 31
A5: 0071 | B5: EUGENIA B. THOMAS K-8 CENTER | C5: 1603 | D5: 146 | E5: 194 | F5: 179 | G5: 193 | H5: 186 | I5: 169 | J5: 148 | K5: 165 | L5: 181 | Q5: 42
A6: 0072 | B6: SUMMERVILLE CHARTER SCHOOL | C6: 433 | E6: 104 | F6: 75 | G6: 84 | H6: 82 | I6: 88
A7: 0073 | B7: MANDARIN LAKES K-8 CENTER | C7: 1120 | D7: 125 | E7: 149 | F7: 135 | G7: 153 | H7: 120 | I7: 122 | J7: 123 | K7: 80 | L7: 113
A8: 0081 | B8: LENORA B. SMITH ELEMENTARY | C8: 429 | D8: 63 | E8: 63 | F8: 66 | G8: 80 | H8: 60 | I8: 59 | Q8: 38
A9: 0091 | B9: BOB GRAHAM EDUCATION CTR | C9: 1721 | D9: 128 | E9: 139 | F9: 162 | G9: 192 | H9: 215 | I9: 194 | J9: 218 | K9: 232 | L9: 241
A10: 0092 | B10: NORMAN S. EDELCUP/SUNNY ISLES | C10: 1769 | D10: 192 | E10: 202 | F10: 204 | G10: 220 | H10: 206 | I10: 169 | J10: 185 | K10: 194 | L10: 197
A11: 0100 | B11: MATER ACADEMY | C11: 745 | D11: 125 | E11: 94 | F11: 149 | G11: 127 | H11: 123 | I11: 127
A12: 0101 | B12: ARCOLA LAKE ELEMENTARY | C12: 481 | D12: 62 | E12: 71 | F12: 68 | G12: 67 | H12: 57 | I12: 84 | Q12: 72
A13: 0102 | B13: MIAMI COMMUNITY CHARTER SCHOOL | C13: 517 | D13: 98 | E13: 95 | F13: 94 | G13: 89 | H13: 72 | I13: 69
A14: 0111 | B14: MAYA ANGELOU ELEMENTARY | C14: 671 | D14: 141 | E14: 116 | F14: 93 | G14: 91 | H14: 79 | I14: 94 | Q14: 57
A15: 0121 | B15: AUBURNDALE ELEMENTARY | C15: 820 | D15: 96 | E15: 147 | F15: 137 | G15: 129 | H15: 131 | I15: 133 | Q15: 47
A16: 0122 | B16: DR ROLANDO ESPINOSA K-8 | C16: 1658 | D16: 151 | E16: 171 | F16: 183 | G16: 185 | H16: 205 | I16: 171 | J16: 186 | K16: 195 | L16: 192 | Q16: 19
A17: 0125 | B17: NORMA BUTLER BOSSARD ELEM | C17: 1255 | D17: 196 | E17: 204 | F17: 174 | G17: 230 | H17: 206 | I17: 226 | Q17: 19
A18: 0161 | B18: AVOCADO ELEMENTARY | C18: 570 | D18: 134 | E18: 144 | F18: 151 | G18: 141
A19: 0201 | B19: BANYAN ELEMENTARY | C19: 354 | D19: 51 | E19: 62 | F19: 63 | G19: 35 | H19: 57 | I19: 52 | Q19: 34
A20: 0211 | B20: DR. MANUEL C. BARREIRO ELEM | C20: 820 | D20: 104 | E20: 119 | F20: 123 | G20: 131 | H20: 162 | I20: 162 | Q20: 19
A21: 0231 | B21: AVENTURA WATERWAYS K-8 CENTER | C21: 1867 | D21: 211 | E21: 230 | F21: 207 | G21: 205 | H21: 212 | I21: 198 | J21: 204 | K21: 187 | L21: 213
A22: 0241 | B22: RUTH K BROAD/BAY HARBOR K-8 | C22: 1248 | D22: 123 | E22: 122 | F22: 156 | G22: 144 | H22: 161 | I22: 122 | J22: 162 | K22: 114 | L22: 125 | Q22: 19
A23: 0251 | B23: ETHEL KOGER BECKHAM ELEMENTARY | C23: 708 | D23: 118 | E23: 112 | F23: 104 | G23: 116 | H23: 113 | I23: 107 | Q23: 38
A24: 0261 | B24: BEL-AIRE ELEMENTARY | C24: 476 | D24: 82 | E24: 76 | F24: 76 | G24: 76 | H24: 60 | I24: 69 | Q24: 37
A25: 0271 | B25: BENT TREE ELEMENTARY | C25: 554 | D25: 103 | E25: 72 | F25: 87 | G25: 83 | H25: 94 | I25: 98 | Q25: 17
A26: 0311 | B26: GOULDS ELEMENTARY | C26: 607 | D26: 117 | E26: 121 | F26: 110 | G26: 84 | H26: 96 | I26: 79
A27: 0312 | B27: MATER GARDENS ACADEMY | C27: 611 | D27: 99 | E27: 104 | F27: 101 | G27: 107 | H27: 99 | I27: 101
A28: 0321 | B28: BISCAYNE ELEMENTARY | C28: 678 | D28: 99 | E28: 88 | F28: 92 | G28: 123 | H28: 105 | I28: 109 | Q28: 62
A29: 0331 | B29: CHAPMAN PARTNERSHIP ECC NORTH | C29: 39 | Q29: 39
A30: 0332 | B30: SOMERSET ACADEMY(SILVER PALMS) | C30: 639 | G30: 66 | H30: 46 | I30: 88 | J30: 165 | K30: 150 | L30: 124
A31: 0339 | B31: SOMERSET ACADEMY CHARTER ELEM | C31: 318 | D31: 45 | E31: 60 | F31: 60 | G31: 60 | H31: 49 | I31: 44
A32: 0341 | B32: ARCH CREEK ELEMENTARY SCHOOL | C32: 563 | D32: 74 | E32: 92 | F32: 93 | G32: 96 | H32: 103 | I32: 105
A33: 0342 | B33: PINECREST ACADEMY SOUTH CAMPUS | C33: 746 | D33: 136 | E33: 134 | F33: 115 | G33: 127 | H33: 113 | I33: 121
A34: 0351 | B34: CHAPMAN PARTNERSHIP ECC SOUTH | C34: 85 | Q34: 85
A35: 0361 | B35: BISCAYNE GARDENS ELEMENTARY | C35: 606 | D35: 111 | E35: 93 | F35: 83 | G35: 90 | H35: 81 | I35: 81 | Q35: 67
A36: 0400 | B36: RENAISSANCE ELEMENTARY CHARTER | C36: 911 | D36: 165 | E36: 154 | F36: 152 | G36: 157 | H36: 150 | I36: 133
A37: 0401 | B37: VAN E. BLANTON ELEMENTARY | C37: 555 | D37: 86 | E37: 85 | F37: 89 | G37: 102 | H37: 73 | I37: 82 | Q37: 38
A38: 0410 | B38: ACADEMIR CHARTER SCHOOL WEST | C38: 613 | D38: 95 | E38: 162 | F38: 124 | G38: 113 | H38: 64 | I38: 55
A39: 0441 | B39: BLUE LAKES ELEMENTARY | C39: 458 | D39: 54 | E39: 59 | F39: 60 | G39: 75 | H39: 74 | I39: 66 | Q39: 70
A40: 0451 | B40: BOWMAN ASHE/DOOLIN K-8 ACAD | C40: 1397 | D40: 138 | E40: 108 | F40: 120 | G40: 122 | H40: 148 | I40: 139 | J40: 148 | K40: 200 | L40: 225 | Q40: 49
A41: 0461 | B41: BRENTWOOD ELEMENTARY | C41: 790 | D41: 130 | E41: 119 | F41: 122 | G41: 141 | H41: 102 | I41: 120 | Q41: 56
A42: 0481 | B42: JAMES H. BRIGHT/JW JOHNSON ES | C42: 735 | D42: 86 | E42: 100 | F42: 112 | G42: 128 | H42: 118 | I42: 132 | Q42: 59
A43: 0510 | B43: ARCHIMEDEAN ACADEMY | C43: 555 | D43: 79 | E43: 122 | F43: 103 | G43: 85 | H43: 80 | I43: 86
A44: 0520 | B44: SOMERSET ACADEMY | C44: 570 | D44: 105 | E44: 100 | F44: 79 | G44: 103 | H44: 92 | I44: 91
A45: 0521 | B45: BROADMOOR ELEMENTARY | C45: 457 | D45: 75 | E45: 69 | F45: 70 | G45: 62 | H45: 64 | I45: 71 | Q45: 46
A46: 0561 | B46: W.J. BRYAN ELEMENTARY | C46: 742 | D46: 121 | E46: 123 | F46: 110 | G46: 126 | H46: 111 | I46: 121 | Q46: 30
A47: 0600 | B47: PINECREST PREP ACADEMY | C47: 641 | D47: 75 | E47: 122 | F47: 110 | G47: 122 | H47: 113 | I47: 99
A48: 0641 | B48: BUNCHE PARK ELEMENTARY | C48: 276 | D48: 39 | E48: 48 | F48: 41 | G48: 43 | H48: 36 | I48: 30 | Q48: 39
A49: 0651 | B49: CAMPBELL DRIVE K-8 CENTER | C49: 749 | D49: 107 | E49: 104 | F49: 94 | G49: 96 | H49: 85 | I49: 100 | J49: 62 | K49: 60 | Q49: 41
A50: 0661 | B50: CARIBBEAN ELEMENTARY | C50: 625 | D50: 105 | E50: 106 | F50: 91 | G50: 110 | H50: 80 | I50: 87 | Q50: 46
A51: 0671 | B51: CALUSA ELEMENTARY | C51: 902 | D51: 135 | E51: 158 | F51: 123 | G51: 143 | H51: 159 | I51: 164 | Q51: 20
A52: 0681 | B52: CAROL CITY ELEMENTARY | C52: 645 | D52: 100 | E52: 91 | F52: 122 | G52: 99 | H52: 85 | I52: 93 | Q52: 55
A53: 0721 | B53: GEORGE WASHINGTON CARVER ELEM | C53: 453 | D53: 66 | E53: 80 | F53: 66 | G53: 84 | H53: 80 | I53: 77
A54: 0761 | B54: FIENBERG/FISHER K-8 CENTER | C54: 829 | D54: 70 | E54: 75 | F54: 76 | G54: 82 | H54: 87 | I54: 89 | J54: 110 | K54: 91 | L54: 85 | Q54: 64
A55: 0771 | B55: WILLIAM A. CHAPMAN ELEMENTARY | C55: 498 | D55: 92 | E55: 62 | F55: 69 | G55: 66 | H55: 53 | I55: 50 | Q55: 106
A56: 0801 | B56: CITRUS GROVE ELEMENTARY | C56: 856 | D56: 120 | E56: 124 | F56: 141 | G56: 132 | H56: 150 | I56: 137 | Q56: 52
A57: 0831 | B57: CLAUDE PEPPER ELEMENTARY | C57: 748 | D57: 93 | E57: 123 | F57: 109 | G57: 123 | H57: 115 | I57: 115 | Q57: 70
A58: 0841 | B58: COCONUT GROVE ELEMENTARY | C58: 387 | D58: 76 | E58: 63 | F58: 53 | G58: 51 | H58: 60 | I58: 57 | Q58: 27
A59: 0861 | B59: COLONIAL DRIVE ELEMENTARY | C59: 273 | D59: 40 | E59: 36 | F59: 41 | G59: 44 | H59: 30 | I59: 43 | Q59: 39
A60: 0881 | B60: COMSTOCK ELEMENTARY | C60: 553 | D60: 86 | E60: 89 | F60: 73 | G60: 92 | H60: 83 | I60: 74 | Q60: 56
A61: 0921 | B61: NEVA KING COOPER EDUCATIONAL | C61: 5 | D61: 1 | F61: 1 | I61: 1 | Q61: 2
A62: 0950 | B62: AVENTURA CITY OF EXCELLENCE | C62: 984 | D62: 108 | E62: 108 | F62: 113 | G62: 107 | H62: 119 | I62: 109 | J62: 108 | K62: 108 | L62: 104
A63: 0961 | B63: CORAL GABLES PREPARATORY ACAD | C63: 796 | D63: 86 | E63: 92 | F63: 87 | G63: 96 | H63: 104 | I63: 89 | J63: 70 | K63: 99 | L63: 53 | Q63: 20
A64: 1001 | B64: CORAL PARK ELEMENTARY | C64: 1096 | D64: 163 | E64: 167 | F64: 154 | G64: 166 | H64: 168 | I64: 203 | Q64: 75
A65: 1010 | B65: CHARTER SCHOOL AT WATERSTONE | C65: 900 | E65: 215 | F65: 193 | G65: 154 | H65: 164 | I65: 174
A66: 1014 | B66: ADVANCED LEARNING CHARTER SCH | C66: 447 | D66: 52 | E66: 100 | F66: 100 | G66: 66 | H66: 68 | I66: 61
A67: 1017 | B67: MATER ACADEMY OF INTL STUDIES | C67: 501 | D67: 124 | E67: 111 | F67: 86 | G67: 83 | H67: 45 | I67: 52
A68: 1020 | B68: YOUTH CO-OP CHARTER SCHOOL | C68: 600 | D68: 85 | E68: 73 | F68: 57 | G68: 52 | H68: 42 | I68: 52 | J68: 63 | K68: 90 | L68: 86
A69: 1041 | B69: CORAL REEF ELEMENTARY | C69: 818 | D69: 131 | E69: 104 | F69: 130 | G69: 134 | H69: 155 | I69: 146 | Q69: 18
A70: 1070 | B70: SOUTH FLORIDA AUTISM CHARTER | C70: 36 | D70: 7 | E70: 3 | F70: 6 | G70: 7 | H70: 7 | J70: 5 | K70: 1
A71: 1081 | B71: CORAL TERRACE ELEMENTARY | C71: 495 | D71: 71 | E71: 77 | F71: 85 | G71: 78 | H71: 77 | I71: 88 | Q71: 19
A72: 1121 | B72: CORAL WAY K-8 CENTER | C72: 1527 | D72: 157 | E72: 154 | F72: 150 | G72: 171 | H72: 166 | I72: 186 | J72: 172 | K72: 162 | L72: 180 | Q72: 29
A73: 1161 | B73: CRESTVIEW ELEMENTARY | C73: 499 | D73: 82 | E73: 63 | F73: 72 | G73: 94 | H73: 68 | I73: 101 | Q73: 19
A74: 1241 | B74: CUTLER RIDGE ELEMENTARY | C74: 796 | D74: 115 | E74: 94 | F74: 123 | G74: 163 | H74: 152 | I74: 134 | Q74: 15
A75: 1281 | B75: CYPRESS ELEMENTARY | C75: 340 | D75: 45 | E75: 60 | F75: 37 | G75: 50 | H75: 65 | I75: 64 | Q75: 19
A76: 1331 | B76: DEVON AIRE K-8 CENTER | C76: 1539 | D76: 127 | E76: 174 | F76: 154 | G76: 158 | H76: 166 | I76: 174 | J76: 198 | K76: 180 | L76: 189 | Q76: 19
A77: 1361 | B77: FREDERICK DOUGLASS ELEMENTARY | C77: 333 | D77: 38 | E77: 38 | F77: 36 | G77: 69 | H77: 32 | I77: 30 | Q77: 90
A78: 1371 | B78: MARJORY STONEMAN DOUGLAS ELEM | C78: 1035 | D78: 135 | E78: 162 | F78: 154 | G78: 159 | H78: 162 | I78: 206 | Q78: 57
A79: 1401 | B79: CHARLES R. DREW ELEMENTARY | C79: 353 | D79: 54 | E79: 36 | F79: 33 | G79: 35 | H79: 32 | I79: 39 | J79: 46 | Q79: 78
A80: 1441 | B80: PAUL LAURENCE DUNBAR ELEM | C80: 403 | D80: 53 | E80: 60 | F80: 62 | G80: 60 | H80: 56 | I80: 57 | J80: 35 | Q80: 20
A81: 1481 | B81: JOHN G. DUPUIS ELEMENTARY | C81: 712 | D81: 79 | E81: 92 | F81: 110 | G81: 107 | H81: 107 | I81: 131 | Q81: 86
A82: 1521 | B82: AMELIA EARHART ELEMENTARY | C82: 424 | D82: 50 | E82: 51 | F82: 66 | G82: 79 | H82: 65 | I82: 73 | Q82: 40
A83: 1561 | B83: EARLINGTON HEIGHTS ELEMENTARY | C83: 469 | D83: 79 | E83: 70 | F83: 93 | G83: 74 | H83: 72 | I83: 65 | Q83: 16
A84: 1601 | B84: EDISON PARK ELEMENTARY | C84: 378 | D84: 63 | E84: 58 | F84: 64 | G84: 60 | H84: 43 | I84: 46 | J84: 25 | Q84: 19
A85: 1641 | B85: EMERSON ELEMENTARY | C85: 403 | D85: 64 | E85: 69 | F85: 45 | G85: 80 | H85: 52 | I85: 73 | Q85: 20
A86: 1681 | B86: LILLIE C. EVANS K-8 CENTER | C86: 457 | D86: 42 | E86: 45 | F86: 55 | G86: 42 | H86: 60 | I86: 43 | J86: 60 | K86: 36 | L86: 24 | Q86: 50
A87: 1691 | B87: CHRISTINA M. EVE ELEMENTARY | C87: 631 | D87: 101 | E87: 87 | F87: 111 | G87: 95 | H87: 105 | I87: 111 | Q87: 21
A88: 1721 | B88: EVERGLADES K-8 CENTER | C88: 1141 | D88: 100 | E88: 126 | F88: 117 | G88: 103 | H88: 115 | I88: 118 | J88: 133 | K88: 153 | L88: 143 | Q88: 33
A89: 1761 | B89: DAVID FAIRCHILD ELEMENTARY | C89: 634 | D89: 102 | E89: 102 | F89: 104 | G89: 118 | H89: 88 | I89: 91 | Q89: 29
A90: 1801 | B90: FAIRLAWN ELEMENTARY | C90: 673 | D90: 97 | E90: 115 | F90: 108 | G90: 100 | H90: 118 | I90: 116 | Q90: 19
A91: 1811 | B91: DANTE B. FASCELL ELEMENTARY | C91: 530 | D91: 80 | E91: 86 | F91: 85 | G91: 82 | H91: 79 | I91: 99 | Q91: 19
A92: 1841 | B92: FLAGAMI ELEMENTARY | C92: 470 | D92: 61 | E92: 74 | F92: 78 | G92: 69 | H92: 73 | I92: 87 | Q92: 28
A93: 1881 | B93: HENRY M. FLAGLER ELEMENTARY | C93: 832 | D93: 127 | E93: 142 | F93: 124 | G93: 140 | H93: 116 | I93: 133 | Q93: 50
A94: 1921 | B94: FLAMINGO ELEMENTARY | C94: 766 | D94: 92 | E94: 107 | F94: 117 | G94: 147 | H94: 128 | I94: 156 | Q94: 19
A95: 2001 | B95: FLORIDA CITY ELEMENTARY | C95: 757 | D95: 145 | E95: 142 | F95: 118 | G95: 96 | H95: 117 | I95: 99 | Q95: 40
A96: 2003 | B96: BRIDGEPOINT ACADEMY | C96: 307 | D96: 60 | E96: 36 | F96: 76 | G96: 52 | H96: 44 | I96: 39
A97: 2004 | B97: ISAAC ACADEMY K-8 | C97: 25 | F97: 25
A98: 2006 | B98: RICHARD ALLEN LEADERSHIP ACAD | C98: 81 | D98: 11 | E98: 16 | F98: 9 | G98: 17 | H98: 15 | I98: 13
A99: 2007 | B99: SOMERSET ACADEMY ELEMENTARY | C99: 474 | D99: 75 | E99: 77 | F99: 75 | G99: 98 | H99: 99 | I99: 50
A100: 2012 | B100: SOMERSET ARTS ACADEMY | C100: 290 | D100: 41 | E100: 57 | F100: 34 | G100: 50 | H100: 72 | I100: 36
A101: 2013 | B101: BRIDGEPOINT ACAD GREATER MIAMI | C101: 278 | D101: 80 | E101: 87 | F101: 38 | G101: 25 | H101: 27 | I101: 21
A102: 2021 | B102: GLORIA FLOYD ELEMENTARY | C102: 599 | D102: 101 | E102: 101 | F102: 77 | G102: 93 | H102: 96 | I102: 94 | Q102: 37
A103: 2041 | B103: BENJAMIN FRANKLIN K-8 CENTER | C103: 529 | D103: 70 | E103: 64 | F103: 67 | G103: 68 | H103: 63 | I103: 74 | J103: 61 | K103: 43 | Q103: 19
A104: 2060 | B104: GIBSON CHARTER SCHOOL | C104: 260 | D104: 31 | E104: 25 | F104: 30 | G104: 22 | H104: 21 | I104: 27 | J104: 43 | K104: 33 | L104: 28
A105: 2081 | B105: FULFORD ELEMENTARY | C105: 514 | D105: 99 | E105: 88 | F105: 68 | G105: 80 | H105: 82 | I105: 78 | Q105: 19
A106: 2111 | B106: HIALEAH GARDENS ELEMENTARY | C106: 822 | D106: 136 | E106: 117 | F106: 126 | G106: 135 | H106: 134 | I106: 132 | Q106: 42
A107: 2151 | B107: JACK D. GORDON ELEMENTARY | C107: 1107 | D107: 174 | E107: 153 | F107: 193 | G107: 178 | H107: 187 | I107: 202 | Q107: 20
A108: 2161 | B108: GOLDEN GLADES ELEMENTARY | C108: 267 | D108: 44 | E108: 40 | F108: 33 | G108: 47 | H108: 38 | I108: 33 | Q108: 32
A109: 2181 | B109: JOELLA C. GOOD ELEMENTARY | C109: 916 | D109: 148 | E109: 135 | F109: 140 | G109: 153 | H109: 167 | I109: 155 | Q109: 18
A110: 2191 | B110: SPANISH LAKE ELEMENTARY | C110: 1625 | D110: 259 | E110: 243 | F110: 245 | G110: 307 | H110: 273 | I110: 290 | Q110: 8
A111: 2241 | B111: GRATIGNY ELEMENTARY | C111: 671 | D111: 91 | E111: 78 | F111: 75 | G111: 108 | H111: 73 | I111: 91 | J111: 77 | Q111: 78
A112: 2261 | B112: GREENGLADE ELEMENTARY | C112: 480 | D112: 77 | E112: 57 | F112: 65 | G112: 83 | H112: 89 | I112: 77 | Q112: 32
A113: 2281 | B113: GREYNOLDS PARK ELEMENTARY | C113: 792 | D113: 130 | E113: 118 | F113: 104 | G113: 136 | H113: 112 | I113: 112 | Q113: 80
A114: 2321 | B114: GULFSTREAM ELEMENTARY | C114: 554 | D114: 86 | E114: 86 | F114: 82 | G114: 74 | H114: 72 | I114: 66 | Q114: 88
A115: 2331 | B115: CHARLES R. HADLEY ELEMENTARY | C115: 1018 | D115: 163 | E115: 174 | F115: 178 | G115: 143 | H115: 177 | I115: 148 | Q115: 35
A116: 2341 | B116: JOE HALL ELEMENTARY | C116: 568 | D116: 94 | E116: 67 | F116: 91 | G116: 96 | H116: 92 | I116: 108 | Q116: 20
A117: 2351 | B117: ENEIDA MASSAS HARTNER ELEM | C117: 580 | D117: 102 | E117: 100 | F117: 90 | G117: 96 | H117: 89 | I117: 85 | Q117: 18
A118: 2361 | B118: HIALEAH ELEMENTARY | C118: 668 | D118: 72 | E118: 104 | F118: 110 | G118: 110 | H118: 118 | I118: 126 | Q118: 28
A119: 2371 | B119: WEST HIALEAH GARDENS ELEM | C119: 1163 | D119: 182 | E119: 165 | F119: 206 | G119: 212 | H119: 208 | I119: 174 | Q119: 16
A120: 2401 | B120: HIBISCUS ELEMENTARY | C120: 547 | D120: 85 | E120: 68 | F120: 90 | G120: 90 | H120: 71 | I120: 110 | Q120: 33
A121: 2441 | B121: VIRGINIA A BOONE/HIGHLAND OAKS | C121: 734 | D121: 101 | E121: 136 | F121: 112 | G121: 143 | H121: 124 | I121: 86 | Q121: 32
A122: 2501 | B122: HOLMES ELEMENTARY | C122: 579 | D122: 111 | E122: 111 | F122: 90 | G122: 104 | H122: 64 | I122: 80 | Q122: 19
A123: 2511 | B123: ZORA NEALE HURSTON ELEMENTARY | C123: 732 | D123: 96 | E123: 111 | F123: 86 | G123: 135 | H123: 114 | I123: 135 | Q123: 55
A124: 2521 | B124: OLIVER HOOVER ELEMENTARY | C124: 809 | D124: 114 | E124: 106 | F124: 126 | G124: 141 | H124: 134 | I124: 142 | Q124: 46
A125: 2531 | B125: THENA C. CROWDER EARLY CHLDHD | C125: 47 | Q125: 47
A126: 2541 | B126: HOWARD DRIVE ELEMENTARY | C126: 646 | D126: 72 | E126: 95 | F126: 99 | G126: 95 | H126: 135 | I126: 112 | Q126: 38
A127: 2581 | B127: MADIE IVES ELEMENTARY | C127: 716 | D127: 103 | E127: 136 | F127: 109 | G127: 109 | H127: 123 | I127: 114 | Q127: 22
A128: 2641 | B128: KENDALE ELEMENTARY | C128: 482 | D128: 75 | E128: 71 | F128: 78 | G128: 78 | H128: 75 | I128: 77 | Q128: 28
A129: 2651 | B129: KENDALE LAKES ELEMENTARY | C129: 712 | D129: 121 | E129: 109 | F129: 96 | G129: 104 | H129: 107 | I129: 123 | Q129: 52
A130: 2661 | B130: KENSINGTON PARK ELEMENTARY | C130: 1122 | D130: 162 | E130: 161 | F130: 178 | G130: 199 | H130: 189 | I130: 191 | Q130: 42
A131: 2701 | B131: KENWOOD K-8 CENTER | C131: 1057 | D131: 112 | E131: 89 | F131: 100 | G131: 121 | H131: 115 | I131: 101 | J131: 143 | K131: 125 | L131: 126 | Q131: 25
A132: 2741 | B132: KEY BISCAYNE K-8 CENTER | C132: 1306 | D132: 142 | E132: 153 | F132: 142 | G132: 181 | H132: 159 | I132: 155 | J132: 152 | K132: 137 | L132: 65 | Q132: 20
A133: 2781 | B133: KINLOCH PARK ELEMENTARY | C133: 812 | D133: 122 | E133: 118 | F133: 126 | G133: 133 | H133: 132 | I133: 162 | Q133: 19
A134: 2801 | B134: LAKE STEVENS ELEMENTARY | C134: 289 | D134: 48 | E134: 32 | F134: 44 | G134: 43 | H134: 51 | I134: 43 | Q134: 28
A135: 2821 | B135: LAKEVIEW ELEMENTARY | C135: 416 | D135: 65 | E135: 58 | F135: 57 | G135: 64 | H135: 65 | I135: 79 | Q135: 28
A136: 2881 | B136: LEEWOOD K-8 CENTER | C136: 797 | D136: 92 | E136: 80 | F136: 89 | G136: 105 | H136: 109 | I136: 89 | J136: 77 | K136: 67 | L136: 51 | Q136: 38
A137: 2891 | B137: WILLIAM LEHMAN ELEMENTARY | C137: 618 | D137: 98 | E137: 87 | F137: 82 | G137: 110 | H137: 118 | I137: 95 | Q137: 28
A138: 2901 | B138: LEISURE CITY K-8 CENTER | C138: 1111 | D138: 92 | E138: 112 | F138: 122 | G138: 96 | H138: 129 | I138: 123 | J138: 100 | K138: 113 | L138: 129 | Q138: 95
A139: 2911 | B139: LINDA LENTIN K-8 CENTER | C139: 963 | D139: 86 | E139: 81 | F139: 88 | G139: 105 | H139: 96 | I139: 136 | J139: 122 | K139: 102 | L139: 110 | Q139: 37
A140: 2941 | B140: LAURA C. SAUNDERS ELEMENTARY | C140: 706 | D140: 132 | E140: 125 | F140: 114 | G140: 122 | H140: 94 | I140: 99 | Q140: 20
A141: 2981 | B141: LIBERTY CITY ELEMENTARY | C141: 432 | D141: 64 | E141: 57 | F141: 45 | G141: 62 | H141: 56 | I141: 49 | Q141: 99
A142: 3021 | B142: JESSE J MCCRARY JR ELEMENTARY | C142: 552 | D142: 108 | E142: 93 | F142: 72 | G142: 99 | H142: 77 | I142: 68 | Q142: 35
A143: 3024 | B143: FLORIDA INTERNATIONAL EL ACAD | C143: 442 | D143: 80 | E143: 70 | F143: 85 | G143: 85 | H143: 65 | I143: 57
A144: 3025 | B144: ADVANTAGE ACADEMY SANTA FE | C144: 284 | D144: 61 | E144: 88 | F144: 53 | G144: 24 | H144: 33 | I144: 25
A145: 3026 | B145: ADVANTAGE ACAD AT SUMMERVILLE | C145: 105 | D145: 105
A146: 3027 | B146: ADVANTAGE ACAD AT WATERSTONE | C146: 238 | D146: 238
A147: 3029 | B147: DORAL ACADEMY OF TECHNOLOGY | C147: 203 | J147: 70 | K147: 63 | L147: 70
A148: 3030 | B148: DORAL ACADEMY | C148: 925 | D148: 183 | E148: 169 | F148: 142 | G148: 129 | H148: 149 | I148: 153
A149: 3032 | B149: PALM GLADES PREPATORY ACADEMY | C149: 451 | J149: 187 | K149: 132 | L149: 132
A150: 3033 | B150: SOMERSET OAKS ACADEMY | C150: 51 | D150: 40 | E150: 11
A151: 3034 | B151: BRIDGEPOINT ACAD VILLAGE GREEN | C151: 172 | D151: 62 | E151: 49 | F151: 18 | G151: 17 | H151: 12 | I151: 12 | K151: 2
A152: 3035 | B152: RAMZ ACADEMY ELEM MIAMI CAMPUS | C152: 149 | D152: 35 | E152: 36 | F152: 21 | G152: 25 | H152: 11 | I152: 21
A153: 3041 | B153: LORAH PARK ELEMENTARY | C153: 432 | D153: 92 | E153: 67 | F153: 75 | G153: 69 | H153: 52 | I153: 57 | Q153: 20
A154: 3051 | B154: TOUSSAINT L'OUVERTURE ELEM | C154: 472 | D154: 69 | E154: 62 | F154: 70 | G154: 85 | H154: 76 | I154: 73 | Q154: 37
A155: 3061 | B155: LUDLAM ELEMENTARY | C155: 393 | D155: 70 | E155: 67 | F155: 68 | G155: 59 | H155: 54 | I155: 61 | Q155: 14
A156: 3100 | B156: MATER ACADEMY EAST CHARTER | C156: 625 | D156: 156 | E156: 125 | F156: 129 | G156: 81 | H156: 69 | I156: 65
A157: 3101 | B157: FRANK C. MARTIN K-8 CENTER | C157: 1164 | D157: 103 | E157: 118 | F157: 121 | G157: 142 | H157: 131 | I157: 129 | J157: 135 | K157: 136 | L157: 131 | Q157: 18
A158: 3111 | B158: WESLEY MATTHEWS ELEMENTARY | C158: 508 | D158: 81 | E158: 73 | F158: 68 | G158: 85 | H158: 78 | I158: 85 | Q158: 38
A159: 3141 | B159: MEADOWLANE ELEMENTARY | C159: 1088 | D159: 132 | E159: 173 | F159: 173 | G159: 181 | H159: 191 | I159: 219 | Q159: 19
A160: 3181 | B160: MELROSE ELEMENTARY | C160: 746 | D160: 80 | E160: 73 | F160: 101 | G160: 96 | H160: 103 | I160: 76 | Q160: 217
A161: 3191 | B161: ADA MERRITT K-8 CENTER | C161: 727 | D161: 72 | E161: 72 | F161: 68 | G161: 78 | H161: 63 | I161: 73 | J161: 98 | K161: 112 | L161: 91
A162: 3241 | B162: MIAMI GARDENS ELEMENTARY | C162: 291 | D162: 40 | E162: 48 | F162: 45 | G162: 40 | H162: 52 | I162: 37 | Q162: 29
A163: 3261 | B163: MIAMI HEIGHTS ELEMENTARY | C163: 1146 | D163: 184 | E163: 162 | F163: 152 | G163: 203 | H163: 165 | I163: 181 | Q163: 99
A164: 3281 | B164: MIAMI LAKES K-8 CENTER | C164: 1387 | D164: 124 | E164: 154 | F164: 127 | G164: 140 | H164: 165 | I164: 153 | J164: 168 | K164: 152 | L164: 184 | Q164: 20
A165: 3301 | B165: MIAMI PARK ELEMENTARY | C165: 458 | D165: 71 | E165: 72 | F165: 57 | G165: 69 | H165: 60 | I165: 57 | Q165: 72
A166: 3341 | B166: MIAMI SHORES ELEMENTARY | C166: 776 | D166: 110 | E166: 151 | F166: 119 | G166: 134 | H166: 119 | I166: 126 | Q166: 17
A167: 3381 | B167: MIAMI SPRINGS ELEMENTARY | C167: 539 | D167: 67 | E167: 76 | F167: 89 | G167: 81 | H167: 100 | I167: 100 | Q167: 26
A168: 3421 | B168: M.A. MILAM K-8 CENTER | C168: 993 | D168: 72 | E168: 84 | F168: 80 | G168: 97 | H168: 103 | I168: 113 | J168: 123 | K168: 154 | L168: 148 | Q168: 19
A169: 3431 | B169: PHYLLIS RUTH MILLER ELEMENTARY | C169: 696 | D169: 115 | E169: 95 | F169: 98 | G169: 129 | H169: 98 | I169: 101 | Q169: 60
A170: 3501 | B170: MORNINGSIDE ELEMENTARY | C170: 442 | D170: 59 | E170: 51 | F170: 70 | G170: 58 | H170: 78 | I170: 66 | J170: 28 | Q170: 32
A171: 3541 | B171: ROBERT RUSSA MOTON ELEMENTARY | C171: 333 | D171: 63 | E171: 62 | F171: 47 | G171: 44 | H171: 43 | I171: 36 | Q171: 38
A172: 3581 | B172: MYRTLE GROVE ELEMENTARY | C172: 437 | D172: 64 | E172: 62 | F172: 61 | G172: 49 | H172: 49 | I172: 49 | J172: 44 | Q172: 59
A173: 3600 | B173: DOWNTOWN MIAMI CHARTER SCHOOL | C173: 647 | D173: 106 | E173: 104 | F173: 95 | G173: 79 | H173: 99 | I173: 90 | J173: 74
A174: 3610 | B174: KEYS GATE CHARTER SCHOOL | C174: 2020 | D174: 207 | E174: 214 | F174: 219 | G174: 216 | H174: 176 | I174: 183 | J174: 235 | K174: 292 | L174: 278
A175: 3621 | B175: COCONUT PALM K-8 ACADEMY | C175: 1222 | D175: 141 | E175: 145 | F175: 165 | G175: 168 | H175: 140 | I175: 139 | J175: 135 | K175: 117 | L175: 72
A176: 3661 | B176: NATURAL BRIDGE ELEMENTARY | C176: 624 | D176: 101 | E176: 87 | F176: 111 | G176: 95 | H176: 83 | I176: 75 | Q176: 72
A177: 3701 | B177: NORLAND ELEMENTARY | C177: 624 | D177: 110 | E177: 88 | F177: 88 | G177: 94 | H177: 98 | I177: 105 | Q177: 41
A178: 3741 | B178: NORTH BEACH ELEMENTARY | C178: 1027 | D178: 145 | E178: 179 | F178: 173 | G178: 180 | H178: 152 | I178: 159 | Q178: 39
A179: 3781 | B179: BARBARA HAWKINS ELEMENTARY | C179: 326 | D179: 52 | E179: 56 | F179: 51 | G179: 62 | H179: 40 | I179: 45 | Q179: 20
A180: 3821 | B180: NORTH COUNTY K-8 CENTER | C180: 358 | D180: 48 | E180: 39 | F180: 51 | G180: 51 | H180: 36 | I180: 33 | J180: 44 | K180: 37 | Q180: 19
A181: 3861 | B181: NORTH GLADE ELEMENTARY | C181: 351 | D181: 56 | E181: 47 | F181: 53 | G181: 72 | H181: 46 | I181: 48 | Q181: 29
A182: 3901 | B182: NORTH HIALEAH ELEMENTARY | C182: 606 | D182: 69 | E182: 87 | F182: 107 | G182: 109 | H182: 108 | I182: 108 | Q182: 18
A183: 3941 | B183: NORTH MIAMI ELEMENTARY | C183: 608 | D183: 101 | E183: 91 | F183: 95 | G183: 78 | H183: 93 | I183: 75 | Q183: 75
A184: 3981 | B184: NORTH TWIN LAKES ELEMENTARY | C184: 583 | D184: 72 | E184: 90 | F184: 79 | G184: 101 | H184: 104 | I184: 82 | Q184: 55
A185: 4000 | B185: MIAMI CHILDREN'S MUSEUM | C185: 303 | D185: 62 | E185: 54 | F185: 50 | G185: 54 | H185: 36 | I185: 47
A186: 4001 | B186: NORWOOD ELEMENTARY | C186: 472 | D186: 71 | E186: 75 | F186: 86 | G186: 75 | H186: 61 | I186: 64 | Q186: 40
A187: 4012 | B187: SOMERSET ACAD AT SILVER PALMS | C187: 614 | D187: 142 | E187: 121 | F187: 126 | G187: 69 | H187: 87 | I187: 69
A188: 4021 | B188: OAK GROVE ELEMENTARY | C188: 682 | D188: 84 | E188: 99 | F188: 82 | G188: 97 | H188: 99 | I188: 104 | J188: 62 | Q188: 55
A189: 4031 | B189: GATEWAY ENVIRONMENTAL K-8 | C189: 1596 | D189: 217 | E189: 245 | F189: 207 | G189: 230 | H189: 206 | I189: 171 | J189: 154 | K189: 131 | Q189: 35
A190: 4061 | B190: OJUS ELEMENTARY | C190: 900 | D190: 152 | E190: 151 | F190: 139 | G190: 152 | H190: 157 | I190: 149
A191: 4070 | B191: EARLY BEGINNINGS ACADEMY-CIVIC | C191: 119 | D191: 26 | E191: 10 | F191: 3 | Q191: 80
A192: 4071 | B192: OLINDA ELEMENTARY | C192: 328 | D192: 44 | E192: 43 | F192: 57 | G192: 53 | H192: 46 | I192: 49 | Q192: 36
A193: 4081 | B193: PRIMARY LEARNING CENTER | C193: 207 | D193: 52 | E193: 52 | F193: 35 | G193: 18 | Q193: 50
A194: 4091 | B194: OLYMPIA HEIGHTS ELEMENTARY | C194: 500 | D194: 70 | E194: 83 | F194: 88 | G194: 77 | H194: 86 | I194: 77 | Q194: 19
A195: 4121 | B195: DR. ROBERT B. INGRAM EL | C195: 382 | D195: 67 | E195: 56 | F195: 70 | G195: 70 | H195: 53 | I195: 47 | Q195: 19
A196: 4171 | B196: ORCHARD VILLA ELEMENTARY | C196: 454 | D196: 82 | E196: 75 | F196: 59 | G196: 75 | H196: 58 | I196: 51 | Q196: 54
A197: 4221 | B197: PALMETTO ELEMENTARY | C197: 615 | D197: 76 | E197: 98 | F197: 82 | G197: 112 | H197: 98 | I197: 103 | Q197: 46
A198: 4241 | B198: PALM LAKES ELEMENTARY | C198: 848 | D198: 93 | E198: 133 | F198: 119 | G198: 154 | H198: 138 | I198: 165 | Q198: 46
A199: 4261 | B199: PALM SPRINGS ELEMENTARY | C199: 726 | D199: 92 | E199: 118 | F199: 113 | G199: 122 | H199: 124 | I199: 118 | Q199: 39
A200: 4281 | B200: PALM SPRINGS NORTH ELEMENTARY | C200: 1012 | D200: 168 | E200: 141 | F200: 173 | G200: 158 | H200: 187 | I200: 157 | Q200: 28
... 273 more rows

Sheet MEM_RL1 (hidden)
A1: 1 | B1: 2 | C1: 3 | D1: 4 | E1: 5 | F1: 6 | G1: 7 | H1: 8 | I1: 9 | J1: 10 | K1: 11
A2: S_SCHOOL_NUM | B2: S_SCHL_NAME | C2: Total Of STUDENT_ID | D2: 03 | E2: 04 | F2: 05 | G2: 06 | H2: 07 | I2: 08 | J2: 09 | K2: 10
A3: 0041 | B3: AIR BASE ELEMENTARY | C3: 7 | D3: 2 | E3: 1 | F3: 4
A4: 0070 | B4: CORAL REEF MONTESSORI ACAD CH | C4: 4 | D4: 2 | E4: 1 | F4: 1
A5: 0071 | B5: EUGENIA B. THOMAS K-8 CENTER | C5: 79 | D5: 9 | E5: 18 | F5: 8 | G5: 15 | H5: 13 | I5: 16
A6: 0072 | B6: SUMMERVILLE CHARTER SCHOOL | C6: 25 | D6: 2 | E6: 10 | F6: 13
A7: 0073 | B7: MANDARIN LAKES K-8 CENTER | C7: 185 | D7: 31 | E7: 23 | F7: 25 | G7: 44 | H7: 23 | I7: 39
A8: 0081 | B8: LENORA B. SMITH ELEMENTARY | C8: 50 | D8: 7 | E8: 20 | F8: 23
A9: 0091 | B9: BOB GRAHAM EDUCATION CTR | C9: 103 | D9: 5 | E9: 10 | F9: 16 | G9: 24 | H9: 26 | I9: 22
A10: 0092 | B10: NORMAN S. EDELCUP/SUNNY ISLES | C10: 82 | D10: 2 | E10: 17 | F10: 13 | G10: 12 | H10: 13 | I10: 25
A11: 0100 | B11: MATER ACADEMY | C11: 18 | D11: 9 | E11: 3 | F11: 6
A12: 0101 | B12: ARCOLA LAKE ELEMENTARY | C12: 47 | D12: 15 | E12: 16 | F12: 16
A13: 0102 | B13: MIAMI COMMUNITY CHARTER SCHOOL | C13: 39 | D13: 6 | E13: 19 | F13: 14
A14: 0111 | B14: MAYA ANGELOU ELEMENTARY | C14: 53 | D14: 15 | E14: 18 | F14: 20
A15: 0121 | B15: AUBURNDALE ELEMENTARY | C15: 55 | D15: 2 | E15: 19 | F15: 34
A16: 0122 | B16: DR ROLANDO ESPINOSA K-8 | C16: 117 | D16: 7 | E16: 21 | F16: 15 | G16: 30 | H16: 25 | I16: 19
A17: 0125 | B17: NORMA BUTLER BOSSARD ELEM | C17: 42 | D17: 10 | E17: 14 | F17: 18
A18: 0161 | B18: AVOCADO ELEMENTARY | C18: 22 | D18: 22
A19: 0201 | B19: BANYAN ELEMENTARY | C19: 5 | E19: 1 | F19: 4
A20: 0211 | B20: DR. MANUEL C. BARREIRO ELEM | C20: 33 | D20: 5 | E20: 16 | F20: 12
A21: 0231 | B21: AVENTURA WATERWAYS K-8 CENTER | C21: 114 | D21: 18 | E21: 15 | F21: 24 | G21: 17 | H21: 21 | I21: 19
A22: 0241 | B22: RUTH K BROAD/BAY HARBOR K-8 | C22: 55 | D22: 5 | E22: 8 | F22: 11 | G22: 14 | H22: 7 | I22: 10
A23: 0251 | B23: ETHEL KOGER BECKHAM ELEMENTARY | C23: 10 | D23: 1 | E23: 6 | F23: 3
A24: 0261 | B24: BEL-AIRE ELEMENTARY | C24: 42 | D24: 8 | E24: 13 | F24: 21
A25: 0271 | B25: BENT TREE ELEMENTARY | C25: 20 | D25: 4 | E25: 7 | F25: 9
A26: 0311 | B26: GOULDS ELEMENTARY | C26: 47 | D26: 10 | E26: 22 | F26: 15
A27: 0312 | B27: MATER GARDENS ACADEMY | C27: 5 | D27: 1 | E27: 4
A28: 0321 | B28: BISCAYNE ELEMENTARY | C28: 55 | D28: 15 | E28: 18 | F28: 22
A29: 0332 | B29: SOMERSET ACADEMY(SILVER PALMS) | C29: 56 | D29: 2 | E29: 5 | F29: 4 | G29: 14 | H29: 18 | I29: 13
A30: 0339 | B30: SOMERSET ACADEMY CHARTER ELEM | C30: 10 | D30: 1 | E30: 4 | F30: 5
A31: 0341 | B31: ARCH CREEK ELEMENTARY SCHOOL | C31: 44 | D31: 7 | E31: 24 | F31: 13
A32: 0342 | B32: PINECREST ACADEMY SOUTH CAMPUS | C32: 13 | D32: 2 | E32: 7 | F32: 4
A33: 0361 | B33: BISCAYNE GARDENS ELEMENTARY | C33: 44 | D33: 10 | E33: 15 | F33: 19
A34: 0400 | B34: RENAISSANCE ELEMENTARY CHARTER | C34: 15 | D34: 1 | E34: 12 | F34: 2
A35: 0401 | B35: VAN E. BLANTON ELEMENTARY | C35: 45 | D35: 18 | E35: 9 | F35: 18
A36: 0410 | B36: ACADEMIR CHARTER SCHOOL WEST | C36: 6 | E36: 4 | F36: 2
A37: 0441 | B37: BLUE LAKES ELEMENTARY | C37: 18 | D37: 1 | E37: 11 | F37: 6
A38: 0451 | B38: BOWMAN ASHE/DOOLIN K-8 ACAD | C38: 172 | D38: 2 | E38: 17 | F38: 10 | G38: 37 | H38: 52 | I38: 54
A39: 0461 | B39: BRENTWOOD ELEMENTARY | C39: 56 | D39: 18 | E39: 18 | F39: 20
A40: 0481 | B40: JAMES H. BRIGHT/JW JOHNSON ES | C40: 74 | D40: 15 | E40: 21 | F40: 38
A41: 0510 | B41: ARCHIMEDEAN ACADEMY | C41: 3 | E41: 2 | F41: 1
A42: 0520 | B42: SOMERSET ACADEMY | C42: 7 | D42: 1 | E42: 4 | F42: 2
A43: 0521 | B43: BROADMOOR ELEMENTARY | C43: 42 | D43: 5 | E43: 17 | F43: 20
A44: 0561 | B44: W.J. BRYAN ELEMENTARY | C44: 44 | D44: 15 | E44: 14 | F44: 15
A45: 0600 | B45: PINECREST PREP ACADEMY | C45: 6 | E45: 5 | F45: 1
A46: 0641 | B46: BUNCHE PARK ELEMENTARY | C46: 27 | D46: 6 | E46: 10 | F46: 11
A47: 0651 | B47: CAMPBELL DRIVE K-8 CENTER | C47: 85 | D47: 15 | E47: 18 | F47: 21 | G47: 15 | H47: 16
A48: 0661 | B48: CARIBBEAN ELEMENTARY | C48: 46 | D48: 12 | E48: 17 | F48: 17
A49: 0671 | B49: CALUSA ELEMENTARY | C49: 20 | D49: 4 | E49: 7 | F49: 9
A50: 0681 | B50: CAROL CITY ELEMENTARY | C50: 63 | D50: 12 | E50: 29 | F50: 22
A51: 0721 | B51: GEORGE WASHINGTON CARVER ELEM | C51: 39 | D51: 7 | E51: 13 | F51: 19
A52: 0761 | B52: FIENBERG/FISHER K-8 CENTER | C52: 96 | D52: 6 | E52: 19 | F52: 17 | G52: 24 | H52: 17 | I52: 13
A53: 0771 | B53: WILLIAM A. CHAPMAN ELEMENTARY | C53: 28 | D53: 10 | E53: 7 | F53: 11
A54: 0801 | B54: CITRUS GROVE ELEMENTARY | C54: 98 | D54: 16 | E54: 39 | F54: 43
A55: 0831 | B55: CLAUDE PEPPER ELEMENTARY | C55: 30 | D55: 4 | E55: 16 | F55: 10
A56: 0841 | B56: COCONUT GROVE ELEMENTARY | C56: 12 | E56: 10 | F56: 2
A57: 0861 | B57: COLONIAL DRIVE ELEMENTARY | C57: 14 | D57: 4 | E57: 5 | F57: 5
A58: 0881 | B58: COMSTOCK ELEMENTARY | C58: 43 | D58: 11 | E58: 17 | F58: 15
A59: 0950 | B59: AVENTURA CITY OF EXCELLENCE | C59: 5 | D59: 1 | H59: 2 | I59: 2
A60: 0961 | B60: CORAL GABLES PREPARATORY ACAD | C60: 19 | E60: 4 | F60: 3 | G60: 6 | H60: 5 | I60: 1
A61: 1001 | B61: CORAL PARK ELEMENTARY | C61: 27 | E61: 12 | F61: 15
A62: 1010 | B62: CHARTER SCHOOL AT WATERSTONE | C62: 22 | E62: 12 | F62: 10
A63: 1014 | B63: ADVANCED LEARNING CHARTER SCH | C63: 26 | D63: 5 | E63: 16 | F63: 5
A64: 1017 | B64: MATER ACADEMY OF INTL STUDIES | C64: 20 | D64: 3 | E64: 7 | F64: 10
A65: 1020 | B65: YOUTH CO-OP CHARTER SCHOOL | C65: 33 | D65: 4 | E65: 3 | F65: 4 | G65: 7 | H65: 10 | I65: 5
A66: 1041 | B66: CORAL REEF ELEMENTARY | C66: 24 | D66: 3 | E66: 8 | F66: 13
A67: 1081 | B67: CORAL TERRACE ELEMENTARY | C67: 45 | D67: 6 | E67: 17 | F67: 22
A68: 1121 | B68: CORAL WAY K-8 CENTER | C68: 146 | D68: 7 | E68: 29 | F68: 31 | G68: 35 | H68: 27 | I68: 17
A69: 1161 | B69: CRESTVIEW ELEMENTARY | C69: 46 | D69: 7 | E69: 16 | F69: 23
A70: 1241 | B70: CUTLER RIDGE ELEMENTARY | C70: 41 | D70: 5 | E70: 17 | F70: 19
A71: 1281 | B71: CYPRESS ELEMENTARY | C71: 9 | E71: 5 | F71: 4
A72: 1331 | B72: DEVON AIRE K-8 CENTER | C72: 64 | D72: 2 | E72: 7 | F72: 6 | G72: 17 | H72: 20 | I72: 12
A73: 1361 | B73: FREDERICK DOUGLASS ELEMENTARY | C73: 36 | D73: 12 | E73: 12 | F73: 12
A74: 1371 | B74: MARJORY STONEMAN DOUGLAS ELEM | C74: 62 | D74: 16 | E74: 25 | F74: 21
A75: 1401 | B75: CHARLES R. DREW ELEMENTARY | C75: 34 | D75: 3 | E75: 4 | F75: 18 | G75: 9
A76: 1441 | B76: PAUL LAURENCE DUNBAR ELEM | C76: 56 | D76: 6 | E76: 12 | F76: 25 | G76: 13
A77: 1481 | B77: JOHN G. DUPUIS ELEMENTARY | C77: 37 | D77: 3 | E77: 15 | F77: 19
A78: 1521 | B78: AMELIA EARHART ELEMENTARY | C78: 36 | D78: 12 | E78: 11 | F78: 13
A79: 1561 | B79: EARLINGTON HEIGHTS ELEMENTARY | C79: 50 | D79: 3 | E79: 25 | F79: 22
A80: 1601 | B80: EDISON PARK ELEMENTARY | C80: 43 | D80: 10 | E80: 10 | F80: 14 | G80: 9
A81: 1641 | B81: EMERSON ELEMENTARY | C81: 18 | D81: 6 | E81: 5 | F81: 7
A82: 1681 | B82: LILLIE C. EVANS K-8 CENTER | C82: 58 | D82: 5 | E82: 23 | F82: 6 | G82: 15 | H82: 6 | I82: 3
A83: 1691 | B83: CHRISTINA M. EVE ELEMENTARY | C83: 12 | D83: 1 | E83: 5 | F83: 6
A84: 1721 | B84: EVERGLADES K-8 CENTER | C84: 82 | D84: 3 | E84: 10 | F84: 8 | G84: 9 | H84: 30 | I84: 22
A85: 1761 | B85: DAVID FAIRCHILD ELEMENTARY | C85: 10 | D85: 1 | E85: 2 | F85: 7
A86: 1801 | B86: FAIRLAWN ELEMENTARY | C86: 39 | D86: 2 | E86: 17 | F86: 20
A87: 1811 | B87: DANTE B. FASCELL ELEMENTARY | C87: 16 | E87: 9 | F87: 7
A88: 1841 | B88: FLAGAMI ELEMENTARY | C88: 37 | D88: 2 | E88: 14 | F88: 21
A89: 1881 | B89: HENRY M. FLAGLER ELEMENTARY | C89: 58 | D89: 11 | E89: 27 | F89: 20
A90: 1921 | B90: FLAMINGO ELEMENTARY | C90: 87 | D90: 20 | E90: 33 | F90: 34
A91: 2001 | B91: FLORIDA CITY ELEMENTARY | C91: 81 | D91: 9 | E91: 36 | F91: 36
A92: 2003 | B92: BRIDGEPOINT ACADEMY | C92: 6 | D92: 1 | E92: 3 | F92: 2
A93: 2006 | B93: RICHARD ALLEN LEADERSHIP ACAD | C93: 6 | E93: 4 | F93: 2
A94: 2007 | B94: SOMERSET ACADEMY ELEMENTARY | C94: 3 | E94: 1 | F94: 2
A95: 2012 | B95: SOMERSET ARTS ACADEMY | C95: 12 | D95: 1 | E95: 9 | F95: 2
A96: 2013 | B96: BRIDGEPOINT ACAD GREATER MIAMI | C96: 9 | E96: 4 | F96: 5
A97: 2021 | B97: GLORIA FLOYD ELEMENTARY | C97: 25 | D97: 9 | E97: 6 | F97: 10
A98: 2041 | B98: BENJAMIN FRANKLIN K-8 CENTER | C98: 62 | D98: 5 | E98: 11 | F98: 16 | G98: 18 | H98: 12
A99: 2060 | B99: GIBSON CHARTER SCHOOL | C99: 48 | D99: 3 | E99: 6 | F99: 8 | G99: 15 | H99: 7 | I99: 9
A100: 2081 | B100: FULFORD ELEMENTARY | C100: 51 | D100: 13 | E100: 19 | F100: 19
A101: 2111 | B101: HIALEAH GARDENS ELEMENTARY | C101: 34 | D101: 8 | E101: 19 | F101: 7
A102: 2151 | B102: JACK D. GORDON ELEMENTARY | C102: 41 | D102: 8 | E102: 22 | F102: 11
A103: 2161 | B103: GOLDEN GLADES ELEMENTARY | C103: 30 | D103: 6 | E103: 14 | F103: 10
A104: 2181 | B104: JOELLA C. GOOD ELEMENTARY | C104: 61 | D104: 9 | E104: 24 | F104: 28
A105: 2191 | B105: SPANISH LAKE ELEMENTARY | C105: 66 | D105: 9 | E105: 27 | F105: 30
A106: 2241 | B106: GRATIGNY ELEMENTARY | C106: 84 | D106: 16 | E106: 18 | F106: 27 | G106: 23
A107: 2261 | B107: GREENGLADE ELEMENTARY | C107: 19 | E107: 11 | F107: 8
A108: 2281 | B108: GREYNOLDS PARK ELEMENTARY | C108: 68 | D108: 15 | E108: 24 | F108: 29
A109: 2321 | B109: GULFSTREAM ELEMENTARY | C109: 26 | D109: 6 | E109: 6 | F109: 14
A110: 2331 | B110: CHARLES R. HADLEY ELEMENTARY | C110: 32 | D110: 3 | E110: 14 | F110: 15
A111: 2341 | B111: JOE HALL ELEMENTARY | C111: 32 | D111: 4 | E111: 12 | F111: 16
A112: 2351 | B112: ENEIDA MASSAS HARTNER ELEM | C112: 39 | D112: 12 | E112: 15 | F112: 12
A113: 2361 | B113: HIALEAH ELEMENTARY | C113: 54 | D113: 6 | E113: 20 | F113: 28
A114: 2371 | B114: WEST HIALEAH GARDENS ELEM | C114: 60 | D114: 12 | E114: 23 | F114: 25
A115: 2401 | B115: HIBISCUS ELEMENTARY | C115: 34 | D115: 8 | E115: 10 | F115: 16
A116: 2441 | B116: VIRGINIA A BOONE/HIGHLAND OAKS | C116: 20 | D116: 1 | E116: 12 | F116: 7
A117: 2501 | B117: HOLMES ELEMENTARY | C117: 68 | D117: 22 | E117: 18 | F117: 28
A118: 2511 | B118: ZORA NEALE HURSTON ELEMENTARY | C118: 36 | D118: 5 | E118: 19 | F118: 12
A119: 2521 | B119: OLIVER HOOVER ELEMENTARY | C119: 27 | D119: 4 | E119: 12 | F119: 11
A120: 2541 | B120: HOWARD DRIVE ELEMENTARY | C120: 26 | D120: 2 | E120: 14 | F120: 10
A121: 2581 | B121: MADIE IVES ELEMENTARY | C121: 41 | D121: 11 | E121: 12 | F121: 18
A122: 2641 | B122: KENDALE ELEMENTARY | C122: 8 | D122: 1 | E122: 4 | F122: 3
A123: 2651 | B123: KENDALE LAKES ELEMENTARY | C123: 22 | D123: 6 | E123: 12 | F123: 4
A124: 2661 | B124: KENSINGTON PARK ELEMENTARY | C124: 119 | D124: 28 | E124: 47 | F124: 44
A125: 2701 | B125: KENWOOD K-8 CENTER | C125: 70 | D125: 7 | E125: 8 | F125: 11 | G125: 20 | H125: 9 | I125: 15
A126: 2741 | B126: KEY BISCAYNE K-8 CENTER | C126: 31 | D126: 3 | E126: 6 | F126: 5 | G126: 6 | H126: 5 | I126: 6
A127: 2781 | B127: KINLOCH PARK ELEMENTARY | C127: 73 | D127: 12 | E127: 18 | F127: 43
A128: 2801 | B128: LAKE STEVENS ELEMENTARY | C128: 24 | D128: 4 | E128: 10 | F128: 10
A129: 2821 | B129: LAKEVIEW ELEMENTARY | C129: 45 | D129: 12 | E129: 11 | F129: 22
A130: 2881 | B130: LEEWOOD K-8 CENTER | C130: 22 | E130: 5 | F130: 6 | G130: 9 | H130: 2
A131: 2891 | B131: WILLIAM LEHMAN ELEMENTARY | C131: 16 | D131: 2 | E131: 10 | F131: 4
A132: 2901 | B132: LEISURE CITY K-8 CENTER | C132: 169 | D132: 16 | E132: 28 | F132: 31 | G132: 28 | H132: 37 | I132: 29
A133: 2911 | B133: LINDA LENTIN K-8 CENTER | C133: 146 | D133: 12 | E133: 19 | F133: 41 | G133: 27 | H133: 24 | I133: 23
A134: 2941 | B134: LAURA C. SAUNDERS ELEMENTARY | C134: 77 | D134: 23 | E134: 26 | F134: 28
A135: 2981 | B135: LIBERTY CITY ELEMENTARY | C135: 46 | D135: 4 | E135: 25 | F135: 17
A136: 3021 | B136: JESSE J MCCRARY JR ELEMENTARY | C136: 58 | D136: 19 | E136: 23 | F136: 16
A137: 3024 | B137: FLORIDA INTERNATIONAL EL ACAD | C137: 58 | D137: 18 | E137: 21 | F137: 19
A138: 3025 | B138: ADVANTAGE ACADEMY SANTA FE | C138: 3 | E138: 3
A139: 3029 | B139: DORAL ACADEMY OF TECHNOLOGY | C139: 2 | G139: 2
A140: 3030 | B140: DORAL ACADEMY | C140: 13 | D140: 1 | E140: 9 | F140: 3
A141: 3032 | B141: PALM GLADES PREPATORY ACADEMY | C141: 81 | G141: 33 | H141: 25 | I141: 23
A142: 3034 | B142: BRIDGEPOINT ACAD VILLAGE GREEN | C142: 4 | E142: 2 | F142: 1 | H142: 1
A143: 3035 | B143: RAMZ ACADEMY ELEM MIAMI CAMPUS | C143: 3 | D143: 1 | E143: 1 | F143: 1
A144: 3041 | B144: LORAH PARK ELEMENTARY | C144: 28 | D144: 9 | E144: 8 | F144: 11
A145: 3051 | B145: TOUSSAINT L'OUVERTURE ELEM | C145: 54 | D145: 14 | E145: 25 | F145: 15
A146: 3061 | B146: LUDLAM ELEMENTARY | C146: 13 | E146: 3 | F146: 10
A147: 3100 | B147: MATER ACADEMY EAST CHARTER | C147: 6 | D147: 4 | E147: 1 | F147: 1
A148: 3101 | B148: FRANK C. MARTIN K-8 CENTER | C148: 14 | E148: 3 | F148: 3 | G148: 3 | H148: 1 | I148: 4
A149: 3111 | B149: WESLEY MATTHEWS ELEMENTARY | C149: 15 | E149: 6 | F149: 9
A150: 3141 | B150: MEADOWLANE ELEMENTARY | C150: 89 | D150: 11 | E150: 25 | F150: 53
A151: 3181 | B151: MELROSE ELEMENTARY | C151: 39 | D151: 5 | E151: 16 | F151: 18
A152: 3191 | B152: ADA MERRITT K-8 CENTER | C152: 7 | E152: 2 | F152: 1 | G152: 2 | H152: 2
A153: 3241 | B153: MIAMI GARDENS ELEMENTARY | C153: 28 | D153: 6 | E153: 8 | F153: 14
A154: 3261 | B154: MIAMI HEIGHTS ELEMENTARY | C154: 59 | D154: 16 | E154: 26 | F154: 17
A155: 3281 | B155: MIAMI LAKES K-8 CENTER | C155: 85 | D155: 5 | E155: 12 | F155: 15 | G155: 16 | H155: 17 | I155: 20
A156: 3301 | B156: MIAMI PARK ELEMENTARY | C156: 54 | D156: 15 | E156: 20 | F156: 19
A157: 3341 | B157: MIAMI SHORES ELEMENTARY | C157: 33 | D157: 15 | E157: 7 | F157: 11
A158: 3381 | B158: MIAMI SPRINGS ELEMENTARY | C158: 26 | D158: 4 | E158: 8 | F158: 14
A159: 3421 | B159: M.A. MILAM K-8 CENTER | C159: 126 | D159: 10 | E159: 18 | F159: 17 | G159: 17 | H159: 31 | I159: 33
A160: 3431 | B160: PHYLLIS RUTH MILLER ELEMENTARY | C160: 38 | D160: 5 | E160: 16 | F160: 17
A161: 3501 | B161: MORNINGSIDE ELEMENTARY | C161: 32 | D161: 7 | E161: 8 | F161: 12 | G161: 5
A162: 3541 | B162: ROBERT RUSSA MOTON ELEMENTARY | C162: 25 | D162: 9 | E162: 9 | F162: 7
A163: 3581 | B163: MYRTLE GROVE ELEMENTARY | C163: 48 | D163: 8 | E163: 14 | F163: 16 | G163: 10
A164: 3600 | B164: DOWNTOWN MIAMI CHARTER SCHOOL | C164: 34 | D164: 3 | E164: 6 | F164: 12 | G164: 13
A165: 3610 | B165: KEYS GATE CHARTER SCHOOL | C165: 193 | D165: 13 | E165: 20 | F165: 23 | G165: 26 | H165: 63 | I165: 48
A166: 3621 | B166: COCONUT PALM K-8 ACADEMY | C166: 157 | D166: 18 | E166: 30 | F166: 30 | G166: 35 | H166: 26 | I166: 18
A167: 3661 | B167: NATURAL BRIDGE ELEMENTARY | C167: 52 | D167: 7 | E167: 23 | F167: 22
A168: 3701 | B168: NORLAND ELEMENTARY | C168: 36 | D168: 8 | E168: 10 | F168: 18
A169: 3741 | B169: NORTH BEACH ELEMENTARY | C169: 12 | D169: 2 | E169: 5 | F169: 5
A170: 3781 | B170: BARBARA HAWKINS ELEMENTARY | C170: 25 | D170: 6 | E170: 5 | F170: 14
A171: 3821 | B171: NORTH COUNTY K-8 CENTER | C171: 46 | D171: 9 | E171: 6 | F171: 9 | G171: 13 | H171: 9
A172: 3861 | B172: NORTH GLADE ELEMENTARY | C172: 31 | D172: 5 | E172: 16 | F172: 10
A173: 3901 | B173: NORTH HIALEAH ELEMENTARY | C173: 47 | D173: 13 | E173: 22 | F173: 12
A174: 3941 | B174: NORTH MIAMI ELEMENTARY | C174: 58 | D174: 14 | E174: 28 | F174: 16
A175: 3981 | B175: NORTH TWIN LAKES ELEMENTARY | C175: 30 | D175: 5 | E175: 14 | F175: 11
A176: 4000 | B176: MIAMI CHILDREN'S MUSEUM | C176: 4 | F176: 4
A177: 4001 | B177: NORWOOD ELEMENTARY | C177: 22 | D177: 6 | E177: 9 | F177: 7
A178: 4012 | B178: SOMERSET ACAD AT SILVER PALMS | C178: 13 | D178: 1 | E178: 7 | F178: 5
A179: 4021 | B179: OAK GROVE ELEMENTARY | C179: 74 | D179: 10 | E179: 19 | F179: 24 | G179: 21
A180: 4031 | B180: GATEWAY ENVIRONMENTAL K-8 | C180: 146 | D180: 23 | E180: 39 | F180: 27 | G180: 30 | H180: 27
A181: 4061 | B181: OJUS ELEMENTARY | C181: 31 | D181: 8 | E181: 9 | F181: 14
A182: 4071 | B182: OLINDA ELEMENTARY | C182: 31 | D182: 6 | E182: 16 | F182: 9
A183: 4091 | B183: OLYMPIA HEIGHTS ELEMENTARY | C183: 18 | D183: 3 | E183: 9 | F183: 6
A184: 4121 | B184: DR. ROBERT B. INGRAM EL | C184: 28 | D184: 10 | E184: 12 | F184: 6
A185: 4171 | B185: ORCHARD VILLA ELEMENTARY | C185: 38 | D185: 4 | E185: 17 | F185: 17
A186: 4221 | B186: PALMETTO ELEMENTARY | C186: 16 | D186: 3 | E186: 7 | F186: 6
A187: 4241 | B187: PALM LAKES ELEMENTARY | C187: 63 | D187: 9 | E187: 23 | F187: 31
A188: 4261 | B188: PALM SPRINGS ELEMENTARY | C188: 54 | D188: 12 | E188: 26 | F188: 16
A189: 4281 | B189: PALM SPRINGS NORTH ELEMENTARY | C189: 38 | D189: 3 | E189: 19 | F189: 16
A190: 4301 | B190: PARKVIEW ELEMENTARY | C190: 22 | D190: 10 | E190: 5 | F190: 7
A191: 4341 | B191: PARKWAY ELEMENTARY | C191: 17 | D191: 1 | E191: 8 | F191: 8
A192: 4381 | B192: DR HENRY E PERRINE ACADEMY | C192: 32 | E192: 20 | F192: 12
A193: 4391 | B193: IRVING & BEATRICE PESKOE K-8 | C193: 78 | D193: 13 | E193: 16 | F193: 17 | G193: 19 | H193: 13
A194: 4401 | B194: KELSEY L. PHARR ELEMENTARY | C194: 36 | D194: 12 | E194: 12 | F194: 12
A195: 4421 | B195: PINECREST ELEMENTARY | C195: 16 | D195: 3 | E195: 8 | F195: 5
A196: 4441 | B196: PINE LAKE ELEMENTARY | C196: 46 | D196: 15 | E196: 15 | F196: 16
A197: 4461 | B197: PINE VILLA ELEMENTARY | C197: 30 | D197: 4 | E197: 18 | F197: 8
A198: 4491 | B198: HENRY E.S. REEVES ELEMENTARY | C198: 76 | D198: 22 | E198: 38 | F198: 16
A199: 4501 | B199: POINCIANA PARK ELEMENTARY | C199: 48 | D199: 16 | E199: 20 | F199: 12
A200: 4511 | B200: DR GILBERT L. PORTER ELEM | C200: 36 | D200: 5 | E200: 17 | F200: 14
... 245 more rows

Sheet MEM_RL2 (hidden)
A1: 1 | B1: 2 | C1: 3 | D1: 4 | E1: 5 | F1: 6 | G1: 7 | H1: 8 | I1: 9 | J1: 10 | K1: 11
A2: S_SCHOOL_NUM | B2: S_SCHL_NAME | C2: Total Of STUDENT_ID | D2: 03 | E2: 04 | F2: 05 | G2: 06 | H2: 07 | I2: 08 | J2: 09 | K2: 10
A3: 0041 | B3: AIR BASE ELEMENTARY | C3: 33 | E3: 17 | F3: 16
A4: 0070 | B4: CORAL REEF MONTESSORI ACAD CH | C4: 47 | E4: 11 | F4: 10 | G4: 9 | H4: 8 | I4: 9
A5: 0071 | B5: EUGENIA B. THOMAS K-8 CENTER | C5: 170 | E5: 44 | F5: 26 | G5: 31 | H5: 31 | I5: 38
A6: 0072 | B6: SUMMERVILLE CHARTER SCHOOL | C6: 54 | E6: 25 | F6: 29
A7: 0073 | B7: MANDARIN LAKES K-8 CENTER | C7: 180 | E7: 57 | F7: 47 | G7: 31 | H7: 19 | I7: 26
A8: 0081 | B8: LENORA B. SMITH ELEMENTARY | C8: 41 | E8: 25 | F8: 16
A9: 0091 | B9: BOB GRAHAM EDUCATION CTR | C9: 231 | E9: 43 | F9: 43 | G9: 60 | H9: 43 | I9: 42
A10: 0092 | B10: NORMAN S. EDELCUP/SUNNY ISLES | C10: 145 | E10: 37 | F10: 32 | G10: 23 | H10: 30 | I10: 23
A11: 0100 | B11: MATER ACADEMY | C11: 70 | E11: 29 | F11: 41
A12: 0101 | B12: ARCOLA LAKE ELEMENTARY | C12: 51 | E12: 17 | F12: 34
A13: 0102 | B13: MIAMI COMMUNITY CHARTER SCHOOL | C13: 52 | E13: 22 | F13: 30
A14: 0111 | B14: MAYA ANGELOU ELEMENTARY | C14: 61 | E14: 32 | F14: 29
A15: 0121 | B15: AUBURNDALE ELEMENTARY | C15: 65 | E15: 40 | F15: 25
A16: 0122 | B16: DR ROLANDO ESPINOSA K-8 | C16: 177 | E16: 29 | F16: 32 | G16: 31 | H16: 38 | I16: 47
A17: 0125 | B17: NORMA BUTLER BOSSARD ELEM | C17: 92 | E17: 51 | F17: 41
A18: 0201 | B18: BANYAN ELEMENTARY | C18: 22 | E18: 10 | F18: 12
A19: 0211 | B19: DR. MANUEL C. BARREIRO ELEM | C19: 77 | E19: 36 | F19: 41
A20: 0231 | B20: AVENTURA WATERWAYS K-8 CENTER | C20: 199 | E20: 26 | F20: 40 | G20: 42 | H20: 46 | I20: 45
A21: 0241 | B21: RUTH K BROAD/BAY HARBOR K-8 | C21: 106 | E21: 22 | F21: 25 | G21: 18 | H21: 24 | I21: 17
A22: 0251 | B22: ETHEL KOGER BECKHAM ELEMENTARY | C22: 31 | E22: 12 | F22: 19
A23: 0261 | B23: BEL-AIRE ELEMENTARY | C23: 52 | E23: 28 | F23: 24
A24: 0271 | B24: BENT TREE ELEMENTARY | C24: 48 | E24: 25 | F24: 23
A25: 0311 | B25: GOULDS ELEMENTARY | C25: 66 | E25: 33 | F25: 33
A26: 0312 | B26: MATER GARDENS ACADEMY | C26: 41 | E26: 25 | F26: 16
A27: 0321 | B27: BISCAYNE ELEMENTARY | C27: 66 | E27: 32 | F27: 34
A28: 0332 | B28: SOMERSET ACADEMY(SILVER PALMS) | C28: 147 | E28: 17 | F28: 24 | G28: 31 | H28: 42 | I28: 33
A29: 0339 | B29: SOMERSET ACADEMY CHARTER ELEM | C29: 22 | E29: 12 | F29: 10
A30: 0341 | B30: ARCH CREEK ELEMENTARY SCHOOL | C30: 67 | E30: 28 | F30: 39
A31: 0342 | B31: PINECREST ACADEMY SOUTH CAMPUS | C31: 53 | E31: 34 | F31: 19
A32: 0361 | B32: BISCAYNE GARDENS ELEMENTARY | C32: 59 | E32: 31 | F32: 28
A33: 0400 | B33: RENAISSANCE ELEMENTARY CHARTER | C33: 41 | E33: 22 | F33: 19
A34: 0401 | B34: VAN E. BLANTON ELEMENTARY | C34: 49 | E34: 28 | F34: 21
A35: 0410 | B35: ACADEMIR CHARTER SCHOOL WEST | C35: 35 | E35: 23 | F35: 12
A36: 0441 | B36: BLUE LAKES ELEMENTARY | C36: 23 | E36: 12 | F36: 11
A37: 0451 | B37: BOWMAN ASHE/DOOLIN K-8 ACAD | C37: 206 | E37: 36 | F37: 40 | G37: 23 | H37: 54 | I37: 53
A38: 0461 | B38: BRENTWOOD ELEMENTARY | C38: 92 | E38: 46 | F38: 46
A39: 0481 | B39: JAMES H. BRIGHT/JW JOHNSON ES | C39: 63 | E39: 30 | F39: 33
A40: 0510 | B40: ARCHIMEDEAN ACADEMY | C40: 12 | E40: 7 | F40: 5
A41: 0520 | B41: SOMERSET ACADEMY | C41: 24 | E41: 16 | F41: 8
A42: 0521 | B42: BROADMOOR ELEMENTARY | C42: 43 | E42: 20 | F42: 23
A43: 0561 | B43: W.J. BRYAN ELEMENTARY | C43: 80 | E43: 44 | F43: 36
A44: 0600 | B44: PINECREST PREP ACADEMY | C44: 36 | E44: 19 | F44: 17
A45: 0641 | B45: BUNCHE PARK ELEMENTARY | C45: 19 | E45: 12 | F45: 7
A46: 0651 | B46: CAMPBELL DRIVE K-8 CENTER | C46: 109 | E46: 35 | F46: 35 | G46: 22 | H46: 17
A47: 0661 | B47: CARIBBEAN ELEMENTARY | C47: 67 | E47: 35 | F47: 32
A48: 0671 | B48: CALUSA ELEMENTARY | C48: 41 | E48: 23 | F48: 18
A49: 0681 | B49: CAROL CITY ELEMENTARY | C49: 75 | E49: 42 | F49: 33
A50: 0721 | B50: GEORGE WASHINGTON CARVER ELEM | C50: 41 | E50: 27 | F50: 14
A51: 0761 | B51: FIENBERG/FISHER K-8 CENTER | C51: 134 | E51: 25 | F51: 27 | G51: 30 | H51: 26 | I51: 26
A52: 0771 | B52: WILLIAM A. CHAPMAN ELEMENTARY | C52: 41 | E52: 25 | F52: 16
A53: 0801 | B53: CITRUS GROVE ELEMENTARY | C53: 92 | E53: 53 | F53: 39
A54: 0831 | B54: CLAUDE PEPPER ELEMENTARY | C54: 51 | E54: 31 | F54: 20
A55: 0841 | B55: COCONUT GROVE ELEMENTARY | C55: 28 | E55: 17 | F55: 11
A56: 0861 | B56: COLONIAL DRIVE ELEMENTARY | C56: 27 | E56: 13 | F56: 14
A57: 0881 | B57: COMSTOCK ELEMENTARY | C57: 47 | E57: 25 | F57: 22
A58: 0950 | B58: AVENTURA CITY OF EXCELLENCE | C58: 59 | E58: 17 | F58: 9 | G58: 9 | H58: 12 | I58: 12
A59: 0961 | B59: CORAL GABLES PREPARATORY ACAD | C59: 50 | E59: 8 | F59: 7 | G59: 12 | H59: 17 | I59: 6
A60: 1001 | B60: CORAL PARK ELEMENTARY | C60: 39 | E60: 9 | F60: 30
A61: 1010 | B61: CHARTER SCHOOL AT WATERSTONE | C61: 94 | E61: 51 | F61: 43
A62: 1014 | B62: ADVANCED LEARNING CHARTER SCH | C62: 47 | E62: 25 | F62: 22
A63: 1017 | B63: MATER ACADEMY OF INTL STUDIES | C63: 31 | E63: 14 | F63: 17
A64: 1020 | B64: YOUTH CO-OP CHARTER SCHOOL | C64: 78 | E64: 12 | F64: 9 | G64: 13 | H64: 23 | I64: 21
A65: 1041 | B65: CORAL REEF ELEMENTARY | C65: 54 | E65: 35 | F65: 19
A66: 1081 | B66: CORAL TERRACE ELEMENTARY | C66: 36 | E66: 17 | F66: 19
A67: 1121 | B67: CORAL WAY K-8 CENTER | C67: 185 | E67: 36 | F67: 39 | G67: 37 | H67: 31 | I67: 42
A68: 1161 | B68: CRESTVIEW ELEMENTARY | C68: 51 | E68: 20 | F68: 31
A69: 1241 | B69: CUTLER RIDGE ELEMENTARY | C69: 55 | E69: 37 | F69: 18
A70: 1281 | B70: CYPRESS ELEMENTARY | C70: 30 | E70: 16 | F70: 14
A71: 1331 | B71: DEVON AIRE K-8 CENTER | C71: 163 | E71: 42 | F71: 25 | G71: 33 | H71: 35 | I71: 28
A72: 1361 | B72: FREDERICK DOUGLASS ELEMENTARY | C72: 21 | E72: 13 | F72: 8
A73: 1371 | B73: MARJORY STONEMAN DOUGLAS ELEM | C73: 90 | E73: 38 | F73: 52
A74: 1401 | B74: CHARLES R. DREW ELEMENTARY | C74: 37 | E74: 7 | F74: 13 | G74: 17
A75: 1441 | B75: PAUL LAURENCE DUNBAR ELEM | C75: 49 | E75: 24 | F75: 12 | G75: 13
A76: 1481 | B76: JOHN G. DUPUIS ELEMENTARY | C76: 65 | E76: 23 | F76: 42
A77: 1521 | B77: AMELIA EARHART ELEMENTARY | C77: 40 | E77: 17 | F77: 23
A78: 1561 | B78: EARLINGTON HEIGHTS ELEMENTARY | C78: 39 | E78: 22 | F78: 17
A79: 1601 | B79: EDISON PARK ELEMENTARY | C79: 44 | E79: 18 | F79: 17 | G79: 9
A80: 1641 | B80: EMERSON ELEMENTARY | C80: 24 | E80: 14 | F80: 10
A81: 1681 | B81: LILLIE C. EVANS K-8 CENTER | C81: 82 | E81: 25 | F81: 14 | G81: 19 | H81: 16 | I81: 8
A82: 1691 | B82: CHRISTINA M. EVE ELEMENTARY | C82: 25 | E82: 11 | F82: 14
A83: 1721 | B83: EVERGLADES K-8 CENTER | C83: 131 | E83: 29 | F83: 24 | G83: 24 | H83: 28 | I83: 26
A84: 1761 | B84: DAVID FAIRCHILD ELEMENTARY | C84: 25 | E84: 16 | F84: 9
A85: 1801 | B85: FAIRLAWN ELEMENTARY | C85: 58 | E85: 30 | F85: 28
A86: 1811 | B86: DANTE B. FASCELL ELEMENTARY | C86: 22 | E86: 12 | F86: 10
A87: 1841 | B87: FLAGAMI ELEMENTARY | C87: 39 | E87: 18 | F87: 21
A88: 1881 | B88: HENRY M. FLAGLER ELEMENTARY | C88: 50 | E88: 25 | F88: 25
A89: 1921 | B89: FLAMINGO ELEMENTARY | C89: 68 | E89: 27 | F89: 41
A90: 2001 | B90: FLORIDA CITY ELEMENTARY | C90: 78 | D90: 1 | E90: 43 | F90: 34
A91: 2003 | B91: BRIDGEPOINT ACADEMY | C91: 17 | E91: 9 | F91: 8
A92: 2006 | B92: RICHARD ALLEN LEADERSHIP ACAD | C92: 11 | E92: 5 | F92: 6
A93: 2007 | B93: SOMERSET ACADEMY ELEMENTARY | C93: 18 | E93: 10 | F93: 8
A94: 2012 | B94: SOMERSET ARTS ACADEMY | C94: 19 | E94: 15 | F94: 4
A95: 2013 | B95: BRIDGEPOINT ACAD GREATER MIAMI | C95: 9 | E95: 5 | F95: 4
A96: 2021 | B96: GLORIA FLOYD ELEMENTARY | C96: 37 | E96: 22 | F96: 15
A97: 2041 | B97: BENJAMIN FRANKLIN K-8 CENTER | C97: 95 | E97: 29 | F97: 24 | G97: 25 | H97: 17
A98: 2060 | B98: GIBSON CHARTER SCHOOL | C98: 59 | E98: 6 | F98: 11 | G98: 18 | H98: 15 | I98: 9
A99: 2081 | B99: FULFORD ELEMENTARY | C99: 45 | E99: 25 | F99: 20
A100: 2111 | B100: HIALEAH GARDENS ELEMENTARY | C100: 63 | E100: 26 | F100: 37
A101: 2151 | B101: JACK D. GORDON ELEMENTARY | C101: 78 | E101: 40 | F101: 38
A102: 2161 | B102: GOLDEN GLADES ELEMENTARY | C102: 25 | E102: 9 | F102: 16
A103: 2181 | B103: JOELLA C. GOOD ELEMENTARY | C103: 80 | E103: 49 | F103: 31
A104: 2191 | B104: SPANISH LAKE ELEMENTARY | C104: 134 | E104: 58 | F104: 76
A105: 2241 | B105: GRATIGNY ELEMENTARY | C105: 73 | E105: 25 | F105: 23 | G105: 25
A106: 2261 | B106: GREENGLADE ELEMENTARY | C106: 45 | E106: 30 | F106: 15
A107: 2281 | B107: GREYNOLDS PARK ELEMENTARY | C107: 67 | E107: 36 | F107: 31
A108: 2321 | B108: GULFSTREAM ELEMENTARY | C108: 40 | E108: 23 | F108: 17
A109: 2331 | B109: CHARLES R. HADLEY ELEMENTARY | C109: 77 | E109: 44 | F109: 33
A110: 2341 | B110: JOE HALL ELEMENTARY | C110: 42 | E110: 25 | F110: 17
A111: 2351 | B111: ENEIDA MASSAS HARTNER ELEM | C111: 65 | E111: 33 | F111: 32
A112: 2361 | B112: HIALEAH ELEMENTARY | C112: 71 | E112: 40 | F112: 31
A113: 2371 | B113: WEST HIALEAH GARDENS ELEM | C113: 100 | E113: 65 | F113: 35
A114: 2401 | B114: HIBISCUS ELEMENTARY | C114: 60 | D114: 1 | E114: 27 | F114: 32
A115: 2441 | B115: VIRGINIA A BOONE/HIGHLAND OAKS | C115: 26 | E115: 17 | F115: 9
A116: 2501 | B116: HOLMES ELEMENTARY | C116: 55 | E116: 27 | F116: 28
A117: 2511 | B117: ZORA NEALE HURSTON ELEMENTARY | C117: 52 | E117: 28 | F117: 24
A118: 2521 | B118: OLIVER HOOVER ELEMENTARY | C118: 58 | E118: 26 | F118: 32
A119: 2541 | B119: HOWARD DRIVE ELEMENTARY | C119: 40 | E119: 24 | F119: 16
A120: 2581 | B120: MADIE IVES ELEMENTARY | C120: 64 | E120: 34 | F120: 30
A121: 2641 | B121: KENDALE ELEMENTARY | C121: 24 | E121: 12 | F121: 12
A122: 2651 | B122: KENDALE LAKES ELEMENTARY | C122: 36 | E122: 22 | F122: 14
A123: 2661 | B123: KENSINGTON PARK ELEMENTARY | C123: 117 | E123: 63 | F123: 54
A124: 2701 | B124: KENWOOD K-8 CENTER | C124: 103 | D124: 1 | E124: 20 | F124: 22 | G124: 18 | H124: 19 | I124: 23
A125: 2741 | B125: KEY BISCAYNE K-8 CENTER | C125: 77 | E125: 17 | F125: 14 | G125: 17 | H125: 19 | I125: 10
A126: 2781 | B126: KINLOCH PARK ELEMENTARY | C126: 82 | E126: 45 | F126: 37
A127: 2801 | B127: LAKE STEVENS ELEMENTARY | C127: 31 | E127: 18 | F127: 13
A128: 2821 | B128: LAKEVIEW ELEMENTARY | C128: 49 | E128: 21 | F128: 28
A129: 2881 | B129: LEEWOOD K-8 CENTER | C129: 60 | D129: 2 | E129: 14 | F129: 12 | G129: 14 | H129: 13 | I129: 5
A130: 2891 | B130: WILLIAM LEHMAN ELEMENTARY | C130: 37 | E130: 20 | F130: 17
A131: 2901 | B131: LEISURE CITY K-8 CENTER | C131: 222 | E131: 48 | F131: 53 | G131: 36 | H131: 39 | I131: 46
A132: 2911 | B132: LINDA LENTIN K-8 CENTER | C132: 170 | E132: 28 | F132: 36 | G132: 39 | H132: 25 | I132: 42
A133: 2941 | B133: LAURA C. SAUNDERS ELEMENTARY | C133: 75 | E133: 39 | F133: 36
A134: 2981 | B134: LIBERTY CITY ELEMENTARY | C134: 32 | E134: 16 | F134: 16
A135: 3021 | B135: JESSE J MCCRARY JR ELEMENTARY | C135: 54 | E135: 29 | F135: 25
A136: 3024 | B136: FLORIDA INTERNATIONAL EL ACAD | C136: 48 | E136: 27 | F136: 21
A137: 3025 | B137: ADVANTAGE ACADEMY SANTA FE | C137: 12 | E137: 10 | F137: 2
A138: 3029 | B138: DORAL ACADEMY OF TECHNOLOGY | C138: 4 | G138: 2 | H138: 1 | I138: 1
A139: 3030 | B139: DORAL ACADEMY | C139: 45 | E139: 29 | F139: 16
A140: 3032 | B140: PALM GLADES PREPATORY ACADEMY | C140: 127 | G140: 58 | H140: 36 | I140: 33
A141: 3034 | B141: BRIDGEPOINT ACAD VILLAGE GREEN | C141: 8 | E141: 4 | F141: 4
A142: 3035 | B142: RAMZ ACADEMY ELEM MIAMI CAMPUS | C142: 3 | E142: 3
A143: 3041 | B143: LORAH PARK ELEMENTARY | C143: 47 | E143: 24 | F143: 23
A144: 3051 | B144: TOUSSAINT L'OUVERTURE ELEM | C144: 56 | E144: 25 | F144: 31
A145: 3061 | B145: LUDLAM ELEMENTARY | C145: 17 | E145: 9 | F145: 8
A146: 3100 | B146: MATER ACADEMY EAST CHARTER | C146: 26 | E146: 22 | F146: 4
A147: 3101 | B147: FRANK C. MARTIN K-8 CENTER | C147: 78 | E147: 21 | F147: 18 | G147: 16 | H147: 12 | I147: 11
A148: 3111 | B148: WESLEY MATTHEWS ELEMENTARY | C148: 20 | E148: 9 | F148: 11
A149: 3141 | B149: MEADOWLANE ELEMENTARY | C149: 123 | E149: 54 | F149: 69
A150: 3181 | B150: MELROSE ELEMENTARY | C150: 65 | E150: 39 | F150: 26
A151: 3191 | B151: ADA MERRITT K-8 CENTER | C151: 48 | E151: 7 | F151: 9 | G151: 14 | H151: 12 | I151: 6
A152: 3241 | B152: MIAMI GARDENS ELEMENTARY | C152: 25 | E152: 17 | F152: 8
A153: 3261 | B153: MIAMI HEIGHTS ELEMENTARY | C153: 97 | E153: 56 | F153: 41
A154: 3281 | B154: MIAMI LAKES K-8 CENTER | C154: 173 | E154: 30 | F154: 37 | G154: 34 | H154: 30 | I154: 42
A155: 3301 | B155: MIAMI PARK ELEMENTARY | C155: 45 | E155: 25 | F155: 20
A156: 3341 | B156: MIAMI SHORES ELEMENTARY | C156: 69 | E156: 29 | F156: 40
A157: 3381 | B157: MIAMI SPRINGS ELEMENTARY | C157: 50 | E157: 27 | F157: 23
A158: 3421 | B158: M.A. MILAM K-8 CENTER | C158: 183 | E158: 31 | F158: 32 | G158: 34 | H158: 47 | I158: 39
A159: 3431 | B159: PHYLLIS RUTH MILLER ELEMENTARY | C159: 60 | E159: 30 | F159: 30
A160: 3501 | B160: MORNINGSIDE ELEMENTARY | C160: 65 | E160: 31 | F160: 16 | G160: 18
A161: 3541 | B161: ROBERT RUSSA MOTON ELEMENTARY | C161: 39 | D161: 1 | E161: 20 | F161: 18
A162: 3581 | B162: MYRTLE GROVE ELEMENTARY | C162: 50 | E162: 16 | F162: 16 | G162: 18
A163: 3600 | B163: DOWNTOWN MIAMI CHARTER SCHOOL | C163: 89 | E163: 38 | F163: 22 | G163: 29
A164: 3610 | B164: KEYS GATE CHARTER SCHOOL | C164: 314 | E164: 47 | F164: 44 | G164: 70 | H164: 86 | I164: 67
A165: 3621 | B165: COCONUT PALM K-8 ACADEMY | C165: 200 | E165: 55 | F165: 55 | G165: 40 | H165: 28 | I165: 22
A166: 3661 | B166: NATURAL BRIDGE ELEMENTARY | C166: 35 | E166: 24 | F166: 11
A167: 3701 | B167: NORLAND ELEMENTARY | C167: 72 | E167: 40 | F167: 32
A168: 3741 | B168: NORTH BEACH ELEMENTARY | C168: 46 | E168: 28 | F168: 18
A169: 3781 | B169: BARBARA HAWKINS ELEMENTARY | C169: 30 | E169: 17 | F169: 13
A170: 3821 | B170: NORTH COUNTY K-8 CENTER | C170: 55 | E170: 15 | F170: 9 | G170: 16 | H170: 15
A171: 3861 | B171: NORTH GLADE ELEMENTARY | C171: 18 | E171: 10 | F171: 8
A172: 3901 | B172: NORTH HIALEAH ELEMENTARY | C172: 61 | E172: 35 | F172: 26
A173: 3941 | B173: NORTH MIAMI ELEMENTARY | C173: 60 | E173: 34 | F173: 26
A174: 3981 | B174: NORTH TWIN LAKES ELEMENTARY | C174: 59 | E174: 31 | F174: 28
A175: 4000 | B175: MIAMI CHILDREN'S MUSEUM | C175: 17 | E175: 8 | F175: 9
A176: 4001 | B176: NORWOOD ELEMENTARY | C176: 32 | E176: 15 | F176: 17
A177: 4012 | B177: SOMERSET ACAD AT SILVER PALMS | C177: 39 | E177: 26 | F177: 13
A178: 4021 | B178: OAK GROVE ELEMENTARY | C178: 79 | E178: 27 | F178: 31 | G178: 21
A179: 4031 | B179: GATEWAY ENVIRONMENTAL K-8 | C179: 197 | E179: 60 | F179: 51 | G179: 53 | H179: 33
A180: 4061 | B180: OJUS ELEMENTARY | C180: 67 | E180: 34 | F180: 33
A181: 4071 | B181: OLINDA ELEMENTARY | C181: 37 | E181: 20 | F181: 17
A182: 4091 | B182: OLYMPIA HEIGHTS ELEMENTARY | C182: 45 | E182: 26 | F182: 19
A183: 4121 | B183: DR. ROBERT B. INGRAM EL | C183: 38 | E183: 17 | F183: 21
A184: 4171 | B184: ORCHARD VILLA ELEMENTARY | C184: 41 | E184: 24 | F184: 17
A185: 4221 | B185: PALMETTO ELEMENTARY | C185: 24 | E185: 12 | F185: 12
A186: 4241 | B186: PALM LAKES ELEMENTARY | C186: 70 | E186: 29 | F186: 41
A187: 4261 | B187: PALM SPRINGS ELEMENTARY | C187: 70 | E187: 38 | F187: 32
A188: 4281 | B188: PALM SPRINGS NORTH ELEMENTARY | C188: 85 | E188: 47 | F188: 38
A189: 4301 | B189: PARKVIEW ELEMENTARY | C189: 28 | E189: 19 | F189: 9
A190: 4341 | B190: PARKWAY ELEMENTARY | C190: 37 | E190: 22 | F190: 15
A191: 4381 | B191: DR HENRY E PERRINE ACADEMY | C191: 65 | E191: 30 | F191: 35
A192: 4391 | B192: IRVING & BEATRICE PESKOE K-8 | C192: 94 | E192: 27 | F192: 34 | G192: 19 | H192: 14
A193: 4401 | B193: KELSEY L. PHARR ELEMENTARY | C193: 38 | E193: 21 | F193: 17
A194: 4421 | B194: PINECREST ELEMENTARY | C194: 37 | E194: 16 | F194: 21
A195: 4441 | B195: PINE LAKE ELEMENTARY | C195: 42 | E195: 23 | F195: 19
A196: 4461 | B196: PINE VILLA ELEMENTARY | C196: 22 | E196: 14 | F196: 8
A197: 4491 | B197: HENRY E.S. REEVES ELEMENTARY | C197: 78 | E197: 42 | F197: 36
A198: 4501 | B198: POINCIANA PARK ELEMENTARY | C198: 27 | E198: 13 | F198: 14
A199: 4511 | B199: DR GILBERT L. PORTER ELEM | C199: 49 | E199: 20 | F199: 29
A200: 4541 | B200: RAINBOW PARK ELEMENTARY | C200: 33 | E200: 13 | F200: 20
... 249 more rows

Sheet MEM_RL3 (hidden)
A1: 1 | B1: 2 | C1: 3 | D1: 4 | E1: 5 | F1: 6 | G1: 7 | H1: 8 | I1: 9 | J1: 10 | K1: 11
A2: S_SCHOOL_NUM | B2: S_SCHL_NAME | C2: Total Of STUDENT_ID | D2: 03 | E2: 04 | F2: 05 | G2: 06 | H2: 07 | I2: 08 | J2: 09 | K2: 10
A3: 0041 | B3: AIR BASE ELEMENTARY | C3: 58 | E3: 28 | F3: 30
A4: 0070 | B4: CORAL REEF MONTESSORI ACAD CH | C4: 55 | E4: 11 | F4: 15 | G4: 7 | H4: 10 | I4: 12
A5: 0071 | B5: EUGENIA B. THOMAS K-8 CENTER | C5: 211 | E5: 37 | F5: 34 | G5: 32 | H5: 47 | I5: 61
A6: 0072 | B6: SUMMERVILLE CHARTER SCHOOL | C6: 44 | E6: 23 | F6: 21
A7: 0073 | B7: MANDARIN LAKES K-8 CENTER | C7: 127 | E7: 25 | F7: 32 | G7: 24 | H7: 19 | I7: 27
A8: 0081 | B8: LENORA B. SMITH ELEMENTARY | C8: 20 | E8: 11 | F8: 9
A9: 0091 | B9: BOB GRAHAM EDUCATION CTR | C9: 321 | E9: 66 | F9: 55 | G9: 51 | H9: 73 | I9: 76
A10: 0092 | B10: NORMAN S. EDELCUP/SUNNY ISLES | C10: 233 | E10: 48 | F10: 45 | G10: 38 | H10: 52 | I10: 50
A11: 0100 | B11: MATER ACADEMY | C11: 67 | E11: 28 | F11: 39
A12: 0101 | B12: ARCOLA LAKE ELEMENTARY | C12: 36 | E12: 16 | F12: 20
A13: 0102 | B13: MIAMI COMMUNITY CHARTER SCHOOL | C13: 35 | E13: 19 | F13: 16
A14: 0111 | B14: MAYA ANGELOU ELEMENTARY | C14: 41 | E14: 12 | F14: 29
A15: 0121 | B15: AUBURNDALE ELEMENTARY | C15: 59 | E15: 29 | F15: 30
A16: 0122 | B16: DR ROLANDO ESPINOSA K-8 | C16: 221 | E16: 38 | F16: 38 | G16: 43 | H16: 59 | I16: 43
A17: 0125 | B17: NORMA BUTLER BOSSARD ELEM | C17: 123 | E17: 52 | F17: 71
A18: 0201 | B18: BANYAN ELEMENTARY | C18: 25 | E18: 14 | F18: 11
A19: 0211 | B19: DR. MANUEL C. BARREIRO ELEM | C19: 90 | E19: 45 | F19: 45
A20: 0231 | B20: AVENTURA WATERWAYS K-8 CENTER | C20: 267 | E20: 44 | F20: 49 | G20: 54 | H20: 53 | I20: 67
A21: 0241 | B21: RUTH K BROAD/BAY HARBOR K-8 | C21: 194 | E21: 37 | F21: 21 | G21: 51 | H21: 41 | I21: 44
A22: 0251 | B22: ETHEL KOGER BECKHAM ELEMENTARY | C22: 63 | E22: 30 | F22: 33
A23: 0261 | B23: BEL-AIRE ELEMENTARY | C23: 24 | E23: 8 | F23: 16
A24: 0271 | B24: BENT TREE ELEMENTARY | C24: 59 | E24: 28 | F24: 31
A25: 0311 | B25: GOULDS ELEMENTARY | C25: 35 | E25: 20 | F25: 15
A26: 0312 | B26: MATER GARDENS ACADEMY | C26: 68 | E26: 31 | F26: 37
A27: 0321 | B27: BISCAYNE ELEMENTARY | C27: 54 | E27: 31 | F27: 23
A28: 0332 | B28: SOMERSET ACADEMY(SILVER PALMS) | C28: 194 | E28: 11 | F28: 29 | G28: 62 | H28: 56 | I28: 36
A29: 0339 | B29: SOMERSET ACADEMY CHARTER ELEM | C29: 26 | E29: 15 | F29: 11
A30: 0341 | B30: ARCH CREEK ELEMENTARY SCHOOL | C30: 50 | E30: 22 | F30: 28
A31: 0342 | B31: PINECREST ACADEMY SOUTH CAMPUS | C31: 63 | E31: 23 | F31: 40
A32: 0361 | B32: BISCAYNE GARDENS ELEMENTARY | C32: 30 | E32: 17 | F32: 13
A33: 0400 | B33: RENAISSANCE ELEMENTARY CHARTER | C33: 63 | E33: 28 | F33: 35
A34: 0401 | B34: VAN E. BLANTON ELEMENTARY | C34: 37 | E34: 18 | F34: 19
A35: 0410 | B35: ACADEMIR CHARTER SCHOOL WEST | C35: 34 | E35: 15 | F35: 19
A36: 0441 | B36: BLUE LAKES ELEMENTARY | C36: 35 | E36: 25 | F36: 10
A37: 0451 | B37: BOWMAN ASHE/DOOLIN K-8 ACAD | C37: 227 | E37: 41 | F37: 35 | G37: 34 | H37: 58 | I37: 59
A38: 0461 | B38: BRENTWOOD ELEMENTARY | C38: 54 | E38: 25 | F38: 29
A39: 0481 | B39: JAMES H. BRIGHT/JW JOHNSON ES | C39: 57 | E39: 28 | F39: 29
A40: 0510 | B40: ARCHIMEDEAN ACADEMY | C40: 42 | E40: 17 | F40: 25
A41: 0520 | B41: SOMERSET ACADEMY | C41: 60 | E41: 31 | F41: 29
A42: 0521 | B42: BROADMOOR ELEMENTARY | C42: 27 | E42: 16 | F42: 11
A43: 0561 | B43: W.J. BRYAN ELEMENTARY | C43: 46 | E43: 19 | F43: 27
A44: 0600 | B44: PINECREST PREP ACADEMY | C44: 47 | E44: 20 | F44: 27
A45: 0641 | B45: BUNCHE PARK ELEMENTARY | C45: 13 | E45: 6 | F45: 7
A46: 0651 | B46: CAMPBELL DRIVE K-8 CENTER | C46: 76 | E46: 19 | F46: 27 | G46: 12 | H46: 18
A47: 0661 | B47: CARIBBEAN ELEMENTARY | C47: 36 | E47: 11 | F47: 25
A48: 0671 | B48: CALUSA ELEMENTARY | C48: 67 | E48: 42 | F48: 25
A49: 0681 | B49: CAROL CITY ELEMENTARY | C49: 25 | E49: 4 | F49: 21
A50: 0721 | B50: GEORGE WASHINGTON CARVER ELEM | C50: 30 | E50: 14 | F50: 16
A51: 0761 | B51: FIENBERG/FISHER K-8 CENTER | C51: 115 | E51: 16 | F51: 19 | G51: 29 | H51: 27 | I51: 24
A52: 0771 | B52: WILLIAM A. CHAPMAN ELEMENTARY | C52: 18 | E52: 10 | F52: 8
A53: 0801 | B53: CITRUS GROVE ELEMENTARY | C53: 59 | E53: 28 | F53: 31
A54: 0831 | B54: CLAUDE PEPPER ELEMENTARY | C54: 65 | E54: 27 | F54: 38
A55: 0841 | B55: COCONUT GROVE ELEMENTARY | C55: 23 | E55: 6 | F55: 17
A56: 0861 | B56: COLONIAL DRIVE ELEMENTARY | C56: 16 | E56: 7 | F56: 9
A57: 0881 | B57: COMSTOCK ELEMENTARY | C57: 40 | E57: 23 | F57: 17
A58: 0950 | B58: AVENTURA CITY OF EXCELLENCE | C58: 173 | E58: 37 | F58: 23 | G58: 29 | H58: 38 | I58: 46
A59: 0961 | B59: CORAL GABLES PREPARATORY ACAD | C59: 112 | E59: 31 | F59: 13 | G59: 16 | H59: 35 | I59: 17
A60: 1001 | B60: CORAL PARK ELEMENTARY | C60: 82 | E60: 37 | F60: 45
A61: 1010 | B61: CHARTER SCHOOL AT WATERSTONE | C61: 86 | E61: 41 | F61: 45
A62: 1014 | B62: ADVANCED LEARNING CHARTER SCH | C62: 33 | E62: 12 | F62: 21
A63: 1017 | B63: MATER ACADEMY OF INTL STUDIES | C63: 28 | E63: 13 | F63: 15
A64: 1020 | B64: YOUTH CO-OP CHARTER SCHOOL | C64: 103 | E64: 8 | F64: 17 | G64: 15 | H64: 29 | I64: 34
A65: 1041 | B65: CORAL REEF ELEMENTARY | C65: 45 | E65: 24 | F65: 21
A66: 1081 | B66: CORAL TERRACE ELEMENTARY | C66: 49 | E66: 22 | F66: 27
A67: 1121 | B67: CORAL WAY K-8 CENTER | C67: 235 | E67: 47 | F67: 37 | G67: 46 | H67: 48 | I67: 57
A68: 1161 | B68: CRESTVIEW ELEMENTARY | C68: 35 | E68: 15 | F68: 20
A69: 1241 | B69: CUTLER RIDGE ELEMENTARY | C69: 79 | E69: 48 | F69: 31
A70: 1281 | B70: CYPRESS ELEMENTARY | C70: 43 | E70: 19 | F70: 24
A71: 1331 | B71: DEVON AIRE K-8 CENTER | C71: 296 | E71: 45 | F71: 48 | G71: 66 | H71: 62 | I71: 75
A72: 1361 | B72: FREDERICK DOUGLASS ELEMENTARY | C72: 9 | E72: 4 | F72: 5
A73: 1371 | B73: MARJORY STONEMAN DOUGLAS ELEM | C73: 84 | E73: 35 | F73: 49
A74: 1401 | B74: CHARLES R. DREW ELEMENTARY | C74: 29 | E74: 12 | F74: 5 | G74: 12
A75: 1441 | B75: PAUL LAURENCE DUNBAR ELEM | C75: 38 | E75: 14 | F75: 16 | G75: 8
A76: 1481 | B76: JOHN G. DUPUIS ELEMENTARY | C76: 58 | E76: 25 | F76: 33
A77: 1521 | B77: AMELIA EARHART ELEMENTARY | C77: 31 | E77: 16 | F77: 15
A78: 1561 | B78: EARLINGTON HEIGHTS ELEMENTARY | C78: 29 | E78: 17 | F78: 12
A79: 1601 | B79: EDISON PARK ELEMENTARY | C79: 19 | E79: 9 | F79: 7 | G79: 3
A80: 1641 | B80: EMERSON ELEMENTARY | C80: 33 | E80: 12 | F80: 21
A81: 1681 | B81: LILLIE C. EVANS K-8 CENTER | C81: 57 | E81: 7 | F81: 12 | G81: 20 | H81: 11 | I81: 7
A82: 1691 | B82: CHRISTINA M. EVE ELEMENTARY | C82: 50 | E82: 25 | F82: 25
A83: 1721 | B83: EVERGLADES K-8 CENTER | C83: 180 | E83: 25 | F83: 37 | G83: 41 | H83: 40 | I83: 37
A84: 1761 | B84: DAVID FAIRCHILD ELEMENTARY | C84: 38 | E84: 17 | F84: 21
A85: 1801 | B85: FAIRLAWN ELEMENTARY | C85: 58 | E85: 35 | F85: 23
A86: 1811 | B86: DANTE B. FASCELL ELEMENTARY | C86: 49 | E86: 22 | F86: 27
A87: 1841 | B87: FLAGAMI ELEMENTARY | C87: 32 | E87: 17 | F87: 15
A88: 1881 | B88: HENRY M. FLAGLER ELEMENTARY | C88: 70 | E88: 29 | F88: 41
A89: 1921 | B89: FLAMINGO ELEMENTARY | C89: 69 | E89: 33 | F89: 36
A90: 2001 | B90: FLORIDA CITY ELEMENTARY | C90: 34 | E90: 18 | F90: 16
A91: 2003 | B91: BRIDGEPOINT ACADEMY | C91: 22 | E91: 12 | F91: 10
A92: 2006 | B92: RICHARD ALLEN LEADERSHIP ACAD | C92: 4 | E92: 2 | F92: 2
A93: 2007 | B93: SOMERSET ACADEMY ELEMENTARY | C93: 36 | E93: 22 | F93: 14
A94: 2012 | B94: SOMERSET ARTS ACADEMY | C94: 33 | E94: 21 | F94: 12
A95: 2013 | B95: BRIDGEPOINT ACAD GREATER MIAMI | C95: 13 | E95: 9 | F95: 4
A96: 2021 | B96: GLORIA FLOYD ELEMENTARY | C96: 61 | E96: 28 | F96: 33
A97: 2041 | B97: BENJAMIN FRANKLIN K-8 CENTER | C97: 38 | E97: 12 | F97: 18 | G97: 4 | H97: 4
A98: 2060 | B98: GIBSON CHARTER SCHOOL | C98: 34 | E98: 5 | F98: 5 | G98: 7 | H98: 9 | I98: 8
A99: 2081 | B99: FULFORD ELEMENTARY | C99: 38 | E99: 17 | F99: 21
A100: 2111 | B100: HIALEAH GARDENS ELEMENTARY | C100: 74 | E100: 42 | F100: 32
A101: 2151 | B101: JACK D. GORDON ELEMENTARY | C101: 93 | E101: 41 | F101: 52
A102: 2161 | B102: GOLDEN GLADES ELEMENTARY | C102: 8 | E102: 4 | F102: 4
A103: 2181 | B103: JOELLA C. GOOD ELEMENTARY | C103: 87 | E103: 42 | F103: 45
A104: 2191 | B104: SPANISH LAKE ELEMENTARY | C104: 161 | E104: 86 | F104: 75
A105: 2241 | B105: GRATIGNY ELEMENTARY | C105: 57 | E105: 16 | F105: 23 | G105: 18
A106: 2261 | B106: GREENGLADE ELEMENTARY | C106: 39 | E106: 21 | F106: 18
A107: 2281 | B107: GREYNOLDS PARK ELEMENTARY | C107: 43 | E107: 23 | F107: 20
A108: 2321 | B108: GULFSTREAM ELEMENTARY | C108: 29 | E108: 17 | F108: 12
A109: 2331 | B109: CHARLES R. HADLEY ELEMENTARY | C109: 76 | E109: 39 | F109: 37
A110: 2341 | B110: JOE HALL ELEMENTARY | C110: 58 | E110: 21 | F110: 37
A111: 2351 | B111: ENEIDA MASSAS HARTNER ELEM | C111: 38 | E111: 18 | F111: 20
A112: 2361 | B112: HIALEAH ELEMENTARY | C112: 58 | E112: 30 | F112: 28
A113: 2371 | B113: WEST HIALEAH GARDENS ELEM | C113: 103 | E113: 62 | F113: 41
A114: 2401 | B114: HIBISCUS ELEMENTARY | C114: 48 | E114: 17 | F114: 31
A115: 2441 | B115: VIRGINIA A BOONE/HIGHLAND OAKS | C115: 49 | E115: 25 | F115: 24
A116: 2501 | B116: HOLMES ELEMENTARY | C116: 28 | E116: 14 | F116: 14
A117: 2511 | B117: ZORA NEALE HURSTON ELEMENTARY | C117: 63 | E117: 28 | F117: 35
A118: 2521 | B118: OLIVER HOOVER ELEMENTARY | C118: 61 | E118: 33 | F118: 28
A119: 2541 | B119: HOWARD DRIVE ELEMENTARY | C119: 45 | E119: 23 | F119: 22
A120: 2581 | B120: MADIE IVES ELEMENTARY | C120: 60 | E120: 33 | F120: 27
A121: 2641 | B121: KENDALE ELEMENTARY | C121: 39 | E121: 19 | F121: 20
A122: 2651 | B122: KENDALE LAKES ELEMENTARY | C122: 53 | E122: 23 | F122: 30
A123: 2661 | B123: KENSINGTON PARK ELEMENTARY | C123: 73 | E123: 33 | F123: 40
A124: 2701 | B124: KENWOOD K-8 CENTER | C124: 190 | E124: 35 | F124: 28 | G124: 34 | H124: 45 | I124: 48
A125: 2741 | B125: KEY BISCAYNE K-8 CENTER | C125: 178 | E125: 32 | F125: 36 | G125: 42 | H125: 41 | I125: 27
A126: 2781 | B126: KINLOCH PARK ELEMENTARY | C126: 70 | E126: 33 | F126: 37
A127: 2801 | B127: LAKE STEVENS ELEMENTARY | C127: 18 | E127: 11 | F127: 7
A128: 2821 | B128: LAKEVIEW ELEMENTARY | C128: 42 | E128: 23 | F128: 19
A129: 2881 | B129: LEEWOOD K-8 CENTER | C129: 103 | E129: 27 | F129: 24 | G129: 15 | H129: 24 | I129: 13
A130: 2891 | B130: WILLIAM LEHMAN ELEMENTARY | C130: 54 | E130: 30 | F130: 24
A131: 2901 | B131: LEISURE CITY K-8 CENTER | C131: 126 | E131: 30 | F131: 17 | G131: 23 | H131: 24 | I131: 32
A132: 2911 | B132: LINDA LENTIN K-8 CENTER | C132: 139 | E132: 21 | F132: 31 | G132: 33 | H132: 30 | I132: 24
A133: 2941 | B133: LAURA C. SAUNDERS ELEMENTARY | C133: 42 | E133: 20 | F133: 22
A134: 2981 | B134: LIBERTY CITY ELEMENTARY | C134: 16 | E134: 9 | F134: 7
A135: 3021 | B135: JESSE J MCCRARY JR ELEMENTARY | C135: 30 | E135: 17 | F135: 13
A136: 3024 | B136: FLORIDA INTERNATIONAL EL ACAD | C136: 16 | E136: 8 | F136: 8
A137: 3025 | B137: ADVANTAGE ACADEMY SANTA FE | C137: 13 | E137: 6 | F137: 7
A138: 3029 | B138: DORAL ACADEMY OF TECHNOLOGY | C138: 36 | G138: 10 | H138: 14 | I138: 12
A139: 3030 | B139: DORAL ACADEMY | C139: 81 | E139: 36 | F139: 45
A140: 3032 | B140: PALM GLADES PREPATORY ACADEMY | C140: 114 | G140: 49 | H140: 30 | I140: 35
A141: 3034 | B141: BRIDGEPOINT ACAD VILLAGE GREEN | C141: 7 | E141: 2 | F141: 4 | H141: 1
A142: 3041 | B142: LORAH PARK ELEMENTARY | C142: 21 | E142: 12 | F142: 9
A143: 3051 | B143: TOUSSAINT L'OUVERTURE ELEM | C143: 26 | E143: 13 | F143: 13
A144: 3061 | B144: LUDLAM ELEMENTARY | C144: 26 | E144: 14 | F144: 12
A145: 3100 | B145: MATER ACADEMY EAST CHARTER | C145: 25 | E145: 13 | F145: 12
A146: 3101 | B146: FRANK C. MARTIN K-8 CENTER | C146: 193 | E146: 41 | F146: 34 | G146: 29 | H146: 44 | I146: 45
A147: 3111 | B147: WESLEY MATTHEWS ELEMENTARY | C147: 47 | E147: 25 | F147: 22
A148: 3141 | B148: MEADOWLANE ELEMENTARY | C148: 91 | E148: 48 | F148: 43
A149: 3181 | B149: MELROSE ELEMENTARY | C149: 41 | E149: 27 | F149: 14
A150: 3191 | B150: ADA MERRITT K-8 CENTER | C150: 105 | E150: 8 | F150: 19 | G150: 25 | H150: 25 | I150: 28
A151: 3241 | B151: MIAMI GARDENS ELEMENTARY | C151: 16 | E151: 12 | F151: 4
A152: 3261 | B152: MIAMI HEIGHTS ELEMENTARY | C152: 86 | E152: 31 | F152: 55
A153: 3281 | B153: MIAMI LAKES K-8 CENTER | C153: 233 | E153: 37 | F153: 31 | G153: 59 | H153: 42 | I153: 64
A154: 3301 | B154: MIAMI PARK ELEMENTARY | C154: 16 | E154: 8 | F154: 8
A155: 3341 | B155: MIAMI SHORES ELEMENTARY | C155: 65 | E155: 34 | F155: 31
A156: 3381 | B156: MIAMI SPRINGS ELEMENTARY | C156: 40 | E156: 21 | F156: 19
A157: 3421 | B157: M.A. MILAM K-8 CENTER | C157: 177 | E157: 26 | F157: 31 | G157: 41 | H157: 44 | I157: 35
A158: 3431 | B158: PHYLLIS RUTH MILLER ELEMENTARY | C158: 33 | E158: 14 | F158: 19
A159: 3501 | B159: MORNINGSIDE ELEMENTARY | C159: 49 | E159: 19 | F159: 26 | G159: 4
A160: 3541 | B160: ROBERT RUSSA MOTON ELEMENTARY | C160: 16 | E160: 9 | F160: 7
A161: 3581 | B161: MYRTLE GROVE ELEMENTARY | C161: 26 | E161: 14 | F161: 6 | G161: 6
A162: 3600 | B162: DOWNTOWN MIAMI CHARTER SCHOOL | C162: 64 | E162: 25 | F162: 25 | G162: 14
A163: 3610 | B163: KEYS GATE CHARTER SCHOOL | C163: 304 | E163: 32 | F163: 46 | G163: 51 | H163: 83 | I163: 92
A164: 3621 | B164: COCONUT PALM K-8 ACADEMY | C164: 157 | E164: 28 | F164: 35 | G164: 38 | H164: 35 | I164: 21
A165: 3661 | B165: NATURAL BRIDGE ELEMENTARY | C165: 40 | E165: 17 | F165: 23
A166: 3701 | B166: NORLAND ELEMENTARY | C166: 40 | E166: 21 | F166: 19
A167: 3741 | B167: NORTH BEACH ELEMENTARY | C167: 74 | E167: 40 | F167: 34
A168: 3781 | B168: BARBARA HAWKINS ELEMENTARY | C168: 21 | E168: 9 | F168: 12
A169: 3821 | B169: NORTH COUNTY K-8 CENTER | C169: 33 | E169: 9 | F169: 8 | G169: 7 | H169: 9
A170: 3861 | B170: NORTH GLADE ELEMENTARY | C170: 24 | E170: 8 | F170: 16
A171: 3901 | B171: NORTH HIALEAH ELEMENTARY | C171: 52 | E171: 17 | F171: 35
A172: 3941 | B172: NORTH MIAMI ELEMENTARY | C172: 32 | E172: 15 | F172: 17
A173: 3981 | B173: NORTH TWIN LAKES ELEMENTARY | C173: 49 | E173: 30 | F173: 19
A174: 4000 | B174: MIAMI CHILDREN'S MUSEUM | C174: 26 | E174: 9 | F174: 17
A175: 4001 | B175: NORWOOD ELEMENTARY | C175: 33 | E175: 15 | F175: 18
A176: 4012 | B176: SOMERSET ACAD AT SILVER PALMS | C176: 38 | E176: 25 | F176: 13
A177: 4021 | B177: OAK GROVE ELEMENTARY | C177: 58 | E177: 14 | F177: 30 | G177: 14
A178: 4031 | B178: GATEWAY ENVIRONMENTAL K-8 | C178: 137 | E178: 34 | F178: 35 | G178: 30 | H178: 38
A179: 4061 | B179: OJUS ELEMENTARY | C179: 85 | E179: 50 | F179: 35
A180: 4071 | B180: OLINDA ELEMENTARY | C180: 18 | E180: 4 | F180: 14
A181: 4091 | B181: OLYMPIA HEIGHTS ELEMENTARY | C181: 47 | E181: 20 | F181: 27
A182: 4121 | B182: DR. ROBERT B. INGRAM EL | C182: 30 | E182: 16 | F182: 14
A183: 4171 | B183: ORCHARD VILLA ELEMENTARY | C183: 15 | E183: 7 | F183: 8
A184: 4221 | B184: PALMETTO ELEMENTARY | C184: 38 | E184: 19 | F184: 19
A185: 4241 | B185: PALM LAKES ELEMENTARY | C185: 83 | E185: 36 | F185: 47
A186: 4261 | B186: PALM SPRINGS ELEMENTARY | C186: 59 | E186: 30 | F186: 29
A187: 4281 | B187: PALM SPRINGS NORTH ELEMENTARY | C187: 76 | E187: 39 | F187: 37
A188: 4301 | B188: PARKVIEW ELEMENTARY | C188: 27 | E188: 12 | F188: 15
A189: 4341 | B189: PARKWAY ELEMENTARY | C189: 24 | E189: 8 | F189: 16
A190: 4381 | B190: DR HENRY E PERRINE ACADEMY | C190: 68 | E190: 38 | F190: 30
A191: 4391 | B191: IRVING & BEATRICE PESKOE K-8 | C191: 65 | E191: 19 | F191: 24 | G191: 17 | H191: 5
A192: 4401 | B192: KELSEY L. PHARR ELEMENTARY | C192: 15 | E192: 5 | F192: 10
A193: 4421 | B193: PINECREST ELEMENTARY | C193: 66 | E193: 27 | F193: 39
A194: 4441 | B194: PINE LAKE ELEMENTARY | C194: 24 | E194: 10 | F194: 14
A195: 4461 | B195: PINE VILLA ELEMENTARY | C195: 15 | E195: 6 | F195: 9
A196: 4491 | B196: HENRY E.S. REEVES ELEMENTARY | C196: 56 | E196: 30 | F196: 26
A197: 4501 | B197: POINCIANA PARK ELEMENTARY | C197: 10 | E197: 4 | F197: 6
A198: 4511 | B198: DR GILBERT L. PORTER ELEM | C198: 71 | E198: 36 | F198: 35
A199: 4541 | B199: RAINBOW PARK ELEMENTARY | C199: 39 | E199: 19 | F199: 20
A200: 4581 | B200: REDLAND ELEMENTARY | C200: 70 | E200: 35 | F200: 35
... 245 more rows

Sheet MEM_RL4 (hidden)
A1: 1 | B1: 2 | C1: 3 | D1: 4 | E1: 5 | F1: 6 | G1: 7 | H1: 8 | I1: 9 | J1: 10 | K1: 11
A2: S_SCHOOL_NUM | B2: S_SCHL_NAME | C2: Total Of STUDENT_ID | E2: 04 | F2: 05 | G2: 06 | H2: 07 | I2: 08 | J2: 09 | K2: 10
A3: 0041 | B3: AIR BASE ELEMENTARY | C3: 94 | E3: 44 | F3: 50
A4: 0070 | B4: CORAL REEF MONTESSORI ACAD CH | C4: 37 | E4: 8 | F4: 11 | G4: 8 | H4: 6 | I4: 4
A5: 0071 | B5: EUGENIA B. THOMAS K-8 CENTER | C5: 206 | E5: 48 | F5: 50 | G5: 42 | H5: 30 | I5: 36
A6: 0072 | B6: SUMMERVILLE CHARTER SCHOOL | C6: 27 | E6: 8 | F6: 19
A7: 0073 | B7: MANDARIN LAKES K-8 CENTER | C7: 39 | E7: 3 | F7: 10 | G7: 12 | H7: 4 | I7: 10
A8: 0081 | B8: LENORA B. SMITH ELEMENTARY | C8: 9 | E8: 3 | F8: 6
A9: 0091 | B9: BOB GRAHAM EDUCATION CTR | C9: 262 | E9: 55 | F9: 55 | G9: 45 | H9: 44 | I9: 63
A10: 0092 | B10: NORMAN S. EDELCUP/SUNNY ISLES | C10: 258 | E10: 55 | F10: 47 | G10: 53 | H10: 50 | I10: 53
A11: 0100 | B11: MATER ACADEMY | C11: 62 | E11: 39 | F11: 23
A12: 0101 | B12: ARCOLA LAKE ELEMENTARY | C12: 16 | E12: 5 | F12: 11
A13: 0102 | B13: MIAMI COMMUNITY CHARTER SCHOOL | C13: 18 | E13: 10 | F13: 8
A14: 0111 | B14: MAYA ANGELOU ELEMENTARY | C14: 26 | E14: 12 | F14: 14
A15: 0121 | B15: AUBURNDALE ELEMENTARY | C15: 60 | E15: 27 | F15: 33
A16: 0122 | B16: DR ROLANDO ESPINOSA K-8 | C16: 222 | E16: 57 | F16: 50 | G16: 44 | H16: 37 | I16: 34
A17: 0125 | B17: NORMA BUTLER BOSSARD ELEM | C17: 113 | E17: 53 | F17: 60
A18: 0201 | B18: BANYAN ELEMENTARY | C18: 40 | E18: 21 | F18: 19
A19: 0211 | B19: DR. MANUEL C. BARREIRO ELEM | C19: 77 | E19: 30 | F19: 47
A20: 0231 | B20: AVENTURA WATERWAYS K-8 CENTER | C20: 251 | E20: 68 | F20: 52 | G20: 49 | H20: 37 | I20: 45
A21: 0241 | B21: RUTH K BROAD/BAY HARBOR K-8 | C21: 194 | E21: 58 | F21: 34 | G21: 44 | H21: 25 | I21: 33
A22: 0251 | B22: ETHEL KOGER BECKHAM ELEMENTARY | C22: 72 | E22: 38 | F22: 34
A23: 0261 | B23: BEL-AIRE ELEMENTARY | C23: 14 | E23: 8 | F23: 6
A24: 0271 | B24: BENT TREE ELEMENTARY | C24: 49 | E24: 23 | F24: 26
A25: 0311 | B25: GOULDS ELEMENTARY | C25: 16 | E25: 9 | F25: 7
A26: 0312 | B26: MATER GARDENS ACADEMY | C26: 55 | E26: 23 | F26: 32
A27: 0321 | B27: BISCAYNE ELEMENTARY | C27: 30 | E27: 13 | F27: 17
A28: 0332 | B28: SOMERSET ACADEMY(SILVER PALMS) | C28: 120 | E28: 8 | F28: 17 | G28: 47 | H28: 20 | I28: 28
A29: 0339 | B29: SOMERSET ACADEMY CHARTER ELEM | C29: 28 | E29: 13 | F29: 15
A30: 0341 | B30: ARCH CREEK ELEMENTARY SCHOOL | C30: 32 | E30: 17 | F30: 15
A31: 0342 | B31: PINECREST ACADEMY SOUTH CAMPUS | C31: 69 | E31: 27 | F31: 42
A32: 0361 | B32: BISCAYNE GARDENS ELEMENTARY | C32: 20 | E32: 7 | F32: 13
A33: 0400 | B33: RENAISSANCE ELEMENTARY CHARTER | C33: 87 | E33: 48 | F33: 39
A34: 0401 | B34: VAN E. BLANTON ELEMENTARY | C34: 23 | E34: 11 | F34: 12
A35: 0410 | B35: ACADEMIR CHARTER SCHOOL WEST | C35: 30 | E35: 13 | F35: 17
A36: 0441 | B36: BLUE LAKES ELEMENTARY | C36: 48 | E36: 19 | F36: 29
A37: 0451 | B37: BOWMAN ASHE/DOOLIN K-8 ACAD | C37: 145 | E37: 34 | F37: 30 | G37: 31 | H37: 17 | I37: 33
A38: 0461 | B38: BRENTWOOD ELEMENTARY | C38: 23 | E38: 5 | F38: 18
A39: 0481 | B39: JAMES H. BRIGHT/JW JOHNSON ES | C39: 46 | E39: 26 | F39: 20
A40: 0510 | B40: ARCHIMEDEAN ACADEMY | C40: 62 | E40: 31 | F40: 31
A41: 0520 | B41: SOMERSET ACADEMY | C41: 73 | E41: 30 | F41: 43
A42: 0521 | B42: BROADMOOR ELEMENTARY | C42: 14 | E42: 5 | F42: 9
A43: 0561 | B43: W.J. BRYAN ELEMENTARY | C43: 51 | E43: 21 | F43: 30
A44: 0600 | B44: PINECREST PREP ACADEMY | C44: 73 | E44: 36 | F44: 37
A45: 0641 | B45: BUNCHE PARK ELEMENTARY | C45: 6 | E45: 4 | F45: 2
A46: 0651 | B46: CAMPBELL DRIVE K-8 CENTER | C46: 32 | E46: 5 | F46: 11 | G46: 9 | H46: 7
A47: 0661 | B47: CARIBBEAN ELEMENTARY | C47: 13 | E47: 6 | F47: 7
A48: 0671 | B48: CALUSA ELEMENTARY | C48: 98 | E48: 43 | F48: 55
A49: 0681 | B49: CAROL CITY ELEMENTARY | C49: 19 | E49: 6 | F49: 13
A50: 0721 | B50: GEORGE WASHINGTON CARVER ELEM | C50: 34 | E50: 17 | F50: 17
A51: 0761 | B51: FIENBERG/FISHER K-8 CENTER | C51: 73 | E51: 16 | F51: 19 | G51: 14 | H51: 11 | I51: 13
A52: 0771 | B52: WILLIAM A. CHAPMAN ELEMENTARY | C52: 16 | E52: 7 | F52: 9
A53: 0801 | B53: CITRUS GROVE ELEMENTARY | C53: 37 | E53: 19 | F53: 18
A54: 0831 | B54: CLAUDE PEPPER ELEMENTARY | C54: 61 | E54: 28 | F54: 33
A55: 0841 | B55: COCONUT GROVE ELEMENTARY | C55: 29 | E55: 17 | F55: 12
A56: 0861 | B56: COLONIAL DRIVE ELEMENTARY | C56: 13 | E56: 1 | F56: 12
A57: 0881 | B57: COMSTOCK ELEMENTARY | C57: 27 | E57: 13 | F57: 14
A58: 0950 | B58: AVENTURA CITY OF EXCELLENCE | C58: 203 | E58: 42 | F58: 50 | G58: 45 | H58: 34 | I58: 32
A59: 0961 | B59: CORAL GABLES PREPARATORY ACAD | C59: 103 | E59: 32 | F59: 27 | G59: 13 | H59: 19 | I59: 12
A60: 1001 | B60: CORAL PARK ELEMENTARY | C60: 145 | E60: 64 | F60: 81
A61: 1010 | B61: CHARTER SCHOOL AT WATERSTONE | C61: 91 | E61: 41 | F61: 50
A62: 1014 | B62: ADVANCED LEARNING CHARTER SCH | C62: 22 | E62: 10 | F62: 12
A63: 1017 | B63: MATER ACADEMY OF INTL STUDIES | C63: 19 | E63: 9 | F63: 10
A64: 1020 | B64: YOUTH CO-OP CHARTER SCHOOL | C64: 73 | E64: 8 | F64: 15 | G64: 15 | H64: 19 | I64: 16
A65: 1041 | B65: CORAL REEF ELEMENTARY | C65: 91 | E65: 39 | F65: 52
A66: 1081 | B66: CORAL TERRACE ELEMENTARY | C66: 22 | E66: 10 | F66: 12
A67: 1121 | B67: CORAL WAY K-8 CENTER | C67: 189 | E67: 32 | F67: 53 | G67: 30 | H67: 29 | I67: 45
A68: 1161 | B68: CRESTVIEW ELEMENTARY | C68: 25 | E68: 9 | F68: 16
A69: 1241 | B69: CUTLER RIDGE ELEMENTARY | C69: 82 | E69: 39 | F69: 43
A70: 1281 | B70: CYPRESS ELEMENTARY | C70: 30 | E70: 16 | F70: 14
A71: 1331 | B71: DEVON AIRE K-8 CENTER | C71: 221 | E71: 43 | F71: 53 | G71: 49 | H71: 40 | I71: 36
A72: 1361 | B72: FREDERICK DOUGLASS ELEMENTARY | C72: 3 | E72: 1 | F72: 2
A73: 1371 | B73: MARJORY STONEMAN DOUGLAS ELEM | C73: 97 | E73: 40 | F73: 57
A74: 1401 | B74: CHARLES R. DREW ELEMENTARY | C74: 13 | E74: 7 | F74: 2 | G74: 4
A75: 1441 | B75: PAUL LAURENCE DUNBAR ELEM | C75: 8 | E75: 4 | F75: 3 | G75: 1
A76: 1481 | B76: JOHN G. DUPUIS ELEMENTARY | C76: 55 | E76: 26 | F76: 29
A77: 1521 | B77: AMELIA EARHART ELEMENTARY | C77: 31 | E77: 12 | F77: 19
A78: 1561 | B78: EARLINGTON HEIGHTS ELEMENTARY | C78: 11 | E78: 5 | F78: 6
A79: 1601 | B79: EDISON PARK ELEMENTARY | C79: 9 | E79: 2 | F79: 3 | G79: 4
A80: 1641 | B80: EMERSON ELEMENTARY | C80: 34 | E80: 15 | F80: 19
A81: 1681 | B81: LILLIE C. EVANS K-8 CENTER | C81: 24 | E81: 5 | F81: 8 | G81: 5 | H81: 1 | I81: 5
A82: 1691 | B82: CHRISTINA M. EVE ELEMENTARY | C82: 75 | E82: 35 | F82: 40
A83: 1721 | B83: EVERGLADES K-8 CENTER | C83: 185 | E83: 31 | F83: 37 | G83: 38 | H83: 38 | I83: 41
A84: 1761 | B84: DAVID FAIRCHILD ELEMENTARY | C84: 46 | E84: 23 | F84: 23
A85: 1801 | B85: FAIRLAWN ELEMENTARY | C85: 61 | E85: 27 | F85: 34
A86: 1811 | B86: DANTE B. FASCELL ELEMENTARY | C86: 47 | E86: 21 | F86: 26
A87: 1841 | B87: FLAGAMI ELEMENTARY | C87: 32 | E87: 11 | F87: 21
A88: 1881 | B88: HENRY M. FLAGLER ELEMENTARY | C88: 50 | E88: 21 | F88: 29
A89: 1921 | B89: FLAMINGO ELEMENTARY | C89: 52 | E89: 24 | F89: 28
A90: 2001 | B90: FLORIDA CITY ELEMENTARY | C90: 21 | E90: 15 | F90: 6
A91: 2003 | B91: BRIDGEPOINT ACADEMY | C91: 25 | E91: 14 | F91: 11
A92: 2006 | B92: RICHARD ALLEN LEADERSHIP ACAD | C92: 5 | E92: 2 | F92: 3
A93: 2007 | B93: SOMERSET ACADEMY ELEMENTARY | C93: 63 | E93: 46 | F93: 17
A94: 2012 | B94: SOMERSET ARTS ACADEMY | C94: 26 | E94: 15 | F94: 11
A95: 2013 | B95: BRIDGEPOINT ACAD GREATER MIAMI | C95: 9 | E95: 3 | F95: 6
A96: 2021 | B96: GLORIA FLOYD ELEMENTARY | C96: 52 | E96: 29 | F96: 23
A97: 2041 | B97: BENJAMIN FRANKLIN K-8 CENTER | C97: 24 | E97: 3 | F97: 14 | G97: 2 | H97: 5
A98: 2060 | B98: GIBSON CHARTER SCHOOL | C98: 5 | F98: 1 | G98: 2 | I98: 2
A99: 2081 | B99: FULFORD ELEMENTARY | C99: 26 | E99: 15 | F99: 11
A100: 2111 | B100: HIALEAH GARDENS ELEMENTARY | C100: 69 | E100: 34 | F100: 35
A101: 2151 | B101: JACK D. GORDON ELEMENTARY | C101: 129 | E101: 55 | F101: 74
A102: 2161 | B102: GOLDEN GLADES ELEMENTARY | C102: 6 | E102: 3 | F102: 3
A103: 2181 | B103: JOELLA C. GOOD ELEMENTARY | C103: 66 | E103: 34 | F103: 32
A104: 2191 | B104: SPANISH LAKE ELEMENTARY | C104: 133 | E104: 59 | F104: 74
A105: 2241 | B105: GRATIGNY ELEMENTARY | C105: 23 | E105: 7 | F105: 10 | G105: 6
A106: 2261 | B106: GREENGLADE ELEMENTARY | C106: 40 | E106: 14 | F106: 26
A107: 2281 | B107: GREYNOLDS PARK ELEMENTARY | C107: 42 | E107: 20 | F107: 22
A108: 2321 | B108: GULFSTREAM ELEMENTARY | C108: 23 | E108: 9 | F108: 14
A109: 2331 | B109: CHARLES R. HADLEY ELEMENTARY | C109: 83 | E109: 41 | F109: 42
A110: 2341 | B110: JOE HALL ELEMENTARY | C110: 44 | E110: 18 | F110: 26
A111: 2351 | B111: ENEIDA MASSAS HARTNER ELEM | C111: 30 | E111: 15 | F111: 15
A112: 2361 | B112: HIALEAH ELEMENTARY | C112: 37 | E112: 17 | F112: 20
A113: 2371 | B113: WEST HIALEAH GARDENS ELEM | C113: 84 | E113: 34 | F113: 50
A114: 2401 | B114: HIBISCUS ELEMENTARY | C114: 28 | E114: 7 | F114: 21
A115: 2441 | B115: VIRGINIA A BOONE/HIGHLAND OAKS | C115: 67 | E115: 43 | F115: 24
A116: 2501 | B116: HOLMES ELEMENTARY | C116: 8 | E116: 3 | F116: 5
A117: 2511 | B117: ZORA NEALE HURSTON ELEMENTARY | C117: 57 | E117: 22 | F117: 35
A118: 2521 | B118: OLIVER HOOVER ELEMENTARY | C118: 78 | E118: 34 | F118: 44
A119: 2541 | B119: HOWARD DRIVE ELEMENTARY | C119: 88 | E119: 52 | F119: 36
A120: 2581 | B120: MADIE IVES ELEMENTARY | C120: 51 | E120: 24 | F120: 27
A121: 2641 | B121: KENDALE ELEMENTARY | C121: 53 | E121: 25 | F121: 28
A122: 2651 | B122: KENDALE LAKES ELEMENTARY | C122: 82 | E122: 29 | F122: 53
A123: 2661 | B123: KENSINGTON PARK ELEMENTARY | C123: 62 | E123: 28 | F123: 34
A124: 2701 | B124: KENWOOD K-8 CENTER | C124: 145 | E124: 28 | F124: 22 | G124: 43 | H124: 29 | I124: 23
A125: 2741 | B125: KEY BISCAYNE K-8 CENTER | C125: 182 | E125: 40 | F125: 53 | G125: 41 | H125: 38 | I125: 10
A126: 2781 | B126: KINLOCH PARK ELEMENTARY | C126: 53 | E126: 23 | F126: 30
A127: 2801 | B127: LAKE STEVENS ELEMENTARY | C127: 15 | E127: 7 | F127: 8
A128: 2821 | B128: LAKEVIEW ELEMENTARY | C128: 10 | E128: 4 | F128: 6
A129: 2881 | B129: LEEWOOD K-8 CENTER | C129: 121 | E129: 32 | F129: 39 | G129: 15 | H129: 18 | I129: 17
A130: 2891 | B130: WILLIAM LEHMAN ELEMENTARY | C130: 59 | E130: 33 | F130: 26
A131: 2901 | B131: LEISURE CITY K-8 CENTER | C131: 67 | E131: 15 | F131: 16 | G131: 10 | H131: 9 | I131: 17
A132: 2911 | B132: LINDA LENTIN K-8 CENTER | C132: 59 | E132: 15 | F132: 12 | G132: 9 | H132: 15 | I132: 8
A133: 2941 | B133: LAURA C. SAUNDERS ELEMENTARY | C133: 17 | E133: 6 | F133: 11
A134: 2981 | B134: LIBERTY CITY ELEMENTARY | C134: 10 | E134: 5 | F134: 5
A135: 3021 | B135: JESSE J MCCRARY JR ELEMENTARY | C135: 18 | E135: 7 | F135: 11
A136: 3024 | B136: FLORIDA INTERNATIONAL EL ACAD | C136: 10 | E136: 5 | F136: 5
A137: 3025 | B137: ADVANTAGE ACADEMY SANTA FE | C137: 14 | E137: 6 | F137: 8
A138: 3029 | B138: DORAL ACADEMY OF TECHNOLOGY | C138: 81 | G138: 26 | H138: 25 | I138: 30
A139: 3030 | B139: DORAL ACADEMY | C139: 103 | E139: 44 | F139: 59
A140: 3032 | B140: PALM GLADES PREPATORY ACADEMY | C140: 65 | G140: 25 | H140: 23 | I140: 17
A141: 3034 | B141: BRIDGEPOINT ACAD VILLAGE GREEN | C141: 5 | E141: 3 | F141: 2
A142: 3041 | B142: LORAH PARK ELEMENTARY | C142: 16 | E142: 6 | F142: 10
A143: 3051 | B143: TOUSSAINT L'OUVERTURE ELEM | C143: 15 | E143: 8 | F143: 7
A144: 3061 | B144: LUDLAM ELEMENTARY | C144: 39 | E144: 15 | F144: 24
A145: 3100 | B145: MATER ACADEMY EAST CHARTER | C145: 64 | E145: 25 | F145: 39
A146: 3101 | B146: FRANK C. MARTIN K-8 CENTER | C146: 245 | E146: 52 | F146: 46 | G146: 54 | H146: 48 | I146: 45
A147: 3111 | B147: WESLEY MATTHEWS ELEMENTARY | C147: 43 | E147: 19 | F147: 24
A148: 3141 | B148: MEADOWLANE ELEMENTARY | C148: 83 | E148: 47 | F148: 36
A149: 3181 | B149: MELROSE ELEMENTARY | C149: 24 | E149: 15 | F149: 9
A150: 3191 | B150: ADA MERRITT K-8 CENTER | C150: 163 | E150: 31 | F150: 27 | G150: 33 | H150: 44 | I150: 28
A151: 3241 | B151: MIAMI GARDENS ELEMENTARY | C151: 16 | E151: 7 | F151: 9
A152: 3261 | B152: MIAMI HEIGHTS ELEMENTARY | C152: 78 | E152: 33 | F152: 45
A153: 3281 | B153: MIAMI LAKES K-8 CENTER | C153: 202 | E153: 47 | F153: 51 | G153: 37 | H153: 36 | I153: 31
A154: 3301 | B154: MIAMI PARK ELEMENTARY | C154: 9 | E154: 4 | F154: 5
A155: 3341 | B155: MIAMI SHORES ELEMENTARY | C155: 58 | E155: 29 | F155: 29
A156: 3381 | B156: MIAMI SPRINGS ELEMENTARY | C156: 64 | E156: 34 | F156: 30
A157: 3421 | B157: M.A. MILAM K-8 CENTER | C157: 105 | E157: 19 | F157: 22 | G157: 23 | H157: 18 | I157: 23
A158: 3431 | B158: PHYLLIS RUTH MILLER ELEMENTARY | C158: 46 | E158: 24 | F158: 22
A159: 3501 | B159: MORNINGSIDE ELEMENTARY | C159: 24 | E159: 16 | F159: 8
A160: 3541 | B160: ROBERT RUSSA MOTON ELEMENTARY | C160: 6 | E160: 4 | F160: 2
A161: 3581 | B161: MYRTLE GROVE ELEMENTARY | C161: 16 | E161: 1 | F161: 8 | G161: 7
A162: 3600 | B162: DOWNTOWN MIAMI CHARTER SCHOOL | C162: 54 | E162: 16 | F162: 25 | G162: 13
A163: 3610 | B163: KEYS GATE CHARTER SCHOOL | C163: 221 | E163: 49 | F163: 44 | G163: 54 | H163: 33 | I163: 41
A164: 3621 | B164: COCONUT PALM K-8 ACADEMY | C164: 69 | E164: 17 | F164: 10 | G164: 18 | H164: 18 | I164: 6
A165: 3661 | B165: NATURAL BRIDGE ELEMENTARY | C165: 18 | E165: 8 | F165: 10
A166: 3701 | B166: NORLAND ELEMENTARY | C166: 34 | E166: 13 | F166: 21
A167: 3741 | B167: NORTH BEACH ELEMENTARY | C167: 96 | E167: 36 | F167: 60
A168: 3781 | B168: BARBARA HAWKINS ELEMENTARY | C168: 11 | E168: 7 | F168: 4
A169: 3821 | B169: NORTH COUNTY K-8 CENTER | C169: 14 | E169: 3 | F169: 6 | G169: 4 | H169: 1
A170: 3861 | B170: NORTH GLADE ELEMENTARY | C170: 11 | E170: 4 | F170: 7
A171: 3901 | B171: NORTH HIALEAH ELEMENTARY | C171: 34 | E171: 14 | F171: 20
A172: 3941 | B172: NORTH MIAMI ELEMENTARY | C172: 23 | E172: 11 | F172: 12
A173: 3981 | B173: NORTH TWIN LAKES ELEMENTARY | C173: 39 | E173: 22 | F173: 17
A174: 4000 | B174: MIAMI CHILDREN'S MUSEUM | C174: 20 | E174: 12 | F174: 8
A175: 4001 | B175: NORWOOD ELEMENTARY | C175: 29 | E175: 17 | F175: 12
A176: 4012 | B176: SOMERSET ACAD AT SILVER PALMS | C176: 50 | E176: 20 | F176: 30
A177: 4021 | B177: OAK GROVE ELEMENTARY | C177: 42 | E177: 27 | F177: 11 | G177: 4
A178: 4031 | B178: GATEWAY ENVIRONMENTAL K-8 | C178: 101 | E178: 35 | F178: 27 | G178: 27 | H178: 12
A179: 4061 | B179: OJUS ELEMENTARY | C179: 83 | E179: 42 | F179: 41
A180: 4071 | B180: OLINDA ELEMENTARY | C180: 10 | E180: 3 | F180: 7
A181: 4091 | B181: OLYMPIA HEIGHTS ELEMENTARY | C181: 44 | E181: 25 | F181: 19
A182: 4121 | B182: DR. ROBERT B. INGRAM EL | C182: 5 | E182: 2 | F182: 3
A183: 4171 | B183: ORCHARD VILLA ELEMENTARY | C183: 15 | E183: 8 | F183: 7
A184: 4221 | B184: PALMETTO ELEMENTARY | C184: 69 | E184: 36 | F184: 33
A185: 4241 | B185: PALM LAKES ELEMENTARY | C185: 63 | E185: 32 | F185: 31
A186: 4261 | B186: PALM SPRINGS ELEMENTARY | C186: 44 | E186: 22 | F186: 22
A187: 4281 | B187: PALM SPRINGS NORTH ELEMENTARY | C187: 85 | E187: 47 | F187: 38
A188: 4301 | B188: PARKVIEW ELEMENTARY | C188: 28 | E188: 13 | F188: 15
A189: 4341 | B189: PARKWAY ELEMENTARY | C189: 19 | E189: 9 | F189: 10
A190: 4381 | B190: DR HENRY E PERRINE ACADEMY | C190: 73 | E190: 38 | F190: 35
A191: 4391 | B191: IRVING & BEATRICE PESKOE K-8 | C191: 44 | E191: 13 | F191: 18 | G191: 9 | H191: 4
A192: 4401 | B192: KELSEY L. PHARR ELEMENTARY | C192: 10 | E192: 7 | F192: 3
A193: 4421 | B193: PINECREST ELEMENTARY | C193: 110 | E193: 48 | F193: 62
A194: 4441 | B194: PINE LAKE ELEMENTARY | C194: 19 | E194: 7 | F194: 12
A195: 4461 | B195: PINE VILLA ELEMENTARY | C195: 8 | E195: 5 | F195: 3
A196: 4491 | B196: HENRY E.S. REEVES ELEMENTARY | C196: 39 | E196: 16 | F196: 23
A197: 4501 | B197: POINCIANA PARK ELEMENTARY | C197: 14 | E197: 6 | F197: 8
A198: 4511 | B198: DR GILBERT L. PORTER ELEM | C198: 69 | E198: 37 | F198: 32
A199: 4541 | B199: RAINBOW PARK ELEMENTARY | C199: 24 | E199: 9 | F199: 15
A200: 4581 | B200: REDLAND ELEMENTARY | C200: 54 | E200: 22 | F200: 32
... 240 more rows

Sheet MEM_RL5 (hidden)
A1: 1 | B1: 2 | C1: 3 | D1: 4 | E1: 5 | F1: 6 | G1: 7 | H1: 8 | I1: 9 | J1: 10 | K1: 11
A2: S_SCHOOL_NUM | B2: S_SCHL_NAME | C2: Total Of STUDENT_ID | D2: 04 | E2: 05 | F2: 06 | G2: 07 | H2: 08 | I2: 09 | J2: 10
A3: 0041 | B3: AIR BASE ELEMENTARY | C3: 44 | D3: 25 | E3: 19
A4: 0070 | B4: CORAL REEF MONTESSORI ACAD CH | C4: 32 | D4: 12 | E4: 4 | F4: 4 | G4: 6 | H4: 6
A5: 0071 | B5: EUGENIA B. THOMAS K-8 CENTER | C5: 125 | D5: 23 | E5: 40 | F5: 19 | G5: 23 | H5: 20
A6: 0072 | B6: SUMMERVILLE CHARTER SCHOOL | C6: 15 | D6: 10 | E6: 5
A7: 0073 | B7: MANDARIN LAKES K-8 CENTER | C7: 9 | E7: 1 | F7: 1 | G7: 3 | H7: 4
A8: 0081 | B8: LENORA B. SMITH ELEMENTARY | C8: 2 | E8: 2
A9: 0091 | B9: BOB GRAHAM EDUCATION CTR | C9: 161 | D9: 38 | E9: 20 | F9: 29 | G9: 42 | H9: 32
A10: 0092 | B10: NORMAN S. EDELCUP/SUNNY ISLES | C10: 130 | D10: 28 | E10: 15 | F10: 29 | G10: 30 | H10: 28
A11: 0100 | B11: MATER ACADEMY | C11: 35 | D11: 20 | E11: 15
A12: 0101 | B12: ARCOLA LAKE ELEMENTARY | C12: 2 | E12: 2
A13: 0102 | B13: MIAMI COMMUNITY CHARTER SCHOOL | C13: 2 | D13: 2
A14: 0111 | B14: MAYA ANGELOU ELEMENTARY | C14: 4 | D14: 2 | E14: 2
A15: 0121 | B15: AUBURNDALE ELEMENTARY | C15: 11 | D15: 6 | E15: 5
A16: 0122 | B16: DR ROLANDO ESPINOSA K-8 | C16: 119 | D16: 36 | E16: 21 | F16: 23 | G16: 16 | H16: 23
A17: 0125 | B17: NORMA BUTLER BOSSARD ELEM | C17: 58 | D17: 27 | E17: 31
A18: 0201 | B18: BANYAN ELEMENTARY | C18: 15 | D18: 9 | E18: 6
A19: 0211 | B19: DR. MANUEL C. BARREIRO ELEM | C19: 46 | D19: 32 | E19: 14
A20: 0231 | B20: AVENTURA WATERWAYS K-8 CENTER | C20: 118 | D20: 35 | E20: 22 | F20: 21 | G20: 18 | H20: 22
A21: 0241 | B21: RUTH K BROAD/BAY HARBOR K-8 | C21: 92 | D21: 25 | E21: 20 | F21: 26 | G21: 8 | H21: 13
A22: 0251 | B22: ETHEL KOGER BECKHAM ELEMENTARY | C22: 43 | D22: 26 | E22: 17
A23: 0261 | B23: BEL-AIRE ELEMENTARY | C23: 2 | D23: 1 | E23: 1
A24: 0271 | B24: BENT TREE ELEMENTARY | C24: 14 | D24: 7 | E24: 7
A25: 0311 | B25: GOULDS ELEMENTARY | C25: 6 | D25: 5 | E25: 1
A26: 0312 | B26: MATER GARDENS ACADEMY | C26: 27 | D26: 14 | E26: 13
A27: 0321 | B27: BISCAYNE ELEMENTARY | C27: 9 | D27: 4 | E27: 5
A28: 0332 | B28: SOMERSET ACADEMY(SILVER PALMS) | C28: 47 | D28: 5 | E28: 8 | F28: 9 | G28: 14 | H28: 11
A29: 0339 | B29: SOMERSET ACADEMY CHARTER ELEM | C29: 6 | D29: 5 | E29: 1
A30: 0341 | B30: ARCH CREEK ELEMENTARY SCHOOL | C30: 10 | D30: 5 | E30: 5
A31: 0342 | B31: PINECREST ACADEMY SOUTH CAMPUS | C31: 31 | D31: 19 | E31: 12
A32: 0361 | B32: BISCAYNE GARDENS ELEMENTARY | C32: 8 | D32: 6 | E32: 2
A33: 0400 | B33: RENAISSANCE ELEMENTARY CHARTER | C33: 58 | D33: 34 | E33: 24
A34: 0401 | B34: VAN E. BLANTON ELEMENTARY | C34: 7 | D34: 2 | E34: 5
A35: 0410 | B35: ACADEMIR CHARTER SCHOOL WEST | C35: 13 | D35: 9 | E35: 4
A36: 0441 | B36: BLUE LAKES ELEMENTARY | C36: 15 | D36: 7 | E36: 8
A37: 0451 | B37: BOWMAN ASHE/DOOLIN K-8 ACAD | C37: 63 | D37: 17 | E37: 16 | F37: 11 | G37: 10 | H37: 9
A38: 0461 | B38: BRENTWOOD ELEMENTARY | C38: 4 | D38: 3 | E38: 1
A39: 0481 | B39: JAMES H. BRIGHT/JW JOHNSON ES | C39: 9 | D39: 7 | E39: 2
A40: 0510 | B40: ARCHIMEDEAN ACADEMY | C40: 39 | D40: 19 | E40: 20
A41: 0520 | B41: SOMERSET ACADEMY | C41: 18 | D41: 10 | E41: 8
A42: 0521 | B42: BROADMOOR ELEMENTARY | C42: 2 | D42: 2
A43: 0561 | B43: W.J. BRYAN ELEMENTARY | C43: 13 | D43: 7 | E43: 6
A44: 0600 | B44: PINECREST PREP ACADEMY | C44: 47 | D44: 31 | E44: 16
A45: 0641 | B45: BUNCHE PARK ELEMENTARY | C45: 1 | D45: 1
A46: 0651 | B46: CAMPBELL DRIVE K-8 CENTER | C46: 7 | D46: 1 | E46: 3 | F46: 3
A47: 0661 | B47: CARIBBEAN ELEMENTARY | C47: 1 | E47: 1
A48: 0671 | B48: CALUSA ELEMENTARY | C48: 87 | D48: 38 | E48: 49
A49: 0681 | B49: CAROL CITY ELEMENTARY | C49: 1 | E49: 1
A50: 0721 | B50: GEORGE WASHINGTON CARVER ELEM | C50: 11 | D50: 5 | E50: 6
A51: 0761 | B51: FIENBERG/FISHER K-8 CENTER | C51: 19 | D51: 3 | E51: 1 | F51: 5 | G51: 6 | H51: 4
A52: 0771 | B52: WILLIAM A. CHAPMAN ELEMENTARY | C52: 2 | D52: 1 | E52: 1
A53: 0801 | B53: CITRUS GROVE ELEMENTARY | C53: 9 | D53: 5 | E53: 4
A54: 0831 | B54: CLAUDE PEPPER ELEMENTARY | C54: 24 | D54: 11 | E54: 13
A55: 0841 | B55: COCONUT GROVE ELEMENTARY | C55: 8 | D55: 3 | E55: 5
A56: 0861 | B56: COLONIAL DRIVE ELEMENTARY | C56: 3 | D56: 2 | E56: 1
A57: 0881 | B57: COMSTOCK ELEMENTARY | C57: 5 | D57: 2 | E57: 3
A58: 0950 | B58: AVENTURA CITY OF EXCELLENCE | C58: 94 | D58: 19 | E58: 25 | F58: 23 | G58: 17 | H58: 10
A59: 0961 | B59: CORAL GABLES PREPARATORY ACAD | C59: 104 | D59: 23 | E59: 34 | F59: 14 | G59: 19 | H59: 14
A60: 1001 | B60: CORAL PARK ELEMENTARY | C60: 68 | D60: 40 | E60: 28
A61: 1010 | B61: CHARTER SCHOOL AT WATERSTONE | C61: 19 | D61: 7 | E61: 12
A62: 1014 | B62: ADVANCED LEARNING CHARTER SCH | C62: 5 | D62: 5
A63: 1017 | B63: MATER ACADEMY OF INTL STUDIES | C63: 3 | D63: 3
A64: 1020 | B64: YOUTH CO-OP CHARTER SCHOOL | C64: 34 | D64: 6 | E64: 3 | F64: 9 | G64: 8 | H64: 8
A65: 1041 | B65: CORAL REEF ELEMENTARY | C65: 83 | D65: 46 | E65: 37
A66: 1081 | B66: CORAL TERRACE ELEMENTARY | C66: 14 | D66: 8 | E66: 6
A67: 1121 | B67: CORAL WAY K-8 CENTER | C67: 83 | D67: 18 | E67: 16 | F67: 18 | G67: 19 | H67: 12
A68: 1161 | B68: CRESTVIEW ELEMENTARY | C68: 10 | D68: 4 | E68: 6
A69: 1241 | B69: CUTLER RIDGE ELEMENTARY | C69: 29 | D69: 8 | E69: 21
A70: 1281 | B70: CYPRESS ELEMENTARY | C70: 14 | D70: 8 | E70: 6
A71: 1331 | B71: DEVON AIRE K-8 CENTER | C71: 138 | D71: 25 | E71: 36 | F71: 27 | G71: 17 | H71: 33
A72: 1371 | B72: MARJORY STONEMAN DOUGLAS ELEM | C72: 38 | D72: 17 | E72: 21
A73: 1401 | B73: CHARLES R. DREW ELEMENTARY | C73: 2 | D73: 1 | F73: 1
A74: 1441 | B74: PAUL LAURENCE DUNBAR ELEM | C74: 1 | D74: 1
A75: 1481 | B75: JOHN G. DUPUIS ELEMENTARY | C75: 16 | D75: 10 | E75: 6
A76: 1521 | B76: AMELIA EARHART ELEMENTARY | C76: 5 | D76: 3 | E76: 2
A77: 1601 | B77: EDISON PARK ELEMENTARY | C77: 1 | D77: 1
A78: 1641 | B78: EMERSON ELEMENTARY | C78: 12 | D78: 3 | E78: 9
A79: 1681 | B79: LILLIE C. EVANS K-8 CENTER | C79: 2 | E79: 1 | F79: 1
A80: 1691 | B80: CHRISTINA M. EVE ELEMENTARY | C80: 46 | D80: 27 | E80: 19
A81: 1721 | B81: EVERGLADES K-8 CENTER | C81: 71 | D81: 14 | E81: 12 | F81: 18 | G81: 13 | H81: 14
A82: 1761 | B82: DAVID FAIRCHILD ELEMENTARY | C82: 52 | D82: 26 | E82: 26
A83: 1801 | B83: FAIRLAWN ELEMENTARY | C83: 12 | D83: 3 | E83: 9
A84: 1811 | B84: DANTE B. FASCELL ELEMENTARY | C84: 29 | D84: 9 | E84: 20
A85: 1841 | B85: FLAGAMI ELEMENTARY | C85: 9 | D85: 5 | E85: 4
A86: 1881 | B86: HENRY M. FLAGLER ELEMENTARY | C86: 22 | D86: 11 | E86: 11
A87: 1921 | B87: FLAMINGO ELEMENTARY | C87: 19 | D87: 8 | E87: 11
A88: 2001 | B88: FLORIDA CITY ELEMENTARY | C88: 5 | D88: 3 | E88: 2
A89: 2003 | B89: BRIDGEPOINT ACADEMY | C89: 12 | D89: 6 | E89: 6
A90: 2006 | B90: RICHARD ALLEN LEADERSHIP ACAD | C90: 2 | D90: 2
A91: 2007 | B91: SOMERSET ACADEMY ELEMENTARY | C91: 28 | D91: 19 | E91: 9
A92: 2012 | B92: SOMERSET ARTS ACADEMY | C92: 10 | D92: 7 | E92: 3
A93: 2013 | B93: BRIDGEPOINT ACAD GREATER MIAMI | C93: 7 | D93: 5 | E93: 2
A94: 2021 | B94: GLORIA FLOYD ELEMENTARY | C94: 16 | D94: 6 | E94: 10
A95: 2041 | B95: BENJAMIN FRANKLIN K-8 CENTER | C95: 6 | D95: 2 | E95: 1 | F95: 2 | G95: 1
A96: 2060 | B96: GIBSON CHARTER SCHOOL | C96: 3 | D96: 1 | F96: 1 | G96: 1
A97: 2081 | B97: FULFORD ELEMENTARY | C97: 4 | D97: 1 | E97: 3
A98: 2111 | B98: HIALEAH GARDENS ELEMENTARY | C98: 27 | D98: 11 | E98: 16
A99: 2151 | B99: JACK D. GORDON ELEMENTARY | C99: 48 | D99: 27 | E99: 21
A100: 2161 | B100: GOLDEN GLADES ELEMENTARY | C100: 4 | D100: 4
A101: 2181 | B101: JOELLA C. GOOD ELEMENTARY | C101: 29 | D101: 15 | E101: 14
A102: 2191 | B102: SPANISH LAKE ELEMENTARY | C102: 57 | D102: 28 | E102: 29
A103: 2241 | B103: GRATIGNY ELEMENTARY | C103: 7 | D103: 1 | E103: 4 | F103: 2
A104: 2261 | B104: GREENGLADE ELEMENTARY | C104: 20 | D104: 11 | E104: 9
A105: 2281 | B105: GREYNOLDS PARK ELEMENTARY | C105: 12 | D105: 6 | E105: 6
A106: 2321 | B106: GULFSTREAM ELEMENTARY | C106: 9 | D106: 6 | E106: 3
A107: 2331 | B107: CHARLES R. HADLEY ELEMENTARY | C107: 44 | D107: 30 | E107: 14
A108: 2341 | B108: JOE HALL ELEMENTARY | C108: 22 | D108: 14 | E108: 8
A109: 2351 | B109: ENEIDA MASSAS HARTNER ELEM | C109: 6 | D109: 1 | E109: 5
A110: 2361 | B110: HIALEAH ELEMENTARY | C110: 15 | D110: 5 | E110: 10
A111: 2371 | B111: WEST HIALEAH GARDENS ELEM | C111: 35 | D111: 16 | E111: 19
A112: 2401 | B112: HIBISCUS ELEMENTARY | C112: 7 | D112: 5 | E112: 2
A113: 2441 | B113: VIRGINIA A BOONE/HIGHLAND OAKS | C113: 40 | D113: 24 | E113: 16
A114: 2511 | B114: ZORA NEALE HURSTON ELEMENTARY | C114: 35 | D114: 11 | E114: 24
A115: 2521 | B115: OLIVER HOOVER ELEMENTARY | C115: 41 | D115: 22 | E115: 19
A116: 2541 | B116: HOWARD DRIVE ELEMENTARY | C116: 37 | D116: 17 | E116: 20
A117: 2581 | B117: MADIE IVES ELEMENTARY | C117: 24 | D117: 14 | E117: 10
A118: 2641 | B118: KENDALE ELEMENTARY | C118: 23 | D118: 13 | E118: 10
A119: 2651 | B119: KENDALE LAKES ELEMENTARY | C119: 36 | D119: 18 | E119: 18
A120: 2661 | B120: KENSINGTON PARK ELEMENTARY | C120: 22 | D120: 10 | E120: 12
A121: 2701 | B121: KENWOOD K-8 CENTER | C121: 78 | D121: 18 | E121: 12 | F121: 18 | G121: 16 | H121: 14
A122: 2741 | B122: KEY BISCAYNE K-8 CENTER | C122: 130 | D122: 41 | E122: 33 | F122: 27 | G122: 26 | H122: 3
A123: 2781 | B123: KINLOCH PARK ELEMENTARY | C123: 19 | D123: 10 | E123: 9
A124: 2801 | B124: LAKE STEVENS ELEMENTARY | C124: 5 | D124: 3 | E124: 2
A125: 2821 | B125: LAKEVIEW ELEMENTARY | C125: 6 | D125: 3 | E125: 3
A126: 2881 | B126: LEEWOOD K-8 CENTER | C126: 75 | D126: 23 | E126: 8 | F126: 20 | G126: 8 | H126: 16
A127: 2891 | B127: WILLIAM LEHMAN ELEMENTARY | C127: 42 | D127: 21 | E127: 21
A128: 2901 | B128: LEISURE CITY K-8 CENTER | C128: 18 | D128: 5 | E128: 5 | F128: 1 | G128: 2 | H128: 5
A129: 2911 | B129: LINDA LENTIN K-8 CENTER | C129: 32 | D129: 7 | E129: 8 | F129: 6 | G129: 3 | H129: 8
A130: 2941 | B130: LAURA C. SAUNDERS ELEMENTARY | C130: 2 | D130: 2
A131: 2981 | B131: LIBERTY CITY ELEMENTARY | C131: 2 | D131: 1 | E131: 1
A132: 3021 | B132: JESSE J MCCRARY JR ELEMENTARY | C132: 1 | E132: 1
A133: 3024 | B133: FLORIDA INTERNATIONAL EL ACAD | C133: 1 | D133: 1
A134: 3025 | B134: ADVANTAGE ACADEMY SANTA FE | C134: 9 | D134: 6 | E134: 3
A135: 3029 | B135: DORAL ACADEMY OF TECHNOLOGY | C135: 78 | F135: 29 | G135: 23 | H135: 26
A136: 3030 | B136: DORAL ACADEMY | C136: 56 | D136: 29 | E136: 27
A137: 3032 | B137: PALM GLADES PREPATORY ACADEMY | C137: 17 | F137: 8 | G137: 3 | H137: 6
A138: 3041 | B138: LORAH PARK ELEMENTARY | C138: 3 | D138: 1 | E138: 2
A139: 3051 | B139: TOUSSAINT L'OUVERTURE ELEM | C139: 5 | D139: 2 | E139: 3
A140: 3061 | B140: LUDLAM ELEMENTARY | C140: 17 | D140: 10 | E140: 7
A141: 3100 | B141: MATER ACADEMY EAST CHARTER | C141: 17 | D141: 8 | E141: 9
A142: 3101 | B142: FRANK C. MARTIN K-8 CENTER | C142: 125 | D142: 13 | E142: 26 | F142: 30 | G142: 30 | H142: 26
A143: 3111 | B143: WESLEY MATTHEWS ELEMENTARY | C143: 31 | D143: 15 | E143: 16
A144: 3141 | B144: MEADOWLANE ELEMENTARY | C144: 18 | D144: 10 | E144: 8
A145: 3181 | B145: MELROSE ELEMENTARY | C145: 7 | D145: 3 | E145: 4
A146: 3191 | B146: ADA MERRITT K-8 CENTER | C146: 106 | D146: 14 | E146: 15 | F146: 22 | G146: 27 | H146: 28
A147: 3241 | B147: MIAMI GARDENS ELEMENTARY | C147: 7 | D147: 5 | E147: 2
A148: 3261 | B148: MIAMI HEIGHTS ELEMENTARY | C148: 29 | D148: 14 | E148: 15
A149: 3281 | B149: MIAMI LAKES K-8 CENTER | C149: 104 | D149: 31 | E149: 11 | F149: 16 | G149: 22 | H149: 24
A150: 3301 | B150: MIAMI PARK ELEMENTARY | C150: 3 | D150: 1 | E150: 2
A151: 3341 | B151: MIAMI SHORES ELEMENTARY | C151: 27 | D151: 15 | E151: 12
A152: 3381 | B152: MIAMI SPRINGS ELEMENTARY | C152: 21 | D152: 9 | E152: 12
A153: 3421 | B153: M.A. MILAM K-8 CENTER | C153: 35 | D153: 4 | E153: 9 | F153: 5 | G153: 10 | H153: 7
A154: 3431 | B154: PHYLLIS RUTH MILLER ELEMENTARY | C154: 17 | D154: 9 | E154: 8
A155: 3501 | B155: MORNINGSIDE ELEMENTARY | C155: 4 | D155: 2 | E155: 2
A156: 3581 | B156: MYRTLE GROVE ELEMENTARY | C156: 7 | D156: 4 | E156: 1 | F156: 2
A157: 3600 | B157: DOWNTOWN MIAMI CHARTER SCHOOL | C157: 14 | D157: 8 | E157: 3 | F157: 3
A158: 3610 | B158: KEYS GATE CHARTER SCHOOL | C158: 80 | D158: 17 | E158: 14 | F158: 16 | G158: 15 | H158: 18
A159: 3621 | B159: COCONUT PALM K-8 ACADEMY | C159: 20 | D159: 2 | E159: 4 | F159: 2 | G159: 9 | H159: 3
A160: 3661 | B160: NATURAL BRIDGE ELEMENTARY | C160: 9 | D160: 5 | E160: 4
A161: 3701 | B161: NORLAND ELEMENTARY | C161: 8 | D161: 5 | E161: 3
A162: 3741 | B162: NORTH BEACH ELEMENTARY | C162: 66 | D162: 36 | E162: 30
A163: 3781 | B163: BARBARA HAWKINS ELEMENTARY | C163: 5 | D163: 3 | E163: 2
A164: 3821 | B164: NORTH COUNTY K-8 CENTER | C164: 3 | E164: 1 | F164: 1 | G164: 1
A165: 3861 | B165: NORTH GLADE ELEMENTARY | C165: 6 | D165: 2 | E165: 4
A166: 3901 | B166: NORTH HIALEAH ELEMENTARY | C166: 16 | D166: 11 | E166: 5
A167: 3941 | B167: NORTH MIAMI ELEMENTARY | C167: 2 | E167: 2
A168: 3981 | B168: NORTH TWIN LAKES ELEMENTARY | C168: 11 | D168: 5 | E168: 6
A169: 4000 | B169: MIAMI CHILDREN'S MUSEUM | C169: 13 | D169: 5 | E169: 8
A170: 4001 | B170: NORWOOD ELEMENTARY | C170: 10 | D170: 2 | E170: 8
A171: 4012 | B171: SOMERSET ACAD AT SILVER PALMS | C171: 12 | D171: 6 | E171: 6
A172: 4021 | B172: OAK GROVE ELEMENTARY | C172: 10 | D172: 7 | E172: 3
A173: 4031 | B173: GATEWAY ENVIRONMENTAL K-8 | C173: 38 | D173: 10 | E173: 15 | F173: 6 | G173: 7
A174: 4061 | B174: OJUS ELEMENTARY | C174: 35 | D174: 16 | E174: 19
A175: 4071 | B175: OLINDA ELEMENTARY | C175: 2 | D175: 1 | E175: 1
A176: 4091 | B176: OLYMPIA HEIGHTS ELEMENTARY | C176: 6 | D176: 2 | E176: 4
A177: 4121 | B177: DR. ROBERT B. INGRAM EL | C177: 5 | D177: 3 | E177: 2
A178: 4221 | B178: PALMETTO ELEMENTARY | C178: 46 | D178: 19 | E178: 27
A179: 4241 | B179: PALM LAKES ELEMENTARY | C179: 23 | D179: 13 | E179: 10
A180: 4261 | B180: PALM SPRINGS ELEMENTARY | C180: 17 | D180: 5 | E180: 12
A181: 4281 | B181: PALM SPRINGS NORTH ELEMENTARY | C181: 50 | D181: 28 | E181: 22
A182: 4301 | B182: PARKVIEW ELEMENTARY | C182: 2 | D182: 1 | E182: 1
A183: 4341 | B183: PARKWAY ELEMENTARY | C183: 8 | D183: 6 | E183: 2
A184: 4381 | B184: DR HENRY E PERRINE ACADEMY | C184: 41 | D184: 19 | E184: 22
A185: 4391 | B185: IRVING & BEATRICE PESKOE K-8 | C185: 10 | D185: 3 | E185: 2 | F185: 4 | G185: 1
A186: 4401 | B186: KELSEY L. PHARR ELEMENTARY | C186: 1 | E186: 1
A187: 4421 | B187: PINECREST ELEMENTARY | C187: 95 | D187: 51 | E187: 44
A188: 4441 | B188: PINE LAKE ELEMENTARY | C188: 3 | D188: 3
A189: 4461 | B189: PINE VILLA ELEMENTARY | C189: 1 | D189: 1
A190: 4491 | B190: HENRY E.S. REEVES ELEMENTARY | C190: 10 | D190: 2 | E190: 8
A191: 4501 | B191: POINCIANA PARK ELEMENTARY | C191: 2 | E191: 2
A192: 4511 | B192: DR GILBERT L. PORTER ELEM | C192: 25 | D192: 10 | E192: 15
A193: 4541 | B193: RAINBOW PARK ELEMENTARY | C193: 3 | D193: 1 | E193: 2
A194: 4581 | B194: REDLAND ELEMENTARY | C194: 18 | D194: 9 | E194: 9
A195: 4681 | B195: RIVERSIDE ELEMENTARY | C195: 12 | D195: 6 | E195: 6
A196: 4691 | B196: JANE ROBERTS K-8 CENTER | C196: 65 | D196: 7 | E196: 11 | F196: 15 | G196: 15 | H196: 17
A197: 4721 | B197: ROCKWAY ELEMENTARY | C197: 18 | D197: 7 | E197: 11
A198: 4741 | B198: ROYAL GREEN ELEMENTARY | C198: 19 | D198: 8 | E198: 11
A199: 4761 | B199: ROYAL PALM ELEMENTARY | C199: 28 | D199: 14 | E199: 14
A200: 4801 | B200: GERTRUDE EDELMAN/SABAL PALM EL | C200: 5 | D200: 3 | E200: 2
... 222 more rows

Sheet MEM_ML1 (hidden)
A1: 1 | B1: 2 | C1: 3 | D1: 4 | E1: 5 | F1: 6 | G1: 7 | H1: 8 | I1: 9
A2: S_SCHOOL_NUM | B2: S_SCHL_NAME | C2: Total Of STUDENT_ID | D2: 03 | E2: 04 | F2: 05 | G2: 06 | H2: 07 | I2: 08
A3: 0041 | B3: AIR BASE ELEMENTARY | C3: 16 | D3: 2 | E3: 2 | F3: 12
A4: 0070 | B4: CORAL REEF MONTESSORI ACAD CH | C4: 19 | D4: 1 | E4: 4 | F4: 8 | G4: 3 | H4: 2 | I4: 1
A5: 0071 | B5: EUGENIA B. THOMAS K-8 CENTER | C5: 97 | D5: 8 | E5: 13 | F5: 8 | G5: 21 | H5: 28 | I5: 19
A6: 0072 | B6: SUMMERVILLE CHARTER SCHOOL | C6: 37 | D6: 2 | E6: 11 | F6: 24
A7: 0073 | B7: MANDARIN LAKES K-8 CENTER | C7: 171 | D7: 13 | E7: 25 | F7: 16 | G7: 42 | H7: 33 | I7: 42
A8: 0081 | B8: LENORA B. SMITH ELEMENTARY | C8: 53 | D8: 5 | E8: 21 | F8: 27
A9: 0091 | B9: BOB GRAHAM EDUCATION CTR | C9: 142 | D9: 2 | E9: 19 | F9: 20 | G9: 50 | H9: 27 | I9: 24
A10: 0092 | B10: NORMAN S. EDELCUP/SUNNY ISLES | C10: 66 | D10: 1 | E10: 12 | F10: 14 | G10: 6 | H10: 10 | I10: 23
A11: 0100 | B11: MATER ACADEMY | C11: 22 | D11: 6 | E11: 10 | F11: 6
A12: 0101 | B12: ARCOLA LAKE ELEMENTARY | C12: 36 | D12: 8 | E12: 11 | F12: 17
A13: 0102 | B13: MIAMI COMMUNITY CHARTER SCHOOL | C13: 44 | D13: 4 | E13: 24 | F13: 16
A14: 0111 | B14: MAYA ANGELOU ELEMENTARY | C14: 44 | D14: 11 | E14: 13 | F14: 20
A15: 0121 | B15: AUBURNDALE ELEMENTARY | C15: 39 | D15: 1 | E15: 20 | F15: 18
A16: 0122 | B16: DR ROLANDO ESPINOSA K-8 | C16: 125 | D16: 5 | E16: 18 | F16: 11 | G16: 25 | H16: 30 | I16: 36
A17: 0125 | B17: NORMA BUTLER BOSSARD ELEM | C17: 33 | D17: 8 | E17: 9 | F17: 16
A18: 0161 | B18: AVOCADO ELEMENTARY | C18: 16 | D18: 16
A19: 0201 | B19: BANYAN ELEMENTARY | C19: 8 | E19: 5 | F19: 3
A20: 0211 | B20: DR. MANUEL C. BARREIRO ELEM | C20: 28 | D20: 3 | E20: 10 | F20: 15
A21: 0231 | B21: AVENTURA WATERWAYS K-8 CENTER | C21: 123 | D21: 6 | E21: 9 | F21: 44 | G21: 22 | H21: 19 | I21: 23
A22: 0241 | B22: RUTH K BROAD/BAY HARBOR K-8 | C22: 48 | D22: 4 | E22: 9 | F22: 7 | G22: 11 | H22: 8 | I22: 9
A23: 0251 | B23: ETHEL KOGER BECKHAM ELEMENTARY | C23: 5 | D23: 1 | F23: 4
A24: 0261 | B24: BEL-AIRE ELEMENTARY | C24: 49 | D24: 8 | E24: 14 | F24: 27
A25: 0271 | B25: BENT TREE ELEMENTARY | C25: 22 | D25: 2 | E25: 7 | F25: 13
A26: 0311 | B26: GOULDS ELEMENTARY | C26: 32 | D26: 7 | E26: 14 | F26: 11
A27: 0312 | B27: MATER GARDENS ACADEMY | C27: 5 | E27: 3 | F27: 2
A28: 0321 | B28: BISCAYNE ELEMENTARY | C28: 46 | D28: 9 | E28: 19 | F28: 18
A29: 0332 | B29: SOMERSET ACADEMY(SILVER PALMS) | C29: 85 | D29: 2 | E29: 3 | F29: 13 | G29: 21 | H29: 31 | I29: 15
A30: 0339 | B30: SOMERSET ACADEMY CHARTER ELEM | C30: 13 | D30: 1 | E30: 6 | F30: 6
A31: 0341 | B31: ARCH CREEK ELEMENTARY SCHOOL | C31: 61 | D31: 5 | E31: 28 | F31: 28
A32: 0342 | B32: PINECREST ACADEMY SOUTH CAMPUS | C32: 13 | D32: 1 | E32: 6 | F32: 6
A33: 0361 | B33: BISCAYNE GARDENS ELEMENTARY | C33: 53 | D33: 6 | E33: 26 | F33: 21
A34: 0400 | B34: RENAISSANCE ELEMENTARY CHARTER | C34: 9 | E34: 3 | F34: 6
A35: 0401 | B35: VAN E. BLANTON ELEMENTARY | C35: 31 | D35: 10 | E35: 9 | F35: 12
A36: 0410 | B36: ACADEMIR CHARTER SCHOOL WEST | C36: 15 | E36: 10 | F36: 5
A37: 0441 | B37: BLUE LAKES ELEMENTARY | C37: 25 | D37: 1 | E37: 15 | F37: 9
A38: 0451 | B38: BOWMAN ASHE/DOOLIN K-8 ACAD | C38: 192 | D38: 1 | E38: 19 | F38: 13 | G38: 31 | H38: 69 | I38: 59
A39: 0461 | B39: BRENTWOOD ELEMENTARY | C39: 69 | D39: 11 | E39: 25 | F39: 33
A40: 0481 | B40: JAMES H. BRIGHT/JW JOHNSON ES | C40: 45 | D40: 5 | E40: 13 | F40: 27
A41: 0510 | B41: ARCHIMEDEAN ACADEMY | C41: 3 | F41: 3
A42: 0520 | B42: SOMERSET ACADEMY | C42: 2 | E42: 2
A43: 0521 | B43: BROADMOOR ELEMENTARY | C43: 40 | D43: 5 | E43: 12 | F43: 23
A44: 0561 | B44: W.J. BRYAN ELEMENTARY | C44: 58 | D44: 11 | E44: 16 | F44: 31
A45: 0600 | B45: PINECREST PREP ACADEMY | C45: 13 | E45: 8 | F45: 5
A46: 0641 | B46: BUNCHE PARK ELEMENTARY | C46: 17 | D46: 3 | E46: 2 | F46: 12
A47: 0651 | B47: CAMPBELL DRIVE K-8 CENTER | C47: 99 | D47: 11 | E47: 22 | F47: 30 | G47: 22 | H47: 14
A48: 0661 | B48: CARIBBEAN ELEMENTARY | C48: 55 | D48: 8 | E48: 23 | F48: 24
A49: 0671 | B49: CALUSA ELEMENTARY | C49: 16 | D49: 1 | E49: 7 | F49: 8
A50: 0681 | B50: CAROL CITY ELEMENTARY | C50: 39 | D50: 7 | E50: 16 | F50: 16
A51: 0721 | B51: GEORGE WASHINGTON CARVER ELEM | C51: 29 | D51: 2 | E51: 13 | F51: 14
A52: 0761 | B52: FIENBERG/FISHER K-8 CENTER | C52: 118 | D52: 5 | E52: 27 | F52: 32 | G52: 23 | H52: 12 | I52: 19
A53: 0771 | B53: WILLIAM A. CHAPMAN ELEMENTARY | C53: 26 | D53: 6 | E53: 11 | F53: 9
A54: 0801 | B54: CITRUS GROVE ELEMENTARY | C54: 116 | D54: 13 | E54: 50 | F54: 53
A55: 0831 | B55: CLAUDE PEPPER ELEMENTARY | C55: 33 | D55: 2 | E55: 17 | F55: 14
A56: 0841 | B56: COCONUT GROVE ELEMENTARY | C56: 11 | E56: 7 | F56: 4
A57: 0861 | B57: COLONIAL DRIVE ELEMENTARY | C57: 16 | D57: 2 | E57: 6 | F57: 8
A58: 0881 | B58: COMSTOCK ELEMENTARY | C58: 35 | D58: 9 | E58: 13 | F58: 13
A59: 0950 | B59: AVENTURA CITY OF EXCELLENCE | C59: 11 | D59: 1 | E59: 2 | F59: 1 | H59: 7
A60: 0961 | B60: CORAL GABLES PREPARATORY ACAD | C60: 42 | E60: 4 | F60: 7 | G60: 12 | H60: 14 | I60: 5
A61: 1001 | B61: CORAL PARK ELEMENTARY | C61: 19 | E61: 4 | F61: 15
A62: 1010 | B62: CHARTER SCHOOL AT WATERSTONE | C62: 29 | E62: 11 | F62: 18
A63: 1014 | B63: ADVANCED LEARNING CHARTER SCH | C63: 10 | D63: 1 | E63: 5 | F63: 4
A64: 1017 | B64: MATER ACADEMY OF INTL STUDIES | C64: 16 | D64: 2 | E64: 3 | F64: 11
A65: 1020 | B65: YOUTH CO-OP CHARTER SCHOOL | C65: 26 | D65: 1 | E65: 4 | F65: 3 | G65: 3 | H65: 10 | I65: 5
A66: 1041 | B66: CORAL REEF ELEMENTARY | C66: 23 | D66: 2 | E66: 9 | F66: 12
A67: 1081 | B67: CORAL TERRACE ELEMENTARY | C67: 34 | D67: 3 | E67: 10 | F67: 21
A68: 1121 | B68: CORAL WAY K-8 CENTER | C68: 187 | D68: 4 | E68: 25 | F68: 42 | G68: 31 | H68: 41 | I68: 44
A69: 1161 | B69: CRESTVIEW ELEMENTARY | C69: 44 | D69: 5 | E69: 20 | F69: 19
A70: 1241 | B70: CUTLER RIDGE ELEMENTARY | C70: 36 | D70: 4 | E70: 25 | F70: 7
A71: 1281 | B71: CYPRESS ELEMENTARY | C71: 16 | E71: 7 | F71: 9
A72: 1331 | B72: DEVON AIRE K-8 CENTER | C72: 69 | E72: 11 | F72: 16 | G72: 16 | H72: 18 | I72: 8
A73: 1361 | B73: FREDERICK DOUGLASS ELEMENTARY | C73: 25 | D73: 8 | E73: 6 | F73: 11
A74: 1371 | B74: MARJORY STONEMAN DOUGLAS ELEM | C74: 52 | D74: 8 | E74: 21 | F74: 23
A75: 1401 | B75: CHARLES R. DREW ELEMENTARY | C75: 22 | D75: 3 | E75: 2 | F75: 11 | G75: 6
A76: 1441 | B76: PAUL LAURENCE DUNBAR ELEM | C76: 65 | D76: 5 | E76: 22 | F76: 26 | G76: 12
A77: 1481 | B77: JOHN G. DUPUIS ELEMENTARY | C77: 24 | D77: 2 | E77: 7 | F77: 15
A78: 1521 | B78: AMELIA EARHART ELEMENTARY | C78: 31 | D78: 9 | E78: 13 | F78: 9
A79: 1561 | B79: EARLINGTON HEIGHTS ELEMENTARY | C79: 41 | D79: 1 | E79: 22 | F79: 18
A80: 1601 | B80: EDISON PARK ELEMENTARY | C80: 38 | D80: 7 | E80: 10 | F80: 11 | G80: 10
A81: 1641 | B81: EMERSON ELEMENTARY | C81: 13 | D81: 4 | E81: 4 | F81: 5
A82: 1681 | B82: LILLIE C. EVANS K-8 CENTER | C82: 43 | D82: 4 | E82: 17 | F82: 9 | G82: 9 | H82: 3 | I82: 1
A83: 1691 | B83: CHRISTINA M. EVE ELEMENTARY | C83: 10 | E83: 3 | F83: 7
A84: 1721 | B84: EVERGLADES K-8 CENTER | C84: 85 | D84: 2 | E84: 6 | F84: 6 | G84: 6 | H84: 35 | I84: 30
A85: 1761 | B85: DAVID FAIRCHILD ELEMENTARY | C85: 10 | E85: 1 | F85: 9
A86: 1801 | B86: FAIRLAWN ELEMENTARY | C86: 33 | D86: 1 | E86: 12 | F86: 20
A87: 1811 | B87: DANTE B. FASCELL ELEMENTARY | C87: 16 | E87: 7 | F87: 9
A88: 1841 | B88: FLAGAMI ELEMENTARY | C88: 29 | D88: 1 | E88: 9 | F88: 19
A89: 1881 | B89: HENRY M. FLAGLER ELEMENTARY | C89: 58 | D89: 8 | E89: 24 | F89: 26
A90: 1921 | B90: FLAMINGO ELEMENTARY | C90: 92 | D90: 15 | E90: 23 | F90: 54
A91: 2001 | B91: FLORIDA CITY ELEMENTARY | C91: 61 | D91: 5 | E91: 30 | F91: 26
A92: 2003 | B92: BRIDGEPOINT ACADEMY | C92: 3 | E92: 1 | F92: 2
A93: 2006 | B93: RICHARD ALLEN LEADERSHIP ACAD | C93: 7 | E93: 5 | F93: 2
A94: 2007 | B94: SOMERSET ACADEMY ELEMENTARY | C94: 2 | F94: 2
A95: 2012 | B95: SOMERSET ARTS ACADEMY | C95: 15 | D95: 1 | E95: 10 | F95: 4
A96: 2013 | B96: BRIDGEPOINT ACAD GREATER MIAMI | C96: 13 | E96: 6 | F96: 7
A97: 2021 | B97: GLORIA FLOYD ELEMENTARY | C97: 16 | D97: 4 | E97: 5 | F97: 7
A98: 2041 | B98: BENJAMIN FRANKLIN K-8 CENTER | C98: 58 | D98: 3 | E98: 7 | F98: 17 | G98: 19 | H98: 12
A99: 2060 | B99: GIBSON CHARTER SCHOOL | C99: 51 | D99: 3 | E99: 4 | F99: 8 | G99: 12 | H99: 15 | I99: 9
A100: 2081 | B100: FULFORD ELEMENTARY | C100: 51 | D100: 9 | E100: 15 | F100: 27
A101: 2111 | B101: HIALEAH GARDENS ELEMENTARY | C101: 24 | D101: 5 | E101: 10 | F101: 9
A102: 2151 | B102: JACK D. GORDON ELEMENTARY | C102: 41 | D102: 3 | E102: 22 | F102: 16
A103: 2161 | B103: GOLDEN GLADES ELEMENTARY | C103: 21 | D103: 4 | E103: 8 | F103: 9
A104: 2181 | B104: JOELLA C. GOOD ELEMENTARY | C104: 49 | D104: 6 | E104: 22 | F104: 21
A105: 2191 | B105: SPANISH LAKE ELEMENTARY | C105: 57 | D105: 7 | E105: 27 | F105: 23
A106: 2241 | B106: GRATIGNY ELEMENTARY | C106: 85 | D106: 9 | E106: 16 | F106: 33 | G106: 27
A107: 2261 | B107: GREENGLADE ELEMENTARY | C107: 21 | E107: 11 | F107: 10
A108: 2281 | B108: GREYNOLDS PARK ELEMENTARY | C108: 70 | D108: 13 | E108: 24 | F108: 33
A109: 2321 | B109: GULFSTREAM ELEMENTARY | C109: 26 | D109: 2 | E109: 8 | F109: 16
A110: 2331 | B110: CHARLES R. HADLEY ELEMENTARY | C110: 30 | D110: 2 | E110: 16 | F110: 12
A111: 2341 | B111: JOE HALL ELEMENTARY | C111: 29 | D111: 2 | E111: 9 | F111: 18
A112: 2351 | B112: ENEIDA MASSAS HARTNER ELEM | C112: 41 | D112: 6 | E112: 16 | F112: 19
A113: 2361 | B113: HIALEAH ELEMENTARY | C113: 56 | D113: 4 | E113: 26 | F113: 26
A114: 2371 | B114: WEST HIALEAH GARDENS ELEM | C114: 47 | D114: 6 | E114: 18 | F114: 23
A115: 2401 | B115: HIBISCUS ELEMENTARY | C115: 30 | D115: 3 | E115: 9 | F115: 18
A116: 2441 | B116: VIRGINIA A BOONE/HIGHLAND OAKS | C116: 23 | E116: 14 | F116: 9
A117: 2501 | B117: HOLMES ELEMENTARY | C117: 45 | D117: 14 | E117: 16 | F117: 15
A118: 2511 | B118: ZORA NEALE HURSTON ELEMENTARY | C118: 40 | D118: 3 | E118: 31 | F118: 6
A119: 2521 | B119: OLIVER HOOVER ELEMENTARY | C119: 42 | D119: 4 | E119: 17 | F119: 21
A120: 2541 | B120: HOWARD DRIVE ELEMENTARY | C120: 39 | D120: 2 | E120: 16 | F120: 21
A121: 2581 | B121: MADIE IVES ELEMENTARY | C121: 64 | D121: 9 | E121: 21 | F121: 34
A122: 2641 | B122: KENDALE ELEMENTARY | C122: 8 | D122: 1 | E122: 4 | F122: 3
A123: 2651 | B123: KENDALE LAKES ELEMENTARY | C123: 23 | D123: 4 | E123: 13 | F123: 6
A124: 2661 | B124: KENSINGTON PARK ELEMENTARY | C124: 152 | D124: 24 | E124: 54 | F124: 74
A125: 2701 | B125: KENWOOD K-8 CENTER | C125: 60 | D125: 3 | E125: 7 | F125: 11 | G125: 14 | H125: 11 | I125: 14
A126: 2741 | B126: KEY BISCAYNE K-8 CENTER | C126: 28 | D126: 1 | E126: 5 | F126: 3 | G126: 5 | H126: 6 | I126: 8
A127: 2781 | B127: KINLOCH PARK ELEMENTARY | C127: 64 | D127: 8 | E127: 15 | F127: 41
A128: 2801 | B128: LAKE STEVENS ELEMENTARY | C128: 26 | D128: 3 | E128: 12 | F128: 11
A129: 2821 | B129: LAKEVIEW ELEMENTARY | C129: 29 | D129: 7 | E129: 9 | F129: 13
A130: 2881 | B130: LEEWOOD K-8 CENTER | C130: 29 | D130: 1 | E130: 3 | F130: 7 | G130: 8 | H130: 7 | I130: 3
A131: 2891 | B131: WILLIAM LEHMAN ELEMENTARY | C131: 18 | D131: 1 | E131: 9 | F131: 8
A132: 2901 | B132: LEISURE CITY K-8 CENTER | C132: 168 | D132: 6 | E132: 30 | F132: 25 | G132: 36 | H132: 35 | I132: 36
A133: 2911 | B133: LINDA LENTIN K-8 CENTER | C133: 155 | D133: 9 | E133: 20 | F133: 44 | G133: 33 | H133: 21 | I133: 28
A134: 2941 | B134: LAURA C. SAUNDERS ELEMENTARY | C134: 39 | D134: 14 | E134: 7 | F134: 18
A135: 2981 | B135: LIBERTY CITY ELEMENTARY | C135: 24 | D135: 2 | E135: 12 | F135: 10
A136: 3021 | B136: JESSE J MCCRARY JR ELEMENTARY | C136: 35 | D136: 8 | E136: 10 | F136: 17
A137: 3024 | B137: FLORIDA INTERNATIONAL EL ACAD | C137: 35 | D137: 9 | E137: 11 | F137: 15
A138: 3025 | B138: ADVANTAGE ACADEMY SANTA FE | C138: 3 | E138: 2 | F138: 1
A139: 3030 | B139: DORAL ACADEMY | C139: 16 | D139: 1 | E139: 8 | F139: 7
A140: 3032 | B140: PALM GLADES PREPATORY ACADEMY | C140: 107 | G140: 40 | H140: 40 | I140: 27
A141: 3034 | B141: BRIDGEPOINT ACAD VILLAGE GREEN | C141: 4 | F141: 3 | H141: 1
A142: 3035 | B142: RAMZ ACADEMY ELEM MIAMI CAMPUS | C142: 3 | D142: 1 | E142: 1 | F142: 1
A143: 3041 | B143: LORAH PARK ELEMENTARY | C143: 29 | D143: 7 | E143: 8 | F143: 14
A144: 3051 | B144: TOUSSAINT L'OUVERTURE ELEM | C144: 59 | D144: 10 | E144: 26 | F144: 23
A145: 3061 | B145: LUDLAM ELEMENTARY | C145: 15 | E145: 5 | F145: 10
A146: 3100 | B146: MATER ACADEMY EAST CHARTER | C146: 1 | F146: 1
A147: 3101 | B147: FRANK C. MARTIN K-8 CENTER | C147: 17 | E147: 2 | F147: 5 | G147: 4 | H147: 2 | I147: 4
A148: 3111 | B148: WESLEY MATTHEWS ELEMENTARY | C148: 12 | E148: 4 | F148: 8
A149: 3141 | B149: MEADOWLANE ELEMENTARY | C149: 78 | D149: 7 | E149: 23 | F149: 48
A150: 3181 | B150: MELROSE ELEMENTARY | C150: 48 | D150: 3 | E150: 18 | F150: 27
A151: 3191 | B151: ADA MERRITT K-8 CENTER | C151: 7 | F151: 2 | G151: 1 | H151: 2 | I151: 2
A152: 3241 | B152: MIAMI GARDENS ELEMENTARY | C152: 14 | D152: 3 | E152: 4 | F152: 7
A153: 3261 | B153: MIAMI HEIGHTS ELEMENTARY | C153: 60 | D153: 11 | E153: 32 | F153: 17
A154: 3281 | B154: MIAMI LAKES K-8 CENTER | C154: 130 | D154: 5 | E154: 10 | F154: 43 | G154: 20 | H154: 28 | I154: 24
A155: 3301 | B155: MIAMI PARK ELEMENTARY | C155: 46 | D155: 11 | E155: 15 | F155: 20
A156: 3341 | B156: MIAMI SHORES ELEMENTARY | C156: 40 | D156: 10 | E156: 12 | F156: 18
A157: 3381 | B157: MIAMI SPRINGS ELEMENTARY | C157: 38 | D157: 2 | E157: 12 | F157: 24
A158: 3421 | B158: M.A. MILAM K-8 CENTER | C158: 170 | D158: 7 | E158: 20 | F158: 32 | G158: 31 | H158: 53 | I158: 27
A159: 3431 | B159: PHYLLIS RUTH MILLER ELEMENTARY | C159: 43 | D159: 4 | E159: 20 | F159: 19
A160: 3501 | B160: MORNINGSIDE ELEMENTARY | C160: 49 | D160: 4 | E160: 9 | F160: 23 | G160: 13
A161: 3541 | B161: ROBERT RUSSA MOTON ELEMENTARY | C161: 29 | D161: 9 | E161: 11 | F161: 9
A162: 3581 | B162: MYRTLE GROVE ELEMENTARY | C162: 45 | D162: 6 | E162: 12 | F162: 16 | G162: 11
A163: 3600 | B163: DOWNTOWN MIAMI CHARTER SCHOOL | C163: 40 | D163: 3 | E163: 14 | F163: 7 | G163: 16
A164: 3610 | B164: KEYS GATE CHARTER SCHOOL | C164: 183 | D164: 7 | E164: 19 | F164: 27 | G164: 23 | H164: 61 | I164: 46
A165: 3621 | B165: COCONUT PALM K-8 ACADEMY | C165: 124 | D165: 11 | E165: 16 | F165: 27 | G165: 34 | H165: 21 | I165: 15
A166: 3661 | B166: NATURAL BRIDGE ELEMENTARY | C166: 47 | D166: 4 | E166: 16 | F166: 27
A167: 3701 | B167: NORLAND ELEMENTARY | C167: 41 | D167: 5 | E167: 13 | F167: 23
A168: 3741 | B168: NORTH BEACH ELEMENTARY | C168: 18 | D168: 2 | E168: 5 | F168: 11
A169: 3781 | B169: BARBARA HAWKINS ELEMENTARY | C169: 20 | D169: 3 | E169: 4 | F169: 13
A170: 3821 | B170: NORTH COUNTY K-8 CENTER | C170: 48 | D170: 4 | E170: 6 | F170: 11 | G170: 15 | H170: 12
A171: 3861 | B171: NORTH GLADE ELEMENTARY | C171: 34 | D171: 5 | E171: 20 | F171: 9
A172: 3901 | B172: NORTH HIALEAH ELEMENTARY | C172: 40 | D172: 8 | E172: 14 | F172: 18
A173: 3941 | B173: NORTH MIAMI ELEMENTARY | C173: 51 | D173: 8 | E173: 24 | F173: 19
A174: 3981 | B174: NORTH TWIN LAKES ELEMENTARY | C174: 26 | D174: 4 | E174: 10 | F174: 12
A175: 4000 | B175: MIAMI CHILDREN'S MUSEUM | C175: 9 | E175: 3 | F175: 6
A176: 4001 | B176: NORWOOD ELEMENTARY | C176: 20 | D176: 4 | E176: 5 | F176: 11
A177: 4012 | B177: SOMERSET ACAD AT SILVER PALMS | C177: 24 | D177: 1 | E177: 7 | F177: 16
A178: 4021 | B178: OAK GROVE ELEMENTARY | C178: 57 | D178: 6 | E178: 13 | F178: 19 | G178: 19
A179: 4031 | B179: GATEWAY ENVIRONMENTAL K-8 | C179: 194 | D179: 17 | E179: 37 | F179: 66 | G179: 41 | H179: 33
A180: 4061 | B180: OJUS ELEMENTARY | C180: 38 | D180: 4 | E180: 8 | F180: 26
A181: 4071 | B181: OLINDA ELEMENTARY | C181: 26 | D181: 4 | E181: 10 | F181: 12
A182: 4091 | B182: OLYMPIA HEIGHTS ELEMENTARY | C182: 10 | D182: 1 | E182: 4 | F182: 5
A183: 4121 | B183: DR. ROBERT B. INGRAM EL | C183: 34 | D183: 10 | E183: 9 | F183: 15
A184: 4171 | B184: ORCHARD VILLA ELEMENTARY | C184: 50 | D184: 3 | E184: 30 | F184: 17
A185: 4221 | B185: PALMETTO ELEMENTARY | C185: 20 | D185: 2 | E185: 9 | F185: 9
A186: 4241 | B186: PALM LAKES ELEMENTARY | C186: 58 | D186: 7 | E186: 18 | F186: 33
A187: 4261 | B187: PALM SPRINGS ELEMENTARY | C187: 58 | D187: 10 | E187: 20 | F187: 28
A188: 4281 | B188: PALM SPRINGS NORTH ELEMENTARY | C188: 37 | D188: 3 | E188: 14 | F188: 20
A189: 4301 | B189: PARKVIEW ELEMENTARY | C189: 19 | D189: 5 | E189: 9 | F189: 5
A190: 4341 | B190: PARKWAY ELEMENTARY | C190: 29 | D190: 1 | E190: 16 | F190: 12
A191: 4381 | B191: DR HENRY E PERRINE ACADEMY | C191: 44 | E191: 26 | F191: 18
A192: 4391 | B192: IRVING & BEATRICE PESKOE K-8 | C192: 86 | D192: 9 | E192: 14 | F192: 19 | G192: 25 | H192: 19
A193: 4401 | B193: KELSEY L. PHARR ELEMENTARY | C193: 26 | D193: 6 | E193: 9 | F193: 11
A194: 4421 | B194: PINECREST ELEMENTARY | C194: 19 | D194: 3 | E194: 7 | F194: 9
A195: 4441 | B195: PINE LAKE ELEMENTARY | C195: 48 | D195: 15 | E195: 19 | F195: 14
A196: 4461 | B196: PINE VILLA ELEMENTARY | C196: 16 | D196: 1 | E196: 7 | F196: 8
A197: 4491 | B197: HENRY E.S. REEVES ELEMENTARY | C197: 54 | D197: 16 | E197: 26 | F197: 12
A198: 4501 | B198: POINCIANA PARK ELEMENTARY | C198: 23 | D198: 11 | E198: 5 | F198: 7
A199: 4511 | B199: DR GILBERT L. PORTER ELEM | C199: 29 | D199: 3 | E199: 13 | F199: 13
A200: 4541 | B200: RAINBOW PARK ELEMENTARY | C200: 29 | D200: 3 | E200: 11 | F200: 15
... 170 more rows

Sheet MEM_ML2 (hidden)
A1: 1 | B1: 2 | C1: 3 | D1: 4 | E1: 5 | F1: 6 | G1: 7 | H1: 8 | I1: 9
A2: S_SCHOOL_NUM | B2: S_SCHL_NAME | C2: Total Of STUDENT_ID | D2: 03 | E2: 04 | F2: 05 | G2: 06 | H2: 07 | I2: 08
A3: 0041 | B3: AIR BASE ELEMENTARY | C3: 49 | E3: 20 | F3: 29
A4: 0070 | B4: CORAL REEF MONTESSORI ACAD CH | C4: 49 | D4: 1 | E4: 16 | F4: 12 | G4: 7 | H4: 10 | I4: 3
A5: 0071 | B5: EUGENIA B. THOMAS K-8 CENTER | C5: 177 | D5: 1 | E5: 44 | F5: 26 | G5: 31 | H5: 34 | I5: 41
A6: 0072 | B6: SUMMERVILLE CHARTER SCHOOL | C6: 42 | E6: 24 | F6: 18
A7: 0073 | B7: MANDARIN LAKES K-8 CENTER | C7: 156 | D7: 13 | E7: 28 | F7: 25 | G7: 44 | H7: 13 | I7: 33
A8: 0081 | B8: LENORA B. SMITH ELEMENTARY | C8: 34 | D8: 2 | E8: 17 | F8: 15
A9: 0091 | B9: BOB GRAHAM EDUCATION CTR | C9: 221 | D9: 2 | E9: 39 | F9: 36 | G9: 50 | H9: 49 | I9: 45
A10: 0092 | B10: NORMAN S. EDELCUP/SUNNY ISLES | C10: 115 | E10: 26 | F10: 28 | G10: 25 | H10: 16 | I10: 20
A11: 0100 | B11: MATER ACADEMY | C11: 41 | D11: 3 | E11: 16 | F11: 22
A12: 0101 | B12: ARCOLA LAKE ELEMENTARY | C12: 55 | D12: 7 | E12: 16 | F12: 32
A13: 0102 | B13: MIAMI COMMUNITY CHARTER SCHOOL | C13: 36 | D13: 1 | E13: 20 | F13: 15
A14: 0111 | B14: MAYA ANGELOU ELEMENTARY | C14: 36 | D14: 1 | E14: 22 | F14: 13
A15: 0121 | B15: AUBURNDALE ELEMENTARY | C15: 54 | D15: 1 | E15: 26 | F15: 27
A16: 0122 | B16: DR ROLANDO ESPINOSA K-8 | C16: 180 | D16: 2 | E16: 25 | F16: 23 | G16: 35 | H16: 49 | I16: 46
A17: 0125 | B17: NORMA BUTLER BOSSARD ELEM | C17: 62 | D17: 1 | E17: 34 | F17: 27
A18: 0161 | B18: AVOCADO ELEMENTARY | C18: 4 | D18: 4
A19: 0201 | B19: BANYAN ELEMENTARY | C19: 24 | E19: 14 | F19: 10
A20: 0211 | B20: DR. MANUEL C. BARREIRO ELEM | C20: 68 | E20: 32 | F20: 36
A21: 0231 | B21: AVENTURA WATERWAYS K-8 CENTER | C21: 190 | D21: 10 | E21: 23 | F21: 30 | G21: 40 | H21: 49 | I21: 38
A22: 0241 | B22: RUTH K BROAD/BAY HARBOR K-8 | C22: 84 | E22: 14 | F22: 19 | G22: 22 | H22: 16 | I22: 13
A23: 0251 | B23: ETHEL KOGER BECKHAM ELEMENTARY | C23: 17 | E23: 10 | F23: 7
A24: 0261 | B24: BEL-AIRE ELEMENTARY | C24: 40 | E24: 18 | F24: 22
A25: 0271 | B25: BENT TREE ELEMENTARY | C25: 55 | D25: 2 | E25: 22 | F25: 31
A26: 0311 | B26: GOULDS ELEMENTARY | C26: 46 | D26: 3 | E26: 22 | F26: 21
A27: 0312 | B27: MATER GARDENS ACADEMY | C27: 22 | D27: 1 | E27: 12 | F27: 9
A28: 0321 | B28: BISCAYNE ELEMENTARY | C28: 52 | D28: 4 | E28: 24 | F28: 24
A29: 0332 | B29: SOMERSET ACADEMY(SILVER PALMS) | C29: 178 | E29: 18 | F29: 24 | G29: 51 | H29: 43 | I29: 42
A30: 0339 | B30: SOMERSET ACADEMY CHARTER ELEM | C30: 19 | E30: 8 | F30: 11
A31: 0341 | B31: ARCH CREEK ELEMENTARY SCHOOL | C31: 50 | D31: 2 | E31: 15 | F31: 33
A32: 0342 | B32: PINECREST ACADEMY SOUTH CAMPUS | C32: 36 | D32: 1 | E32: 19 | F32: 16
A33: 0361 | B33: BISCAYNE GARDENS ELEMENTARY | C33: 43 | D33: 3 | E33: 21 | F33: 19
A34: 0400 | B34: RENAISSANCE ELEMENTARY CHARTER | C34: 41 | D34: 1 | E34: 32 | F34: 8
A35: 0401 | B35: VAN E. BLANTON ELEMENTARY | C35: 40 | D35: 4 | E35: 12 | F35: 24
A36: 0410 | B36: ACADEMIR CHARTER SCHOOL WEST | C36: 26 | E36: 12 | F36: 14
A37: 0441 | B37: BLUE LAKES ELEMENTARY | C37: 35 | E37: 22 | F37: 13
A38: 0451 | B38: BOWMAN ASHE/DOOLIN K-8 ACAD | C38: 209 | D38: 1 | E38: 35 | F38: 19 | G38: 36 | H38: 66 | I38: 52
A39: 0461 | B39: BRENTWOOD ELEMENTARY | C39: 74 | D39: 7 | E39: 35 | F39: 32
A40: 0481 | B40: JAMES H. BRIGHT/JW JOHNSON ES | C40: 45 | D40: 7 | E40: 13 | F40: 25
A41: 0510 | B41: ARCHIMEDEAN ACADEMY | C41: 14 | E41: 7 | F41: 7
A42: 0520 | B42: SOMERSET ACADEMY | C42: 16 | D42: 1 | E42: 9 | F42: 6
A43: 0521 | B43: BROADMOOR ELEMENTARY | C43: 35 | E43: 23 | F43: 12
A44: 0561 | B44: W.J. BRYAN ELEMENTARY | C44: 55 | D44: 3 | E44: 20 | F44: 32
A45: 0600 | B45: PINECREST PREP ACADEMY | C45: 47 | E45: 22 | F45: 25
A46: 0641 | B46: BUNCHE PARK ELEMENTARY | C46: 13 | E46: 7 | F46: 6
A47: 0651 | B47: CAMPBELL DRIVE K-8 CENTER | C47: 82 | D47: 3 | E47: 18 | F47: 26 | G47: 17 | H47: 18
A48: 0661 | B48: CARIBBEAN ELEMENTARY | C48: 47 | D48: 4 | E48: 25 | F48: 18
A49: 0671 | B49: CALUSA ELEMENTARY | C49: 36 | D49: 2 | E49: 19 | F49: 15
A50: 0681 | B50: CAROL CITY ELEMENTARY | C50: 54 | D50: 5 | E50: 31 | F50: 18
A51: 0721 | B51: GEORGE WASHINGTON CARVER ELEM | C51: 45 | D51: 3 | E51: 24 | F51: 18
A52: 0761 | B52: FIENBERG/FISHER K-8 CENTER | C52: 122 | D52: 1 | E52: 23 | F52: 23 | G52: 38 | H52: 19 | I52: 18
A53: 0771 | B53: WILLIAM A. CHAPMAN ELEMENTARY | C53: 23 | D53: 1 | E53: 7 | F53: 15
A54: 0801 | B54: CITRUS GROVE ELEMENTARY | C54: 75 | D54: 3 | E54: 45 | F54: 27
A55: 0831 | B55: CLAUDE PEPPER ELEMENTARY | C55: 48 | D55: 2 | E55: 25 | F55: 21
A56: 0841 | B56: COCONUT GROVE ELEMENTARY | C56: 18 | E56: 11 | F56: 7
A57: 0861 | B57: COLONIAL DRIVE ELEMENTARY | C57: 21 | D57: 2 | E57: 9 | F57: 10
A58: 0881 | B58: COMSTOCK ELEMENTARY | C58: 43 | D58: 2 | E58: 22 | F58: 19
A59: 0950 | B59: AVENTURA CITY OF EXCELLENCE | C59: 58 | E59: 13 | F59: 15 | G59: 7 | H59: 11 | I59: 12
A60: 0961 | B60: CORAL GABLES PREPARATORY ACAD | C60: 65 | E60: 12 | F60: 8 | G60: 11 | H60: 23 | I60: 11
A61: 1001 | B61: CORAL PARK ELEMENTARY | C61: 25 | E61: 11 | F61: 14
A62: 1010 | B62: CHARTER SCHOOL AT WATERSTONE | C62: 78 | E62: 45 | F62: 33
A63: 1014 | B63: ADVANCED LEARNING CHARTER SCH | C63: 36 | D63: 4 | E63: 17 | F63: 15
A64: 1017 | B64: MATER ACADEMY OF INTL STUDIES | C64: 28 | D64: 1 | E64: 14 | F64: 13
A65: 1020 | B65: YOUTH CO-OP CHARTER SCHOOL | C65: 88 | D65: 3 | E65: 7 | F65: 13 | G65: 17 | H65: 25 | I65: 23
A66: 1041 | B66: CORAL REEF ELEMENTARY | C66: 41 | D66: 1 | E66: 27 | F66: 13
A67: 1081 | B67: CORAL TERRACE ELEMENTARY | C67: 42 | D67: 2 | E67: 20 | F67: 20
A68: 1121 | B68: CORAL WAY K-8 CENTER | C68: 193 | D68: 1 | E68: 48 | F68: 30 | G68: 44 | H68: 33 | I68: 37
A69: 1161 | B69: CRESTVIEW ELEMENTARY | C69: 54 | D69: 2 | E69: 21 | F69: 31
A70: 1241 | B70: CUTLER RIDGE ELEMENTARY | C70: 65 | D70: 1 | E70: 39 | F70: 25
A71: 1281 | B71: CYPRESS ELEMENTARY | C71: 31 | E71: 16 | F71: 15
A72: 1331 | B72: DEVON AIRE K-8 CENTER | C72: 164 | D72: 2 | E72: 36 | F72: 20 | G72: 38 | H72: 41 | I72: 27
A73: 1361 | B73: FREDERICK DOUGLASS ELEMENTARY | C73: 27 | D73: 2 | E73: 17 | F73: 8
A74: 1371 | B74: MARJORY STONEMAN DOUGLAS ELEM | C74: 66 | D74: 6 | E74: 30 | F74: 30
A75: 1401 | B75: CHARLES R. DREW ELEMENTARY | C75: 28 | E75: 4 | F75: 10 | G75: 14
A76: 1441 | B76: PAUL LAURENCE DUNBAR ELEM | C76: 42 | D76: 1 | E76: 13 | F76: 13 | G76: 15
A77: 1481 | B77: JOHN G. DUPUIS ELEMENTARY | C77: 58 | D77: 1 | E77: 24 | F77: 33
A78: 1521 | B78: AMELIA EARHART ELEMENTARY | C78: 26 | D78: 3 | E78: 9 | F78: 14
A79: 1561 | B79: EARLINGTON HEIGHTS ELEMENTARY | C79: 39 | D79: 2 | E79: 21 | F79: 16
A80: 1601 | B80: EDISON PARK ELEMENTARY | C80: 28 | D80: 2 | E80: 11 | F80: 8 | G80: 7
A81: 1641 | B81: EMERSON ELEMENTARY | C81: 31 | D81: 2 | E81: 16 | F81: 13
A82: 1681 | B82: LILLIE C. EVANS K-8 CENTER | C82: 73 | E82: 16 | F82: 7 | G82: 20 | H82: 18 | I82: 12
A83: 1691 | B83: CHRISTINA M. EVE ELEMENTARY | C83: 19 | D83: 1 | E83: 6 | F83: 12
A84: 1721 | B84: EVERGLADES K-8 CENTER | C84: 148 | E84: 28 | F84: 22 | G84: 26 | H84: 44 | I84: 28
A85: 1761 | B85: DAVID FAIRCHILD ELEMENTARY | C85: 26 | E85: 12 | F85: 14
A86: 1801 | B86: FAIRLAWN ELEMENTARY | C86: 40 | D86: 1 | E86: 23 | F86: 16
A87: 1811 | B87: DANTE B. FASCELL ELEMENTARY | C87: 51 | E87: 27 | F87: 24
A88: 1841 | B88: FLAGAMI ELEMENTARY | C88: 43 | E88: 20 | F88: 23
A89: 1881 | B89: HENRY M. FLAGLER ELEMENTARY | C89: 43 | D89: 1 | E89: 16 | F89: 26
A90: 1921 | B90: FLAMINGO ELEMENTARY | C90: 70 | D90: 3 | E90: 38 | F90: 29
A91: 2001 | B91: FLORIDA CITY ELEMENTARY | C91: 54 | D91: 4 | E91: 22 | F91: 28
A92: 2003 | B92: BRIDGEPOINT ACADEMY | C92: 10 | D92: 1 | E92: 3 | F92: 6
A93: 2006 | B93: RICHARD ALLEN LEADERSHIP ACAD | C93: 8 | E93: 4 | F93: 4
A94: 2007 | B94: SOMERSET ACADEMY ELEMENTARY | C94: 12 | E94: 7 | F94: 5
A95: 2012 | B95: SOMERSET ARTS ACADEMY | C95: 27 | E95: 19 | F95: 8
A96: 2013 | B96: BRIDGEPOINT ACAD GREATER MIAMI | C96: 12 | E96: 7 | F96: 5
A97: 2021 | B97: GLORIA FLOYD ELEMENTARY | C97: 37 | D97: 4 | E97: 12 | F97: 21
A98: 2041 | B98: BENJAMIN FRANKLIN K-8 CENTER | C98: 71 | D98: 1 | E98: 24 | F98: 14 | G98: 16 | H98: 16
A99: 2060 | B99: GIBSON CHARTER SCHOOL | C99: 50 | E99: 6 | F99: 7 | G99: 16 | H99: 9 | I99: 12
A100: 2081 | B100: FULFORD ELEMENTARY | C100: 34 | D100: 4 | E100: 17 | F100: 13
A101: 2111 | B101: HIALEAH GARDENS ELEMENTARY | C101: 42 | D101: 3 | E101: 22 | F101: 17
A102: 2151 | B102: JACK D. GORDON ELEMENTARY | C102: 72 | D102: 4 | E102: 37 | F102: 31
A103: 2161 | B103: GOLDEN GLADES ELEMENTARY | C103: 22 | D103: 2 | E103: 10 | F103: 10
A104: 2181 | B104: JOELLA C. GOOD ELEMENTARY | C104: 72 | D104: 2 | E104: 38 | F104: 32
A105: 2191 | B105: SPANISH LAKE ELEMENTARY | C105: 77 | D105: 2 | E105: 39 | F105: 36
A106: 2241 | B106: GRATIGNY ELEMENTARY | C106: 70 | D106: 4 | E106: 25 | F106: 20 | G106: 21
A107: 2261 | B107: GREENGLADE ELEMENTARY | C107: 35 | E107: 18 | F107: 17
A108: 2281 | B108: GREYNOLDS PARK ELEMENTARY | C108: 54 | D108: 2 | E108: 27 | F108: 25
A109: 2321 | B109: GULFSTREAM ELEMENTARY | C109: 35 | D109: 4 | E109: 20 | F109: 11
A110: 2331 | B110: CHARLES R. HADLEY ELEMENTARY | C110: 52 | D110: 1 | E110: 26 | F110: 25
A111: 2341 | B111: JOE HALL ELEMENTARY | C111: 46 | D111: 2 | E111: 29 | F111: 15
A112: 2351 | B112: ENEIDA MASSAS HARTNER ELEM | C112: 47 | D112: 5 | E112: 26 | F112: 16
A113: 2361 | B113: HIALEAH ELEMENTARY | C113: 53 | D113: 2 | E113: 33 | F113: 18
A114: 2371 | B114: WEST HIALEAH GARDENS ELEM | C114: 81 | D114: 4 | E114: 40 | F114: 37
A115: 2401 | B115: HIBISCUS ELEMENTARY | C115: 52 | D115: 4 | E115: 23 | F115: 25
A116: 2441 | B116: VIRGINIA A BOONE/HIGHLAND OAKS | C116: 35 | D116: 1 | E116: 18 | F116: 16
A117: 2501 | B117: HOLMES ELEMENTARY | C117: 47 | D117: 7 | E117: 21 | F117: 19
A118: 2511 | B118: ZORA NEALE HURSTON ELEMENTARY | C118: 43 | D118: 1 | E118: 16 | F118: 26
A119: 2521 | B119: OLIVER HOOVER ELEMENTARY | C119: 43 | E119: 21 | F119: 22
A120: 2541 | B120: HOWARD DRIVE ELEMENTARY | C120: 52 | E120: 27 | F120: 25
A121: 2581 | B121: MADIE IVES ELEMENTARY | C121: 67 | D121: 2 | E121: 38 | F121: 27
A122: 2641 | B122: KENDALE ELEMENTARY | C122: 22 | E122: 13 | F122: 9
A123: 2651 | B123: KENDALE LAKES ELEMENTARY | C123: 30 | D123: 2 | E123: 19 | F123: 9
A124: 2661 | B124: KENSINGTON PARK ELEMENTARY | C124: 86 | D124: 2 | E124: 51 | F124: 33
A125: 2701 | B125: KENWOOD K-8 CENTER | C125: 135 | D125: 5 | E125: 20 | F125: 19 | G125: 33 | H125: 23 | I125: 35
A126: 2741 | B126: KEY BISCAYNE K-8 CENTER | C126: 66 | D126: 2 | E126: 15 | F126: 7 | G126: 16 | H126: 14 | I126: 12
A127: 2781 | B127: KINLOCH PARK ELEMENTARY | C127: 85 | D127: 4 | E127: 36 | F127: 45
A128: 2801 | B128: LAKE STEVENS ELEMENTARY | C128: 20 | D128: 1 | E128: 9 | F128: 10
A129: 2821 | B129: LAKEVIEW ELEMENTARY | C129: 35 | D129: 3 | E129: 12 | F129: 20
A130: 2881 | B130: LEEWOOD K-8 CENTER | C130: 59 | D130: 1 | E130: 10 | F130: 14 | G130: 14 | H130: 14 | I130: 6
A131: 2891 | B131: WILLIAM LEHMAN ELEMENTARY | C131: 37 | D131: 1 | E131: 24 | F131: 12
A132: 2901 | B132: LEISURE CITY K-8 CENTER | C132: 181 | D132: 6 | E132: 39 | F132: 31 | G132: 26 | H132: 37 | I132: 42
A133: 2911 | B133: LINDA LENTIN K-8 CENTER | C133: 157 | D133: 3 | E133: 23 | F133: 28 | G133: 33 | H133: 30 | I133: 40
A134: 2941 | B134: LAURA C. SAUNDERS ELEMENTARY | C134: 73 | D134: 5 | E134: 33 | F134: 35
A135: 2981 | B135: LIBERTY CITY ELEMENTARY | C135: 39 | D135: 2 | E135: 24 | F135: 13
A136: 3021 | B136: JESSE J MCCRARY JR ELEMENTARY | C136: 47 | D136: 8 | E136: 25 | F136: 14
A137: 3024 | B137: FLORIDA INTERNATIONAL EL ACAD | C137: 44 | D137: 5 | E137: 25 | F137: 14
A138: 3025 | B138: ADVANTAGE ACADEMY SANTA FE | C138: 7 | E138: 5 | F138: 2
A139: 3029 | B139: DORAL ACADEMY OF TECHNOLOGY | C139: 5 | G139: 3 | I139: 2
A140: 3030 | B140: DORAL ACADEMY | C140: 39 | E140: 24 | F140: 15
A141: 3032 | B141: PALM GLADES PREPATORY ACADEMY | C141: 126 | G141: 63 | H141: 34 | I141: 29
